Workbook

Sheet Процент
A1: 0

Sheet Шапка
A1: Карта заказа № | C1: НЕТ | E1: Менеджер | F1: НЕТ | K1: Дата запуска | L1: НЕТ | M1: Срок изгот. (дни) | N1: НЕТ
E2: Компания | F2: МебельПлюс ООО | K2: Адрес доставки | M2: НЕТ
E3: Заказчик | F3: НЕТ
E4: Способ доставки | F4: Самовывоз | K4: Сумма доставки | M4: НЕТ
C5: Версия 7 от 14.07.2018 | E5: =IF(OR(--ISBLANK($C$1),(--ISBLANK($F$1)),(--ISBLANK($L$1)),(--ISBLANK($N$1)),(--ISBLANK($F$2)),(--ISBLANK($M$2)),(--ISBLANK($F$3)),(--ISBLANK($F$4)),(--ISBLANK($M$4)),(--ISBLANK($N$5)), (--ISBLANK($D$6)),(--ISBLANK($D$7)),(--ISBLANK($D$8)),(--ISBLANK($D$9)),(--ISBLANK($D$10)),(--ISBLANK($D$11)),(--ISBLANK($D$12)),(--ISBLANK($D$13)),(--ISBLANK($D$14)),(--ISBLANK($D$15)), (--ISBLANK($D$16)),(--ISBLANK($D$17)),(--ISBLANK($D$18)),(--ISBLANK($D$19)),(--ISBLANK($D$20)),(--ISBLANK($D$21)),(--ISBLANK($D$22)),(--ISBLANK($D$23)),(--ISBLANK($D$24)),(--ISBLANK($D$25)), (--ISBLANK($J$6)),(--ISBLANK($J$7)),(--ISBLANK($J$8)),(--ISBLANK($J$9)),(--ISBLANK($J$10)),(--ISBLANK($J$11)),(--ISBLANK($J$12)),(--ISBLANK($J$13)),(--ISBLANK($M$14)),(--ISBLANK($M$15)), (--ISBLANK($J$16)),(--ISBLANK($J$17)),(--ISBLANK($J$18)),(--ISBLANK($J$19)),(--ISBLANK($J$20)),(--ISBLANK($L$21)),(--ISBLANK($J$22)),(--ISBLANK($J$23)),(--ISBLANK($M$24)),(--ISBLANK($L$16)),(--ISBLANK($N$35)),(--ISBLANK($M$17)),(--ISBLANK($N$12)), ),"Все красные поля обязательны для заполнения!","") ->  | N5: ОПТ | V5: =MID(CELL("имяфайла"),SEARCH("[",CELL("имяфайла"))+1,SEARCH(".xls",CELL("имяфайла"))-SEARCH("[",CELL("имяфайла"))-1) -> Прайс для клиентов 2018(v7) | X5: =RIGHT(V5,8) -> 2018(v7)
A6: Корпус | B6: Шкафы | C6: Материал каркаса | D6: НЕТ | H6: Багет верхний | I6: Вид багета | J6: НЕТ | V6: багет | W6: =IF(AND($J$6="нет",$J$8="нет"),"пусто","печать") -> пусто
C7: Задняя стенка | D7: НЕТ | I7: Цвет/патина | J7: НЕТ
C8: Толщина кромки | D8: НЕТ | H8: Багет нижний | I8: Вид багета | J8: НЕТ | V8: пеать (багет, балюстрада, цоколь) | Y8: =IF(OR(W22="печать",W10="печать",W6="печать"),"печать","пусто") -> пусто
B9: Тумбы | C9: Материал каркаса | D9: НЕТ | I9: Цвет/патина | J9: НЕТ
C10: Задняя стенка | D10: НЕТ | H10: Балюстрада | J10: НЕТ | V10: балюстрада | W10: =IF($J$10="нет","пусто","печать") -> пусто
C11: Толщина кромки | D11: НЕТ | H11: Козырек/менсола | J11: НЕТ | V11: менсола | W11: =IF($J$11="нет","пусто","печать") -> пусто
B12: Пеналы | C12: Материал каркаса | D12: НЕТ | H12: Стекло | J12: НЕТ | M12: Вид стекло-фасада | N12: НЕТ
C13: Задняя стенка | D13: НЕТ | H13: Мойка | J13: НЕТ | V13: пеать (столешница, отбортовка, стен панель, менсола, козырек, ) | Y13: =IF(OR(W14="печать",W20="печать",W18="печать",W11="печать"),"печать","пусто") -> пусто
C14: Толщина кромки | D14: НЕТ | H14: Ручки | J14: Межцентровое расстояние | M14: НЕТ | V14: печать акрила | W14: =IF(OR(J16="нет",J16="Акрил"),"пусто","печать") -> пусто
B15: Цветные открытые полки | D15: НЕТ | J15: Артикул | M15: НЕТ
A16: Фасад | B16: Шкафы | C16: Коллекция | D16: НЕТ | H16: Столешница | J16: НЕТ | L16: НЕТ | V16: акрил | Y16: =IF(OR($J$16="Акрил",$J$18="Акрил_",$J$20="Акрил_"),"печать","пусто") -> пусто
C17: =IF(OR($D16="Аликанте 16",$D16="Аликанте 19",$D16="Аликанте 22",$D16="Помпея 16",$D16="Помпея 19",$D16="Галисия",$D16="Барселона"),"Фрезеровка",IF(OR($D16="Севилья в ЦВЕТНОМ профиле",$D16="Севилья в Al профиле",$D16="Севилья кант ПВХ",$D16="Севилья ABS кант",$D16="Севилья 3D"),"Категория",IF(OR($D16="Валенсия",$D16="Толедо",$D16="Верде",$D16="Викинг"),"Модель","НАПИСАТЬ - НЕТ"))) -> НАПИСАТЬ - НЕТ | D17: НЕТ | J17: НЕТ | L17: Кромка | M17: НЕТ
C18: =IF(OR($D16="Аликанте 16",$D16="Аликанте 19",$D16="Аликанте 22"),"RAL, NCS, CS",IF(OR($D16="Помпея 16",$D16="Помпея 19"),"Артикул пленки",IF(OR($D16="Севилья в Al профиле",$D16="Севилья в ЦВЕТНОМ профиле"),"Цвет профиля и Артикул пластика",IF(OR($D16="Севилья кант ПВХ",$D16="Севилья ABS кант",$D16="Севилья 3D"),"Артикул канта и Артикул пластика",IF($D16="Барселона","Шпон, RAL, NCS, CS",IF(OR($D16="Верде",$D16="Викинг"),"Цвет ЛДСП",IF($D16="Валенсия","Цвет фасада",IF($D16="Толедо","Цвет фасада",IF($D16="Галисия","Цвет фасада","НАПИСАТЬ - НЕТ"))))))))) -> НАПИСАТЬ - НЕТ | D18: НЕТ | H18: Стеновая панель | J18: НЕТ | V18: стеновая | W18: =IF(OR(J18="нет",J18="Акрил_"),"пусто","печать") -> пусто
B19: Тумбы | C19: Коллекция | D19: НЕТ | J19: НЕТ
C20: =IF(OR($D19="Аликанте 16",$D19="Аликанте 19",$D19="Аликанте 22",$D19="Помпея 16",$D19="Помпея 19",$D19="Галисия",$D19="Барселона"),"Фрезеровка",IF(OR($D19="Севилья в ЦВЕТНОМ профиле",$D19="Севилья в Al профиле",$D19="Севилья кант ПВХ",$D19="Севилья ABS кант",$D19="Севилья 3D"),"Категория",IF(OR($D19="Валенсия",$D19="Толедо",$D19="Верде",$D19="Викинг"),"Модель","НАПИСАТЬ - НЕТ"))) -> НАПИСАТЬ - НЕТ | D20: НЕТ | H20: Отбортовочный профиль | J20: НЕТ | L20: =IF(Шапка!J20=Стол!R4,"Заглушки_к_плинтусу_№1",IF(Шапка!J20=Стол!R5,"Заглушки_к_плинтусу_№2",IF(Шапка!J20=Стол!R6,"Заглушки_к_плинтусу_№3",IF(Шапка!J20=Стол!R7,"Заглушки_к_плинтусу_№4",IF(Шапка!J20=Стол!R8,"Заглушки_к_плинтусу_№5",IF(Шапка!J20=Стол!R9,"Заглушки_к_плинтусу_№6",IF(Шапка!J20=Стол!R10,"Радиус фаски","НЕТ"))))))) -> НЕТ | N20: НЕТ | V20: отбортовка | W20: =IF(OR(J20="нет",J20="Акрил_"),"пусто","печать") -> пусто
C21: =IF(OR($D19="Аликанте 16",$D19="Аликанте 19",$D19="Аликанте 22"),"RAL, NCS, CS",IF(OR($D19="Помпея 16",$D19="Помпея 19"),"Артикул пленки",IF(OR($D19="Севилья в Al профиле",$D19="Севилья в ЦВЕТНОМ профиле"),"Цвет профиля и Артикул пластика",IF(OR($D19="Севилья кант ПВХ",$D19="Севилья ABS кант",$D19="Севилья 3D"),"Артикул канта и Артикул пластика",IF($D19="Барселона","Шпон, RAL, NCS, CS",IF(OR($D19="Верде",$D19="Викинг"),"Цвет ЛДСП",IF($D19="Валенсия","Цвет фасада",IF($D19="Толедо","Цвет фасада",IF($D19="Галисия","Цвет фасада","НАПИСАТЬ - НЕТ"))))))))) -> НАПИСАТЬ - НЕТ | D21: НЕТ | J21: =IF(J20="Акрил_","цвет бортика","цвет вставки") -> цвет вставки | L21: НЕТ
B22: Пеналы | C22: Коллекция | D22: НЕТ | H22: Цоколь | J22: НЕТ | V22: цоколь | W22: =IF($J$22="нет","пусто","печать") -> пусто
C23: =IF(OR($D22="Аликанте 16",$D22="Аликанте 19",$D22="Аликанте 22",$D22="Помпея 16",$D22="Помпея 19",$D22="Галисия",$D22="Барселона"),"Фрезеровка",IF(OR($D22="Севилья в ЦВЕТНОМ профиле",$D22="Севилья в Al профиле",$D22="Севилья кант ПВХ",$D22="Севилья ABS кант",$D22="Севилья 3D"),"Категория",IF(OR($D22="Валенсия",$D22="Толедо",$D22="Верде",$D22="Викинг"),"Модель","НАПИСАТЬ - НЕТ"))) -> НАПИСАТЬ - НЕТ | D23: НЕТ | H23: Ножки | J23: НЕТ
C24: =IF(OR($D22="Аликанте 16",$D22="Аликанте 19",$D22="Аликанте 22"),"RAL, NCS, CS",IF(OR($D22="Помпея 16",$D22="Помпея 19"),"Артикул пленки",IF(OR($D22="Севилья в Al профиле",$D22="Севилья в ЦВЕТНОМ профиле"),"Цвет профиля и Артикул пластика",IF(OR($D22="Севилья кант ПВХ",$D22="Севилья ABS кант",$D22="Севилья 3D"),"Артикул канта и Артикул пластика",IF($D22="Барселона","Шпон, RAL, NCS, CS",IF(OR($D22="Верде",$D22="Викинг"),"Цвет ЛДСП",IF($D22="Валенсия","Цвет фасада",IF($D22="Толедо","Цвет фасада",IF($D22="Галисия","Цвет фасада","НАПИСАТЬ - НЕТ"))))))))) -> НАПИСАТЬ - НЕТ | D24: НЕТ | H24: Упаковка столешниц и стеновых панелей | M24: Стандарт
A25: Упаковка фасадов | D25: Стандарт
H26: =Лист4!K39 ->  | L26: Итого расчет Акрила | N26: ='Расчет акрила'!E38 -> 0
L27: Скидка | M27: ='Расчет акрила'!D39 -> 0 | N27: ='Расчет акрила'!E39 -> 0
D28: Итого стандартные модули | H28: =Модули!O31 -> 0 | L28: Итого с учетом скидки | N28: ='Расчет акрила'!E40 -> 0
D29: Скидка | H29: =Модули!N32 -> 0 | I29: =Модули!O32 -> 0
D30: Итого с учетом скидки | H30: =Модули!O33 -> 0 | L30: Итого сумма | N30: =H28+N26+H31+H34 -> 0
D31: Итого нестандартные модули | H31: =Модули!O52 -> 0 | L31: Всего скидка | N31: =N27+I29+I35+I32 -> 0
D32: Скидка | H32: =Модули!N53 -> 0 | I32: =Модули!O53 -> 0 | L32: Итого с учетом скидки | N32: =H30+H33+H36+N28 -> 0
D33: Итого с учетом скидки | H33: =Модули!O54 -> 0 | L33: Технологи/производство
D34: Итого дополнительная комплектация | H34: =Модули!O74 -> 0
D35: Скидка | H35: =Модули!N75 -> 0 | I35: =Модули!O75 -> 0 | L35: Категория сложности | N35: Стандарт
D36: Итого с учетом скидки | H36: =Модули!O76 -> 0

Sheet Модули
A1: 1.Стандартные модули
A2: № | B2: ПРИМЕЧАНИЕ | C2: Номер поз. | D2: Тип | G2: Ширина | H2: Высота | I2: Глубина | J2: Кол-во | K2: Коллекция | M2: Профильная ручка | N2: Цена | O2: Сумма
A3: 1 | G3: =IF(Шапка!$D$16<>"Валенсия",IF($D3="","",VLOOKUP($D3,Основной_прайс!$D$3:$K$6068,6,FALSE)),IF($D3="","",VLOOKUP($D3,Прайс_Валенсия!$D$3:$K$7259,6,FALSE))) ->  | H3: =IF(Шапка!$D$16<>"Валенсия",IF($D3="","",VLOOKUP($D3,Основной_прайс!$D$3:$K$6068,7,FALSE)),IF($D3="","",VLOOKUP($D3,Прайс_Валенсия!$D$3:$K$7259,7,FALSE))) ->  | I3: =IF(Шапка!$D$16<>"Валенсия",IF($D3="","",VLOOKUP($D3,Основной_прайс!$D$3:$K$6068,8,FALSE)),IF($D3="","",VLOOKUP($D3,Прайс_Валенсия!$D$3:$K$7259,8,FALSE))) ->  | N3: =IF(Шапка!$D$16<>"Валенсия", IF(D3="","",IF(K3="","",(INDEX(Основной_прайс!$L$3:$CH$6852,MATCH(D3,Основной_прайс!$D$3:$D$6852,0),MATCH(K3,Основной_прайс!$L$2:$CH$2,0))+Лист4!L48)*IF(Процент!$A$1=0,1,Процент!$A$1+1))), IF(D3="","",IF(K3="","",(INDEX(Прайс_Валенсия!$L$3:$CO$8043,MATCH(D3,Прайс_Валенсия!$D$3:$D$8043,0),MATCH(K3,Прайс_Валенсия!$L$2:$CO$2,0))+0)*IF(Процент!$A$1=0,1,Процент!$A$1+1)))) ->  | O3: =IF(J3="","",IF(N3="","",J3*N3)) ->  | AA3: =IF(Шапка!$D$16<>"Валенсия",IF($D3="","",VLOOKUP($D3,Основной_прайс!$D$3:$K$6068,6,FALSE)),IF($D3="","",VLOOKUP($D3,Прайс_Валенсия!$D$3:$K$7259,6,FALSE))) ->  | AB3: =IF(Шапка!$D$16<>"Валенсия",IF($D3="","",VLOOKUP($D3,Основной_прайс!$D$3:$K$6068,7,FALSE)),IF($D3="","",VLOOKUP($D3,Прайс_Валенсия!$D$3:$K$7259,7,FALSE))) ->  | AC3: =IF(Шапка!$D$16<>"Валенсия",IF($D3="","",VLOOKUP($D3,Основной_прайс!$D$3:$K$6068,8,FALSE)),IF($D3="","",VLOOKUP($D3,Прайс_Валенсия!$D$3:$K$7259,8,FALSE))) -> 
A4: 2 | G4: =IF(Шапка!$D$16<>"Валенсия",IF($D4="","",VLOOKUP($D4,Основной_прайс!$D$3:$K$6068,6,FALSE)),IF($D4="","",VLOOKUP($D4,Прайс_Валенсия!$D$3:$K$7259,6,FALSE))) ->  | H4: =IF(Шапка!$D$16<>"Валенсия",IF($D4="","",VLOOKUP($D4,Основной_прайс!$D$3:$K$6068,7,FALSE)),IF($D4="","",VLOOKUP($D4,Прайс_Валенсия!$D$3:$K$7259,7,FALSE))) ->  | I4: =IF(Шапка!$D$16<>"Валенсия",IF($D4="","",VLOOKUP($D4,Основной_прайс!$D$3:$K$6068,8,FALSE)),IF($D4="","",VLOOKUP($D4,Прайс_Валенсия!$D$3:$K$7259,8,FALSE))) ->  | N4: =IF(Шапка!$D$16<>"Валенсия", IF(D4="","",IF(K4="","",(INDEX(Основной_прайс!$L$3:$XH$6852,MATCH(D4,Основной_прайс!$D$3:$D$6852,0),MATCH(K4,Основной_прайс!$L$2:$XH$2,0))+Лист4!L49)*IF(Процент!$A$1=0,1,Процент!$A$1+1))), IF(D4="","",IF(K4="","",(INDEX(Прайс_Валенсия!$L$3:$XO$8043,MATCH(D4,Прайс_Валенсия!$D$3:$D$8043,0),MATCH(K4,Прайс_Валенсия!$L$2:$XO$2,0))+0)*IF(Процент!$A$1=0,1,Процент!$A$1+1)))) ->  | AA4: =IF(Шапка!$D$16<>"Валенсия",IF($D4="","",VLOOKUP($D4,Основной_прайс!$D$3:$K$6068,6,FALSE)),IF($D4="","",VLOOKUP($D4,Прайс_Валенсия!$D$3:$K$7259,6,FALSE))) ->  | AB4: =IF(Шапка!$D$16<>"Валенсия",IF($D4="","",VLOOKUP($D4,Основной_прайс!$D$3:$K$6068,7,FALSE)),IF($D4="","",VLOOKUP($D4,Прайс_Валенсия!$D$3:$K$7259,7,FALSE))) ->  | AC4: =IF(Шапка!$D$16<>"Валенсия",IF($D4="","",VLOOKUP($D4,Основной_прайс!$D$3:$K$6068,8,FALSE)),IF($D4="","",VLOOKUP($D4,Прайс_Валенсия!$D$3:$K$7259,8,FALSE))) -> 
A5: 3 | G5: =IF(Шапка!$D$16<>"Валенсия",IF($D5="","",VLOOKUP($D5,Основной_прайс!$D$3:$K$6068,6,FALSE)),IF($D5="","",VLOOKUP($D5,Прайс_Валенсия!$D$3:$K$7259,6,FALSE))) ->  | H5: =IF(Шапка!$D$16<>"Валенсия",IF($D5="","",VLOOKUP($D5,Основной_прайс!$D$3:$K$6068,7,FALSE)),IF($D5="","",VLOOKUP($D5,Прайс_Валенсия!$D$3:$K$7259,7,FALSE))) ->  | I5: =IF(Шапка!$D$16<>"Валенсия",IF($D5="","",VLOOKUP($D5,Основной_прайс!$D$3:$K$6068,8,FALSE)),IF($D5="","",VLOOKUP($D5,Прайс_Валенсия!$D$3:$K$7259,8,FALSE))) ->  | N5: =IF(Шапка!$D$16<>"Валенсия", IF(D5="","",IF(K5="","",(INDEX(Основной_прайс!$L$3:$CH$6852,MATCH(D5,Основной_прайс!$D$3:$D$6852,0),MATCH(K5,Основной_прайс!$L$2:$CH$2,0))+Лист4!L50)*IF(Процент!$A$1=0,1,Процент!$A$1+1))), IF(D5="","",IF(K5="","",(INDEX(Прайс_Валенсия!$L$3:$CO$8043,MATCH(D5,Прайс_Валенсия!$D$3:$D$8043,0),MATCH(K5,Прайс_Валенсия!$L$2:$CO$2,0))+0)*IF(Процент!$A$1=0,1,Процент!$A$1+1)))) ->  | AA5: =IF(Шапка!$D$16<>"Валенсия",IF($D5="","",VLOOKUP($D5,Основной_прайс!$D$3:$K$6068,6,FALSE)),IF($D5="","",VLOOKUP($D5,Прайс_Валенсия!$D$3:$K$7259,6,FALSE))) ->  | AB5: =IF(Шапка!$D$16<>"Валенсия",IF($D5="","",VLOOKUP($D5,Основной_прайс!$D$3:$K$6068,7,FALSE)),IF($D5="","",VLOOKUP($D5,Прайс_Валенсия!$D$3:$K$7259,7,FALSE))) ->  | AC5: =IF(Шапка!$D$16<>"Валенсия",IF($D5="","",VLOOKUP($D5,Основной_прайс!$D$3:$K$6068,8,FALSE)),IF($D5="","",VLOOKUP($D5,Прайс_Валенсия!$D$3:$K$7259,8,FALSE))) -> 
A6: 4 | G6: =IF(Шапка!$D$16<>"Валенсия",IF($D6="","",VLOOKUP($D6,Основной_прайс!$D$3:$K$6068,6,FALSE)),IF($D6="","",VLOOKUP($D6,Прайс_Валенсия!$D$3:$K$7259,6,FALSE))) ->  | H6: =IF(Шапка!$D$16<>"Валенсия",IF($D6="","",VLOOKUP($D6,Основной_прайс!$D$3:$K$6068,7,FALSE)),IF($D6="","",VLOOKUP($D6,Прайс_Валенсия!$D$3:$K$7259,7,FALSE))) ->  | I6: =IF(Шапка!$D$16<>"Валенсия",IF($D6="","",VLOOKUP($D6,Основной_прайс!$D$3:$K$6068,8,FALSE)),IF($D6="","",VLOOKUP($D6,Прайс_Валенсия!$D$3:$K$7259,8,FALSE))) ->  | N6: =IF(Шапка!$D$16<>"Валенсия", IF(D6="","",IF(K6="","",(INDEX(Основной_прайс!$L$3:$CH$6852,MATCH(D6,Основной_прайс!$D$3:$D$6852,0),MATCH(K6,Основной_прайс!$L$2:$CH$2,0))+Лист4!L51)*IF(Процент!$A$1=0,1,Процент!$A$1+1))), IF(D6="","",IF(K6="","",(INDEX(Прайс_Валенсия!$L$3:$CO$8043,MATCH(D6,Прайс_Валенсия!$D$3:$D$8043,0),MATCH(K6,Прайс_Валенсия!$L$2:$CO$2,0))+0)*IF(Процент!$A$1=0,1,Процент!$A$1+1)))) ->  | AA6: =IF(Шапка!$D$16<>"Валенсия",IF($D6="","",VLOOKUP($D6,Основной_прайс!$D$3:$K$6068,6,FALSE)),IF($D6="","",VLOOKUP($D6,Прайс_Валенсия!$D$3:$K$7259,6,FALSE))) ->  | AB6: =IF(Шапка!$D$16<>"Валенсия",IF($D6="","",VLOOKUP($D6,Основной_прайс!$D$3:$K$6068,7,FALSE)),IF($D6="","",VLOOKUP($D6,Прайс_Валенсия!$D$3:$K$7259,7,FALSE))) ->  | AC6: =IF(Шапка!$D$16<>"Валенсия",IF($D6="","",VLOOKUP($D6,Основной_прайс!$D$3:$K$6068,8,FALSE)),IF($D6="","",VLOOKUP($D6,Прайс_Валенсия!$D$3:$K$7259,8,FALSE))) -> 
A7: 5 | G7: =IF(Шапка!$D$16<>"Валенсия",IF($D7="","",VLOOKUP($D7,Основной_прайс!$D$3:$K$6068,6,FALSE)),IF($D7="","",VLOOKUP($D7,Прайс_Валенсия!$D$3:$K$7259,6,FALSE))) ->  | H7: =IF(Шапка!$D$16<>"Валенсия",IF($D7="","",VLOOKUP($D7,Основной_прайс!$D$3:$K$6068,7,FALSE)),IF($D7="","",VLOOKUP($D7,Прайс_Валенсия!$D$3:$K$7259,7,FALSE))) ->  | I7: =IF(Шапка!$D$16<>"Валенсия",IF($D7="","",VLOOKUP($D7,Основной_прайс!$D$3:$K$6068,8,FALSE)),IF($D7="","",VLOOKUP($D7,Прайс_Валенсия!$D$3:$K$7259,8,FALSE))) ->  | N7: =IF(Шапка!$D$16<>"Валенсия", IF(D7="","",IF(K7="","",(INDEX(Основной_прайс!$L$3:$CH$6852,MATCH(D7,Основной_прайс!$D$3:$D$6852,0),MATCH(K7,Основной_прайс!$L$2:$CH$2,0))+Лист4!L52)*IF(Процент!$A$1=0,1,Процент!$A$1+1))), IF(D7="","",IF(K7="","",(INDEX(Прайс_Валенсия!$L$3:$CO$8043,MATCH(D7,Прайс_Валенсия!$D$3:$D$8043,0),MATCH(K7,Прайс_Валенсия!$L$2:$CO$2,0))+0)*IF(Процент!$A$1=0,1,Процент!$A$1+1)))) ->  | AA7: =IF(Шапка!$D$16<>"Валенсия",IF($D7="","",VLOOKUP($D7,Основной_прайс!$D$3:$K$6068,6,FALSE)),IF($D7="","",VLOOKUP($D7,Прайс_Валенсия!$D$3:$K$7259,6,FALSE))) ->  | AB7: =IF(Шапка!$D$16<>"Валенсия",IF($D7="","",VLOOKUP($D7,Основной_прайс!$D$3:$K$6068,7,FALSE)),IF($D7="","",VLOOKUP($D7,Прайс_Валенсия!$D$3:$K$7259,7,FALSE))) ->  | AC7: =IF(Шапка!$D$16<>"Валенсия",IF($D7="","",VLOOKUP($D7,Основной_прайс!$D$3:$K$6068,8,FALSE)),IF($D7="","",VLOOKUP($D7,Прайс_Валенсия!$D$3:$K$7259,8,FALSE))) -> 
A8: 6 | G8: =IF(Шапка!$D$16<>"Валенсия",IF($D8="","",VLOOKUP($D8,Основной_прайс!$D$3:$K$6068,6,FALSE)),IF($D8="","",VLOOKUP($D8,Прайс_Валенсия!$D$3:$K$7259,6,FALSE))) ->  | H8: =IF(Шапка!$D$16<>"Валенсия",IF($D8="","",VLOOKUP($D8,Основной_прайс!$D$3:$K$6068,7,FALSE)),IF($D8="","",VLOOKUP($D8,Прайс_Валенсия!$D$3:$K$7259,7,FALSE))) ->  | I8: =IF(Шапка!$D$16<>"Валенсия",IF($D8="","",VLOOKUP($D8,Основной_прайс!$D$3:$K$6068,8,FALSE)),IF($D8="","",VLOOKUP($D8,Прайс_Валенсия!$D$3:$K$7259,8,FALSE))) ->  | N8: =IF(Шапка!$D$16<>"Валенсия", IF(D8="","",IF(K8="","",(INDEX(Основной_прайс!$L$3:$CH$6852,MATCH(D8,Основной_прайс!$D$3:$D$6852,0),MATCH(K8,Основной_прайс!$L$2:$CH$2,0))+Лист4!L53)*IF(Процент!$A$1=0,1,Процент!$A$1+1))), IF(D8="","",IF(K8="","",(INDEX(Прайс_Валенсия!$L$3:$CO$8043,MATCH(D8,Прайс_Валенсия!$D$3:$D$8043,0),MATCH(K8,Прайс_Валенсия!$L$2:$CO$2,0))+0)*IF(Процент!$A$1=0,1,Процент!$A$1+1)))) ->  | AA8: =IF(Шапка!$D$16<>"Валенсия",IF($D8="","",VLOOKUP($D8,Основной_прайс!$D$3:$K$6068,6,FALSE)),IF($D8="","",VLOOKUP($D8,Прайс_Валенсия!$D$3:$K$7259,6,FALSE))) ->  | AB8: =IF(Шапка!$D$16<>"Валенсия",IF($D8="","",VLOOKUP($D8,Основной_прайс!$D$3:$K$6068,7,FALSE)),IF($D8="","",VLOOKUP($D8,Прайс_Валенсия!$D$3:$K$7259,7,FALSE))) ->  | AC8: =IF(Шапка!$D$16<>"Валенсия",IF($D8="","",VLOOKUP($D8,Основной_прайс!$D$3:$K$6068,8,FALSE)),IF($D8="","",VLOOKUP($D8,Прайс_Валенсия!$D$3:$K$7259,8,FALSE))) -> 
A9: 7 | G9: =IF(Шапка!$D$16<>"Валенсия",IF($D9="","",VLOOKUP($D9,Основной_прайс!$D$3:$K$6068,6,FALSE)),IF($D9="","",VLOOKUP($D9,Прайс_Валенсия!$D$3:$K$7259,6,FALSE))) ->  | H9: =IF(Шапка!$D$16<>"Валенсия",IF($D9="","",VLOOKUP($D9,Основной_прайс!$D$3:$K$6068,7,FALSE)),IF($D9="","",VLOOKUP($D9,Прайс_Валенсия!$D$3:$K$7259,7,FALSE))) ->  | I9: =IF(Шапка!$D$16<>"Валенсия",IF($D9="","",VLOOKUP($D9,Основной_прайс!$D$3:$K$6068,8,FALSE)),IF($D9="","",VLOOKUP($D9,Прайс_Валенсия!$D$3:$K$7259,8,FALSE))) ->  | N9: =IF(Шапка!$D$16<>"Валенсия", IF(D9="","",IF(K9="","",(INDEX(Основной_прайс!$L$3:$CH$6852,MATCH(D9,Основной_прайс!$D$3:$D$6852,0),MATCH(K9,Основной_прайс!$L$2:$CH$2,0))+Лист4!L54)*IF(Процент!$A$1=0,1,Процент!$A$1+1))), IF(D9="","",IF(K9="","",(INDEX(Прайс_Валенсия!$L$3:$CO$8043,MATCH(D9,Прайс_Валенсия!$D$3:$D$8043,0),MATCH(K9,Прайс_Валенсия!$L$2:$CO$2,0))+0)*IF(Процент!$A$1=0,1,Процент!$A$1+1)))) ->  | AA9: =IF(Шапка!$D$16<>"Валенсия",IF($D9="","",VLOOKUP($D9,Основной_прайс!$D$3:$K$6068,6,FALSE)),IF($D9="","",VLOOKUP($D9,Прайс_Валенсия!$D$3:$K$7259,6,FALSE))) ->  | AB9: =IF(Шапка!$D$16<>"Валенсия",IF($D9="","",VLOOKUP($D9,Основной_прайс!$D$3:$K$6068,7,FALSE)),IF($D9="","",VLOOKUP($D9,Прайс_Валенсия!$D$3:$K$7259,7,FALSE))) ->  | AC9: =IF(Шапка!$D$16<>"Валенсия",IF($D9="","",VLOOKUP($D9,Основной_прайс!$D$3:$K$6068,8,FALSE)),IF($D9="","",VLOOKUP($D9,Прайс_Валенсия!$D$3:$K$7259,8,FALSE))) -> 
A10: 8 | G10: =IF(Шапка!$D$16<>"Валенсия",IF($D10="","",VLOOKUP($D10,Основной_прайс!$D$3:$K$6068,6,FALSE)),IF($D10="","",VLOOKUP($D10,Прайс_Валенсия!$D$3:$K$7259,6,FALSE))) ->  | H10: =IF(Шапка!$D$16<>"Валенсия",IF($D10="","",VLOOKUP($D10,Основной_прайс!$D$3:$K$6068,7,FALSE)),IF($D10="","",VLOOKUP($D10,Прайс_Валенсия!$D$3:$K$7259,7,FALSE))) ->  | I10: =IF(Шапка!$D$16<>"Валенсия",IF($D10="","",VLOOKUP($D10,Основной_прайс!$D$3:$K$6068,8,FALSE)),IF($D10="","",VLOOKUP($D10,Прайс_Валенсия!$D$3:$K$7259,8,FALSE))) ->  | N10: =IF(Шапка!$D$16<>"Валенсия", IF(D10="","",IF(K10="","",(INDEX(Основной_прайс!$L$3:$CH$6852,MATCH(D10,Основной_прайс!$D$3:$D$6852,0),MATCH(K10,Основной_прайс!$L$2:$CH$2,0))+Лист4!L55)*IF(Процент!$A$1=0,1,Процент!$A$1+1))), IF(D10="","",IF(K10="","",(INDEX(Прайс_Валенсия!$L$3:$CO$8043,MATCH(D10,Прайс_Валенсия!$D$3:$D$8043,0),MATCH(K10,Прайс_Валенсия!$L$2:$CO$2,0))+0)*IF(Процент!$A$1=0,1,Процент!$A$1+1)))) ->  | AA10: =IF(Шапка!$D$16<>"Валенсия",IF($D10="","",VLOOKUP($D10,Основной_прайс!$D$3:$K$6068,6,FALSE)),IF($D10="","",VLOOKUP($D10,Прайс_Валенсия!$D$3:$K$7259,6,FALSE))) ->  | AB10: =IF(Шапка!$D$16<>"Валенсия",IF($D10="","",VLOOKUP($D10,Основной_прайс!$D$3:$K$6068,7,FALSE)),IF($D10="","",VLOOKUP($D10,Прайс_Валенсия!$D$3:$K$7259,7,FALSE))) ->  | AC10: =IF(Шапка!$D$16<>"Валенсия",IF($D10="","",VLOOKUP($D10,Основной_прайс!$D$3:$K$6068,8,FALSE)),IF($D10="","",VLOOKUP($D10,Прайс_Валенсия!$D$3:$K$7259,8,FALSE))) -> 
A11: 9 | G11: =IF(Шапка!$D$16<>"Валенсия",IF($D11="","",VLOOKUP($D11,Основной_прайс!$D$3:$K$6068,6,FALSE)),IF($D11="","",VLOOKUP($D11,Прайс_Валенсия!$D$3:$K$7259,6,FALSE))) ->  | H11: =IF(Шапка!$D$16<>"Валенсия",IF($D11="","",VLOOKUP($D11,Основной_прайс!$D$3:$K$6068,7,FALSE)),IF($D11="","",VLOOKUP($D11,Прайс_Валенсия!$D$3:$K$7259,7,FALSE))) ->  | I11: =IF(Шапка!$D$16<>"Валенсия",IF($D11="","",VLOOKUP($D11,Основной_прайс!$D$3:$K$6068,8,FALSE)),IF($D11="","",VLOOKUP($D11,Прайс_Валенсия!$D$3:$K$7259,8,FALSE))) ->  | N11: =IF(Шапка!$D$16<>"Валенсия", IF(D11="","",IF(K11="","",(INDEX(Основной_прайс!$L$3:$CH$6852,MATCH(D11,Основной_прайс!$D$3:$D$6852,0),MATCH(K11,Основной_прайс!$L$2:$CH$2,0))+Лист4!L56)*IF(Процент!$A$1=0,1,Процент!$A$1+1))), IF(D11="","",IF(K11="","",(INDEX(Прайс_Валенсия!$L$3:$CO$8043,MATCH(D11,Прайс_Валенсия!$D$3:$D$8043,0),MATCH(K11,Прайс_Валенсия!$L$2:$CO$2,0))+0)*IF(Процент!$A$1=0,1,Процент!$A$1+1)))) ->  | AA11: =IF(Шапка!$D$16<>"Валенсия",IF($D11="","",VLOOKUP($D11,Основной_прайс!$D$3:$K$6068,6,FALSE)),IF($D11="","",VLOOKUP($D11,Прайс_Валенсия!$D$3:$K$7259,6,FALSE))) ->  | AB11: =IF(Шапка!$D$16<>"Валенсия",IF($D11="","",VLOOKUP($D11,Основной_прайс!$D$3:$K$6068,7,FALSE)),IF($D11="","",VLOOKUP($D11,Прайс_Валенсия!$D$3:$K$7259,7,FALSE))) ->  | AC11: =IF(Шапка!$D$16<>"Валенсия",IF($D11="","",VLOOKUP($D11,Основной_прайс!$D$3:$K$6068,8,FALSE)),IF($D11="","",VLOOKUP($D11,Прайс_Валенсия!$D$3:$K$7259,8,FALSE))) -> 
A12: 10 | G12: =IF(Шапка!$D$16<>"Валенсия",IF($D12="","",VLOOKUP($D12,Основной_прайс!$D$3:$K$6068,6,FALSE)),IF($D12="","",VLOOKUP($D12,Прайс_Валенсия!$D$3:$K$7259,6,FALSE))) ->  | H12: =IF(Шапка!$D$16<>"Валенсия",IF($D12="","",VLOOKUP($D12,Основной_прайс!$D$3:$K$6068,7,FALSE)),IF($D12="","",VLOOKUP($D12,Прайс_Валенсия!$D$3:$K$7259,7,FALSE))) ->  | I12: =IF(Шапка!$D$16<>"Валенсия",IF($D12="","",VLOOKUP($D12,Основной_прайс!$D$3:$K$6068,8,FALSE)),IF($D12="","",VLOOKUP($D12,Прайс_Валенсия!$D$3:$K$7259,8,FALSE))) ->  | N12: =IF(Шапка!$D$16<>"Валенсия", IF(D12="","",IF(K12="","",(INDEX(Основной_прайс!$L$3:$CH$6852,MATCH(D12,Основной_прайс!$D$3:$D$6852,0),MATCH(K12,Основной_прайс!$L$2:$CH$2,0))+Лист4!L57)*IF(Процент!$A$1=0,1,Процент!$A$1+1))), IF(D12="","",IF(K12="","",(INDEX(Прайс_Валенсия!$L$3:$CO$8043,MATCH(D12,Прайс_Валенсия!$D$3:$D$8043,0),MATCH(K12,Прайс_Валенсия!$L$2:$CO$2,0))+0)*IF(Процент!$A$1=0,1,Процент!$A$1+1)))) ->  | AA12: =IF(Шапка!$D$16<>"Валенсия",IF($D12="","",VLOOKUP($D12,Основной_прайс!$D$3:$K$6068,6,FALSE)),IF($D12="","",VLOOKUP($D12,Прайс_Валенсия!$D$3:$K$7259,6,FALSE))) ->  | AB12: =IF(Шапка!$D$16<>"Валенсия",IF($D12="","",VLOOKUP($D12,Основной_прайс!$D$3:$K$6068,7,FALSE)),IF($D12="","",VLOOKUP($D12,Прайс_Валенсия!$D$3:$K$7259,7,FALSE))) ->  | AC12: =IF(Шапка!$D$16<>"Валенсия",IF($D12="","",VLOOKUP($D12,Основной_прайс!$D$3:$K$6068,8,FALSE)),IF($D12="","",VLOOKUP($D12,Прайс_Валенсия!$D$3:$K$7259,8,FALSE))) -> 
A13: 11 | G13: =IF(Шапка!$D$16<>"Валенсия",IF($D13="","",VLOOKUP($D13,Основной_прайс!$D$3:$K$6068,6,FALSE)),IF($D13="","",VLOOKUP($D13,Прайс_Валенсия!$D$3:$K$7259,6,FALSE))) ->  | H13: =IF(Шапка!$D$16<>"Валенсия",IF($D13="","",VLOOKUP($D13,Основной_прайс!$D$3:$K$6068,7,FALSE)),IF($D13="","",VLOOKUP($D13,Прайс_Валенсия!$D$3:$K$7259,7,FALSE))) ->  | I13: =IF(Шапка!$D$16<>"Валенсия",IF($D13="","",VLOOKUP($D13,Основной_прайс!$D$3:$K$6068,8,FALSE)),IF($D13="","",VLOOKUP($D13,Прайс_Валенсия!$D$3:$K$7259,8,FALSE))) ->  | N13: =IF(Шапка!$D$16<>"Валенсия", IF(D13="","",IF(K13="","",(INDEX(Основной_прайс!$L$3:$CH$6852,MATCH(D13,Основной_прайс!$D$3:$D$6852,0),MATCH(K13,Основной_прайс!$L$2:$CH$2,0))+Лист4!L58)*IF(Процент!$A$1=0,1,Процент!$A$1+1))), IF(D13="","",IF(K13="","",(INDEX(Прайс_Валенсия!$L$3:$CO$8043,MATCH(D13,Прайс_Валенсия!$D$3:$D$8043,0),MATCH(K13,Прайс_Валенсия!$L$2:$CO$2,0))+0)*IF(Процент!$A$1=0,1,Процент!$A$1+1)))) ->  | AA13: =IF(Шапка!$D$16<>"Валенсия",IF($D13="","",VLOOKUP($D13,Основной_прайс!$D$3:$K$6068,6,FALSE)),IF($D13="","",VLOOKUP($D13,Прайс_Валенсия!$D$3:$K$7259,6,FALSE))) ->  | AB13: =IF(Шапка!$D$16<>"Валенсия",IF($D13="","",VLOOKUP($D13,Основной_прайс!$D$3:$K$6068,7,FALSE)),IF($D13="","",VLOOKUP($D13,Прайс_Валенсия!$D$3:$K$7259,7,FALSE))) ->  | AC13: =IF(Шапка!$D$16<>"Валенсия",IF($D13="","",VLOOKUP($D13,Основной_прайс!$D$3:$K$6068,8,FALSE)),IF($D13="","",VLOOKUP($D13,Прайс_Валенсия!$D$3:$K$7259,8,FALSE))) -> 
A14: 12 | G14: =IF(Шапка!$D$16<>"Валенсия",IF($D14="","",VLOOKUP($D14,Основной_прайс!$D$3:$K$6068,6,FALSE)),IF($D14="","",VLOOKUP($D14,Прайс_Валенсия!$D$3:$K$7259,6,FALSE))) ->  | H14: =IF(Шапка!$D$16<>"Валенсия",IF($D14="","",VLOOKUP($D14,Основной_прайс!$D$3:$K$6068,7,FALSE)),IF($D14="","",VLOOKUP($D14,Прайс_Валенсия!$D$3:$K$7259,7,FALSE))) ->  | I14: =IF(Шапка!$D$16<>"Валенсия",IF($D14="","",VLOOKUP($D14,Основной_прайс!$D$3:$K$6068,8,FALSE)),IF($D14="","",VLOOKUP($D14,Прайс_Валенсия!$D$3:$K$7259,8,FALSE))) ->  | N14: =IF(Шапка!$D$16<>"Валенсия", IF(D14="","",IF(K14="","",(INDEX(Основной_прайс!$L$3:$CH$6852,MATCH(D14,Основной_прайс!$D$3:$D$6852,0),MATCH(K14,Основной_прайс!$L$2:$CH$2,0))+Лист4!L59)*IF(Процент!$A$1=0,1,Процент!$A$1+1))), IF(D14="","",IF(K14="","",(INDEX(Прайс_Валенсия!$L$3:$CO$8043,MATCH(D14,Прайс_Валенсия!$D$3:$D$8043,0),MATCH(K14,Прайс_Валенсия!$L$2:$CO$2,0))+0)*IF(Процент!$A$1=0,1,Процент!$A$1+1)))) ->  | AA14: =IF(Шапка!$D$16<>"Валенсия",IF($D14="","",VLOOKUP($D14,Основной_прайс!$D$3:$K$6068,6,FALSE)),IF($D14="","",VLOOKUP($D14,Прайс_Валенсия!$D$3:$K$7259,6,FALSE))) ->  | AB14: =IF(Шапка!$D$16<>"Валенсия",IF($D14="","",VLOOKUP($D14,Основной_прайс!$D$3:$K$6068,7,FALSE)),IF($D14="","",VLOOKUP($D14,Прайс_Валенсия!$D$3:$K$7259,7,FALSE))) ->  | AC14: =IF(Шапка!$D$16<>"Валенсия",IF($D14="","",VLOOKUP($D14,Основной_прайс!$D$3:$K$6068,8,FALSE)),IF($D14="","",VLOOKUP($D14,Прайс_Валенсия!$D$3:$K$7259,8,FALSE))) -> 
A15: 13 | G15: =IF(Шапка!$D$16<>"Валенсия",IF($D15="","",VLOOKUP($D15,Основной_прайс!$D$3:$K$6068,6,FALSE)),IF($D15="","",VLOOKUP($D15,Прайс_Валенсия!$D$3:$K$7259,6,FALSE))) ->  | H15: =IF(Шапка!$D$16<>"Валенсия",IF($D15="","",VLOOKUP($D15,Основной_прайс!$D$3:$K$6068,7,FALSE)),IF($D15="","",VLOOKUP($D15,Прайс_Валенсия!$D$3:$K$7259,7,FALSE))) ->  | I15: =IF(Шапка!$D$16<>"Валенсия",IF($D15="","",VLOOKUP($D15,Основной_прайс!$D$3:$K$6068,8,FALSE)),IF($D15="","",VLOOKUP($D15,Прайс_Валенсия!$D$3:$K$7259,8,FALSE))) ->  | N15: =IF(Шапка!$D$16<>"Валенсия", IF(D15="","",IF(K15="","",(INDEX(Основной_прайс!$L$3:$CH$6852,MATCH(D15,Основной_прайс!$D$3:$D$6852,0),MATCH(K15,Основной_прайс!$L$2:$CH$2,0))+Лист4!L60)*IF(Процент!$A$1=0,1,Процент!$A$1+1))), IF(D15="","",IF(K15="","",(INDEX(Прайс_Валенсия!$L$3:$CO$8043,MATCH(D15,Прайс_Валенсия!$D$3:$D$8043,0),MATCH(K15,Прайс_Валенсия!$L$2:$CO$2,0))+0)*IF(Процент!$A$1=0,1,Процент!$A$1+1)))) ->  | AA15: =IF(Шапка!$D$16<>"Валенсия",IF($D15="","",VLOOKUP($D15,Основной_прайс!$D$3:$K$6068,6,FALSE)),IF($D15="","",VLOOKUP($D15,Прайс_Валенсия!$D$3:$K$7259,6,FALSE))) ->  | AB15: =IF(Шапка!$D$16<>"Валенсия",IF($D15="","",VLOOKUP($D15,Основной_прайс!$D$3:$K$6068,7,FALSE)),IF($D15="","",VLOOKUP($D15,Прайс_Валенсия!$D$3:$K$7259,7,FALSE))) ->  | AC15: =IF(Шапка!$D$16<>"Валенсия",IF($D15="","",VLOOKUP($D15,Основной_прайс!$D$3:$K$6068,8,FALSE)),IF($D15="","",VLOOKUP($D15,Прайс_Валенсия!$D$3:$K$7259,8,FALSE))) -> 
A16: 14 | G16: =IF(Шапка!$D$16<>"Валенсия",IF($D16="","",VLOOKUP($D16,Основной_прайс!$D$3:$K$6068,6,FALSE)),IF($D16="","",VLOOKUP($D16,Прайс_Валенсия!$D$3:$K$7259,6,FALSE))) ->  | H16: =IF(Шапка!$D$16<>"Валенсия",IF($D16="","",VLOOKUP($D16,Основной_прайс!$D$3:$K$6068,7,FALSE)),IF($D16="","",VLOOKUP($D16,Прайс_Валенсия!$D$3:$K$7259,7,FALSE))) ->  | I16: =IF(Шапка!$D$16<>"Валенсия",IF($D16="","",VLOOKUP($D16,Основной_прайс!$D$3:$K$6068,8,FALSE)),IF($D16="","",VLOOKUP($D16,Прайс_Валенсия!$D$3:$K$7259,8,FALSE))) ->  | N16: =IF(Шапка!$D$16<>"Валенсия", IF(D16="","",IF(K16="","",(INDEX(Основной_прайс!$L$3:$CH$6852,MATCH(D16,Основной_прайс!$D$3:$D$6852,0),MATCH(K16,Основной_прайс!$L$2:$CH$2,0))+Лист4!L61)*IF(Процент!$A$1=0,1,Процент!$A$1+1))), IF(D16="","",IF(K16="","",(INDEX(Прайс_Валенсия!$L$3:$CO$8043,MATCH(D16,Прайс_Валенсия!$D$3:$D$8043,0),MATCH(K16,Прайс_Валенсия!$L$2:$CO$2,0))+0)*IF(Процент!$A$1=0,1,Процент!$A$1+1)))) ->  | AA16: =IF(Шапка!$D$16<>"Валенсия",IF($D16="","",VLOOKUP($D16,Основной_прайс!$D$3:$K$6068,6,FALSE)),IF($D16="","",VLOOKUP($D16,Прайс_Валенсия!$D$3:$K$7259,6,FALSE))) ->  | AB16: =IF(Шапка!$D$16<>"Валенсия",IF($D16="","",VLOOKUP($D16,Основной_прайс!$D$3:$K$6068,7,FALSE)),IF($D16="","",VLOOKUP($D16,Прайс_Валенсия!$D$3:$K$7259,7,FALSE))) ->  | AC16: =IF(Шапка!$D$16<>"Валенсия",IF($D16="","",VLOOKUP($D16,Основной_прайс!$D$3:$K$6068,8,FALSE)),IF($D16="","",VLOOKUP($D16,Прайс_Валенсия!$D$3:$K$7259,8,FALSE))) -> 
A17: 15 | G17: =IF(Шапка!$D$16<>"Валенсия",IF($D17="","",VLOOKUP($D17,Основной_прайс!$D$3:$K$6068,6,FALSE)),IF($D17="","",VLOOKUP($D17,Прайс_Валенсия!$D$3:$K$7259,6,FALSE))) ->  | H17: =IF(Шапка!$D$16<>"Валенсия",IF($D17="","",VLOOKUP($D17,Основной_прайс!$D$3:$K$6068,7,FALSE)),IF($D17="","",VLOOKUP($D17,Прайс_Валенсия!$D$3:$K$7259,7,FALSE))) ->  | I17: =IF(Шапка!$D$16<>"Валенсия",IF($D17="","",VLOOKUP($D17,Основной_прайс!$D$3:$K$6068,8,FALSE)),IF($D17="","",VLOOKUP($D17,Прайс_Валенсия!$D$3:$K$7259,8,FALSE))) ->  | N17: =IF(Шапка!$D$16<>"Валенсия", IF(D17="","",IF(K17="","",(INDEX(Основной_прайс!$L$3:$CH$6852,MATCH(D17,Основной_прайс!$D$3:$D$6852,0),MATCH(K17,Основной_прайс!$L$2:$CH$2,0))+Лист4!L62)*IF(Процент!$A$1=0,1,Процент!$A$1+1))), IF(D17="","",IF(K17="","",(INDEX(Прайс_Валенсия!$L$3:$CO$8043,MATCH(D17,Прайс_Валенсия!$D$3:$D$8043,0),MATCH(K17,Прайс_Валенсия!$L$2:$CO$2,0))+0)*IF(Процент!$A$1=0,1,Процент!$A$1+1)))) ->  | AA17: =IF(Шапка!$D$16<>"Валенсия",IF($D17="","",VLOOKUP($D17,Основной_прайс!$D$3:$K$6068,6,FALSE)),IF($D17="","",VLOOKUP($D17,Прайс_Валенсия!$D$3:$K$7259,6,FALSE))) ->  | AB17: =IF(Шапка!$D$16<>"Валенсия",IF($D17="","",VLOOKUP($D17,Основной_прайс!$D$3:$K$6068,7,FALSE)),IF($D17="","",VLOOKUP($D17,Прайс_Валенсия!$D$3:$K$7259,7,FALSE))) ->  | AC17: =IF(Шапка!$D$16<>"Валенсия",IF($D17="","",VLOOKUP($D17,Основной_прайс!$D$3:$K$6068,8,FALSE)),IF($D17="","",VLOOKUP($D17,Прайс_Валенсия!$D$3:$K$7259,8,FALSE))) -> 
A18: 16 | G18: =IF(Шапка!$D$16<>"Валенсия",IF($D18="","",VLOOKUP($D18,Основной_прайс!$D$3:$K$6068,6,FALSE)),IF($D18="","",VLOOKUP($D18,Прайс_Валенсия!$D$3:$K$7259,6,FALSE))) ->  | H18: =IF(Шапка!$D$16<>"Валенсия",IF($D18="","",VLOOKUP($D18,Основной_прайс!$D$3:$K$6068,7,FALSE)),IF($D18="","",VLOOKUP($D18,Прайс_Валенсия!$D$3:$K$7259,7,FALSE))) ->  | I18: =IF(Шапка!$D$16<>"Валенсия",IF($D18="","",VLOOKUP($D18,Основной_прайс!$D$3:$K$6068,8,FALSE)),IF($D18="","",VLOOKUP($D18,Прайс_Валенсия!$D$3:$K$7259,8,FALSE))) ->  | N18: =IF(Шапка!$D$16<>"Валенсия", IF(D18="","",IF(K18="","",(INDEX(Основной_прайс!$L$3:$CH$6852,MATCH(D18,Основной_прайс!$D$3:$D$6852,0),MATCH(K18,Основной_прайс!$L$2:$CH$2,0))+Лист4!L63)*IF(Процент!$A$1=0,1,Процент!$A$1+1))), IF(D18="","",IF(K18="","",(INDEX(Прайс_Валенсия!$L$3:$CO$8043,MATCH(D18,Прайс_Валенсия!$D$3:$D$8043,0),MATCH(K18,Прайс_Валенсия!$L$2:$CO$2,0))+0)*IF(Процент!$A$1=0,1,Процент!$A$1+1)))) ->  | AA18: =IF(Шапка!$D$16<>"Валенсия",IF($D18="","",VLOOKUP($D18,Основной_прайс!$D$3:$K$6068,6,FALSE)),IF($D18="","",VLOOKUP($D18,Прайс_Валенсия!$D$3:$K$7259,6,FALSE))) ->  | AB18: =IF(Шапка!$D$16<>"Валенсия",IF($D18="","",VLOOKUP($D18,Основной_прайс!$D$3:$K$6068,7,FALSE)),IF($D18="","",VLOOKUP($D18,Прайс_Валенсия!$D$3:$K$7259,7,FALSE))) ->  | AC18: =IF(Шапка!$D$16<>"Валенсия",IF($D18="","",VLOOKUP($D18,Основной_прайс!$D$3:$K$6068,8,FALSE)),IF($D18="","",VLOOKUP($D18,Прайс_Валенсия!$D$3:$K$7259,8,FALSE))) -> 
A19: 17 | G19: =IF(Шапка!$D$16<>"Валенсия",IF($D19="","",VLOOKUP($D19,Основной_прайс!$D$3:$K$6068,6,FALSE)),IF($D19="","",VLOOKUP($D19,Прайс_Валенсия!$D$3:$K$7259,6,FALSE))) ->  | H19: =IF(Шапка!$D$16<>"Валенсия",IF($D19="","",VLOOKUP($D19,Основной_прайс!$D$3:$K$6068,7,FALSE)),IF($D19="","",VLOOKUP($D19,Прайс_Валенсия!$D$3:$K$7259,7,FALSE))) ->  | I19: =IF(Шапка!$D$16<>"Валенсия",IF($D19="","",VLOOKUP($D19,Основной_прайс!$D$3:$K$6068,8,FALSE)),IF($D19="","",VLOOKUP($D19,Прайс_Валенсия!$D$3:$K$7259,8,FALSE))) ->  | N19: =IF(Шапка!$D$16<>"Валенсия", IF(D19="","",IF(K19="","",(INDEX(Основной_прайс!$L$3:$CH$6852,MATCH(D19,Основной_прайс!$D$3:$D$6852,0),MATCH(K19,Основной_прайс!$L$2:$CH$2,0))+Лист4!L64)*IF(Процент!$A$1=0,1,Процент!$A$1+1))), IF(D19="","",IF(K19="","",(INDEX(Прайс_Валенсия!$L$3:$CO$8043,MATCH(D19,Прайс_Валенсия!$D$3:$D$8043,0),MATCH(K19,Прайс_Валенсия!$L$2:$CO$2,0))+0)*IF(Процент!$A$1=0,1,Процент!$A$1+1)))) ->  | AA19: =IF(Шапка!$D$16<>"Валенсия",IF($D19="","",VLOOKUP($D19,Основной_прайс!$D$3:$K$6068,6,FALSE)),IF($D19="","",VLOOKUP($D19,Прайс_Валенсия!$D$3:$K$7259,6,FALSE))) ->  | AB19: =IF(Шапка!$D$16<>"Валенсия",IF($D19="","",VLOOKUP($D19,Основной_прайс!$D$3:$K$6068,7,FALSE)),IF($D19="","",VLOOKUP($D19,Прайс_Валенсия!$D$3:$K$7259,7,FALSE))) ->  | AC19: =IF(Шапка!$D$16<>"Валенсия",IF($D19="","",VLOOKUP($D19,Основной_прайс!$D$3:$K$6068,8,FALSE)),IF($D19="","",VLOOKUP($D19,Прайс_Валенсия!$D$3:$K$7259,8,FALSE))) -> 
A20: 18 | G20: =IF(Шапка!$D$16<>"Валенсия",IF($D20="","",VLOOKUP($D20,Основной_прайс!$D$3:$K$6068,6,FALSE)),IF($D20="","",VLOOKUP($D20,Прайс_Валенсия!$D$3:$K$7259,6,FALSE))) ->  | H20: =IF(Шапка!$D$16<>"Валенсия",IF($D20="","",VLOOKUP($D20,Основной_прайс!$D$3:$K$6068,7,FALSE)),IF($D20="","",VLOOKUP($D20,Прайс_Валенсия!$D$3:$K$7259,7,FALSE))) ->  | I20: =IF(Шапка!$D$16<>"Валенсия",IF($D20="","",VLOOKUP($D20,Основной_прайс!$D$3:$K$6068,8,FALSE)),IF($D20="","",VLOOKUP($D20,Прайс_Валенсия!$D$3:$K$7259,8,FALSE))) ->  | N20: =IF(Шапка!$D$16<>"Валенсия", IF(D20="","",IF(K20="","",(INDEX(Основной_прайс!$L$3:$CH$6852,MATCH(D20,Основной_прайс!$D$3:$D$6852,0),MATCH(K20,Основной_прайс!$L$2:$CH$2,0))+Лист4!L65)*IF(Процент!$A$1=0,1,Процент!$A$1+1))), IF(D20="","",IF(K20="","",(INDEX(Прайс_Валенсия!$L$3:$CO$8043,MATCH(D20,Прайс_Валенсия!$D$3:$D$8043,0),MATCH(K20,Прайс_Валенсия!$L$2:$CO$2,0))+0)*IF(Процент!$A$1=0,1,Процент!$A$1+1)))) ->  | AA20: =IF(Шапка!$D$16<>"Валенсия",IF($D20="","",VLOOKUP($D20,Основной_прайс!$D$3:$K$6068,6,FALSE)),IF($D20="","",VLOOKUP($D20,Прайс_Валенсия!$D$3:$K$7259,6,FALSE))) ->  | AB20: =IF(Шапка!$D$16<>"Валенсия",IF($D20="","",VLOOKUP($D20,Основной_прайс!$D$3:$K$6068,7,FALSE)),IF($D20="","",VLOOKUP($D20,Прайс_Валенсия!$D$3:$K$7259,7,FALSE))) ->  | AC20: =IF(Шапка!$D$16<>"Валенсия",IF($D20="","",VLOOKUP($D20,Основной_прайс!$D$3:$K$6068,8,FALSE)),IF($D20="","",VLOOKUP($D20,Прайс_Валенсия!$D$3:$K$7259,8,FALSE))) -> 
A21: 19 | G21: =IF(Шапка!$D$16<>"Валенсия",IF($D21="","",VLOOKUP($D21,Основной_прайс!$D$3:$K$6068,6,FALSE)),IF($D21="","",VLOOKUP($D21,Прайс_Валенсия!$D$3:$K$7259,6,FALSE))) ->  | H21: =IF(Шапка!$D$16<>"Валенсия",IF($D21="","",VLOOKUP($D21,Основной_прайс!$D$3:$K$6068,7,FALSE)),IF($D21="","",VLOOKUP($D21,Прайс_Валенсия!$D$3:$K$7259,7,FALSE))) ->  | I21: =IF(Шапка!$D$16<>"Валенсия",IF($D21="","",VLOOKUP($D21,Основной_прайс!$D$3:$K$6068,8,FALSE)),IF($D21="","",VLOOKUP($D21,Прайс_Валенсия!$D$3:$K$7259,8,FALSE))) ->  | N21: =IF(Шапка!$D$16<>"Валенсия", IF(D21="","",IF(K21="","",(INDEX(Основной_прайс!$L$3:$CH$6852,MATCH(D21,Основной_прайс!$D$3:$D$6852,0),MATCH(K21,Основной_прайс!$L$2:$CH$2,0))+Лист4!L66)*IF(Процент!$A$1=0,1,Процент!$A$1+1))), IF(D21="","",IF(K21="","",(INDEX(Прайс_Валенсия!$L$3:$CO$8043,MATCH(D21,Прайс_Валенсия!$D$3:$D$8043,0),MATCH(K21,Прайс_Валенсия!$L$2:$CO$2,0))+0)*IF(Процент!$A$1=0,1,Процент!$A$1+1)))) ->  | AA21: =IF(Шапка!$D$16<>"Валенсия",IF($D21="","",VLOOKUP($D21,Основной_прайс!$D$3:$K$6068,6,FALSE)),IF($D21="","",VLOOKUP($D21,Прайс_Валенсия!$D$3:$K$7259,6,FALSE))) ->  | AB21: =IF(Шапка!$D$16<>"Валенсия",IF($D21="","",VLOOKUP($D21,Основной_прайс!$D$3:$K$6068,7,FALSE)),IF($D21="","",VLOOKUP($D21,Прайс_Валенсия!$D$3:$K$7259,7,FALSE))) ->  | AC21: =IF(Шапка!$D$16<>"Валенсия",IF($D21="","",VLOOKUP($D21,Основной_прайс!$D$3:$K$6068,8,FALSE)),IF($D21="","",VLOOKUP($D21,Прайс_Валенсия!$D$3:$K$7259,8,FALSE))) -> 
A22: 20 | G22: =IF(Шапка!$D$16<>"Валенсия",IF($D22="","",VLOOKUP($D22,Основной_прайс!$D$3:$K$6068,6,FALSE)),IF($D22="","",VLOOKUP($D22,Прайс_Валенсия!$D$3:$K$7259,6,FALSE))) ->  | H22: =IF(Шапка!$D$16<>"Валенсия",IF($D22="","",VLOOKUP($D22,Основной_прайс!$D$3:$K$6068,7,FALSE)),IF($D22="","",VLOOKUP($D22,Прайс_Валенсия!$D$3:$K$7259,7,FALSE))) ->  | I22: =IF(Шапка!$D$16<>"Валенсия",IF($D22="","",VLOOKUP($D22,Основной_прайс!$D$3:$K$6068,8,FALSE)),IF($D22="","",VLOOKUP($D22,Прайс_Валенсия!$D$3:$K$7259,8,FALSE))) ->  | N22: =IF(Шапка!$D$16<>"Валенсия", IF(D22="","",IF(K22="","",(INDEX(Основной_прайс!$L$3:$CH$6852,MATCH(D22,Основной_прайс!$D$3:$D$6852,0),MATCH(K22,Основной_прайс!$L$2:$CH$2,0))+Лист4!L67)*IF(Процент!$A$1=0,1,Процент!$A$1+1))), IF(D22="","",IF(K22="","",(INDEX(Прайс_Валенсия!$L$3:$CO$8043,MATCH(D22,Прайс_Валенсия!$D$3:$D$8043,0),MATCH(K22,Прайс_Валенсия!$L$2:$CO$2,0))+0)*IF(Процент!$A$1=0,1,Процент!$A$1+1)))) ->  | AA22: =IF(Шапка!$D$16<>"Валенсия",IF($D22="","",VLOOKUP($D22,Основной_прайс!$D$3:$K$6068,6,FALSE)),IF($D22="","",VLOOKUP($D22,Прайс_Валенсия!$D$3:$K$7259,6,FALSE))) ->  | AB22: =IF(Шапка!$D$16<>"Валенсия",IF($D22="","",VLOOKUP($D22,Основной_прайс!$D$3:$K$6068,7,FALSE)),IF($D22="","",VLOOKUP($D22,Прайс_Валенсия!$D$3:$K$7259,7,FALSE))) ->  | AC22: =IF(Шапка!$D$16<>"Валенсия",IF($D22="","",VLOOKUP($D22,Основной_прайс!$D$3:$K$6068,8,FALSE)),IF($D22="","",VLOOKUP($D22,Прайс_Валенсия!$D$3:$K$7259,8,FALSE))) -> 
A23: 21 | G23: =IF(Шапка!$D$16<>"Валенсия",IF($D23="","",VLOOKUP($D23,Основной_прайс!$D$3:$K$6068,6,FALSE)),IF($D23="","",VLOOKUP($D23,Прайс_Валенсия!$D$3:$K$7259,6,FALSE))) ->  | H23: =IF(Шапка!$D$16<>"Валенсия",IF($D23="","",VLOOKUP($D23,Основной_прайс!$D$3:$K$6068,7,FALSE)),IF($D23="","",VLOOKUP($D23,Прайс_Валенсия!$D$3:$K$7259,7,FALSE))) ->  | I23: =IF(Шапка!$D$16<>"Валенсия",IF($D23="","",VLOOKUP($D23,Основной_прайс!$D$3:$K$6068,8,FALSE)),IF($D23="","",VLOOKUP($D23,Прайс_Валенсия!$D$3:$K$7259,8,FALSE))) ->  | N23: =IF(Шапка!$D$16<>"Валенсия", IF(D23="","",IF(K23="","",(INDEX(Основной_прайс!$L$3:$CH$6852,MATCH(D23,Основной_прайс!$D$3:$D$6852,0),MATCH(K23,Основной_прайс!$L$2:$CH$2,0))+Лист4!L68)*IF(Процент!$A$1=0,1,Процент!$A$1+1))), IF(D23="","",IF(K23="","",(INDEX(Прайс_Валенсия!$L$3:$CO$8043,MATCH(D23,Прайс_Валенсия!$D$3:$D$8043,0),MATCH(K23,Прайс_Валенсия!$L$2:$CO$2,0))+0)*IF(Процент!$A$1=0,1,Процент!$A$1+1)))) ->  | AA23: =IF(Шапка!$D$16<>"Валенсия",IF($D23="","",VLOOKUP($D23,Основной_прайс!$D$3:$K$6068,6,FALSE)),IF($D23="","",VLOOKUP($D23,Прайс_Валенсия!$D$3:$K$7259,6,FALSE))) ->  | AB23: =IF(Шапка!$D$16<>"Валенсия",IF($D23="","",VLOOKUP($D23,Основной_прайс!$D$3:$K$6068,7,FALSE)),IF($D23="","",VLOOKUP($D23,Прайс_Валенсия!$D$3:$K$7259,7,FALSE))) ->  | AC23: =IF(Шапка!$D$16<>"Валенсия",IF($D23="","",VLOOKUP($D23,Основной_прайс!$D$3:$K$6068,8,FALSE)),IF($D23="","",VLOOKUP($D23,Прайс_Валенсия!$D$3:$K$7259,8,FALSE))) -> 
A24: 22 | G24: =IF(Шапка!$D$16<>"Валенсия",IF($D24="","",VLOOKUP($D24,Основной_прайс!$D$3:$K$6068,6,FALSE)),IF($D24="","",VLOOKUP($D24,Прайс_Валенсия!$D$3:$K$7259,6,FALSE))) ->  | H24: =IF(Шапка!$D$16<>"Валенсия",IF($D24="","",VLOOKUP($D24,Основной_прайс!$D$3:$K$6068,7,FALSE)),IF($D24="","",VLOOKUP($D24,Прайс_Валенсия!$D$3:$K$7259,7,FALSE))) ->  | I24: =IF(Шапка!$D$16<>"Валенсия",IF($D24="","",VLOOKUP($D24,Основной_прайс!$D$3:$K$6068,8,FALSE)),IF($D24="","",VLOOKUP($D24,Прайс_Валенсия!$D$3:$K$7259,8,FALSE))) ->  | N24: =IF(Шапка!$D$16<>"Валенсия", IF(D24="","",IF(K24="","",(INDEX(Основной_прайс!$L$3:$CH$6852,MATCH(D24,Основной_прайс!$D$3:$D$6852,0),MATCH(K24,Основной_прайс!$L$2:$CH$2,0))+Лист4!L69)*IF(Процент!$A$1=0,1,Процент!$A$1+1))), IF(D24="","",IF(K24="","",(INDEX(Прайс_Валенсия!$L$3:$CO$8043,MATCH(D24,Прайс_Валенсия!$D$3:$D$8043,0),MATCH(K24,Прайс_Валенсия!$L$2:$CO$2,0))+0)*IF(Процент!$A$1=0,1,Процент!$A$1+1)))) ->  | AA24: =IF(Шапка!$D$16<>"Валенсия",IF($D24="","",VLOOKUP($D24,Основной_прайс!$D$3:$K$6068,6,FALSE)),IF($D24="","",VLOOKUP($D24,Прайс_Валенсия!$D$3:$K$7259,6,FALSE))) ->  | AB24: =IF(Шапка!$D$16<>"Валенсия",IF($D24="","",VLOOKUP($D24,Основной_прайс!$D$3:$K$6068,7,FALSE)),IF($D24="","",VLOOKUP($D24,Прайс_Валенсия!$D$3:$K$7259,7,FALSE))) ->  | AC24: =IF(Шапка!$D$16<>"Валенсия",IF($D24="","",VLOOKUP($D24,Основной_прайс!$D$3:$K$6068,8,FALSE)),IF($D24="","",VLOOKUP($D24,Прайс_Валенсия!$D$3:$K$7259,8,FALSE))) -> 
A25: 23 | G25: =IF(Шапка!$D$16<>"Валенсия",IF($D25="","",VLOOKUP($D25,Основной_прайс!$D$3:$K$6068,6,FALSE)),IF($D25="","",VLOOKUP($D25,Прайс_Валенсия!$D$3:$K$7259,6,FALSE))) ->  | H25: =IF(Шапка!$D$16<>"Валенсия",IF($D25="","",VLOOKUP($D25,Основной_прайс!$D$3:$K$6068,7,FALSE)),IF($D25="","",VLOOKUP($D25,Прайс_Валенсия!$D$3:$K$7259,7,FALSE))) ->  | I25: =IF(Шапка!$D$16<>"Валенсия",IF($D25="","",VLOOKUP($D25,Основной_прайс!$D$3:$K$6068,8,FALSE)),IF($D25="","",VLOOKUP($D25,Прайс_Валенсия!$D$3:$K$7259,8,FALSE))) ->  | N25: =IF(Шапка!$D$16<>"Валенсия", IF(D25="","",IF(K25="","",(INDEX(Основной_прайс!$L$3:$CH$6852,MATCH(D25,Основной_прайс!$D$3:$D$6852,0),MATCH(K25,Основной_прайс!$L$2:$CH$2,0))+Лист4!L70)*IF(Процент!$A$1=0,1,Процент!$A$1+1))), IF(D25="","",IF(K25="","",(INDEX(Прайс_Валенсия!$L$3:$CO$8043,MATCH(D25,Прайс_Валенсия!$D$3:$D$8043,0),MATCH(K25,Прайс_Валенсия!$L$2:$CO$2,0))+0)*IF(Процент!$A$1=0,1,Процент!$A$1+1)))) ->  | AA25: =IF(Шапка!$D$16<>"Валенсия",IF($D25="","",VLOOKUP($D25,Основной_прайс!$D$3:$K$6068,6,FALSE)),IF($D25="","",VLOOKUP($D25,Прайс_Валенсия!$D$3:$K$7259,6,FALSE))) ->  | AB25: =IF(Шапка!$D$16<>"Валенсия",IF($D25="","",VLOOKUP($D25,Основной_прайс!$D$3:$K$6068,7,FALSE)),IF($D25="","",VLOOKUP($D25,Прайс_Валенсия!$D$3:$K$7259,7,FALSE))) ->  | AC25: =IF(Шапка!$D$16<>"Валенсия",IF($D25="","",VLOOKUP($D25,Основной_прайс!$D$3:$K$6068,8,FALSE)),IF($D25="","",VLOOKUP($D25,Прайс_Валенсия!$D$3:$K$7259,8,FALSE))) -> 
A26: 24 | G26: =IF(Шапка!$D$16<>"Валенсия",IF($D26="","",VLOOKUP($D26,Основной_прайс!$D$3:$K$6068,6,FALSE)),IF($D26="","",VLOOKUP($D26,Прайс_Валенсия!$D$3:$K$7259,6,FALSE))) ->  | H26: =IF(Шапка!$D$16<>"Валенсия",IF($D26="","",VLOOKUP($D26,Основной_прайс!$D$3:$K$6068,7,FALSE)),IF($D26="","",VLOOKUP($D26,Прайс_Валенсия!$D$3:$K$7259,7,FALSE))) ->  | I26: =IF(Шапка!$D$16<>"Валенсия",IF($D26="","",VLOOKUP($D26,Основной_прайс!$D$3:$K$6068,8,FALSE)),IF($D26="","",VLOOKUP($D26,Прайс_Валенсия!$D$3:$K$7259,8,FALSE))) ->  | N26: =IF(Шапка!$D$16<>"Валенсия", IF(D26="","",IF(K26="","",(INDEX(Основной_прайс!$L$3:$CH$6852,MATCH(D26,Основной_прайс!$D$3:$D$6852,0),MATCH(K26,Основной_прайс!$L$2:$CH$2,0))+Лист4!L71)*IF(Процент!$A$1=0,1,Процент!$A$1+1))), IF(D26="","",IF(K26="","",(INDEX(Прайс_Валенсия!$L$3:$CO$8043,MATCH(D26,Прайс_Валенсия!$D$3:$D$8043,0),MATCH(K26,Прайс_Валенсия!$L$2:$CO$2,0))+0)*IF(Процент!$A$1=0,1,Процент!$A$1+1)))) ->  | AA26: =IF(Шапка!$D$16<>"Валенсия",IF($D26="","",VLOOKUP($D26,Основной_прайс!$D$3:$K$6068,6,FALSE)),IF($D26="","",VLOOKUP($D26,Прайс_Валенсия!$D$3:$K$7259,6,FALSE))) ->  | AB26: =IF(Шапка!$D$16<>"Валенсия",IF($D26="","",VLOOKUP($D26,Основной_прайс!$D$3:$K$6068,7,FALSE)),IF($D26="","",VLOOKUP($D26,Прайс_Валенсия!$D$3:$K$7259,7,FALSE))) ->  | AC26: =IF(Шапка!$D$16<>"Валенсия",IF($D26="","",VLOOKUP($D26,Основной_прайс!$D$3:$K$6068,8,FALSE)),IF($D26="","",VLOOKUP($D26,Прайс_Валенсия!$D$3:$K$7259,8,FALSE))) -> 
A27: 25 | G27: =IF(Шапка!$D$16<>"Валенсия",IF($D27="","",VLOOKUP($D27,Основной_прайс!$D$3:$K$6068,6,FALSE)),IF($D27="","",VLOOKUP($D27,Прайс_Валенсия!$D$3:$K$7259,6,FALSE))) ->  | H27: =IF(Шапка!$D$16<>"Валенсия",IF($D27="","",VLOOKUP($D27,Основной_прайс!$D$3:$K$6068,7,FALSE)),IF($D27="","",VLOOKUP($D27,Прайс_Валенсия!$D$3:$K$7259,7,FALSE))) ->  | I27: =IF(Шапка!$D$16<>"Валенсия",IF($D27="","",VLOOKUP($D27,Основной_прайс!$D$3:$K$6068,8,FALSE)),IF($D27="","",VLOOKUP($D27,Прайс_Валенсия!$D$3:$K$7259,8,FALSE))) ->  | N27: =IF(Шапка!$D$16<>"Валенсия", IF(D27="","",IF(K27="","",(INDEX(Основной_прайс!$L$3:$CH$6852,MATCH(D27,Основной_прайс!$D$3:$D$6852,0),MATCH(K27,Основной_прайс!$L$2:$CH$2,0))+Лист4!L72)*IF(Процент!$A$1=0,1,Процент!$A$1+1))), IF(D27="","",IF(K27="","",(INDEX(Прайс_Валенсия!$L$3:$CO$8043,MATCH(D27,Прайс_Валенсия!$D$3:$D$8043,0),MATCH(K27,Прайс_Валенсия!$L$2:$CO$2,0))+0)*IF(Процент!$A$1=0,1,Процент!$A$1+1)))) ->  | AA27: =IF(Шапка!$D$16<>"Валенсия",IF($D27="","",VLOOKUP($D27,Основной_прайс!$D$3:$K$6068,6,FALSE)),IF($D27="","",VLOOKUP($D27,Прайс_Валенсия!$D$3:$K$7259,6,FALSE))) ->  | AB27: =IF(Шапка!$D$16<>"Валенсия",IF($D27="","",VLOOKUP($D27,Основной_прайс!$D$3:$K$6068,7,FALSE)),IF($D27="","",VLOOKUP($D27,Прайс_Валенсия!$D$3:$K$7259,7,FALSE))) ->  | AC27: =IF(Шапка!$D$16<>"Валенсия",IF($D27="","",VLOOKUP($D27,Основной_прайс!$D$3:$K$6068,8,FALSE)),IF($D27="","",VLOOKUP($D27,Прайс_Валенсия!$D$3:$K$7259,8,FALSE))) -> 
A28: 26 | G28: =IF(Шапка!$D$16<>"Валенсия",IF($D28="","",VLOOKUP($D28,Основной_прайс!$D$3:$K$6068,6,FALSE)),IF($D28="","",VLOOKUP($D28,Прайс_Валенсия!$D$3:$K$7259,6,FALSE))) ->  | H28: =IF(Шапка!$D$16<>"Валенсия",IF($D28="","",VLOOKUP($D28,Основной_прайс!$D$3:$K$6068,7,FALSE)),IF($D28="","",VLOOKUP($D28,Прайс_Валенсия!$D$3:$K$7259,7,FALSE))) ->  | I28: =IF(Шапка!$D$16<>"Валенсия",IF($D28="","",VLOOKUP($D28,Основной_прайс!$D$3:$K$6068,8,FALSE)),IF($D28="","",VLOOKUP($D28,Прайс_Валенсия!$D$3:$K$7259,8,FALSE))) ->  | N28: =IF(Шапка!$D$16<>"Валенсия", IF(D28="","",IF(K28="","",(INDEX(Основной_прайс!$L$3:$CH$6852,MATCH(D28,Основной_прайс!$D$3:$D$6852,0),MATCH(K28,Основной_прайс!$L$2:$CH$2,0))+Лист4!L73)*IF(Процент!$A$1=0,1,Процент!$A$1+1))), IF(D28="","",IF(K28="","",(INDEX(Прайс_Валенсия!$L$3:$CO$8043,MATCH(D28,Прайс_Валенсия!$D$3:$D$8043,0),MATCH(K28,Прайс_Валенсия!$L$2:$CO$2,0))+0)*IF(Процент!$A$1=0,1,Процент!$A$1+1)))) ->  | AA28: =IF(Шапка!$D$16<>"Валенсия",IF($D28="","",VLOOKUP($D28,Основной_прайс!$D$3:$K$6068,6,FALSE)),IF($D28="","",VLOOKUP($D28,Прайс_Валенсия!$D$3:$K$7259,6,FALSE))) ->  | AB28: =IF(Шапка!$D$16<>"Валенсия",IF($D28="","",VLOOKUP($D28,Основной_прайс!$D$3:$K$6068,7,FALSE)),IF($D28="","",VLOOKUP($D28,Прайс_Валенсия!$D$3:$K$7259,7,FALSE))) ->  | AC28: =IF(Шапка!$D$16<>"Валенсия",IF($D28="","",VLOOKUP($D28,Основной_прайс!$D$3:$K$6068,8,FALSE)),IF($D28="","",VLOOKUP($D28,Прайс_Валенсия!$D$3:$K$7259,8,FALSE))) -> 
A29: 27 | G29: =IF(Шапка!$D$16<>"Валенсия",IF($D29="","",VLOOKUP($D29,Основной_прайс!$D$3:$K$6068,6,FALSE)),IF($D29="","",VLOOKUP($D29,Прайс_Валенсия!$D$3:$K$7259,6,FALSE))) ->  | H29: =IF(Шапка!$D$16<>"Валенсия",IF($D29="","",VLOOKUP($D29,Основной_прайс!$D$3:$K$6068,7,FALSE)),IF($D29="","",VLOOKUP($D29,Прайс_Валенсия!$D$3:$K$7259,7,FALSE))) ->  | I29: =IF(Шапка!$D$16<>"Валенсия",IF($D29="","",VLOOKUP($D29,Основной_прайс!$D$3:$K$6068,8,FALSE)),IF($D29="","",VLOOKUP($D29,Прайс_Валенсия!$D$3:$K$7259,8,FALSE))) ->  | N29: =IF(Шапка!$D$16<>"Валенсия", IF(D29="","",IF(K29="","",(INDEX(Основной_прайс!$L$3:$CH$6852,MATCH(D29,Основной_прайс!$D$3:$D$6852,0),MATCH(K29,Основной_прайс!$L$2:$CH$2,0))+Лист4!L74)*IF(Процент!$A$1=0,1,Процент!$A$1+1))), IF(D29="","",IF(K29="","",(INDEX(Прайс_Валенсия!$L$3:$CO$8043,MATCH(D29,Прайс_Валенсия!$D$3:$D$8043,0),MATCH(K29,Прайс_Валенсия!$L$2:$CO$2,0))+0)*IF(Процент!$A$1=0,1,Процент!$A$1+1)))) ->  | AA29: =IF(Шапка!$D$16<>"Валенсия",IF($D29="","",VLOOKUP($D29,Основной_прайс!$D$3:$K$6068,6,FALSE)),IF($D29="","",VLOOKUP($D29,Прайс_Валенсия!$D$3:$K$7259,6,FALSE))) ->  | AB29: =IF(Шапка!$D$16<>"Валенсия",IF($D29="","",VLOOKUP($D29,Основной_прайс!$D$3:$K$6068,7,FALSE)),IF($D29="","",VLOOKUP($D29,Прайс_Валенсия!$D$3:$K$7259,7,FALSE))) ->  | AC29: =IF(Шапка!$D$16<>"Валенсия",IF($D29="","",VLOOKUP($D29,Основной_прайс!$D$3:$K$6068,8,FALSE)),IF($D29="","",VLOOKUP($D29,Прайс_Валенсия!$D$3:$K$7259,8,FALSE))) -> 
A30: 28 | G30: =IF(Шапка!$D$16<>"Валенсия",IF($D30="","",VLOOKUP($D30,Основной_прайс!$D$3:$K$6068,6,FALSE)),IF($D30="","",VLOOKUP($D30,Прайс_Валенсия!$D$3:$K$7259,6,FALSE))) ->  | H30: =IF(Шапка!$D$16<>"Валенсия",IF($D30="","",VLOOKUP($D30,Основной_прайс!$D$3:$K$6068,7,FALSE)),IF($D30="","",VLOOKUP($D30,Прайс_Валенсия!$D$3:$K$7259,7,FALSE))) ->  | I30: =IF(Шапка!$D$16<>"Валенсия",IF($D30="","",VLOOKUP($D30,Основной_прайс!$D$3:$K$6068,8,FALSE)),IF($D30="","",VLOOKUP($D30,Прайс_Валенсия!$D$3:$K$7259,8,FALSE))) ->  | N30: =IF(Шапка!$D$16<>"Валенсия", IF(D30="","",IF(K30="","",(INDEX(Основной_прайс!$L$3:$CH$6852,MATCH(D30,Основной_прайс!$D$3:$D$6852,0),MATCH(K30,Основной_прайс!$L$2:$CH$2,0))+Лист4!L75)*IF(Процент!$A$1=0,1,Процент!$A$1+1))), IF(D30="","",IF(K30="","",(INDEX(Прайс_Валенсия!$L$3:$CO$8043,MATCH(D30,Прайс_Валенсия!$D$3:$D$8043,0),MATCH(K30,Прайс_Валенсия!$L$2:$CO$2,0))+0)*IF(Процент!$A$1=0,1,Процент!$A$1+1)))) ->  | AA30: =IF(Шапка!$D$16<>"Валенсия",IF($D30="","",VLOOKUP($D30,Основной_прайс!$D$3:$K$6068,6,FALSE)),IF($D30="","",VLOOKUP($D30,Прайс_Валенсия!$D$3:$K$7259,6,FALSE))) ->  | AB30: =IF(Шапка!$D$16<>"Валенсия",IF($D30="","",VLOOKUP($D30,Основной_прайс!$D$3:$K$6068,7,FALSE)),IF($D30="","",VLOOKUP($D30,Прайс_Валенсия!$D$3:$K$7259,7,FALSE))) ->  | AC30: =IF(Шапка!$D$16<>"Валенсия",IF($D30="","",VLOOKUP($D30,Основной_прайс!$D$3:$K$6068,8,FALSE)),IF($D30="","",VLOOKUP($D30,Прайс_Валенсия!$D$3:$K$7259,8,FALSE))) -> 
K31: Итого стандартные модули | O31: =SUM(O3:O30) -> 0
K32: Скидка | N32: 0 | O32: =O31*N32 -> 0
K33: Итого с учетом скидки | O33: =O31-O32 -> 0
A35: 2.Нестандартные модули
A36: № | B36: ПРИМЕЧАНИЕ | C36: Номер поз. | D36: Тип | G36: Ширина | H36: Высота | I36: Глубина | J36: Кол-во | K36: Коллекция | N36: Цена | O36: Сумма
A37: 1 | O37: =IF(N37="","",N37*J37) -> 
A38: 2
A39: 3
A40: 4
A41: 5
A42: 6
A43: 7
A44: 8
A45: 9
A46: 10
A47: 11
A48: 12
A49: 13
A50: 14
A51: 15
K52: Итого нестандартные модули | O52: =SUM(O37:O51) -> 0
K53: Скидка | N53: 0 | O53: =O52*N53 -> 0
K54: Итого с учетом скидки | O54: =O52-O53 -> 0
A56: 3.Дополнительная комплектация
A57: № | B57: Наименование | E57: Кол-во | F57: Цена | G57: Сумма | J57: № | K57: Наименование | L57: Кол-во | N57: Цена | O57: Сумма
A58: 1 | G58: =IF(F58="","",F58*E58) ->  | J58: 17 | O58: =IF(L58="","",N58*L58) -> 
A59: 2 | J59: 18 | O59: =IF(L59="","",N59*L59) -> 
A60: 3 | J60: 19
A61: 4 | J61: 20
A62: 5 | J62: 21
A63: 6 | J63: 22
A64: 7 | J64: 23
A65: 8 | J65: 24
A66: 9 | J66: 25
A67: 10 | J67: 26
A68: 11 | J68: 27
A69: 12 | J69: 28
A70: 13 | J70: 29
A71: 14 | J71: 30
A72: 15 | J72: 31
A73: 16 | J73: 32
K74: Итого дополнительная комплектация | O74: =(SUM(O58:O73)+SUM(G58:G73))+Лист4!G76+Лист4!H77 -> 0
K75: Скидка | N75: 0 | O75: =O74*N75 -> 0
K76: Итого с учетом скидки | O76: =O74-O75 -> 0

Sheet Основной_прайс
CW1: 1200 | CX1: 800 | CY1: 97
B2: Номер модуля | E2: Наименование модуля | G2: Рисунок модуля | H2: верх_низ | I2: ШИРИНА КОРПУСА | J2: ВЫСОТА КОРПУСА | K2: ГЛУБИНА КОРПУСА | L2: Севилья в Al профиле Категория 1 | M2: Севилья в Al профиле Категория 2 | N2: Севилья в Al профиле Категория 3 | O2: Севилья в Al профиле Категория 4 | P2: Севилья в Al профиле Категория 5 | Q2: Севилья в ЦВЕТНОМ профиле Категория 1 | R2: Севилья в ЦВЕТНОМl профиле Категория 2 | S2: Севилья в ЦВЕТНОМ профиле Категория 3 | T2: Севилья в ЦВЕТНОМ профиле Категория 4 | U2: Севилья в ЦВЕТНОМ профиле Категория 5 | V2: Севилья кант ПВХ Категория 1 | W2: Севилья кант ПВХ Категория 2 | X2: Севилья кант ПВХ Категория 3 | Y2: Севилья кант ПВХ Категория 4 | Z2: Севилья кант ПВХ Категория 5 | AA2: Севилья в кромке ABS Категория 1 | AB2: Севилья в кромке ABS Категория 2 | AC2: Севилья в кромке ABS Категория 3 | AD2: Севилья в кромке ABS Категория 4 | AE2: Севилья в кромке ABS Категория 5 | AF2: Севилья в 3D канте Категория 1 | AG2: Севилья в 3D канте Категория 2 | AH2: Севилья в 3D канте Категория 3 | AI2: Севилья в 3D канте Категория 4 | AJ2: Севилья в 3D канте Категория 5 | AK2: Помпея Категория 1 | AL2: Помпея Категория 2 | AM2: Помпея Категория 3 | AN2: Помпея Категория 4 ПАТИНА | AO2: Помпея Категория 6 Асти 19 мм | AP2: Аликанте Высокий глянец 16 мм | AQ2: Аликанте Матовая 16 мм | AR2: Аликанте ЖЕМЧУГ, ПЕРЛАМУТР 16 мм | AS2: Аликанте Спецэффект №1 16 мм | AT2: Аликанте Спецэффект №2 16 мм | AU2: Аликанте Спецэффект №3 16 мм | AV2: Аликанте Спецэффект №4 16 мм | AW2: Аликанте Спецэффект №5 16 мм | AX2: Аликанте Палаццио глянцевая 16 мм | AY2: Аликанте Палаццио матовая 16 мм | AZ2: Аликанте Спецэффект №2 + Фотопечать 16 мм | BA2: Аликанте Фотопечать 16 мм | BB2: Аликанте Высокий глянец 19 мм | BC2: Аликанте Матовая 19 мм | BD2: АликантеЖЕМЧУГ, ПЕРЛАМУТР 19 мм | BE2: Аликанте Спецэффект №1 19 мм | BF2: Аликанте Спецэффект №2 19 мм | BG2: Аликанте Спецэффект №3 19 мм | BH2: Аликанте Спецэффект №4 19 мм | BI2: Аликанте Спецэффект №5 19 мм | BJ2: Аликанте Паллацио глянцевая 19 мм | BK2: Аликанте Паллацио матовая 19 мм | BL2: Аликанте Спецэффект №2 + Фотопечать 19 мм | BM2: Аликанте Фотопечать 19 мм | BN2: Аликанте Асти 19 мм | BO2: Аликанте Монреаль 19 мм | BP2: Аликанте Ампир 19 мм | BQ2: Аликанте Рекодо 22 мм | BR2: Барселона (Модера) | BS2: Барселона (Эра) | BT2: Барселона Высокий глянец (Модера-мыло) | BU2: Барселона Высокий глянец (Арче, Техно, Техно-Горизонталь, Модера-горизонталь) | BV2: Барселона спецэффект №1 (Арче, Техно, Техно-Горизонталь) | BW2: Барселона спецэффект №2 (Арче, Техно, Техно-Горизонталь) | BX2: Барселона спецэффект №3 (Арче, Техно, Техно-Горизонталь) | BY2: Барселона спецэффект №4 (Арче, Техно, Техно-Горизонталь) | BZ2: Барселона спецэффект №5 (Арче, Техно, Техно-Горизонталь) | CA2: Толедо БАВАРИЯ дуб тонирование | CB2: Толедо БАВАРИЯ дуб эмаль + патина | CC2: Толедо ШАЛЕ дуб тонирование | CD2: Толедо ШАЛЕ дуб эмаль + патина | CE2: Галисия масло | CF2: Галисия Эмаль | CG2: ВЕРДЕ | CH2: Викинг | CJ2: основной прайс | CT2: Квадратура для пересчета под врезную ручку каталог Севилья ("Ф" отсутствует) | CV2: Погонаж на позицию | CW2: Профиль 901307 | CX2: Профиль 901304 | CY2: Севилья
A3: 1 | B3: 1 | C3: =IF(B3<>0,LOOKUP(,-CODE(B$3:B3),B$3:B3),C2) -> 1 | D3: 1(300)-528 | E3: Тумба кухонная однодверный, полка ЛДСП | F3: =IF(E3<>0,LOOKUP(,-CODE(E$3:E3),E$3:E3),F2) -> Тумба кухонная однодверный, полка ЛДСП | H3: 1 | I3: 300 | J3: 720 | K3: 528 | L3: 2550.937573 | M3: 2683.562211 | N3: 3516.874237 | O3: 3975.694153 | P3: 4592.820355 | Q3: 2599.273573 | R3: 2731.898211 | S3: 3565.210237 | T3: 4024.030153 | U3: 4641.156355 | V3: 2479.705573 | W3: 2612.330211 | X3: 3518.976226 | Y3: 3996.913637 | Z3: 4639.753431 | AA3: 2855.428082 | AB3: 3010.156826 | AC3: 3982.35419 | AD3: 4517.644092 | AE3: 5237.624661 | AF3: 3205.940828 | AG3: 3349.617518 | AH3: 4252.372214 | AI3: 4749.427122 | AJ3: 5417.980508 | AK3: 2117.714578 | AL3: 2272.450536 | AM3: 2365.825683 | AN3: 2674.853721 | AO3: 2790.232097 | AP3: 3153.005773 | AQ3: 2846.162768 | AR3: 3259.327443 | AS3: 3744.142482 | AT3: 3970.275154 | AU3: 4583.343081 | AV3: 5049.968109 | AW3: 5502.75092 | AX3: 4022.165342 | AY3: 3592.824809 | AZ3: 4771.526378 | BA3: 4072.945453 | BB3: 3153.005773 | BC3: 2846.162768 | BD3: 3317.612662 | BE3: 3744.142482 | BF3: 3970.275154 | BG3: 4583.343081 | BH3: 5049.968109 | BI3: 5502.75092 | BJ3: 4002.634831 | BK3: 3585.92196 | BL3: 4890.214834 | BM3: 4072.945453 | BN3: 3667.323978 | BO3: 3382.036975 | BP3: 4879.214409 | BQ3: 3153.005773 | BR3: 3314.793193 | BS3: 4306.913037 | BT3: 3582.295715 | BU3: 3809.896018 | BV3: 4608.005885 | BW3: 4980.457665 | BX3: 5632.534534 | BY3: 6169.153317 | BZ3: 6689.853549 | CA3: 5624.015 | CB3: 6885.59324 | CC3: 7099.8998 | CD3: 8021.82236 | CE3: 3381.730392 | CF3: 3556.05319 | CG3: 2163.09852 | CH3: 3196.428928 | CJ3: =INDIRECT(ADDRESS(2,ROW()+9)) -> Севилья в Al профиле Категория 1 | CK3: 1 | CL3: =IF(CK3<>0,LOOKUP(,-CODE(CK$3:CK3),CK$3:CK3),CL2) -> 1 | CT3: =$I3*$J3/1000000 -> 0.216 | CU3: =IFERROR(CT3*300,"Ф") -> 64.8 | CV3: =IFERROR(($I3+CU3-CU3)/1000,"Ф") -> 0.3 | CW3: =IFERROR($CV3*$CW$1,"Ф") -> 360 | CX3: ф | CY3: =IFERROR($CU3+CW3,"Ф") -> 424.8
A4: 0 | B4: 0 | C4: =IF(B4<>0,LOOKUP(,-CODE(B$3:B4),B$3:B4),C3) -> 1 | D4: 1(350)-528 | E4: Тумба кухонная однодверный, полка ЛДСП | F4: =IF(E4<>0,LOOKUP(,-CODE(E$3:E4),E$3:E4),F3) -> Тумба кухонная однодверный, полка ЛДСП | H4: 1 | I4: 350 | J4: 720 | K4: 528 | L4: 2733.00785 | M4: 2887.959867 | N4: 3861.560114 | O4: 4397.622439 | P4: 5118.641941 | Q4: 2783.62385 | R4: 2938.575867 | S4: 3912.176114 | T4: 4448.238439 | U4: 5169.257941 | V4: 2658.41585 | W4: 2813.367867 | X4: 3871.774424 | Y4: 4430.172679 | Z4: 5181.23466 | AA4: 3064.405044 | AB4: 3245.182397 | AC4: 4381.049352 | AD4: 5006.455398 | AE4: 5847.644817 | AF4: 3425.179447 | AG4: 3593.044132 | AH4: 4647.777733 | AI4: 5228.511919 | AJ4: 6009.616379 | AK4: 2248.301322 | AL4: 2422.525436 | AM4: 2527.660677 | AN4: 2890.222067 | AO4: 3023.798813 | AP4: 3466.029484 | AQ4: 3107.529407 | AR4: 3590.250424 | AS4: 4156.684157 | AT4: 4420.886303 | AU4: 5137.164318 | AV4: 5682.345749 | AW4: 6211.354623 | AX4: 4481.512213 | AY4: 3979.892128 | AZ4: 5357.028305 | BA4: 4540.841164 | BB4: 3466.029484 | BC4: 3107.529407 | BD4: 3658.34797 | BE4: 4156.684157 | BF4: 4420.886303 | BG4: 5137.164318 | BH4: 5682.345749 | BI4: 6211.354623 | BJ4: 4458.693737 | BK4: 3971.827184 | BL4: 5495.697983 | BM4: 4540.841164 | BN4: 4066.933245 | BO4: 3733.618127 | BP4: 5318.007654 | BQ4: 3466.029484 | BR4: 3655.053844 | BS4: 4814.19723 | BT4: 3967.59046 | BU4: 4233.507313 | BV4: 5165.97911 | BW4: 5601.133209 | BX4: 6362.987329 | BY4: 6989.945974 | BZ4: 7598.306179 | CA4: 6346.403247 | CB4: 7818.244527 | CC4: 8068.268847 | CD4: 9143.845167 | CE4: 3654.577947 | CF4: 3858.259792 | CG4: 2274.048687 | CH4: 3339.49212 | CJ4: =INDIRECT(ADDRESS(2,ROW()+9)) -> Севилья в Al профиле Категория 2 | CK4: 0 | CL4: =IF(CK4<>0,LOOKUP(,-CODE(CK$3:CK4),CK$3:CK4),CL3) -> 1 | CT4: 0.252 | CU4: =IFERROR(CT4*300,"Ф") -> 75.6 | CV4: =IFERROR(($I4+CU4-CU4)/1000,"Ф") -> 0.35 | CW4: 420 | CX4: ф | CY4: =IFERROR($CU4+CW4,"Ф") -> 495.6
A5: 0 | B5: 0 | C5: =IF(B5<>0,LOOKUP(,-CODE(B$3:B5),B$3:B5),C4) -> 1 | D5: 1(400)-528 | E5: Тумба кухонная однодверный, полка ЛДСП | F5: =IF(E5<>0,LOOKUP(,-CODE(E$3:E5),E$3:E5),F4) -> Тумба кухонная однодверный, полка ЛДСП | H5: 1 | I5: 400 | J5: 720 | K5: 528 | L5: 2915.078127 | M5: 3092.357524 | N5: 4206.245991 | O5: 4819.550726 | P5: 5644.463528 | Q5: 2967.974127 | R5: 3145.253524 | S5: 4259.141991 | T5: 4872.446726 | U5: 5697.359528 | V5: 2837.126127 | W5: 3014.405524 | X5: 4224.572621 | Y5: 4863.431721 | Z5: 5722.71589 | AA5: 3273.382006 | AB5: 3480.207969 | AC5: 4779.744514 | AD5: 5495.266705 | AE5: 6457.664974 | AF5: 3644.418066 | AG5: 3836.470746 | AH5: 5043.183252 | AI5: 5707.596716 | AJ5: 6601.252251 | AK5: 2378.888066 | AL5: 2572.600336 | AM5: 2689.495671 | AN5: 3105.590413 | AO5: 3257.365529 | AP5: 3779.053195 | AQ5: 3368.896047 | AR5: 3921.173406 | AS5: 4569.225832 | AT5: 4871.497452 | AU5: 5690.985556 | AV5: 6314.723388 | AW5: 6919.958325 | AX5: 4940.859083 | AY5: 4366.959448 | AZ5: 5942.530233 | BA5: 5008.736875 | BB5: 3779.053195 | BC5: 3368.896047 | BD5: 3999.083279 | BE5: 4569.225832 | BF5: 4871.497452 | BG5: 5690.985556 | BH5: 6314.723388 | BI5: 6919.958325 | BJ5: 4914.752643 | BK5: 4357.732408 | BL5: 6101.181132 | BM5: 5008.736875 | BN5: 4466.542513 | BO5: 4085.199279 | BP5: 3972.8649 | BQ5: 3779.053195 | BR5: 3995.314494 | BS5: 5321.481423 | BT5: 4352.885205 | BU5: 4657.118607 | BV5: 5723.952334 | BW5: 6221.808754 | BX5: 7093.440124 | BY5: 7810.738632 | BZ5: 8506.758809 | CA5: 6866.822853 | CB5: 8484.230853 | CC5: 8758.982853 | CD5: 9940.934853 | CE5: 3951.425503 | CF5: 4184.466395 | CG5: 2384.998853 | CH5: 3482.555312 | CJ5: Севилья в Al профиле Категория 3 | CK5: 0 | CL5: =IF(CK5<>0,LOOKUP(,-CODE(CK$3:CK5),CK$3:CK5),CL4) -> 1 | CT5: 0.288 | CU5: 86.4 | CV5: 0.4 | CW5: 480 | CX5: ф | CY5: 566.4
A6: 0 | B6: 0 | C6: =IF(B6<>0,LOOKUP(,-CODE(B$3:B6),B$3:B6),C5) -> 1 | D6: 1(450)-528 | E6: Тумба кухонная однодверный, полка ЛДСП | F6: =IF(E6<>0,LOOKUP(,-CODE(E$3:E6),E$3:E6),F5) -> Тумба кухонная однодверный, полка ЛДСП | H6: 1 | I6: 450 | J6: 720 | K6: 528 | L6: 3097.148403 | M6: 3296.755181 | N6: 4550.931867 | O6: 5241.479013 | P6: 6170.285115 | Q6: 3152.324403 | R6: 3351.931181 | S6: 4606.107867 | T6: 5296.655013 | U6: 6225.461115 | V6: 3015.836403 | W6: 3215.443181 | X6: 4577.370819 | Y6: 5296.690762 | Z6: 6264.197119 | AA6: 3482.358967 | AB6: 3715.233541 | AC6: 5178.439675 | AD6: 5984.078012 | AE6: 7067.685131 | AF6: 3863.656685 | AG6: 4079.897361 | AH6: 5438.588771 | AI6: 6186.681512 | AJ6: 7192.888123 | AK6: 2509.47481 | AL6: 2722.675236 | AM6: 2851.330665 | AN6: 3320.95876 | AO6: 3490.932245 | AP6: 4092.076906 | AQ6: 3630.262686 | AR6: 4252.096388 | AS6: 4981.767508 | AT6: 5322.108601 | AU6: 6244.806793 | AV6: 6947.101028 | AW6: 7628.562027 | AX6: 5400.205954 | AY6: 4754.026767 | AZ6: 6528.03216 | BA6: 5476.632586 | BB6: 4092.076906 | BC6: 3630.262686 | BD6: 4339.818587 | BE6: 4981.767508 | BF6: 5322.108601 | BG6: 6244.806793 | BH6: 6947.101028 | BI6: 7628.562027 | BJ6: 5370.811549 | BK6: 4743.637632 | BL6: 6706.664281 | BM6: 5476.632586 | BN6: 4866.15178 | BO6: 4436.780432 | BP6: 6195.594145 | BQ6: 4092.076906 | BR6: 4335.575144 | BS6: 5828.765616 | BT6: 4738.17995 | BU6: 5080.729901 | BV6: 6281.925559 | BW6: 6842.484298 | BX6: 7823.892919 | BY6: 8631.53129 | BZ6: 9415.211438 | CA6: 7563.96502 | CB6: 9383.54902 | CC6: 9692.64502 | CD6: 11022.34102 | CE6: 4248.273058 | CF6: 4510.672997 | CG6: 2495.94902 | CH6: 3625.618504 | CJ6: Севилья в Al профиле Категория 4 | CK6: 0 | CL6: =IF(CK6<>0,LOOKUP(,-CODE(CK$3:CK6),CK$3:CK6),CL5) -> 1 | CT6: 0.324 | CU6: 97.2 | CV6: 0.45 | CW6: 540 | CX6: ф | CY6: 637.2
A7: 0 | B7: 0 | C7: =IF(B7<>0,LOOKUP(,-CODE(B$3:B7),B$3:B7),C6) -> 1 | D7: 1(500)-528 | E7: Тумба кухонная однодверный, полка ЛДСП | F7: =IF(E7<>0,LOOKUP(,-CODE(E$3:E7),E$3:E7),F6) -> Тумба кухонная однодверный, полка ЛДСП | H7: 1 | I7: 500 | J7: 720 | K7: 528 | L7: 3279.21868 | M7: 3501.152837 | N7: 4895.617744 | O7: 5663.407299 | P7: 6696.106701 | Q7: 3336.67468 | R7: 3558.608837 | S7: 4953.073744 | T7: 5720.863299 | U7: 6753.562701 | V7: 3194.54668 | W7: 3416.480837 | X7: 4930.169017 | Y7: 5729.949804 | Z7: 6805.678348 | AA7: 3691.335929 | AB7: 3950.259112 | AC7: 5577.134837 | AD7: 6472.889318 | AE7: 7677.705287 | AF7: 4082.895305 | AG7: 4323.323975 | AH7: 5833.994291 | AI7: 6665.766309 | AJ7: 7784.523994 | AK7: 2640.061554 | AL7: 2872.750136 | AM7: 3013.165659 | AN7: 3536.327106 | AO7: 3724.498961 | AP7: 4405.100617 | AQ7: 3891.629325 | AR7: 4583.01937 | AS7: 5394.309183 | AT7: 5772.71975 | AU7: 6798.628031 | AV7: 7579.478668 | AW7: 8337.165729 | AX7: 5859.552825 | AY7: 5141.094087 | AZ7: 7113.534087 | BA7: 5944.528297 | BB7: 4405.100617 | BC7: 3891.629325 | BD7: 4680.553896 | BE7: 5394.309183 | BF7: 5772.71975 | BG7: 6798.628031 | BH7: 7579.478668 | BI7: 8337.165729 | BJ7: 5826.870455 | BK7: 5129.542856 | BL7: 7312.14743 | BM7: 5944.528297 | BN7: 5265.761047 | BO7: 4788.361584 | BP7: 6634.387391 | BQ7: 4405.100617 | BR7: 4675.835795 | BS7: 6336.049809 | BT7: 5123.474695 | BU7: 5504.341196 | BV7: 6839.898784 | BW7: 7463.159843 | BX7: 8554.345715 | BY7: 9452.323947 | BZ7: 10323.66407 | CA7: 8261.107187 | CB7: 10282.86719 | CC7: 10626.30719 | CD7: 12103.74719 | CE7: 4545.120614 | CF7: 4836.879599 | CG7: 2606.899187 | CH7: 3768.681696 | CJ7: Севилья в Al профиле Категория 5 | CK7: 0 | CL7: =IF(CK7<>0,LOOKUP(,-CODE(CK$3:CK7),CK$3:CK7),CL6) -> 1 | CT7: 0.36 | CU7: 108 | CV7: 0.5 | CW7: 600 | CX7: ф | CY7: 708
A8: 0 | B8: 0 | C8: =IF(B8<>0,LOOKUP(,-CODE(B$3:B8),B$3:B8),C7) -> 1 | D8: 1(550)-528 | E8: Тумба кухонная однодверный, полка ЛДСП | F8: =IF(E8<>0,LOOKUP(,-CODE(E$3:E8),E$3:E8),F7) -> Тумба кухонная однодверный, полка ЛДСП | H8: 1 | I8: 550 | J8: 720 | K8: 528 | L8: 3461.288957 | M8: 3705.550494 | N8: 5240.303621 | O8: 6085.335586 | P8: 7221.928288 | Q8: 3521.024957 | R8: 3765.286494 | S8: 5300.039621 | T8: 6145.071586 | U8: 7281.664288 | V8: 3373.256957 | W8: 3617.518494 | X8: 5282.967215 | Y8: 6163.208846 | Z8: 7347.159577 | AA8: 3900.312891 | AB8: 4185.284684 | AC8: 5975.829999 | AD8: 6961.700625 | AE8: 8287.725444 | AF8: 4302.133924 | AG8: 4566.750589 | AH8: 6229.39981 | AI8: 7144.851106 | AJ8: 8376.159866 | AK8: 2770.648299 | AL8: 3022.825036 | AM8: 3175.000653 | AN8: 3751.695452 | AO8: 3958.065677 | AP8: 4718.124328 | AQ8: 4152.995965 | AR8: 4913.942352 | AS8: 5806.850858 | AT8: 6223.330898 | AU8: 7352.449268 | AV8: 8211.856307 | AW8: 9045.769431 | AX8: 6318.899696 | AY8: 5528.161407 | AZ8: 7699.036015 | BA8: 6412.424008 | BB8: 4718.124328 | BC8: 4152.995965 | BD8: 5021.289204 | BE8: 5806.850858 | BF8: 6223.330898 | BG8: 7352.449268 | BH8: 8211.856307 | BI8: 9045.769431 | BJ8: 6282.92936 | BK8: 5515.44808 | BL8: 7917.630578 | BM8: 6412.424008 | BN8: 5665.370315 | BO8: 5139.942736 | BP8: 7073.180636 | BQ8: 4718.124328 | BR8: 5016.096445 | BS8: 6843.334002 | BT8: 5508.76944 | BU8: 5927.95249 | BV8: 7397.872008 | BW8: 8083.835387 | BX8: 9284.79851 | BY8: 10273.1166 | BZ8: 11232.1167 | CA8: 8958.249353 | CB8: 11182.18535 | CC8: 11559.96935 | CD8: 13185.15335 | CE8: 4841.968169 | CF8: 5163.086202 | CG8: 2717.849353 | CH8: 3911.744888 | CJ8: Севилья в ЦВЕТНОМ профиле Категория 1 | CK8: 0 | CL8: =IF(CK8<>0,LOOKUP(,-CODE(CK$3:CK8),CK$3:CK8),CL7) -> 1 | CT8: 0.396 | CU8: 118.8 | CV8: 0.55 | CW8: 660 | CX8: ф | CY8: 778.8
A9: 0 | B9: 0 | C9: =IF(B9<>0,LOOKUP(,-CODE(B$3:B9),B$3:B9),C8) -> 1 | D9: 1(600)-528 | E9: Тумба кухонная однодверный, полка ЛДСП | F9: =IF(E9<>0,LOOKUP(,-CODE(E$3:E9),E$3:E9),F8) -> Тумба кухонная однодверный, полка ЛДСП | H9: 1 | I9: 600 | J9: 720 | K9: 528 | L9: 3643.359233 | M9: 3909.948151 | N9: 5584.989497 | O9: 6507.263873 | P9: 7747.749875 | Q9: 3705.375233 | R9: 3971.964151 | S9: 5647.005497 | T9: 6569.279873 | U9: 7809.765875 | V9: 3551.967233 | W9: 3818.556151 | X9: 5635.765413 | Y9: 6596.467887 | Z9: 7888.640806 | AA9: 4109.289852 | AB9: 4420.310256 | AC9: 6374.52516 | AD9: 7450.511932 | AE9: 8897.745601 | AF9: 4521.372543 | AG9: 4810.177203 | AH9: 6624.805329 | AI9: 7623.935902 | AJ9: 8967.795738 | AK9: 2901.235043 | AL9: 3172.899936 | AM9: 3336.835648 | AN9: 3967.063798 | AO9: 4191.632393 | AP9: 5031.148039 | AQ9: 4414.362604 | AR9: 5244.865334 | AS9: 6219.392534 | AT9: 6673.942047 | AU9: 7906.270506 | AV9: 8844.233947 | AW9: 9754.373133 | AX9: 6778.246566 | AY9: 5915.228726 | AZ9: 8284.537942 | BA9: 6880.319719 | BB9: 5031.148039 | BC9: 4414.362604 | BD9: 5362.024512 | BE9: 6219.392534 | BF9: 6673.942047 | BG9: 7906.270506 | BH9: 8844.233947 | BI9: 9754.373133 | BJ9: 6738.988266 | BK9: 5901.353304 | BL9: 8523.113727 | BM9: 6880.319719 | BN9: 6064.979582 | BO9: 5491.523889 | BP9: 7511.973882 | BQ9: 5031.148039 | BR9: 5356.357095 | BS9: 7350.618195 | BT9: 5894.064185 | BU9: 6351.563784 | BV9: 7955.845233 | BW9: 8704.510932 | BX9: 10015.2513 | BY9: 11093.90926 | BZ9: 12140.56933 | CA9: 9655.39152 | CB9: 12081.50352 | CC9: 12493.63152 | CD9: 14266.55952 | CE9: 5138.815724 | CF9: 5489.292804 | CG9: 2828.79952 | CH9: 4054.80808 | CJ9: Севилья в ЦВЕТНОМl профиле Категория 2 | CK9: 0 | CL9: =IF(CK9<>0,LOOKUP(,-CODE(CK$3:CK9),CK$3:CK9),CL8) -> 1 | CT9: 0.432 | CU9: 129.6 | CV9: 0.6 | CW9: 720 | CX9: ф | CY9: 849.6
A10: 3/2 | B10: 2 | C10: =IF(B10<>0,LOOKUP(,-CODE(B$3:B10),B$3:B10),C9) -> 2 | D10: 2-140(300)-528 | E10: Тумба кухонная однодверный с метабоксом, Н - 140/180 мм, полка ЛДСП | F10: =IF(E10<>0,LOOKUP(,-CODE(E$3:E10),E$3:E10),F9) -> Тумба кухонная однодверный с метабоксом, Н - 140/180 мм, полка ЛДСП | H10: 1 | I10: 300 | J10: 720 | K10: 528 | L10: 3399.352329 | M10: 3531.422052 | N10: 4361.247417 | O10: 4818.147584 | P10: 5432.691668 | Q10: 3462.280329 | R10: 3594.350052 | S10: 4424.175417 | T10: 4881.075584 | U10: 5495.619668 | V10: 3306.616329 | W10: 3438.686052 | X10: 4343.744728 | Y10: 4819.682402 | Z10: 5459.832489 | AA10: 3764.081723 | AB10: 3918.163066 | AC10: 4886.292659 | AD10: 5419.342854 | AE10: 6136.310952 | AF10: 4236.251026 | AG10: 4379.326559 | AH10: 5278.304038 | AI10: 5773.279219 | AJ10: 6439.03531 | AK10: 2917.506972 | AL10: 3091.18246 | AM10: 3195.986633 | AN10: 3499.218918 | AO10: 3617.773023 | AP10: 3924.151558 | AQ10: 3618.592414 | AR10: 4030.028367 | AS10: 4512.814891 | AT10: 4738.001402 | AU10: 5348.50419 | AV10: 5813.176813 | AW10: 6264.065135 | AX10: 4789.674476 | AY10: 4362.130346 | AZ10: 5535.90011 | BA10: 4840.242118 | BB10: 3924.151558 | BC10: 3618.592414 | BD10: 4088.069715 | BE10: 4512.814891 | BF10: 4738.001402 | BG10: 5348.50419 | BH10: 5813.176813 | BI10: 6264.065135 | BJ10: 4770.225682 | BK10: 4355.25638 | BL10: 5654.091962 | BM10: 4840.242118 | BN10: 4436.317804 | BO10: 0 | BP10: 5365.945529 | BQ10: 3924.151558 | BR10: 4085.262043 | BS10: 0 | BT10: 4351.645307 | BU10: 4578.293308 | BV10: 5373.063803 | BW10: 5743.957207 | BX10: 6393.305721 | BY10: 6927.679237 | BZ10: 7446.200808 | CA10: 6423.390767 | CB10: 7692.045167 | CC10: 7907.553767 | CD10: 8834.647367 | CE10: 4148.773007 | CF10: 4320.057428 | CG10: 2940.327967 | CH10: 0 | CJ10: Севилья в ЦВЕТНОМ профиле Категория 3 | CK10: 1 | CL10: =IF(CK10<>0,LOOKUP(,-CODE(CK$3:CK10),CK$3:CK10),CL9) -> 1 | CT10: Ф | CU10: Ф | CV10: Ф | CW10: Ф | CX10: ф | CY10: Ф
B11: 0 | C11: =IF(B11<>0,LOOKUP(,-CODE(B$3:B11),B$3:B11),C10) -> 2 | D11: 2-140(350)-528 | E11: Тумба кухонная однодверный с метабоксом, Н - 140/180 мм, полка ЛДСП | F11: =IF(E11<>0,LOOKUP(,-CODE(E$3:E11),E$3:E11),F10) -> Тумба кухонная однодверный с метабоксом, Н - 140/180 мм, полка ЛДСП | H11: 1 | I11: 350 | J11: 720 | K11: 528 | L11: 3620.600199 | M11: 3774.903882 | N11: 4744.430487 | O11: 5278.249874 | P11: 5996.252558 | Q11: 3688.088199 | R11: 3842.391882 | S11: 4811.918487 | T11: 5345.737874 | U11: 6063.740558 | V11: 3521.144199 | W11: 3675.447882 | X11: 4731.97354 | Y11: 5288.035402 | Z11: 6035.954864 | AA11: 4021.643363 | AB11: 4201.664326 | AC11: 5332.778699 | AD11: 5955.567984 | AE11: 6793.237782 | AF11: 4523.085781 | AG11: 4690.248104 | AH11: 5740.568593 | AI11: 6318.872929 | AJ11: 7096.70917 | AK11: 3078.980844 | AL11: 3274.529819 | AM11: 3392.533511 | AN11: 3748.508062 | AO11: 3885.645159 | AP11: 4264.236739 | AQ11: 3907.236662 | AR11: 4387.937926 | AS11: 4952.001643 | AT11: 5215.098341 | AU11: 5928.379377 | AV11: 6471.279714 | AW11: 6998.075161 | AX11: 5275.470586 | AY11: 4775.94933 | AZ11: 6147.323431 | BA11: 5334.551299 | BB11: 4264.236739 | BC11: 3907.236662 | BD11: 4455.750545 | BE11: 4952.001643 | BF11: 5215.098341 | BG11: 5928.379377 | BH11: 6471.279714 | BI11: 6998.075161 | BJ11: 5252.747585 | BK11: 4767.91813 | BL11: 6285.412901 | BM11: 5334.551299 | BN11: 4862.626258 | BO11: 0 | BP11: 5831.698113 | BQ11: 4264.236739 | BR11: 4452.470201 | BS11: 0 | BT11: 4763.699133 | BU11: 5028.503363 | BV11: 5957.073604 | BW11: 6390.406976 | BX11: 7149.073421 | BY11: 7773.408808 | BZ11: 8379.223573 | CA11: 7177.555817 | CB11: 8657.652617 | CC11: 8909.079317 | CD11: 9990.688517 | CE11: 4482.530391 | CF11: 4682.848551 | CG11: 3079.793217 | CH11: 0 | CJ11: Севилья в ЦВЕТНОМ профиле Категория 4 | CK11: 0 | CL11: =IF(CK11<>0,LOOKUP(,-CODE(CK$3:CK11),CK$3:CK11),CL10) -> 1 | CT11: Ф | CU11: Ф | CV11: =IFERROR(($I11+CU11-CU11)/1000,"Ф") -> Ф | CW11: Ф | CX11: ф | CY11: Ф
B12: 0 | C12: =IF(B12<>0,LOOKUP(,-CODE(B$3:B12),B$3:B12),C11) -> 2 | D12: 2-140(400)-528 | E12: Тумба кухонная однодверный с метабоксом, Н - 140/180 мм, полка ЛДСП | F12: =IF(E12<>0,LOOKUP(,-CODE(E$3:E12),E$3:E12),F11) -> Тумба кухонная однодверный с метабоксом, Н - 140/180 мм, полка ЛДСП | H12: 1 | I12: 400 | J12: 720 | K12: 528 | L12: 3841.848069 | M12: 4018.385712 | N12: 5127.613557 | O12: 5738.352164 | P12: 6559.813448 | Q12: 3913.896069 | R12: 4090.433712 | S12: 5199.661557 | T12: 5810.400164 | U12: 6631.861448 | V12: 3735.672069 | W12: 3912.209712 | X12: 5120.202353 | Y12: 5756.388402 | Z12: 6612.077239 | AA12: 4279.205003 | AB12: 4485.165586 | AC12: 5779.264739 | AD12: 6491.793114 | AE12: 7450.164612 | AF12: 4809.920536 | AG12: 5001.169649 | AH12: 6202.833148 | AI12: 6864.466639 | AJ12: 7754.38303 | AK12: 3240.454717 | AL12: 3457.877179 | AM12: 3589.080388 | AN12: 3997.797205 | AO12: 4153.517295 | AP12: 4604.32192 | AQ12: 4195.88091 | AR12: 4745.847486 | AS12: 5391.188396 | AT12: 5692.19528 | AU12: 6508.254563 | AV12: 7129.382615 | AW12: 7732.085187 | AX12: 5761.266696 | AY12: 5189.768314 | AZ12: 6758.746752 | BA12: 5828.86048 | BB12: 4604.32192 | BC12: 4195.88091 | BD12: 4823.431376 | BE12: 5391.188396 | BF12: 5692.19528 | BG12: 6508.254563 | BH12: 7129.382615 | BI12: 7732.085187 | BJ12: 5735.269487 | BK12: 5180.579881 | BL12: 6916.73384 | BM12: 5828.86048 | BN12: 5288.934713 | BO12: 0 | BP12: 6297.450697 | BQ12: 4604.32192 | BR12: 4819.67836 | BS12: 0 | BT12: 5175.752959 | BU12: 5478.713418 | BV12: 6541.083406 | BW12: 7036.856744 | BX12: 7904.841121 | BY12: 8619.13838 | BZ12: 9312.246338 | CA12: 7769.023907 | CB12: 9408.446627 | CC12: 9686.938307 | CD12: 10884.97799 | CE12: 4816.287774 | CF12: 5045.639674 | CG12: 3219.258467 | CH12: 0 | CJ12: Севилья в ЦВЕТНОМ профиле Категория 5 | CK12: 0 | CL12: =IF(CK12<>0,LOOKUP(,-CODE(CK$3:CK12),CK$3:CK12),CL11) -> 1 | CT12: Ф | CU12: Ф | CV12: Ф | CW12: Ф | CX12: ф | CY12: Ф
B13: 0 | C13: =IF(B13<>0,LOOKUP(,-CODE(B$3:B13),B$3:B13),C12) -> 2 | D13: 2-140(450)-528 | E13: Тумба кухонная однодверный с метабоксом, Н - 140/180 мм, полка ЛДСП | F13: =IF(E13<>0,LOOKUP(,-CODE(E$3:E13),E$3:E13),F12) -> Тумба кухонная однодверный с метабоксом, Н - 140/180 мм, полка ЛДСП | H13: 1 | I13: 450 | J13: 720 | K13: 528 | L13: 4063.095939 | M13: 4261.867542 | N13: 5510.796627 | O13: 6198.454454 | P13: 7123.374338 | Q13: 4139.703939 | R13: 4338.475542 | S13: 5587.404627 | T13: 6275.062454 | U13: 7199.982338 | V13: 3950.199939 | W13: 4148.971542 | X13: 5508.431165 | Y13: 6224.741402 | Z13: 7188.199614 | AA13: 4536.766643 | AB13: 4768.666846 | AC13: 6225.750779 | AD13: 7028.018244 | AE13: 8107.091442 | AF13: 5096.755291 | AG13: 5312.091194 | AH13: 6665.097703 | AI13: 7410.060349 | AJ13: 8412.05689 | AK13: 3401.928589 | AL13: 3641.224538 | AM13: 3785.627266 | AN13: 4247.086349 | AO13: 4421.389431 | AP13: 4944.407101 | AQ13: 4484.525158 | AR13: 5103.757046 | AS13: 5830.375148 | AT13: 6169.29222 | AU13: 7088.12975 | AV13: 7787.485515 | AW13: 8466.095213 | AX13: 6247.062806 | AY13: 5603.587298 | AZ13: 7370.170074 | BA13: 6323.169661 | BB13: 4944.407101 | BC13: 4484.525158 | BD13: 5191.112206 | BE13: 5830.375148 | BF13: 6169.29222 | BG13: 7088.12975 | BH13: 7787.485515 | BI13: 8466.095213 | BJ13: 6217.79139 | BK13: 5593.241632 | BL13: 7548.05478 | BM13: 6323.169661 | BN13: 5715.243168 | BO13: 0 | BP13: 6763.203281 | BQ13: 4944.407101 | BR13: 5186.886518 | BS13: 0 | BT13: 5587.806785 | BU13: 5928.923473 | BV13: 7125.093207 | BW13: 7683.306513 | BX13: 8660.608821 | BY13: 9464.867952 | BZ13: 10245.2691 | CA13: 8502.851837 | CB13: 10347.2024 | CC13: 10660.50554 | CD13: 12008.30018 | CE13: 5150.045158 | CF13: 5408.430796 | CG13: 3358.723717 | CH13: 0 | CJ13: Севилья кант ПВХ Категория 1 | CK13: 0 | CL13: =IF(CK13<>0,LOOKUP(,-CODE(CK$3:CK13),CK$3:CK13),CL12) -> 1 | CT13: Ф | CU13: Ф | CV13: Ф | CW13: Ф | CX13: ф | CY13: Ф
B14: 0 | C14: =IF(B14<>0,LOOKUP(,-CODE(B$3:B14),B$3:B14),C13) -> 2 | D14: 2-140(500)-528 | E14: Тумба кухонная однодверный с метабоксом, Н - 140/180 мм, полка ЛДСП | F14: =IF(E14<>0,LOOKUP(,-CODE(E$3:E14),E$3:E14),F13) -> Тумба кухонная однодверный с метабоксом, Н - 140/180 мм, полка ЛДСП | H14: 1 | I14: 500 | J14: 720 | K14: 528 | L14: 4284.343809 | M14: 4505.349372 | N14: 5893.979697 | O14: 6658.556744 | P14: 7686.935228 | Q14: 4365.511809 | R14: 4586.517372 | S14: 5975.147697 | T14: 6739.724744 | U14: 7768.103228 | V14: 4164.727809 | W14: 4385.733372 | X14: 5896.659978 | Y14: 6693.094402 | Z14: 7764.321989 | AA14: 4794.328283 | AB14: 5052.168106 | AC14: 6672.236819 | AD14: 7564.243374 | AE14: 8764.018272 | AF14: 5383.590046 | AG14: 5623.012739 | AH14: 7127.362258 | AI14: 7955.654059 | AJ14: 9069.73075 | AK14: 3563.402461 | AL14: 3824.571897 | AM14: 3982.174143 | AN14: 4496.375492 | AO14: 4689.261567 | AP14: 5284.492283 | AQ14: 4773.169406 | AR14: 5461.666606 | AS14: 6269.5619 | AT14: 6646.389159 | AU14: 7668.004937 | AV14: 8445.588416 | AW14: 9200.105239 | AX14: 6732.858916 | AY14: 6017.406282 | AZ14: 7981.593395 | BA14: 6817.478843 | BB14: 5284.492283 | BC14: 4773.169406 | BD14: 5558.793037 | BE14: 6269.5619 | BF14: 6646.389159 | BG14: 7668.004937 | BH14: 8445.588416 | BI14: 9200.105239 | BJ14: 6700.313292 | BK14: 6005.903382 | BL14: 8179.375719 | BM14: 6817.478843 | BN14: 6141.551623 | BO14: 0 | BP14: 7228.955865 | BQ14: 5284.492283 | BR14: 5554.094677 | BS14: 0 | BT14: 5999.860611 | BU14: 6379.133528 | BV14: 7709.103009 | BW14: 8329.756281 | BX14: 9416.376522 | BY14: 10310.59752 | BZ14: 11178.29187 | CA14: 9236.679767 | CB14: 11285.95817 | CC14: 11634.07277 | CD14: 13131.62237 | CE14: 5483.802542 | CF14: 5771.221919 | CG14: 3498.188967 | CH14: 0 | CJ14: Севилья кант ПВХ Категория 2 | CK14: 0 | CL14: =IF(CK14<>0,LOOKUP(,-CODE(CK$3:CK14),CK$3:CK14),CL13) -> 1 | CT14: Ф | CU14: Ф | CV14: Ф | CW14: Ф | CX14: ф | CY14: Ф
B15: 0 | C15: =IF(B15<>0,LOOKUP(,-CODE(B$3:B15),B$3:B15),C14) -> 2 | D15: 2-140(550)-528 | E15: Тумба кухонная однодверный с метабоксом, Н - 140/180 мм, полка ЛДСП | F15: =IF(E15<>0,LOOKUP(,-CODE(E$3:E15),E$3:E15),F14) -> Тумба кухонная однодверный с метабоксом, Н - 140/180 мм, полка ЛДСП | H15: 1 | I15: 550 | J15: 720 | K15: 528 | L15: 4505.591679 | M15: 4748.831202 | N15: 6277.162767 | O15: 7118.659034 | P15: 8250.496118 | Q15: 4591.319679 | R15: 4834.559202 | S15: 6362.890767 | T15: 7204.387034 | U15: 8336.224118 | V15: 4379.255679 | W15: 4622.495202 | X15: 6284.88879 | Y15: 7161.447402 | Z15: 8340.444364 | AA15: 5051.889923 | AB15: 5335.669366 | AC15: 7118.722859 | AD15: 8100.468504 | AE15: 9420.945102 | AF15: 5670.424801 | AG15: 5933.934284 | AH15: 7589.626813 | AI15: 8501.247769 | AJ15: 9727.40461 | AK15: 3724.876334 | AL15: 4007.919257 | AM15: 4178.721021 | AN15: 4745.664636 | AO15: 4957.133703 | AP15: 5624.577464 | AQ15: 5061.813654 | AR15: 5819.576165 | AS15: 6708.748653 | AT15: 7123.486098 | AU15: 8247.880123 | AV15: 9103.691317 | AW15: 9934.115265 | AX15: 7218.655026 | AY15: 6431.225266 | AZ15: 8593.016716 | BA15: 7311.788024 | BB15: 5624.577464 | BC15: 5061.813654 | BD15: 5926.473867 | BE15: 6708.748653 | BF15: 7123.486098 | BG15: 8247.880123 | BH15: 9103.691317 | BI15: 9934.115265 | BJ15: 7182.835194 | BK15: 6418.565133 | BL15: 8810.696658 | BM15: 7311.788024 | BN15: 6567.860078 | BO15: 0 | BP15: 7694.708448 | BQ15: 5624.577464 | BR15: 5921.302835 | BS15: 0 | BT15: 6411.914436 | BU15: 6829.343583 | BV15: 8293.11281 | BW15: 8976.20605 | BX15: 10172.14422 | BY15: 11156.32709 | BZ15: 12111.31463 | CA15: 9970.507697 | CB15: 12224.71394 | CC15: 12607.64 | CD15: 14254.94456 | CE15: 5817.559926 | CF15: 6134.013042 | CG15: 3637.654217 | CH15: 0 | CJ15: Севилья кант ПВХ Категория 3 | CK15: 0 | CL15: =IF(CK15<>0,LOOKUP(,-CODE(CK$3:CK15),CK$3:CK15),CL14) -> 1 | CT15: Ф | CU15: Ф | CV15: Ф | CW15: Ф | CX15: ф | CY15: Ф
B16: 0 | C16: =IF(B16<>0,LOOKUP(,-CODE(B$3:B16),B$3:B16),C15) -> 2 | D16: 2-140(600)-528 | E16: Тумба кухонная однодверный с метабоксом, Н - 140/180 мм, полка ЛДСП | F16: =IF(E16<>0,LOOKUP(,-CODE(E$3:E16),E$3:E16),F15) -> Тумба кухонная однодверный с метабоксом, Н - 140/180 мм, полка ЛДСП | H16: 1 | I16: 600 | J16: 720 | K16: 528 | L16: 4726.839549 | M16: 4992.313032 | N16: 6660.345837 | O16: 7578.761324 | P16: 8814.057008 | Q16: 4817.127549 | R16: 5082.601032 | S16: 6750.633837 | T16: 7669.049324 | U16: 8904.345008 | V16: 4593.783549 | W16: 4859.257032 | X16: 6673.117603 | Y16: 7629.800402 | Z16: 8916.566739 | AA16: 5309.451563 | AB16: 5619.170626 | AC16: 7565.208899 | AD16: 8636.693634 | AE16: 10077.87193 | AF16: 5957.259556 | AG16: 6244.855829 | AH16: 8051.891368 | AI16: 9046.841479 | AJ16: 10385.07847 | AK16: 3886.350206 | AL16: 4191.266616 | AM16: 4375.267898 | AN16: 4994.95378 | AO16: 5225.005839 | AP16: 5964.662645 | AQ16: 5350.457902 | AR16: 6177.485725 | AS16: 7147.935405 | AT16: 7600.583038 | AU16: 8827.75531 | AV16: 9761.794218 | AW16: 10668.12529 | AX16: 7704.451136 | AY16: 6845.044249 | AZ16: 9204.440037 | BA16: 7806.097205 | BB16: 5964.662645 | BC16: 5350.457902 | BD16: 6294.154698 | BE16: 7147.935405 | BF16: 7600.583038 | BG16: 8827.75531 | BH16: 9761.794218 | BI16: 10668.12529 | BJ16: 7665.357097 | BK16: 6831.226883 | BL16: 9442.017598 | BM16: 7806.097205 | BN16: 6994.168533 | BO16: 0 | BP16: 8160.461032 | BQ16: 5964.662645 | BR16: 6288.510994 | BS16: 0 | BT16: 6823.968262 | BU16: 7279.553638 | BV16: 8877.122612 | BW16: 9622.655818 | BX16: 10927.91192 | BY16: 12002.05667 | BZ16: 13044.3374 | CA16: 10704.33563 | CB16: 13163.46971 | CC16: 13581.20723 | CD16: 15378.26675 | CE16: 6151.317309 | CF16: 6496.804165 | CG16: 3777.119467 | CH16: 0 | CJ16: Севилья кант ПВХ Категория 4 | CK16: 0 | CL16: =IF(CK16<>0,LOOKUP(,-CODE(CK$3:CK16),CK$3:CK16),CL15) -> 1 | CT16: Ф | CU16: Ф | CV16: Ф | CW16: Ф | CX16: ф | CY16: Ф
A17: 3/1 | B17: 0 | C17: =IF(B17<>0,LOOKUP(,-CODE(B$3:B17),B$3:B17),C16) -> 2 | D17: 2-180(300)-528 | E17: Тумба кухонная однодверный с метабоксом, Н - 140/180 мм, полка ЛДСП | F17: =IF(E17<>0,LOOKUP(,-CODE(E$3:E17),E$3:E17),F16) -> Тумба кухонная однодверный с метабоксом, Н - 140/180 мм, полка ЛДСП | H17: 1 | I17: 300 | J17: 720 | K17: 528 | L17: 3399.352329 | M17: 3531.422052 | N17: 4361.247417 | O17: 4818.147584 | P17: 5432.691668 | Q17: 3462.280329 | R17: 3594.350052 | S17: 4424.175417 | T17: 4881.075584 | U17: 5495.619668 | V17: 3306.616329 | W17: 3438.686052 | X17: 4343.744728 | Y17: 4819.682402 | Z17: 5459.832489 | AA17: 3764.081723 | AB17: 3918.163066 | AC17: 4886.292659 | AD17: 5419.342854 | AE17: 6136.310952 | AF17: 4236.251026 | AG17: 4379.326559 | AH17: 5278.304038 | AI17: 5773.279219 | AJ17: 6439.03531 | AK17: 2917.506972 | AL17: 3091.18246 | AM17: 3195.986633 | AN17: 3499.218918 | AO17: 3617.773023 | AP17: 3924.151558 | AQ17: 3618.592414 | AR17: 4030.028367 | AS17: 4512.814891 | AT17: 4738.001402 | AU17: 5348.50419 | AV17: 5813.176813 | AW17: 6264.065135 | AX17: 4789.674476 | AY17: 4362.130346 | AZ17: 5535.90011 | BA17: 4840.242118 | BB17: 3924.151558 | BC17: 3618.592414 | BD17: 4088.069715 | BE17: 4512.814891 | BF17: 4738.001402 | BG17: 5348.50419 | BH17: 5813.176813 | BI17: 6264.065135 | BJ17: 4770.225682 | BK17: 4355.25638 | BL17: 5654.091962 | BM17: 4840.242118 | BN17: 4436.317804 | BO17: 4152.22447 | BP17: 5933.561529 | BQ17: 3924.151558 | BR17: 4085.262043 | BS17: 5073.230757 | BT17: 4351.645307 | BU17: 4578.293308 | BV17: 5373.063803 | BW17: 5743.957207 | BX17: 6393.305721 | BY17: 6927.679237 | BZ17: 7446.200808 | CA17: 6429.702287 | CB17: 7700.378447 | CC17: 7916.230487 | CD17: 8844.801527 | CE17: 4239.532092 | CF17: 4411.340259 | CG17: 2940.311967 | CH17: 0 | CJ17: Севилья кант ПВХ Категория 5 | CK17: 0 | CL17: =IF(CK17<>0,LOOKUP(,-CODE(CK$3:CK17),CK$3:CK17),CL16) -> 1 | CT17: =$I17*$J17/1000000 -> 0.216 | CU17: 64.8 | CV17: =IFERROR(($I17+CU17-CU17)*2/1000,"Ф") -> 0.6 | CW17: 720 | CX17: ф | CY17: 784.8
B18: 0 | C18: =IF(B18<>0,LOOKUP(,-CODE(B$3:B18),B$3:B18),C17) -> 2 | D18: 2-180(350)-528 | E18: Тумба кухонная однодверный с метабоксом, Н - 140/180 мм, полка ЛДСП | F18: =IF(E18<>0,LOOKUP(,-CODE(E$3:E18),E$3:E18),F17) -> Тумба кухонная однодверный с метабоксом, Н - 140/180 мм, полка ЛДСП | H18: 1 | I18: 350 | J18: 720 | K18: 528 | L18: 3620.600199 | M18: 3774.903882 | N18: 4744.430487 | O18: 5278.249874 | P18: 5996.252558 | Q18: 3688.088199 | R18: 3842.391882 | S18: 4811.918487 | T18: 5345.737874 | U18: 6063.740558 | V18: 3521.144199 | W18: 3675.447882 | X18: 4731.97354 | Y18: 5288.035402 | Z18: 6035.954864 | AA18: 4021.643363 | AB18: 4201.664326 | AC18: 5332.778699 | AD18: 5955.567984 | AE18: 6793.237782 | AF18: 4523.085781 | AG18: 4690.248104 | AH18: 5740.568593 | AI18: 6318.872929 | AJ18: 7096.70917 | AK18: 3078.980844 | AL18: 3274.529819 | AM18: 3392.533511 | AN18: 3748.508062 | AO18: 3885.645159 | AP18: 4264.236739 | AQ18: 3907.236662 | AR18: 4387.937926 | AS18: 4952.001643 | AT18: 5215.098341 | AU18: 5928.379377 | AV18: 6471.279714 | AW18: 6998.075161 | AX18: 5275.470586 | AY18: 4775.94933 | AZ18: 6147.323431 | BA18: 5334.551299 | BB18: 4264.236739 | BC18: 3907.236662 | BD18: 4455.750545 | BE18: 4952.001643 | BF18: 5215.098341 | BG18: 5928.379377 | BH18: 6471.279714 | BI18: 6998.075161 | BJ18: 5252.747585 | BK18: 4767.91813 | BL18: 6285.412901 | BM18: 5334.551299 | BN18: 4862.626258 | BO18: 4530.705764 | BP18: 6500.674113 | BQ18: 4264.236739 | BR18: 4452.470201 | BS18: 5606.763615 | BT18: 4763.699133 | BU18: 5028.503363 | BV18: 5957.073604 | BW18: 6390.406976 | BX18: 7149.073421 | BY18: 7773.408808 | BZ18: 8379.223573 | CA18: 7184.919257 | CB18: 8667.374777 | CC18: 8919.202157 | CD18: 10002.53504 | CE18: 4586.19417 | CF18: 4787.442711 | CG18: 3079.897217 | CH18: 0 | CJ18: Севилья в кромке ABS Категория 1 | CK18: 0 | CL18: =IF(CK18<>0,LOOKUP(,-CODE(CK$3:CK18),CK$3:CK18),CL17) -> 1 | CT18: 0.252 | CU18: 75.6 | CV18: =IFERROR(($I18+CU18-CU18)*2/1000,"Ф") -> 0.7 | CW18: 840 | CX18: ф | CY18: 915.6
B19: 0 | C19: =IF(B19<>0,LOOKUP(,-CODE(B$3:B19),B$3:B19),C18) -> 2 | D19: 2-180(400)-528 | E19: Тумба кухонная однодверный с метабоксом, Н - 140/180 мм, полка ЛДСП | F19: =IF(E19<>0,LOOKUP(,-CODE(E$3:E19),E$3:E19),F18) -> Тумба кухонная однодверный с метабоксом, Н - 140/180 мм, полка ЛДСП | H19: 1 | I19: 400 | J19: 720 | K19: 528 | L19: 3841.848069 | M19: 4018.385712 | N19: 5127.613557 | O19: 5738.352164 | P19: 6559.813448 | Q19: 3913.896069 | R19: 4090.433712 | S19: 5199.661557 | T19: 5810.400164 | U19: 6631.861448 | V19: 3735.672069 | W19: 3912.209712 | X19: 5120.202353 | Y19: 5756.388402 | Z19: 6612.077239 | AA19: 4279.205003 | AB19: 4485.165586 | AC19: 5779.264739 | AD19: 6491.793114 | AE19: 7450.164612 | AF19: 4809.920536 | AG19: 5001.169649 | AH19: 6202.833148 | AI19: 6864.466639 | AJ19: 7754.38303 | AK19: 3240.454717 | AL19: 3457.877179 | AM19: 3589.080388 | AN19: 3997.797205 | AO19: 4153.517295 | AP19: 4604.32192 | AQ19: 4195.88091 | AR19: 4745.847486 | AS19: 5391.188396 | AT19: 5692.19528 | AU19: 6508.254563 | AV19: 7129.382615 | AW19: 7732.085187 | AX19: 5761.266696 | AY19: 5189.768314 | AZ19: 6758.746752 | BA19: 5828.86048 | BB19: 4604.32192 | BC19: 4195.88091 | BD19: 4823.431376 | BE19: 5391.188396 | BF19: 5692.19528 | BG19: 6508.254563 | BH19: 7129.382615 | BI19: 7732.085187 | BJ19: 5735.269487 | BK19: 5180.579881 | BL19: 6916.73384 | BM19: 5828.86048 | BN19: 5288.934713 | BO19: 4909.187058 | BP19: 7067.786697 | BQ19: 4604.32192 | BR19: 4819.67836 | BS19: 6140.296473 | BT19: 5175.752959 | BU19: 5478.713418 | BV19: 6541.083406 | BW19: 7036.856744 | BX19: 7904.841121 | BY19: 8619.13838 | BZ19: 9312.246338 | CA19: 7788.659747 | CB19: 9434.372387 | CC19: 9713.932547 | CD19: 10916.56871 | CE19: 4932.856247 | CF19: 5163.545162 | CG19: 3219.482467 | CH19: 0 | CJ19: Севилья в кромке ABS Категория 2 | CK19: 0 | CL19: =IF(CK19<>0,LOOKUP(,-CODE(CK$3:CK19),CK$3:CK19),CL18) -> 1 | CT19: 0.288 | CU19: 86.4 | CV19: 0.8 | CW19: 960 | CX19: ф | CY19: 1046.4
B20: 0 | C20: =IF(B20<>0,LOOKUP(,-CODE(B$3:B20),B$3:B20),C19) -> 2 | D20: 2-180(450)-528 | E20: Тумба кухонная однодверный с метабоксом, Н - 140/180 мм, полка ЛДСП | F20: =IF(E20<>0,LOOKUP(,-CODE(E$3:E20),E$3:E20),F19) -> Тумба кухонная однодверный с метабоксом, Н - 140/180 мм, полка ЛДСП | H20: 1 | I20: 450 | J20: 720 | K20: 528 | L20: 4063.095939 | M20: 4261.867542 | N20: 5510.796627 | O20: 6198.454454 | P20: 7123.374338 | Q20: 4139.703939 | R20: 4338.475542 | S20: 5587.404627 | T20: 6275.062454 | U20: 7199.982338 | V20: 3950.199939 | W20: 4148.971542 | X20: 5508.431165 | Y20: 6224.741402 | Z20: 7188.199614 | AA20: 4536.766643 | AB20: 4768.666846 | AC20: 6225.750779 | AD20: 7028.018244 | AE20: 8107.091442 | AF20: 5096.755291 | AG20: 5312.091194 | AH20: 6665.097703 | AI20: 7410.060349 | AJ20: 8412.05689 | AK20: 3401.928589 | AL20: 3641.224538 | AM20: 3785.627266 | AN20: 4247.086349 | AO20: 4421.389431 | AP20: 4944.407101 | AQ20: 4484.525158 | AR20: 5103.757046 | AS20: 5830.375148 | AT20: 6169.29222 | AU20: 7088.12975 | AV20: 7787.485515 | AW20: 8466.095213 | AX20: 6247.062806 | AY20: 5603.587298 | AZ20: 7370.170074 | BA20: 6323.169661 | BB20: 4944.407101 | BC20: 4484.525158 | BD20: 5191.112206 | BE20: 5830.375148 | BF20: 6169.29222 | BG20: 7088.12975 | BH20: 7787.485515 | BI20: 8466.095213 | BJ20: 6217.79139 | BK20: 5593.241632 | BL20: 7548.05478 | BM20: 6323.169661 | BN20: 5715.243168 | BO20: 5287.668352 | BP20: 7634.899281 | BQ20: 4944.407101 | BR20: 5186.886518 | BS20: 6673.829331 | BT20: 5587.806785 | BU20: 5928.923473 | BV20: 7125.093207 | BW20: 7683.306513 | BX20: 8660.608821 | BY20: 9464.867952 | BZ20: 10245.2691 | CA20: 8524.942157 | CB20: 10376.36888 | CC20: 10690.87406 | CD20: 12043.83974 | CE20: 5279.518325 | CF20: 5539.647614 | CG20: 3359.067717 | CH20: 0 | CJ20: Севилья в кромке ABS Категория 3 | CK20: 0 | CL20: =IF(CK20<>0,LOOKUP(,-CODE(CK$3:CK20),CK$3:CK20),CL19) -> 1 | CT20: 0.324 | CU20: 97.2 | CV20: 0.9 | CW20: 1080 | CX20: ф | CY20: 1177.2
B21: 0 | C21: =IF(B21<>0,LOOKUP(,-CODE(B$3:B21),B$3:B21),C20) -> 2 | D21: 2-180(500)-528 | E21: Тумба кухонная однодверный с метабоксом, Н - 140/180 мм, полка ЛДСП | F21: =IF(E21<>0,LOOKUP(,-CODE(E$3:E21),E$3:E21),F20) -> Тумба кухонная однодверный с метабоксом, Н - 140/180 мм, полка ЛДСП | H21: 1 | I21: 500 | J21: 720 | K21: 528 | L21: 4284.343809 | M21: 4505.349372 | N21: 5893.979697 | O21: 6658.556744 | P21: 7686.935228 | Q21: 4365.511809 | R21: 4586.517372 | S21: 5975.147697 | T21: 6739.724744 | U21: 7768.103228 | V21: 4164.727809 | W21: 4385.733372 | X21: 5896.659978 | Y21: 6693.094402 | Z21: 7764.321989 | AA21: 4794.328283 | AB21: 5052.168106 | AC21: 6672.236819 | AD21: 7564.243374 | AE21: 8764.018272 | AF21: 5383.590046 | AG21: 5623.012739 | AH21: 7127.362258 | AI21: 7955.654059 | AJ21: 9069.73075 | AK21: 3563.402461 | AL21: 3824.571897 | AM21: 3982.174143 | AN21: 4496.375492 | AO21: 4689.261567 | AP21: 5284.492283 | AQ21: 4773.169406 | AR21: 5461.666606 | AS21: 6269.5619 | AT21: 6646.389159 | AU21: 7668.004937 | AV21: 8445.588416 | AW21: 9200.105239 | AX21: 6732.858916 | AY21: 6017.406282 | AZ21: 7981.593395 | BA21: 6817.478843 | BB21: 5284.492283 | BC21: 4773.169406 | BD21: 5558.793037 | BE21: 6269.5619 | BF21: 6646.389159 | BG21: 7668.004937 | BH21: 8445.588416 | BI21: 9200.105239 | BJ21: 6700.313292 | BK21: 6005.903382 | BL21: 8179.375719 | BM21: 6817.478843 | BN21: 6141.551623 | BO21: 5666.149647 | BP21: 8202.011865 | BQ21: 5284.492283 | BR21: 5554.094677 | BS21: 7207.362189 | BT21: 5999.860611 | BU21: 6379.133528 | BV21: 7709.103009 | BW21: 8329.756281 | BX21: 9416.376522 | BY21: 10310.59752 | BZ21: 11178.29187 | CA21: 9261.224567 | CB21: 11318.36537 | CC21: 11667.81557 | CD21: 13171.11077 | CE21: 5626.180402 | CF21: 5915.750065 | CG21: 3498.652967 | CH21: 0 | CJ21: Севилья в кромке ABS Категория 4 | CK21: 0 | CL21: =IF(CK21<>0,LOOKUP(,-CODE(CK$3:CK21),CK$3:CK21),CL20) -> 1 | CT21: 0.36 | CU21: 108 | CV21: 1 | CW21: 1200 | CX21: ф | CY21: 1308
B22: 0 | C22: =IF(B22<>0,LOOKUP(,-CODE(B$3:B22),B$3:B22),C21) -> 2 | D22: 2-180(550)-528 | E22: Тумба кухонная однодверный с метабоксом, Н - 140/180 мм, полка ЛДСП | F22: =IF(E22<>0,LOOKUP(,-CODE(E$3:E22),E$3:E22),F21) -> Тумба кухонная однодверный с метабоксом, Н - 140/180 мм, полка ЛДСП | H22: 1 | I22: 550 | J22: 720 | K22: 528 | L22: 4505.591679 | M22: 4748.831202 | N22: 6277.162767 | O22: 7118.659034 | P22: 8250.496118 | Q22: 4591.319679 | R22: 4834.559202 | S22: 6362.890767 | T22: 7204.387034 | U22: 8336.224118 | V22: 4379.255679 | W22: 4622.495202 | X22: 6284.88879 | Y22: 7161.447402 | Z22: 8340.444364 | AA22: 5051.889923 | AB22: 5335.669366 | AC22: 7118.722859 | AD22: 8100.468504 | AE22: 9420.945102 | AF22: 5670.424801 | AG22: 5933.934284 | AH22: 7589.626813 | AI22: 8501.247769 | AJ22: 9727.40461 | AK22: 3724.876334 | AL22: 4007.919257 | AM22: 4178.721021 | AN22: 4745.664636 | AO22: 4957.133703 | AP22: 5624.577464 | AQ22: 5061.813654 | AR22: 5819.576165 | AS22: 6708.748653 | AT22: 7123.486098 | AU22: 8247.880123 | AV22: 9103.691317 | AW22: 9934.115265 | AX22: 7218.655026 | AY22: 6431.225266 | AZ22: 8593.016716 | BA22: 7311.788024 | BB22: 5624.577464 | BC22: 5061.813654 | BD22: 5926.473867 | BE22: 6708.748653 | BF22: 7123.486098 | BG22: 8247.880123 | BH22: 9103.691317 | BI22: 9934.115265 | BJ22: 7182.835194 | BK22: 6418.565133 | BL22: 8810.696658 | BM22: 7311.788024 | BN22: 6567.860078 | BO22: 6044.630941 | BP22: 8769.124448 | BQ22: 5624.577464 | BR22: 5921.302835 | BS22: 7740.895047 | BT22: 6411.914436 | BU22: 6829.343583 | BV22: 8293.11281 | BW22: 8976.20605 | BX22: 10172.14422 | BY22: 11156.32709 | BZ22: 12111.31463 | CA22: 9997.506977 | CB22: 12260.36186 | CC22: 12644.75708 | CD22: 14298.3818 | CE22: 5972.84248 | CF22: 6291.852517 | CG22: 3638.238217 | CH22: 0 | CJ22: Севилья в кромке ABS Категория 5 | CK22: 0 | CL22: =IF(CK22<>0,LOOKUP(,-CODE(CK$3:CK22),CK$3:CK22),CL21) -> 1 | CT22: 0.396 | CU22: 118.8 | CV22: 1.1 | CW22: 1320 | CX22: ф | CY22: 1438.8
B23: 0 | C23: =IF(B23<>0,LOOKUP(,-CODE(B$3:B23),B$3:B23),C22) -> 2 | D23: 2-180(600)-528 | E23: Тумба кухонная однодверный с метабоксом, Н - 140/180 мм, полка ЛДСП | F23: =IF(E23<>0,LOOKUP(,-CODE(E$3:E23),E$3:E23),F22) -> Тумба кухонная однодверный с метабоксом, Н - 140/180 мм, полка ЛДСП | H23: 1 | I23: 600 | J23: 720 | K23: 528 | L23: 4726.839549 | M23: 4992.313032 | N23: 6660.345837 | O23: 7578.761324 | P23: 8814.057008 | Q23: 4817.127549 | R23: 5082.601032 | S23: 6750.633837 | T23: 7669.049324 | U23: 8904.345008 | V23: 4593.783549 | W23: 4859.257032 | X23: 6673.117603 | Y23: 7629.800402 | Z23: 8916.566739 | AA23: 5309.451563 | AB23: 5619.170626 | AC23: 7565.208899 | AD23: 8636.693634 | AE23: 10077.87193 | AF23: 5957.259556 | AG23: 6244.855829 | AH23: 8051.891368 | AI23: 9046.841479 | AJ23: 10385.07847 | AK23: 3886.350206 | AL23: 4191.266616 | AM23: 4375.267898 | AN23: 4994.95378 | AO23: 5225.005839 | AP23: 5964.662645 | AQ23: 5350.457902 | AR23: 6177.485725 | AS23: 7147.935405 | AT23: 7600.583038 | AU23: 8827.75531 | AV23: 9761.794218 | AW23: 10668.12529 | AX23: 7704.451136 | AY23: 6845.044249 | AZ23: 9204.440037 | BA23: 7806.097205 | BB23: 5964.662645 | BC23: 5350.457902 | BD23: 6294.154698 | BE23: 7147.935405 | BF23: 7600.583038 | BG23: 8827.75531 | BH23: 9761.794218 | BI23: 10668.12529 | BJ23: 7665.357097 | BK23: 6831.226883 | BL23: 9442.017598 | BM23: 7806.097205 | BN23: 6994.168533 | BO23: 6423.112235 | BP23: 9336.237032 | BQ23: 5964.662645 | BR23: 6288.510994 | BS23: 8274.427904 | BT23: 6823.968262 | BU23: 7279.553638 | BV23: 8877.122612 | BW23: 9622.655818 | BX23: 10927.91192 | BY23: 12002.05667 | BZ23: 13044.3374 | CA23: 10733.78939 | CB23: 13202.35835 | CC23: 13621.69859 | CD23: 15425.65283 | CE23: 6319.504557 | CF23: 6667.954968 | CG23: 3777.823467 | CH23: 0 | CJ23: Севилья в 3D канте Категория 1 | CK23: 0 | CL23: =IF(CK23<>0,LOOKUP(,-CODE(CK$3:CK23),CK$3:CK23),CL22) -> 1 | CT23: 0.432 | CU23: 129.6 | CV23: 1.2 | CW23: 1440 | CX23: ф | CY23: 1569.6
A24: 4/2 | B24: 3 | C24: =IF(B24<>0,LOOKUP(,-CODE(B$3:B24),B$3:B24),C23) -> 3 | D24: 3-140(300)-528 | E24: Тумба кухонная однодверный с леграбоксом, Н - 140/180 мм, полка ЛДСП | F24: =IF(E24<>0,LOOKUP(,-CODE(E$3:E24),E$3:E24),F23) -> Тумба кухонная однодверный с леграбоксом, Н - 140/180 мм, полка ЛДСП | H24: 1 | I24: 300 | J24: 720 | K24: 528 | L24: 5197.802376 | M24: 5329.872099 | N24: 6159.697464 | O24: 6616.597631 | P24: 7231.141715 | Q24: 5260.730376 | R24: 5392.800099 | S24: 6222.625464 | T24: 6679.525631 | U24: 7294.069715 | V24: 5105.066376 | W24: 5237.136099 | X24: 6142.194775 | Y24: 6618.132448 | Z24: 7258.282536 | AA24: 5562.53177 | AB24: 5716.613113 | AC24: 6684.742706 | AD24: 7217.792901 | AE24: 7934.760999 | AF24: 6034.701073 | AG24: 6177.776606 | AH24: 7076.754085 | AI24: 7571.729266 | AJ24: 8237.485357 | AK24: 4715.957019 | AL24: 4889.632506 | AM24: 4994.43668 | AN24: 5297.668965 | AO24: 5416.22307 | AP24: 5722.601605 | AQ24: 5417.042461 | AR24: 5828.478413 | AS24: 6311.264937 | AT24: 6536.451448 | AU24: 7146.954237 | AV24: 7611.62686 | AW24: 8062.515182 | AX24: 6588.124522 | AY24: 6160.580393 | AZ24: 7334.350157 | BA24: 6638.692165 | BB24: 5722.601605 | BC24: 5417.042461 | BD24: 5886.519761 | BE24: 6311.264937 | BF24: 6536.451448 | BG24: 7146.954237 | BH24: 7611.62686 | BI24: 8062.515182 | BJ24: 6568.675729 | BK24: 6153.706427 | BL24: 7452.542008 | BM24: 6638.692165 | BN24: 6234.76785 | BO24: 0 | BP24: 7164.395576 | BQ24: 5722.601605 | BR24: 5883.71209 | BS24: 0 | BT24: 6150.095354 | BU24: 6376.743355 | BV24: 7171.513849 | BW24: 7542.407254 | BX24: 8191.755767 | BY24: 8726.129284 | BZ24: 9244.650854 | CA24: 8221.840813 | CB24: 9490.495213 | CC24: 9706.003813 | CD24: 10633.09741 | CE24: 5947.223053 | CF24: 6118.507475 | CG24: 4738.778013 | CH24: 0 | CJ24: Севилья в 3D канте Категория 2 | CK24: 1 | CL24: =IF(CK24<>0,LOOKUP(,-CODE(CK$3:CK24),CK$3:CK24),CL23) -> 1 | CT24: Ф | CU24: Ф | CV24: Ф | CW24: Ф | CX24: ф | CY24: Ф
B25: 0 | C25: =IF(B25<>0,LOOKUP(,-CODE(B$3:B25),B$3:B25),C24) -> 3 | D25: 3-140(350)-528 | E25: Тумба кухонная однодверный с леграбоксом, Н - 140/180 мм, полка ЛДСП | F25: =IF(E25<>0,LOOKUP(,-CODE(E$3:E25),E$3:E25),F24) -> Тумба кухонная однодверный с леграбоксом, Н - 140/180 мм, полка ЛДСП | H25: 1 | I25: 350 | J25: 720 | K25: 528 | L25: 5418.656496 | M25: 5572.960179 | N25: 6542.486784 | O25: 7076.306171 | P25: 7794.308855 | Q25: 5486.144496 | R25: 5640.448179 | S25: 6609.974784 | T25: 7143.794171 | U25: 7861.796855 | V25: 5319.200496 | W25: 5473.504179 | X25: 6530.029837 | Y25: 7086.091698 | Z25: 7834.011161 | AA25: 5819.69966 | AB25: 5999.720623 | AC25: 7130.834996 | AD25: 7753.624281 | AE25: 8591.294079 | AF25: 6321.142078 | AG25: 6488.304401 | AH25: 7538.62489 | AI25: 8116.929226 | AJ25: 8894.765467 | AK25: 4877.037141 | AL25: 5072.586116 | AM25: 5190.589807 | AN25: 5546.564358 | AO25: 5683.701456 | AP25: 6062.293036 | AQ25: 5705.292959 | AR25: 6185.994223 | AS25: 6750.05794 | AT25: 7013.154638 | AU25: 7726.435674 | AV25: 8269.33601 | AW25: 8796.131458 | AX25: 7073.526882 | AY25: 6574.005627 | AZ25: 7945.379728 | BA25: 7132.607596 | BB25: 6062.293036 | BC25: 5705.292959 | BD25: 6253.806842 | BE25: 6750.05794 | BF25: 7013.154638 | BG25: 7726.435674 | BH25: 8269.33601 | BI25: 8796.131458 | BJ25: 7050.803881 | BK25: 6565.974427 | BL25: 8083.469198 | BM25: 7132.607596 | BN25: 6660.682555 | BO25: 0 | BP25: 7629.75441 | BQ25: 6062.293036 | BR25: 6250.526498 | BS25: 0 | BT25: 6561.75543 | BU25: 6826.55966 | BV25: 7755.129901 | BW25: 8188.463272 | BX25: 8947.129718 | BY25: 9571.465105 | BZ25: 10177.27987 | CA25: 8975.612113 | CB25: 10455.70891 | CC25: 10707.13561 | CD25: 11788.74481 | CE25: 6280.586687 | CF25: 6480.904847 | CG25: 4877.849513 | CH25: 0 | CJ25: Севилья в 3D канте Категория 3 | CK25: 0 | CL25: =IF(CK25<>0,LOOKUP(,-CODE(CK$3:CK25),CK$3:CK25),CL24) -> 1 | CT25: Ф | CU25: Ф | CV25: Ф | CW25: Ф | CX25: ф | CY25: Ф
B26: 0 | C26: =IF(B26<>0,LOOKUP(,-CODE(B$3:B26),B$3:B26),C25) -> 3 | D26: 3-140(400)-528 | E26: Тумба кухонная однодверный с леграбоксом, Н - 140/180 мм, полка ЛДСП | F26: =IF(E26<>0,LOOKUP(,-CODE(E$3:E26),E$3:E26),F25) -> Тумба кухонная однодверный с леграбоксом, Н - 140/180 мм, полка ЛДСП | H26: 1 | I26: 400 | J26: 720 | K26: 528 | L26: 5639.510616 | M26: 5816.048259 | N26: 6925.276104 | O26: 7536.014711 | P26: 8357.475995 | Q26: 5711.558616 | R26: 5888.096259 | S26: 6997.324104 | T26: 7608.062711 | U26: 8429.523995 | V26: 5533.334616 | W26: 5709.872259 | X26: 6917.8649 | Y26: 7554.050948 | Z26: 8409.739786 | AA26: 6076.86755 | AB26: 6282.828133 | AC26: 7576.927286 | AD26: 8289.455661 | AE26: 9247.827159 | AF26: 6607.583083 | AG26: 6798.832196 | AH26: 8000.495695 | AI26: 8662.129186 | AJ26: 9552.045577 | AK26: 5038.117263 | AL26: 5255.539725 | AM26: 5386.742935 | AN26: 5795.459752 | AO26: 5951.179842 | AP26: 6401.984467 | AQ26: 5993.543457 | AR26: 6543.510033 | AS26: 7188.850942 | AT26: 7489.857827 | AU26: 8305.91711 | AV26: 8927.045161 | AW26: 9529.747734 | AX26: 7558.929243 | AY26: 6987.43086 | AZ26: 8556.409299 | BA26: 7626.523027 | BB26: 6401.984467 | BC26: 5993.543457 | BD26: 6621.093922 | BE26: 7188.850942 | BF26: 7489.857827 | BG26: 8305.91711 | BH26: 8927.045161 | BI26: 9529.747734 | BJ26: 7532.932034 | BK26: 6978.242428 | BL26: 8714.396387 | BM26: 7626.523027 | BN26: 7086.59726 | BO26: 0 | BP26: 8095.113244 | BQ26: 6401.984467 | BR26: 6617.340906 | BS26: 0 | BT26: 6973.415506 | BU26: 7276.375965 | BV26: 8338.745953 | BW26: 8834.519291 | BX26: 9702.503668 | BY26: 10416.80093 | BZ26: 11109.90889 | CA26: 9566.686453 | CB26: 11206.10917 | CC26: 11484.60085 | CD26: 12682.64053 | CE26: 6613.950321 | CF26: 6843.30222 | CG26: 5016.921013 | CH26: 0 | CJ26: Севилья в 3D канте Категория 4 | CK26: 0 | CL26: =IF(CK26<>0,LOOKUP(,-CODE(CK$3:CK26),CK$3:CK26),CL25) -> 1 | CT26: Ф | CU26: Ф | CV26: Ф | CW26: Ф | CX26: ф | CY26: Ф
B27: 0 | C27: =IF(B27<>0,LOOKUP(,-CODE(B$3:B27),B$3:B27),C26) -> 3 | D27: 3-140(450)-528 | E27: Тумба кухонная однодверный с леграбоксом, Н - 140/180 мм, полка ЛДСП | F27: =IF(E27<>0,LOOKUP(,-CODE(E$3:E27),E$3:E27),F26) -> Тумба кухонная однодверный с леграбоксом, Н - 140/180 мм, полка ЛДСП | H27: 1 | I27: 450 | J27: 720 | K27: 528 | L27: 5860.364736 | M27: 6059.136339 | N27: 7308.065424 | O27: 7995.723251 | P27: 8920.643135 | Q27: 5936.972736 | R27: 6135.744339 | S27: 7384.673424 | T27: 8072.331251 | U27: 8997.251135 | V27: 5747.468736 | W27: 5946.240339 | X27: 7305.699962 | Y27: 8022.010198 | Z27: 8985.468411 | AA27: 6334.03544 | AB27: 6565.935643 | AC27: 8023.019576 | AD27: 8825.287041 | AE27: 9904.360239 | AF27: 6894.024088 | AG27: 7109.359991 | AH27: 8462.3665 | AI27: 9207.329146 | AJ27: 10209.32569 | AK27: 5199.197386 | AL27: 5438.493335 | AM27: 5582.896062 | AN27: 6044.355145 | AO27: 6218.658228 | AP27: 6741.675898 | AQ27: 6281.793955 | AR27: 6901.025842 | AS27: 7627.643945 | AT27: 7966.561016 | AU27: 8885.398547 | AV27: 9584.754312 | AW27: 10263.36401 | AX27: 8044.331603 | AY27: 7400.856094 | AZ27: 9167.43887 | BA27: 8120.438458 | BB27: 6741.675898 | BC27: 6281.793955 | BD27: 6988.381003 | BE27: 7627.643945 | BF27: 7966.561016 | BG27: 8885.398547 | BH27: 9584.754312 | BI27: 10263.36401 | BJ27: 8015.060186 | BK27: 7390.510428 | BL27: 9345.323576 | BM27: 8120.438458 | BN27: 7512.511965 | BO27: 0 | BP27: 8560.472078 | BQ27: 6741.675898 | BR27: 6984.155315 | BS27: 0 | BT27: 7385.075581 | BU27: 7726.19227 | BV27: 8922.362004 | BW27: 9480.575309 | BX27: 10457.87762 | BY27: 11262.13675 | BZ27: 12042.5379 | CA27: 10300.12063 | CB27: 12144.47119 | CC27: 12457.77433 | CD27: 13805.56897 | CE27: 6947.313955 | CF27: 7205.699593 | CG27: 5155.992513 | CH27: 0 | CJ27: Севилья в 3D канте Категория 5 | CK27: 0 | CL27: =IF(CK27<>0,LOOKUP(,-CODE(CK$3:CK27),CK$3:CK27),CL26) -> 1 | CT27: Ф | CU27: Ф | CV27: Ф | CW27: Ф | CX27: ф | CY27: Ф
B28: 0 | C28: =IF(B28<>0,LOOKUP(,-CODE(B$3:B28),B$3:B28),C27) -> 3 | D28: 3-140(500)-528 | E28: Тумба кухонная однодверный с леграбоксом, Н - 140/180 мм, полка ЛДСП | F28: =IF(E28<>0,LOOKUP(,-CODE(E$3:E28),E$3:E28),F27) -> Тумба кухонная однодверный с леграбоксом, Н - 140/180 мм, полка ЛДСП | H28: 1 | I28: 500 | J28: 720 | K28: 528 | L28: 6081.218856 | M28: 6302.224419 | N28: 7690.854744 | O28: 8455.431791 | P28: 9483.810275 | Q28: 6162.386856 | R28: 6383.392419 | S28: 7772.022744 | T28: 8536.599791 | U28: 9564.978275 | V28: 5961.602856 | W28: 6182.608419 | X28: 7693.535025 | Y28: 8489.969448 | Z28: 9561.197036 | AA28: 6591.20333 | AB28: 6849.043153 | AC28: 8469.111866 | AD28: 9361.118421 | AE28: 10560.89332 | AF28: 7180.465093 | AG28: 7419.887786 | AH28: 8924.237305 | AI28: 9752.529106 | AJ28: 10866.6058 | AK28: 5360.277508 | AL28: 5621.446944 | AM28: 5779.04919 | AN28: 6293.250539 | AO28: 6486.136614 | AP28: 7081.367329 | AQ28: 6570.044453 | AR28: 7258.541652 | AS28: 8066.436947 | AT28: 8443.264206 | AU28: 9464.879983 | AV28: 10242.46346 | AW28: 10996.98029 | AX28: 8529.733963 | AY28: 7814.281328 | AZ28: 9778.468442 | BA28: 8614.353889 | BB28: 7081.367329 | BC28: 6570.044453 | BD28: 7355.668083 | BE28: 8066.436947 | BF28: 8443.264206 | BG28: 9464.879983 | BH28: 10242.46346 | BI28: 10996.98029 | BJ28: 8497.188339 | BK28: 7802.778429 | BL28: 9976.250766 | BM28: 8614.353889 | BN28: 7938.42667 | BO28: 0 | BP28: 9025.830911 | BQ28: 7081.367329 | BR28: 7350.969723 | BS28: 0 | BT28: 7796.735657 | BU28: 8176.008575 | BV28: 9505.978056 | BW28: 10126.63133 | BX28: 11213.25157 | BY28: 12107.47257 | BZ28: 12975.16692 | CA28: 11033.55481 | CB28: 13082.83321 | CC28: 13430.94781 | CD28: 14928.49741 | CE28: 7280.677588 | CF28: 7568.096966 | CG28: 5295.064013 | CH28: 0 | CJ28: Помпея Категория 1 | CK28: 0 | CL28: =IF(CK28<>0,LOOKUP(,-CODE(CK$3:CK28),CK$3:CK28),CL27) -> 1 | CT28: Ф | CU28: Ф | CV28: Ф | CW28: Ф | CX28: ф | CY28: Ф
B29: 0 | C29: =IF(B29<>0,LOOKUP(,-CODE(B$3:B29),B$3:B29),C28) -> 3 | D29: 3-140(550)-528 | E29: Тумба кухонная однодверный с леграбоксом, Н - 140/180 мм, полка ЛДСП | F29: =IF(E29<>0,LOOKUP(,-CODE(E$3:E29),E$3:E29),F28) -> Тумба кухонная однодверный с леграбоксом, Н - 140/180 мм, полка ЛДСП | H29: 1 | I29: 550 | J29: 720 | K29: 528 | L29: 6302.072976 | M29: 6545.312499 | N29: 8073.644064 | O29: 8915.140331 | P29: 10046.97741 | Q29: 6387.800976 | R29: 6631.040499 | S29: 8159.372064 | T29: 9000.868331 | U29: 10132.70541 | V29: 6175.736976 | W29: 6418.976499 | X29: 8081.370087 | Y29: 8957.928698 | Z29: 10136.92566 | AA29: 6848.37122 | AB29: 7132.150663 | AC29: 8915.204156 | AD29: 9896.949801 | AE29: 11217.4264 | AF29: 7466.906098 | AG29: 7730.415581 | AH29: 9386.10811 | AI29: 10297.72907 | AJ29: 11523.88591 | AK29: 5521.35763 | AL29: 5804.400553 | AM29: 5975.202317 | AN29: 6542.145933 | AO29: 6753.615 | AP29: 7421.058761 | AQ29: 6858.294951 | AR29: 7616.057462 | AS29: 8505.229949 | AT29: 8919.967395 | AU29: 10044.36142 | AV29: 10900.17261 | AW29: 11730.59656 | AX29: 9015.136323 | AY29: 8227.706562 | AZ29: 10389.49801 | BA29: 9108.269321 | BB29: 7421.058761 | BC29: 6858.294951 | BD29: 7722.955164 | BE29: 8505.229949 | BF29: 8919.967395 | BG29: 10044.36142 | BH29: 10900.17261 | BI29: 11730.59656 | BJ29: 8979.316491 | BK29: 8215.046429 | BL29: 10607.17796 | BM29: 9108.269321 | BN29: 8364.341375 | BO29: 0 | BP29: 9491.189745 | BQ29: 7421.058761 | BR29: 7717.784132 | BS29: 0 | BT29: 8208.395733 | BU29: 8625.824879 | BV29: 10089.59411 | BW29: 10772.68735 | BX29: 11968.62552 | BY29: 12952.80839 | BZ29: 13907.79593 | CA29: 11766.98899 | CB29: 14021.19523 | CC29: 14404.12129 | CD29: 16051.42585 | CE29: 7614.041222 | CF29: 7930.494338 | CG29: 5434.135513 | CH29: 0 | CJ29: Помпея Категория 2 | CK29: 0 | CL29: =IF(CK29<>0,LOOKUP(,-CODE(CK$3:CK29),CK$3:CK29),CL28) -> 1 | CT29: Ф | CU29: Ф | CV29: Ф | CW29: Ф | CX29: ф | CY29: Ф
B30: 0 | C30: =IF(B30<>0,LOOKUP(,-CODE(B$3:B30),B$3:B30),C29) -> 3 | D30: 3-140(600)-528 | E30: Тумба кухонная однодверный с леграбоксом, Н - 140/180 мм, полка ЛДСП | F30: =IF(E30<>0,LOOKUP(,-CODE(E$3:E30),E$3:E30),F29) -> Тумба кухонная однодверный с леграбоксом, Н - 140/180 мм, полка ЛДСП | H30: 1 | I30: 600 | J30: 720 | K30: 528 | L30: 6522.927096 | M30: 6788.400579 | N30: 8456.433384 | O30: 9374.848871 | P30: 10610.14455 | Q30: 6613.215096 | R30: 6878.688579 | S30: 8546.721384 | T30: 9465.136871 | U30: 10700.43255 | V30: 6389.871096 | W30: 6655.344579 | X30: 8469.20515 | Y30: 9425.887948 | Z30: 10712.65429 | AA30: 7105.53911 | AB30: 7415.258173 | AC30: 9361.296446 | AD30: 10432.78118 | AE30: 11873.95948 | AF30: 7753.347103 | AG30: 8040.943376 | AH30: 9847.978915 | AI30: 10842.92903 | AJ30: 12181.16602 | AK30: 5682.437753 | AL30: 5987.354163 | AM30: 6171.355445 | AN30: 6791.041326 | AO30: 7021.093386 | AP30: 7760.750192 | AQ30: 7146.545449 | AR30: 7973.573272 | AS30: 8944.022952 | AT30: 9396.670584 | AU30: 10623.84286 | AV30: 11557.88176 | AW30: 12464.21284 | AX30: 9500.538683 | AY30: 8641.131796 | AZ30: 11000.52758 | BA30: 9602.184752 | BB30: 7760.750192 | BC30: 7146.545449 | BD30: 8090.242244 | BE30: 8944.022952 | BF30: 9396.670584 | BG30: 10623.84286 | BH30: 11557.88176 | BI30: 12464.21284 | BJ30: 9461.444644 | BK30: 8627.31443 | BL30: 11238.10514 | BM30: 9602.184752 | BN30: 8790.256079 | BO30: 0 | BP30: 9956.548579 | BQ30: 7760.750192 | BR30: 8084.59854 | BS30: 0 | BT30: 8620.055809 | BU30: 9075.641184 | BV30: 10673.21016 | BW30: 11418.74337 | BX30: 12723.99947 | BY30: 13798.14421 | BZ30: 14840.42495 | CA30: 12500.42317 | CB30: 14959.55725 | CC30: 15377.29477 | CD30: 17174.35429 | CE30: 7947.404856 | CF30: 8292.891711 | CG30: 5573.207013 | CH30: 0 | CJ30: Помпея Категория 3 | CK30: 0 | CL30: =IF(CK30<>0,LOOKUP(,-CODE(CK$3:CK30),CK$3:CK30),CL29) -> 1 | CT30: Ф | CU30: Ф | CV30: Ф | CW30: Ф | CX30: ф | CY30: Ф
A31: 4/1 | B31: 0 | C31: =IF(B31<>0,LOOKUP(,-CODE(B$3:B31),B$3:B31),C30) -> 3 | D31: 3-180(300)-528 | E31: Тумба кухонная однодверный с леграбоксом, Н - 140/180 мм, полка ЛДСП | F31: =IF(E31<>0,LOOKUP(,-CODE(E$3:E31),E$3:E31),F30) -> Тумба кухонная однодверный с леграбоксом, Н - 140/180 мм, полка ЛДСП | H31: 1 | I31: 300 | J31: 720 | K31: 528 | L31: 5197.802376 | M31: 5329.872099 | N31: 6159.697464 | O31: 6616.597631 | P31: 7231.141715 | Q31: 5260.730376 | R31: 5392.800099 | S31: 6222.625464 | T31: 6679.525631 | U31: 7294.069715 | V31: 5105.066376 | W31: 5237.136099 | X31: 6142.194775 | Y31: 6618.132448 | Z31: 7258.282536 | AA31: 5562.53177 | AB31: 5716.613113 | AC31: 6684.742706 | AD31: 7217.792901 | AE31: 7934.760999 | AF31: 6034.701073 | AG31: 6177.776606 | AH31: 7076.754085 | AI31: 7571.729266 | AJ31: 8237.485357 | AK31: 4715.957019 | AL31: 4889.632506 | AM31: 4994.43668 | AN31: 5297.668965 | AO31: 5416.22307 | AP31: 5722.601605 | AQ31: 5417.042461 | AR31: 5828.478413 | AS31: 6311.264937 | AT31: 6536.451448 | AU31: 7146.954237 | AV31: 7611.62686 | AW31: 8062.515182 | AX31: 6588.124522 | AY31: 6160.580393 | AZ31: 7334.350157 | BA31: 6638.692165 | BB31: 5722.601605 | BC31: 5417.042461 | BD31: 5886.519761 | BE31: 6311.264937 | BF31: 6536.451448 | BG31: 7146.954237 | BH31: 7611.62686 | BI31: 8062.515182 | BJ31: 6568.675729 | BK31: 6153.706427 | BL31: 7452.542008 | BM31: 6638.692165 | BN31: 6234.76785 | BO31: 5950.674516 | BP31: 7732.011576 | BQ31: 5722.601605 | BR31: 5883.71209 | BS31: 6871.680804 | BT31: 6150.095354 | BU31: 6376.743355 | BV31: 7171.513849 | BW31: 7542.407254 | BX31: 8191.755767 | BY31: 8726.129284 | BZ31: 9244.650854 | CA31: 8228.152333 | CB31: 9498.828493 | CC31: 9714.680533 | CD31: 10643.25157 | CE31: 6037.982139 | CF31: 6209.790306 | CG31: 4738.762013 | CH31: 0 | CJ31: Помпея Категория 4 ПАТИНА | CK31: 0 | CL31: =IF(CK31<>0,LOOKUP(,-CODE(CK$3:CK31),CK$3:CK31),CL30) -> 1 | CT31: =$I31*$J31/1000000 -> 0.216 | CU31: 64.8 | CV31: 0.6 | CW31: 720 | CX31: ф | CY31: 784.8
B32: 0 | C32: =IF(B32<>0,LOOKUP(,-CODE(B$3:B32),B$3:B32),C31) -> 3 | D32: 3-180(350)-528 | E32: Тумба кухонная однодверный с леграбоксом, Н - 140/180 мм, полка ЛДСП | F32: =IF(E32<>0,LOOKUP(,-CODE(E$3:E32),E$3:E32),F31) -> Тумба кухонная однодверный с леграбоксом, Н - 140/180 мм, полка ЛДСП | H32: 1 | I32: 350 | J32: 720 | K32: 528 | L32: 5418.656496 | M32: 5572.960179 | N32: 6542.486784 | O32: 7076.306171 | P32: 7794.308855 | Q32: 5486.144496 | R32: 5640.448179 | S32: 6609.974784 | T32: 7143.794171 | U32: 7861.796855 | V32: 5319.200496 | W32: 5473.504179 | X32: 6530.029837 | Y32: 7086.091698 | Z32: 7834.011161 | AA32: 5819.69966 | AB32: 5999.720623 | AC32: 7130.834996 | AD32: 7753.624281 | AE32: 8591.294079 | AF32: 6321.142078 | AG32: 6488.304401 | AH32: 7538.62489 | AI32: 8116.929226 | AJ32: 8894.765467 | AK32: 4877.037141 | AL32: 5072.586116 | AM32: 5190.589807 | AN32: 5546.564358 | AO32: 5683.701456 | AP32: 6062.293036 | AQ32: 5705.292959 | AR32: 6185.994223 | AS32: 6750.05794 | AT32: 7013.154638 | AU32: 7726.435674 | AV32: 8269.33601 | AW32: 8796.131458 | AX32: 7073.526882 | AY32: 6574.005627 | AZ32: 7945.379728 | BA32: 7132.607596 | BB32: 6062.293036 | BC32: 5705.292959 | BD32: 6253.806842 | BE32: 6750.05794 | BF32: 7013.154638 | BG32: 7726.435674 | BH32: 8269.33601 | BI32: 8796.131458 | BJ32: 7050.803881 | BK32: 6565.974427 | BL32: 8083.469198 | BM32: 7132.607596 | BN32: 6660.682555 | BO32: 6328.762061 | BP32: 8298.73041 | BQ32: 6062.293036 | BR32: 6250.526498 | BS32: 7404.819912 | BT32: 6561.75543 | BU32: 6826.55966 | BV32: 7755.129901 | BW32: 8188.463272 | BX32: 8947.129718 | BY32: 9571.465105 | BZ32: 10177.27987 | CA32: 8982.975553 | CB32: 10465.43107 | CC32: 10717.25845 | CD32: 11800.59133 | CE32: 6384.250467 | CF32: 6585.499008 | CG32: 4877.953513 | CH32: 0 | CJ32: Помпея Категория 6 Асти 19 мм | CK32: 0 | CL32: =IF(CK32<>0,LOOKUP(,-CODE(CK$3:CK32),CK$3:CK32),CL31) -> 1 | CT32: 0.252 | CU32: 75.6 | CV32: 0.7 | CW32: 840 | CX32: ф | CY32: 915.6
B33: 0 | C33: =IF(B33<>0,LOOKUP(,-CODE(B$3:B33),B$3:B33),C32) -> 3 | D33: 3-180(400)-528 | E33: Тумба кухонная однодверный с леграбоксом, Н - 140/180 мм, полка ЛДСП | F33: =IF(E33<>0,LOOKUP(,-CODE(E$3:E33),E$3:E33),F32) -> Тумба кухонная однодверный с леграбоксом, Н - 140/180 мм, полка ЛДСП | H33: 1 | I33: 400 | J33: 720 | K33: 528 | L33: 5639.510616 | M33: 5816.048259 | N33: 6925.276104 | O33: 7536.014711 | P33: 8357.475995 | Q33: 5711.558616 | R33: 5888.096259 | S33: 6997.324104 | T33: 7608.062711 | U33: 8429.523995 | V33: 5533.334616 | W33: 5709.872259 | X33: 6917.8649 | Y33: 7554.050948 | Z33: 8409.739786 | AA33: 6076.86755 | AB33: 6282.828133 | AC33: 7576.927286 | AD33: 8289.455661 | AE33: 9247.827159 | AF33: 6607.583083 | AG33: 6798.832196 | AH33: 8000.495695 | AI33: 8662.129186 | AJ33: 9552.045577 | AK33: 5038.117263 | AL33: 5255.539725 | AM33: 5386.742935 | AN33: 5795.459752 | AO33: 5951.179842 | AP33: 6401.984467 | AQ33: 5993.543457 | AR33: 6543.510033 | AS33: 7188.850942 | AT33: 7489.857827 | AU33: 8305.91711 | AV33: 8927.045161 | AW33: 9529.747734 | AX33: 7558.929243 | AY33: 6987.43086 | AZ33: 8556.409299 | BA33: 7626.523027 | BB33: 6401.984467 | BC33: 5993.543457 | BD33: 6621.093922 | BE33: 7188.850942 | BF33: 7489.857827 | BG33: 8305.91711 | BH33: 8927.045161 | BI33: 9529.747734 | BJ33: 7532.932034 | BK33: 6978.242428 | BL33: 8714.396387 | BM33: 7626.523027 | BN33: 7086.59726 | BO33: 6706.849605 | BP33: 8865.449244 | BQ33: 6401.984467 | BR33: 6617.340906 | BS33: 7937.95902 | BT33: 6973.415506 | BU33: 7276.375965 | BV33: 8338.745953 | BW33: 8834.519291 | BX33: 9702.503668 | BY33: 10416.80093 | BZ33: 11109.90889 | CA33: 9586.322293 | CB33: 11232.03493 | CC33: 11511.59509 | CD33: 12714.23125 | CE33: 6730.518794 | CF33: 6961.207709 | CG33: 5017.145013 | CH33: 0 | CJ33: Аликанте Высокий глянец 16 мм | CK33: 0 | CL33: =IF(CK33<>0,LOOKUP(,-CODE(CK$3:CK33),CK$3:CK33),CL32) -> 1 | CT33: 0.288 | CU33: 86.4 | CV33: 0.8 | CW33: 960 | CX33: ф | CY33: 1046.4
B34: 0 | C34: =IF(B34<>0,LOOKUP(,-CODE(B$3:B34),B$3:B34),C33) -> 3 | D34: 3-180(450)-528 | E34: Тумба кухонная однодверный с леграбоксом, Н - 140/180 мм, полка ЛДСП | F34: =IF(E34<>0,LOOKUP(,-CODE(E$3:E34),E$3:E34),F33) -> Тумба кухонная однодверный с леграбоксом, Н - 140/180 мм, полка ЛДСП | H34: 1 | I34: 450 | J34: 720 | K34: 528 | L34: 5860.364736 | M34: 6059.136339 | N34: 7308.065424 | O34: 7995.723251 | P34: 8920.643135 | Q34: 5936.972736 | R34: 6135.744339 | S34: 7384.673424 | T34: 8072.331251 | U34: 8997.251135 | V34: 5747.468736 | W34: 5946.240339 | X34: 7305.699962 | Y34: 8022.010198 | Z34: 8985.468411 | AA34: 6334.03544 | AB34: 6565.935643 | AC34: 8023.019576 | AD34: 8825.287041 | AE34: 9904.360239 | AF34: 6894.024088 | AG34: 7109.359991 | AH34: 8462.3665 | AI34: 9207.329146 | AJ34: 10209.32569 | AK34: 5199.197386 | AL34: 5438.493335 | AM34: 5582.896062 | AN34: 6044.355145 | AO34: 6218.658228 | AP34: 6741.675898 | AQ34: 6281.793955 | AR34: 6901.025842 | AS34: 7627.643945 | AT34: 7966.561016 | AU34: 8885.398547 | AV34: 9584.754312 | AW34: 10263.36401 | AX34: 8044.331603 | AY34: 7400.856094 | AZ34: 9167.43887 | BA34: 8120.438458 | BB34: 6741.675898 | BC34: 6281.793955 | BD34: 6988.381003 | BE34: 7627.643945 | BF34: 7966.561016 | BG34: 8885.398547 | BH34: 9584.754312 | BI34: 10263.36401 | BJ34: 8015.060186 | BK34: 7390.510428 | BL34: 9345.323576 | BM34: 8120.438458 | BN34: 7512.511965 | BO34: 7084.937149 | BP34: 9432.168078 | BQ34: 6741.675898 | BR34: 6984.155315 | BS34: 8471.098128 | BT34: 7385.075581 | BU34: 7726.19227 | BV34: 8922.362004 | BW34: 9480.575309 | BX34: 10457.87762 | BY34: 11262.13675 | BZ34: 12042.5379 | CA34: 10322.21095 | CB34: 12173.63767 | CC34: 12488.14285 | CD34: 13841.10853 | CE34: 7076.787122 | CF34: 7336.916411 | CG34: 5156.336513 | CH34: 0 | CJ34: Аликанте Матовая 16 мм | CK34: 0 | CL34: =IF(CK34<>0,LOOKUP(,-CODE(CK$3:CK34),CK$3:CK34),CL33) -> 1 | CT34: 0.324 | CU34: 97.2 | CV34: 0.9 | CW34: 1080 | CX34: ф | CY34: 1177.2
B35: 0 | C35: =IF(B35<>0,LOOKUP(,-CODE(B$3:B35),B$3:B35),C34) -> 3 | D35: 3-180(500)-528 | E35: Тумба кухонная однодверный с леграбоксом, Н - 140/180 мм, полка ЛДСП | F35: =IF(E35<>0,LOOKUP(,-CODE(E$3:E35),E$3:E35),F34) -> Тумба кухонная однодверный с леграбоксом, Н - 140/180 мм, полка ЛДСП | H35: 1 | I35: 500 | J35: 720 | K35: 528 | L35: 6081.218856 | M35: 6302.224419 | N35: 7690.854744 | O35: 8455.431791 | P35: 9483.810275 | Q35: 6162.386856 | R35: 6383.392419 | S35: 7772.022744 | T35: 8536.599791 | U35: 9564.978275 | V35: 5961.602856 | W35: 6182.608419 | X35: 7693.535025 | Y35: 8489.969448 | Z35: 9561.197036 | AA35: 6591.20333 | AB35: 6849.043153 | AC35: 8469.111866 | AD35: 9361.118421 | AE35: 10560.89332 | AF35: 7180.465093 | AG35: 7419.887786 | AH35: 8924.237305 | AI35: 9752.529106 | AJ35: 10866.6058 | AK35: 5360.277508 | AL35: 5621.446944 | AM35: 5779.04919 | AN35: 6293.250539 | AO35: 6486.136614 | AP35: 7081.367329 | AQ35: 6570.044453 | AR35: 7258.541652 | AS35: 8066.436947 | AT35: 8443.264206 | AU35: 9464.879983 | AV35: 10242.46346 | AW35: 10996.98029 | AX35: 8529.733963 | AY35: 7814.281328 | AZ35: 9778.468442 | BA35: 8614.353889 | BB35: 7081.367329 | BC35: 6570.044453 | BD35: 7355.668083 | BE35: 8066.436947 | BF35: 8443.264206 | BG35: 9464.879983 | BH35: 10242.46346 | BI35: 10996.98029 | BJ35: 8497.188339 | BK35: 7802.778429 | BL35: 9976.250766 | BM35: 8614.353889 | BN35: 7938.42667 | BO35: 7463.024693 | BP35: 9998.886911 | BQ35: 7081.367329 | BR35: 7350.969723 | BS35: 9004.237235 | BT35: 7796.735657 | BU35: 8176.008575 | BV35: 9505.978056 | BW35: 10126.63133 | BX35: 11213.25157 | BY35: 12107.47257 | BZ35: 12975.16692 | CA35: 11058.09961 | CB35: 13115.24041 | CC35: 13464.69061 | CD35: 14967.98581 | CE35: 7423.055449 | CF35: 7712.625112 | CG35: 5295.528013 | CH35: 0 | CJ35: Аликанте ЖЕМЧУГ, ПЕРЛАМУТР 16 мм | CK35: 0 | CL35: =IF(CK35<>0,LOOKUP(,-CODE(CK$3:CK35),CK$3:CK35),CL34) -> 1 | CT35: 0.36 | CU35: 108 | CV35: 1 | CW35: 1200 | CX35: ф | CY35: 1308
B36: 0 | C36: =IF(B36<>0,LOOKUP(,-CODE(B$3:B36),B$3:B36),C35) -> 3 | D36: 3-180(550)-528 | E36: Тумба кухонная однодверный с леграбоксом, Н - 140/180 мм, полка ЛДСП | F36: =IF(E36<>0,LOOKUP(,-CODE(E$3:E36),E$3:E36),F35) -> Тумба кухонная однодверный с леграбоксом, Н - 140/180 мм, полка ЛДСП | H36: 1 | I36: 550 | J36: 720 | K36: 528 | L36: 6302.072976 | M36: 6545.312499 | N36: 8073.644064 | O36: 8915.140331 | P36: 10046.97741 | Q36: 6387.800976 | R36: 6631.040499 | S36: 8159.372064 | T36: 9000.868331 | U36: 10132.70541 | V36: 6175.736976 | W36: 6418.976499 | X36: 8081.370087 | Y36: 8957.928698 | Z36: 10136.92566 | AA36: 6848.37122 | AB36: 7132.150663 | AC36: 8915.204156 | AD36: 9896.949801 | AE36: 11217.4264 | AF36: 7466.906098 | AG36: 7730.415581 | AH36: 9386.10811 | AI36: 10297.72907 | AJ36: 11523.88591 | AK36: 5521.35763 | AL36: 5804.400553 | AM36: 5975.202317 | AN36: 6542.145933 | AO36: 6753.615 | AP36: 7421.058761 | AQ36: 6858.294951 | AR36: 7616.057462 | AS36: 8505.229949 | AT36: 8919.967395 | AU36: 10044.36142 | AV36: 10900.17261 | AW36: 11730.59656 | AX36: 9015.136323 | AY36: 8227.706562 | AZ36: 10389.49801 | BA36: 9108.269321 | BB36: 7421.058761 | BC36: 6858.294951 | BD36: 7722.955164 | BE36: 8505.229949 | BF36: 8919.967395 | BG36: 10044.36142 | BH36: 10900.17261 | BI36: 11730.59656 | BJ36: 8979.316491 | BK36: 8215.046429 | BL36: 10607.17796 | BM36: 9108.269321 | BN36: 8364.341375 | BO36: 7841.112238 | BP36: 10565.60575 | BQ36: 7421.058761 | BR36: 7717.784132 | BS36: 9537.376343 | BT36: 8208.395733 | BU36: 8625.824879 | BV36: 10089.59411 | BW36: 10772.68735 | BX36: 11968.62552 | BY36: 12952.80839 | BZ36: 13907.79593 | CA36: 11793.98827 | CB36: 14056.84315 | CC36: 14441.23837 | CD36: 16094.86309 | CE36: 7769.323777 | CF36: 8088.333814 | CG36: 5434.719513 | CH36: 0 | CJ36: Аликанте Спецэффект №1 16 мм | CK36: 0 | CL36: =IF(CK36<>0,LOOKUP(,-CODE(CK$3:CK36),CK$3:CK36),CL35) -> 1 | CT36: 0.396 | CU36: 118.8 | CV36: 1.1 | CW36: 1320 | CX36: ф | CY36: 1438.8
B37: 0 | C37: =IF(B37<>0,LOOKUP(,-CODE(B$3:B37),B$3:B37),C36) -> 3 | D37: 3-180(600)-528 | E37: Тумба кухонная однодверный с леграбоксом, Н - 140/180 мм, полка ЛДСП | F37: =IF(E37<>0,LOOKUP(,-CODE(E$3:E37),E$3:E37),F36) -> Тумба кухонная однодверный с леграбоксом, Н - 140/180 мм, полка ЛДСП | H37: 1 | I37: 600 | J37: 720 | K37: 528 | L37: 6522.927096 | M37: 6788.400579 | N37: 8456.433384 | O37: 9374.848871 | P37: 10610.14455 | Q37: 6613.215096 | R37: 6878.688579 | S37: 8546.721384 | T37: 9465.136871 | U37: 10700.43255 | V37: 6389.871096 | W37: 6655.344579 | X37: 8469.20515 | Y37: 9425.887948 | Z37: 10712.65429 | AA37: 7105.53911 | AB37: 7415.258173 | AC37: 9361.296446 | AD37: 10432.78118 | AE37: 11873.95948 | AF37: 7753.347103 | AG37: 8040.943376 | AH37: 9847.978915 | AI37: 10842.92903 | AJ37: 12181.16602 | AK37: 5682.437753 | AL37: 5987.354163 | AM37: 6171.355445 | AN37: 6791.041326 | AO37: 7021.093386 | AP37: 7760.750192 | AQ37: 7146.545449 | AR37: 7973.573272 | AS37: 8944.022952 | AT37: 9396.670584 | AU37: 10623.84286 | AV37: 11557.88176 | AW37: 12464.21284 | AX37: 9500.538683 | AY37: 8641.131796 | AZ37: 11000.52758 | BA37: 9602.184752 | BB37: 7760.750192 | BC37: 7146.545449 | BD37: 8090.242244 | BE37: 8944.022952 | BF37: 9396.670584 | BG37: 10623.84286 | BH37: 11557.88176 | BI37: 12464.21284 | BJ37: 9461.444644 | BK37: 8627.31443 | BL37: 11238.10514 | BM37: 9602.184752 | BN37: 8790.256079 | BO37: 8219.199782 | BP37: 11132.32458 | BQ37: 7760.750192 | BR37: 8084.59854 | BS37: 10070.51545 | BT37: 8620.055809 | BU37: 9075.641184 | BV37: 10673.21016 | BW37: 11418.74337 | BX37: 12723.99947 | BY37: 13798.14421 | BZ37: 14840.42495 | CA37: 12529.87693 | CB37: 14998.44589 | CC37: 15417.78613 | CD37: 17221.74037 | CE37: 8115.592104 | CF37: 8464.042515 | CG37: 5573.911013 | CH37: 0 | CJ37: Аликанте Спецэффект №2 16 мм | CK37: 0 | CL37: =IF(CK37<>0,LOOKUP(,-CODE(CK$3:CK37),CK$3:CK37),CL36) -> 1 | CT37: 0.432 | CU37: 129.6 | CV37: 1.2 | CW37: 1440 | CX37: ф | CY37: 1569.6
A38: 6 | B38: 4 | C38: =IF(B38<>0,LOOKUP(,-CODE(B$3:B38),B$3:B38),C37) -> 4 | D38: 4(600)-528 | E38: Тумба кухонная двухдверный, полка ЛДСП | F38: =IF(E38<>0,LOOKUP(,-CODE(E$3:E38),E$3:E38),F37) -> Тумба кухонная двухдверный, полка ЛДСП | H38: 1 | I38: 600 | J38: 720 | K38: 528 | L38: 4172.339627 | M38: 4437.588901 | N38: 6104.212955 | O38: 7021.852786 | P38: 8256.10519 | Q38: 4269.011627 | R38: 4534.260901 | S38: 6200.884955 | T38: 7118.524786 | U38: 8352.77719 | V38: 4029.875627 | W38: 4295.124901 | X38: 6108.416931 | Y38: 7064.291755 | Z38: 8349.971342 | AA38: 4781.320645 | AB38: 5090.778131 | AC38: 7035.172861 | AD38: 8105.752663 | AE38: 9545.713801 | AF38: 5482.346136 | AG38: 5769.699516 | AH38: 7575.208908 | AI38: 8569.318724 | AJ38: 9906.425495 | AK38: 3307.345167 | AL38: 3617.986372 | AM38: 3805.442272 | AN38: 4423.229547 | AO38: 4654.2047 | AP38: 5376.476027 | AQ38: 4762.790016 | AR38: 5589.119365 | AS38: 6558.749443 | AT38: 7011.014788 | AU38: 8237.150641 | AV38: 9170.400698 | AW38: 10075.96632 | AX38: 7114.795164 | AY38: 6256.114097 | AZ38: 8613.517236 | BA38: 7216.355387 | BB38: 5376.476027 | BC38: 4762.790016 | BD38: 5705.689804 | BE38: 6558.749443 | BF38: 7011.014788 | BG38: 8237.150641 | BH38: 9170.400698 | BI38: 10075.96632 | BJ38: 7075.734142 | BK38: 6242.3084 | BL38: 8850.894148 | BM38: 7216.355387 | BN38: 6405.112436 | BO38: 5834.538429 | BP38: 8828.893297 | BQ38: 5376.476027 | BR38: 5700.050866 | BS38: 7684.290553 | BT38: 6235.05591 | BU38: 6690.256517 | BV38: 8286.47625 | BW38: 9031.379809 | BX38: 10335.53355 | BY38: 11408.77111 | BZ38: 12450.17158 | CA38: 10318.49448 | CB38: 12841.65096 | CC38: 13270.26408 | CD38: 15114.1092 | CE38: 5813.925264 | CF38: 6162.57086 | CG38: 3312.66152 | CH38: 5440.922337 | CJ38: Аликанте Спецэффект №3 16 мм | CK38: 2 | CL38: =IF(CK38<>0,LOOKUP(,-CODE(CK$3:CK38),CK$3:CK38),CL37) -> 2 | CT38: 0.432 | CU38: 129.6 | CV38: 1.2 | CW38: 1440 | CX38: ф | CY38: 1569.6
A39: 0 | B39: 0 | C39: =IF(B39<>0,LOOKUP(,-CODE(B$3:B39),B$3:B39),C38) -> 4 | D39: 4(650)-528 | E39: Тумба кухонная двухдверный, полка ЛДСП | F39: =IF(E39<>0,LOOKUP(,-CODE(E$3:E39),E$3:E39),F38) -> Тумба кухонная двухдверный, полка ЛДСП | H39: 1 | I39: 650 | J39: 720 | K39: 528 | L39: 4354.409903 | M39: 4641.986558 | N39: 6448.898831 | O39: 7443.781072 | P39: 8781.926776 | Q39: 4453.361903 | R39: 4740.938558 | S39: 6547.850831 | T39: 7542.733072 | U39: 8880.878776 | V39: 4208.585903 | W39: 4496.162558 | X39: 6461.215129 | Y39: 7497.550797 | Z39: 8891.452572 | AA39: 4990.297606 | AB39: 5325.803703 | AC39: 7433.868022 | AD39: 8594.56397 | AE39: 10155.73396 | AF39: 5701.584755 | AG39: 6013.12613 | AH39: 7970.614427 | AI39: 9048.403521 | AJ39: 10498.06137 | AK39: 3437.931911 | AL39: 3768.061272 | AM39: 3967.277266 | AN39: 4638.597893 | AO39: 4887.771416 | AP39: 5689.499738 | AQ39: 5024.156655 | AR39: 5920.042347 | AS39: 6971.291119 | AT39: 7461.625937 | AU39: 8790.971879 | AV39: 9802.778338 | AW39: 10784.57002 | AX39: 7574.142035 | AY39: 6643.181417 | AZ39: 9199.019164 | BA39: 7684.251098 | BB39: 5689.499738 | BC39: 5024.156655 | BD39: 6046.425112 | BE39: 6971.291119 | BF39: 7461.625937 | BG39: 8790.971879 | BH39: 9802.778338 | BI39: 10784.57002 | BJ39: 7531.793048 | BK39: 6628.213624 | BL39: 9456.377297 | BM39: 7684.251098 | BN39: 6804.721703 | BO39: 6186.119582 | BP39: 9267.686543 | BQ39: 5689.499738 | BR39: 6040.311517 | BS39: 8191.574746 | BT39: 6620.350655 | BU39: 7113.867811 | BV39: 8844.449474 | BW39: 9652.055354 | BX39: 11065.98634 | BY39: 12229.56377 | BZ39: 13358.62421 | CA39: 11040.88273 | CB39: 13774.30225 | CC39: 14238.63313 | CD39: 16236.13201 | CE39: 6110.772819 | CF39: 6488.777462 | CG39: 3416.611687 | CH39: 5583.985529 | CJ39: Аликанте Спецэффект №4 16 мм | CK39: 0 | CL39: =IF(CK39<>0,LOOKUP(,-CODE(CK$3:CK39),CK$3:CK39),CL38) -> 2 | CT39: 0.468 | CU39: 140.4 | CV39: 1.3 | CW39: 1560 | CX39: ф | CY39: 1700.4
A40: 0 | B40: 0 | C40: =IF(B40<>0,LOOKUP(,-CODE(B$3:B40),B$3:B40),C39) -> 4 | D40: 4(700)-528 | E40: Тумба кухонная двухдверный, полка ЛДСП | F40: =IF(E40<>0,LOOKUP(,-CODE(E$3:E40),E$3:E40),F39) -> Тумба кухонная двухдверный, полка ЛДСП | H40: 1 | I40: 700 | J40: 720 | K40: 528 | L40: 4536.48018 | M40: 4846.384215 | N40: 6793.584708 | O40: 7865.709359 | P40: 9307.748363 | Q40: 4637.71218 | R40: 4947.616215 | S40: 6894.816708 | T40: 7966.941359 | U40: 9408.980363 | V40: 4387.29618 | W40: 4697.200215 | X40: 6814.013327 | Y40: 7930.809838 | Z40: 9432.933801 | AA40: 5199.274568 | AB40: 5560.829275 | AC40: 7832.563184 | AD40: 9083.375277 | AE40: 10765.75411 | AF40: 5920.823374 | AG40: 6256.552745 | AH40: 8366.019946 | AI40: 9527.488318 | AJ40: 11089.69724 | AK40: 3568.518655 | AL40: 3918.136172 | AM40: 4129.11226 | AN40: 4853.966239 | AO40: 5121.338132 | AP40: 6002.523449 | AQ40: 5285.523295 | AR40: 6250.965329 | AS40: 7383.832794 | AT40: 7912.237086 | AU40: 9344.793116 | AV40: 10435.15598 | AW40: 11493.17373 | AX40: 8033.488906 | AY40: 7030.248736 | AZ40: 9784.521091 | BA40: 8152.146809 | BB40: 6002.523449 | BC40: 5285.523295 | BD40: 6387.160421 | BE40: 7383.832794 | BF40: 7912.237086 | BG40: 9344.793116 | BH40: 10435.15598 | BI40: 11493.17373 | BJ40: 7987.851954 | BK40: 7014.118848 | BL40: 10061.86045 | BM40: 8152.146809 | BN40: 7204.330971 | BO40: 6537.700734 | BP40: 9706.479788 | BQ40: 6002.523449 | BR40: 6380.572167 | BS40: 8698.858939 | BT40: 7005.6454 | BU40: 7537.479105 | BV40: 9402.422699 | BW40: 10272.7309 | BX40: 11796.43914 | BY40: 13050.35643 | BZ40: 14267.07684 | CA40: 11763.27097 | CB40: 14706.95353 | CC40: 15207.00217 | CD40: 17358.15481 | CE40: 6407.620375 | CF40: 6814.984064 | CG40: 3520.561853 | CH40: 5727.048721 | CJ40: Аликанте Спецэффект №5 16 мм | CK40: 0 | CL40: =IF(CK40<>0,LOOKUP(,-CODE(CK$3:CK40),CK$3:CK40),CL39) -> 2 | CT40: 0.504 | CU40: 151.2 | CV40: 1.4 | CW40: 1680 | CX40: ф | CY40: 1831.2
A41: 0 | B41: 0 | C41: =IF(B41<>0,LOOKUP(,-CODE(B$3:B41),B$3:B41),C40) -> 4 | D41: 4(750)-528 | E41: Тумба кухонная двухдверный, полка ЛДСП | F41: =IF(E41<>0,LOOKUP(,-CODE(E$3:E41),E$3:E41),F40) -> Тумба кухонная двухдверный, полка ЛДСП | H41: 1 | I41: 750 | J41: 720 | K41: 528 | L41: 4718.550457 | M41: 5050.781871 | N41: 7138.270585 | O41: 8287.637646 | P41: 9833.56995 | Q41: 4822.062457 | R41: 5154.293871 | S41: 7241.782585 | T41: 8391.149646 | U41: 9937.08195 | V41: 4566.006457 | W41: 4898.237871 | X41: 7166.811525 | Y41: 8364.06888 | Z41: 9974.41503 | AA41: 5408.25153 | AB41: 5795.854846 | AC41: 8231.258346 | AD41: 9572.186583 | AE41: 11375.77427 | AF41: 6140.061993 | AG41: 6499.979359 | AH41: 8761.425465 | AI41: 10006.57311 | AJ41: 11681.33311 | AK41: 3699.105399 | AL41: 4068.211072 | AM41: 4290.947254 | AN41: 5069.334585 | AO41: 5354.904848 | AP41: 6315.54716 | AQ41: 5546.889934 | AR41: 6581.888311 | AS41: 7796.374469 | AT41: 8362.848235 | AU41: 9898.614354 | AV41: 11067.53362 | AW41: 12201.77743 | AX41: 8492.835776 | AY41: 7417.316056 | AZ41: 10370.02302 | BA41: 8620.04252 | BB41: 6315.54716 | BC41: 5546.889934 | BD41: 6727.895729 | BE41: 7796.374469 | BF41: 8362.848235 | BG41: 9898.614354 | BH41: 11067.53362 | BI41: 12201.77743 | BJ41: 8443.91086 | BK41: 7400.024072 | BL41: 10667.34359 | BM41: 8620.04252 | BN41: 7603.940238 | BO41: 6889.281886 | BP41: 10145.27303 | BQ41: 6315.54716 | BR41: 6720.832818 | BS41: 9206.143132 | BT41: 7390.940145 | BU41: 7961.0904 | BV41: 9960.395924 | BW41: 10893.40644 | BX41: 12526.89193 | BY41: 13871.14909 | BZ41: 15175.52947 | CA41: 12485.65922 | CB41: 15639.60482 | CC41: 16175.37122 | CD41: 18480.17762 | CE41: 6704.46793 | CF41: 7141.190667 | CG41: 3624.51202 | CH41: 5870.111913 | CJ41: Аликанте Палаццио глянцевая 16 мм | CK41: 0 | CL41: =IF(CK41<>0,LOOKUP(,-CODE(CK$3:CK41),CK$3:CK41),CL40) -> 2 | CT41: 0.54 | CU41: 162 | CV41: 1.5 | CW41: 1800 | CX41: ф | CY41: 1962
A42: 0 | B42: 0 | C42: =IF(B42<>0,LOOKUP(,-CODE(B$3:B42),B$3:B42),C41) -> 4 | D42: 4(800)-528 | E42: Тумба кухонная двухдверный, полка ЛДСП | F42: =IF(E42<>0,LOOKUP(,-CODE(E$3:E42),E$3:E42),F41) -> Тумба кухонная двухдверный, полка ЛДСП | H42: 1 | I42: 800 | J42: 720 | K42: 528 | L42: 4900.620733 | M42: 5255.179528 | N42: 7482.956461 | O42: 8709.565932 | P42: 10359.39154 | Q42: 5006.412733 | R42: 5360.971528 | S42: 7588.748461 | T42: 8815.357932 | U42: 10465.18354 | V42: 4744.716733 | W42: 5099.275528 | X42: 7519.609723 | Y42: 8797.327922 | Z42: 10515.89626 | AA42: 5617.228491 | AB42: 6030.880418 | AC42: 8629.953507 | AD42: 10060.99789 | AE42: 11985.79443 | AF42: 6359.300612 | AG42: 6743.405973 | AH42: 9156.830984 | AI42: 10485.65791 | AJ42: 12272.96898 | AK42: 3829.692144 | AL42: 4218.285972 | AM42: 4452.782248 | AN42: 5284.702931 | AO42: 5588.471565 | AP42: 6628.570871 | AQ42: 5808.256573 | AR42: 6912.811293 | AS42: 8208.916145 | AT42: 8813.459384 | AU42: 10452.43559 | AV42: 11699.91126 | AW42: 12910.38113 | AX42: 8952.182647 | AY42: 7804.383376 | AZ42: 10955.52495 | BA42: 9087.938231 | BB42: 6628.570871 | BC42: 5808.256573 | BD42: 7068.631037 | BE42: 8208.916145 | BF42: 8813.459384 | BG42: 10452.43559 | BH42: 11699.91126 | BI42: 12910.38113 | BJ42: 8899.969766 | BK42: 7785.929296 | BL42: 11272.82674 | BM42: 9087.938231 | BN42: 8003.549505 | BO42: 7240.863039 | BP42: 10584.06628 | BQ42: 6628.570871 | BR42: 7061.093468 | BS42: 9713.427325 | BT42: 7776.23489 | BU42: 8384.701694 | BV42: 10518.36915 | BW42: 11514.08199 | BX42: 13257.34473 | BY42: 14691.94174 | BZ42: 16083.9821 | CA42: 12804.11019 | CB42: 16038.92619 | CC42: 16588.43019 | CD42: 18952.33419 | CE42: 7001.315485 | CF42: 7467.397269 | CG42: 3728.462187 | CH42: 6013.175105 | CJ42: Аликанте Палаццио матовая 16 мм | CK42: 0 | CL42: =IF(CK42<>0,LOOKUP(,-CODE(CK$3:CK42),CK$3:CK42),CL41) -> 2 | CT42: 0.576 | CU42: 172.8 | CV42: 1.6 | CW42: 1920 | CX42: ф | CY42: 2092.8
A43: 0 | B43: 0 | C43: =IF(B43<>0,LOOKUP(,-CODE(B$3:B43),B$3:B43),C42) -> 4 | D43: 4(850)-528 | E43: Тумба кухонная двухдверный, полка ЛДСП | F43: =IF(E43<>0,LOOKUP(,-CODE(E$3:E43),E$3:E43),F42) -> Тумба кухонная двухдверный, полка ЛДСП | H43: 1 | I43: 850 | J43: 720 | K43: 528 | L43: 5082.69101 | M43: 5459.577185 | N43: 7827.642338 | O43: 9131.494219 | P43: 10885.21312 | Q43: 5190.76301 | R43: 5567.649185 | S43: 7935.714338 | T43: 9239.566219 | U43: 10993.28512 | V43: 4923.42701 | W43: 5300.313185 | X43: 7872.407921 | Y43: 9230.586963 | Z43: 11057.37749 | AA43: 5826.205453 | AB43: 6265.90599 | AC43: 9028.648669 | AD43: 10549.8092 | AE43: 12595.81458 | AF43: 6578.539232 | AG43: 6986.832587 | AH43: 9552.236504 | AI43: 10964.74271 | AJ43: 12864.60485 | AK43: 3960.278888 | AL43: 4368.360873 | AM43: 4614.617243 | AN43: 5500.071277 | AO43: 5822.038281 | AP43: 6941.594582 | AQ43: 6069.623213 | AR43: 7243.734275 | AS43: 8621.45782 | AT43: 9264.070533 | AU43: 11006.25683 | AV43: 12332.2889 | AW43: 13618.98483 | AX43: 9411.529518 | AY43: 8191.450695 | AZ43: 11541.02687 | BA43: 9555.833942 | BB43: 6941.594582 | BC43: 6069.623213 | BD43: 7409.366346 | BE43: 8621.45782 | BF43: 9264.070533 | BG43: 11006.25683 | BH43: 12332.2889 | BI43: 13618.98483 | BJ43: 9356.028671 | BK43: 8171.83452 | BL43: 11878.30989 | BM43: 9555.833942 | BN43: 8403.158773 | BO43: 7592.444191 | BP43: 11022.85953 | BQ43: 6941.594582 | BR43: 7401.354118 | BS43: 10220.71152 | BT43: 8161.529634 | BU43: 8808.312988 | BV43: 11076.34237 | BW43: 12134.75753 | BX43: 13987.79752 | BY43: 15512.7344 | BZ43: 16992.43473 | CA43: 13501.25235 | CB43: 16938.24435 | CC43: 17522.09235 | CD43: 20033.74035 | CE43: 7298.163041 | CF43: 7793.603872 | CG43: 3832.412353 | CH43: 6156.238297 | CJ43: Аликанте Спецэффект №2 + Фотопечать 16 мм | CK43: 0 | CL43: =IF(CK43<>0,LOOKUP(,-CODE(CK$3:CK43),CK$3:CK43),CL42) -> 2 | CT43: 0.612 | CU43: 183.6 | CV43: 1.7 | CW43: 2040 | CX43: ф | CY43: 2223.6
A44: 0 | B44: 0 | C44: =IF(B44<>0,LOOKUP(,-CODE(B$3:B44),B$3:B44),C43) -> 4 | D44: 4(900)-528 | E44: Тумба кухонная двухдверный, полка ЛДСП | F44: =IF(E44<>0,LOOKUP(,-CODE(E$3:E44),E$3:E44),F43) -> Тумба кухонная двухдверный, полка ЛДСП | H44: 1 | I44: 900 | J44: 720 | K44: 528 | L44: 5264.761287 | M44: 5663.974841 | N44: 8172.328215 | O44: 9553.422506 | P44: 11411.03471 | Q44: 5375.113287 | R44: 5774.326841 | S44: 8282.680215 | T44: 9663.774506 | U44: 11521.38671 | V44: 5102.137287 | W44: 5501.350841 | X44: 8225.206119 | Y44: 9663.846005 | Z44: 11598.85872 | AA44: 6035.182415 | AB44: 6500.931561 | AC44: 9427.343831 | AD44: 11038.6205 | AE44: 13205.83474 | AF44: 6797.777851 | AG44: 7230.259201 | AH44: 9947.642023 | AI44: 11443.8275 | AJ44: 13456.24073 | AK44: 4090.865632 | AL44: 4518.435773 | AM44: 4776.452237 | AN44: 5715.439624 | AO44: 6055.604997 | AP44: 7254.618293 | AQ44: 6330.989852 | AR44: 7574.657257 | AS44: 9033.999495 | AT44: 9714.681682 | AU44: 11560.07807 | AV44: 12964.66654 | AW44: 14327.58853 | AX44: 9870.876388 | AY44: 8578.518015 | AZ44: 12126.5288 | BA44: 10023.72965 | BB44: 7254.618293 | BC44: 6330.989852 | BD44: 7750.101654 | BE44: 9033.999495 | BF44: 9714.681682 | BG44: 11560.07807 | BH44: 12964.66654 | BI44: 14327.58853 | BJ44: 9812.087577 | BK44: 8557.739744 | BL44: 12483.79304 | BM44: 10023.72965 | BN44: 8802.76804 | BO44: 7944.025343 | BP44: 11461.65277 | BQ44: 7254.618293 | BR44: 7741.614769 | BS44: 10727.99571 | BT44: 8546.824379 | BU44: 9231.924283 | BV44: 11634.3156 | BW44: 12755.43308 | BX44: 14718.25032 | BY44: 16333.52706 | BZ44: 17900.88736 | CA44: 14198.39452 | CB44: 17837.56252 | CC44: 18455.75452 | CD44: 21115.14652 | CE44: 7595.010596 | CF44: 8119.810474 | CG44: 3936.36252 | CH44: 6299.301489 | CJ44: Аликанте Фотопечать 16 мм | CK44: 0 | CL44: =IF(CK44<>0,LOOKUP(,-CODE(CK$3:CK44),CK$3:CK44),CL43) -> 2 | CT44: 0.648 | CU44: 194.4 | CV44: 1.8 | CW44: 2160 | CX44: ф | CY44: 2354.4
A45: 0 | B45: 0 | C45: =IF(B45<>0,LOOKUP(,-CODE(B$3:B45),B$3:B45),C44) -> 4 | D45: 4(950)-528 | E45: Тумба кухонная двухдверный, полка ЛДСП | F45: =IF(E45<>0,LOOKUP(,-CODE(E$3:E45),E$3:E45),F44) -> Тумба кухонная двухдверный, полка ЛДСП | H45: 1 | I45: 950 | J45: 720 | K45: 528 | L45: 5446.831563 | M45: 5868.372498 | N45: 8517.014091 | O45: 9975.350792 | P45: 11936.8563 | Q45: 5559.463563 | R45: 5981.004498 | S45: 8629.646091 | T45: 10087.98279 | U45: 12049.4883 | V45: 5280.847563 | W45: 5702.388498 | X45: 8578.004317 | Y45: 10097.10505 | Z45: 12140.33995 | AA45: 6244.159376 | AB45: 6735.957133 | AC45: 9826.038992 | AD45: 11527.43181 | AE45: 13815.8549 | AF45: 7017.01647 | AG45: 7473.685815 | AH45: 10343.04754 | AI45: 11922.9123 | AJ45: 14047.8766 | AK45: 4221.452376 | AL45: 4668.510673 | AM45: 4938.287231 | AN45: 5930.80797 | AO45: 6289.171713 | AP45: 7567.642004 | AQ45: 6592.356492 | AR45: 7905.580239 | AS45: 9446.541171 | AT45: 10165.29283 | AU45: 12113.8993 | AV45: 13597.04418 | AW45: 15036.19224 | AX45: 10330.22326 | AY45: 8965.585334 | AZ45: 12712.03073 | BA45: 10491.62536 | BB45: 7567.642004 | BC45: 6592.356492 | BD45: 8090.836963 | BE45: 9446.541171 | BF45: 10165.29283 | BG45: 12113.8993 | BH45: 13597.04418 | BI45: 15036.19224 | BJ45: 10268.14648 | BK45: 8943.644968 | BL45: 13089.27619 | BM45: 10491.62536 | BN45: 9202.377308 | BO45: 8295.606496 | BP45: 11900.44602 | BQ45: 7567.642004 | BR45: 8081.875419 | BS45: 11235.2799 | BT45: 8932.119124 | BU45: 9655.535577 | BV45: 12192.28882 | BW45: 13376.10862 | BX45: 15448.70311 | BY45: 17154.31972 | BZ45: 18809.33999 | CA45: 14895.53669 | CB45: 18736.88069 | CC45: 19389.41669 | CD45: 22196.55269 | CE45: 7891.858152 | CF45: 8446.017077 | CG45: 4040.312687 | CH45: 6442.364681 | CJ45: Аликанте Высокий глянец 19 мм | CK45: 0 | CL45: =IF(CK45<>0,LOOKUP(,-CODE(CK$3:CK45),CK$3:CK45),CL44) -> 2 | CT45: 0.684 | CU45: 205.2 | CV45: 1.9 | CW45: 2280 | CX45: ф | CY45: 2485.2
A46: 0 | B46: 0 | C46: =IF(B46<>0,LOOKUP(,-CODE(B$3:B46),B$3:B46),C45) -> 4 | D46: 4(1000)-528 | E46: Тумба кухонная двухдверный, полка ЛДСП | F46: =IF(E46<>0,LOOKUP(,-CODE(E$3:E46),E$3:E46),F45) -> Тумба кухонная двухдверный, полка ЛДСП | H46: 1 | I46: 1000 | J46: 720 | K46: 528 | L46: 5628.90184 | M46: 6072.770155 | N46: 8861.699968 | O46: 10397.27908 | P46: 12462.67788 | Q46: 5743.81384 | R46: 6187.682155 | S46: 8976.611968 | T46: 10512.19108 | U46: 12577.58988 | V46: 5459.55784 | W46: 5903.426155 | X46: 8930.802515 | Y46: 10530.36409 | Z46: 12681.82118 | AA46: 6453.136338 | AB46: 6970.982705 | AC46: 10224.73415 | AD46: 12016.24312 | AE46: 14425.87505 | AF46: 7236.255089 | AG46: 7717.11243 | AH46: 10738.45306 | AI46: 12401.9971 | AJ46: 14639.51247 | AK46: 4352.039121 | AL46: 4818.585573 | AM46: 5100.122225 | AN46: 6146.176316 | AO46: 6522.738429 | AP46: 7880.665715 | AQ46: 6853.723131 | AR46: 8236.50322 | AS46: 9859.082846 | AT46: 10615.90398 | AU46: 12667.72054 | AV46: 14229.42182 | AW46: 15744.79594 | AX46: 10789.57013 | AY46: 9352.652654 | AZ46: 13297.53265 | BA46: 10959.52107 | BB46: 7880.665715 | BC46: 6853.723131 | BD46: 8431.572271 | BE46: 9859.082846 | BF46: 10615.90398 | BG46: 12667.72054 | BH46: 14229.42182 | BI46: 15744.79594 | BJ46: 10724.20539 | BK46: 9329.550192 | BL46: 13694.75934 | BM46: 10959.52107 | BN46: 9601.986575 | BO46: 8647.187648 | BP46: 12339.23926 | BQ46: 7880.665715 | BR46: 8422.136069 | BS46: 11742.5641 | BT46: 9317.413869 | BU46: 10079.14687 | BV46: 12750.26205 | BW46: 13996.78417 | BX46: 16179.15591 | BY46: 17975.11237 | BZ46: 19717.79262 | CA46: 15592.67885 | CB46: 19636.19885 | CC46: 20323.07885 | CD46: 23277.95885 | CE46: 8188.705707 | CF46: 8772.223679 | CG46: 4144.262853 | CH46: 6585.427873 | CJ46: Аликанте Матовая 19 мм | CK46: 0 | CL46: =IF(CK46<>0,LOOKUP(,-CODE(CK$3:CK46),CK$3:CK46),CL45) -> 2 | CT46: 0.72 | CU46: 216 | CV46: 2 | CW46: 2400 | CX46: ф | CY46: 2616
A47: 8/2 | B47: 5 | C47: =IF(B47<>0,LOOKUP(,-CODE(B$3:B47),B$3:B47),C46) -> 5 | D47: 5-140(600)-528 | E47: Тумба кухонная двухдверный с двумя метабоксами, Н - 140/180 мм, полка ЛДСП | F47: =IF(E47<>0,LOOKUP(,-CODE(E$3:E47),E$3:E47),F46) -> Тумба кухонная двухдверный с двумя метабоксами, Н - 140/180 мм, полка ЛДСП | H47: 1 | I47: 600 | J47: 720 | K47: 528 | L47: 6136.481899 | M47: 6400.621344 | N47: 8060.272075 | O47: 8974.072409 | P47: 10203.16058 | Q47: 6262.337899 | R47: 6526.477344 | S47: 8186.128075 | T47: 9099.928409 | U47: 10329.01658 | V47: 5951.009899 | W47: 6215.149344 | X47: 8025.266696 | Y47: 8977.142043 | Z47: 10257.44222 | AA47: 6865.940687 | AB47: 7174.103372 | AC47: 9110.362559 | AD47: 10176.46295 | AE47: 11610.39914 | AF47: 7810.279293 | AG47: 8096.430358 | AH47: 9894.385317 | AI47: 10884.33568 | AJ47: 12215.84786 | AK47: 5174.420382 | AL47: 5523.083766 | AM47: 5733.484084 | AN47: 6339.646951 | AO47: 6577.000295 | AP47: 7186.080356 | AQ47: 6574.962069 | AR47: 7397.833973 | AS47: 8363.407022 | AT47: 8813.780043 | AU47: 10034.78562 | AV47: 10964.13087 | AW47: 11865.90751 | AX47: 8917.126191 | AY47: 8062.037932 | AZ47: 10409.57746 | BA47: 9018.261476 | BB47: 7186.080356 | BC47: 6574.962069 | BD47: 7513.916669 | BE47: 8363.407022 | BF47: 8813.780043 | BG47: 10034.78562 | BH47: 10964.13087 | BI47: 11865.90751 | BJ47: 8878.228604 | BK47: 8048.29 | BL47: 10645.96116 | BM47: 9018.261476 | BN47: 8210.412847 | BO47: 0 | BP47: 10069.6683 | BQ47: 7186.080356 | BR47: 7508.301326 | BS47: 0 | BT47: 8041.067854 | BU47: 8494.363856 | BV47: 10083.90485 | BW47: 10825.69165 | BX47: 12124.38868 | BY47: 13193.13571 | BZ47: 14230.17886 | CA47: 12184.55877 | CB47: 14721.86757 | CC47: 15152.88477 | CD47: 17007.07197 | CE47: 7663.323254 | CF47: 8005.892096 | CG47: 5218.433173 | CH47: 0 | CJ47: АликантеЖЕМЧУГ, ПЕРЛАМУТР 19 мм | CK47: 2 | CL47: =IF(CK47<>0,LOOKUP(,-CODE(CK$3:CK47),CK$3:CK47),CL46) -> 2 | CT47: Ф | CU47: Ф | CV47: Ф | CW47: Ф | CX47: ф | CY47: Ф
B48: 0 | C48: =IF(B48<>0,LOOKUP(,-CODE(B$3:B48),B$3:B48),C47) -> 5 | D48: 5-140(650)-528 | E48: Тумба кухонная двухдверный с двумя метабоксами, Н - 140/180 мм, полка ЛДСП | F48: =IF(E48<>0,LOOKUP(,-CODE(E$3:E48),E$3:E48),F47) -> Тумба кухонная двухдверный с двумя метабоксами, Н - 140/180 мм, полка ЛДСП | H48: 1 | I48: 650 | J48: 720 | K48: 528 | L48: 6362.830436 | M48: 6649.20384 | N48: 8448.555812 | O48: 9439.275365 | P48: 10771.82213 | Q48: 6493.246436 | R48: 6779.61984 | S48: 8578.971812 | T48: 9569.691365 | U48: 10902.23813 | V48: 6170.638436 | W48: 6457.01184 | X48: 8418.596175 | Y48: 9450.59571 | Z48: 10838.66526 | AA48: 7128.602993 | AB48: 7462.705299 | AC48: 9561.949265 | AD48: 10717.78874 | AE48: 12272.42664 | AF48: 8102.214714 | AG48: 8412.45257 | AH48: 10361.75054 | AI48: 11435.03005 | AJ48: 12878.62239 | AK48: 5340.994921 | AL48: 5711.531792 | AM48: 5935.131629 | AN48: 6594.036761 | AO48: 6849.973097 | AP48: 7531.266204 | AQ48: 6868.706983 | AR48: 7760.844199 | AS48: 8807.694441 | AT48: 9295.977649 | AU48: 10619.76147 | AV48: 11627.33443 | AW48: 12605.0182 | AX48: 9408.022968 | AY48: 8480.957583 | AZ48: 11026.10145 | BA48: 9517.671324 | BB48: 7531.266204 | BC48: 6868.706983 | BD48: 7886.698167 | BE48: 8807.694441 | BF48: 9295.977649 | BG48: 10619.76147 | BH48: 11627.33443 | BI48: 12605.0182 | BJ48: 9365.851174 | BK48: 8466.052417 | BL48: 11282.38277 | BM48: 9517.671324 | BN48: 8641.821969 | BO48: 0 | BP48: 10540.52155 | BQ48: 7531.266204 | BR48: 7880.610151 | BS48: 0 | BT48: 8458.222347 | BU48: 8949.674578 | BV48: 10673.01531 | BW48: 11477.24209 | BX48: 12885.25705 | BY48: 14043.96595 | BZ48: 15168.30229 | CA48: 12943.82449 | CB48: 15692.57569 | CC48: 16159.51099 | CD48: 18168.21379 | CE48: 8002.181304 | CF48: 8373.783886 | CG48: 5362.99909 | CH48: 0 | CJ48: Аликанте Спецэффект №1 19 мм | CK48: 0 | CL48: =IF(CK48<>0,LOOKUP(,-CODE(CK$3:CK48),CK$3:CK48),CL47) -> 2 | CT48: Ф | CU48: Ф | CV48: Ф | CW48: Ф | CX48: ф | CY48: Ф
B49: 0 | C49: =IF(B49<>0,LOOKUP(,-CODE(B$3:B49),B$3:B49),C48) -> 5 | D49: 5-140(700)-528 | E49: Тумба кухонная двухдверный с двумя метабоксами, Н - 140/180 мм, полка ЛДСП | F49: =IF(E49<>0,LOOKUP(,-CODE(E$3:E49),E$3:E49),F48) -> Тумба кухонная двухдверный с двумя метабоксами, Н - 140/180 мм, полка ЛДСП | H49: 1 | I49: 700 | J49: 720 | K49: 528 | L49: 6589.178972 | M49: 6897.786337 | N49: 8836.839548 | O49: 9904.478322 | P49: 11340.48369 | Q49: 6724.154972 | R49: 7032.762337 | S49: 8971.815548 | T49: 10039.45432 | U49: 11475.45969 | V49: 6390.266972 | W49: 6698.874337 | X49: 8811.925654 | Y49: 9924.049377 | Z49: 11419.8883 | AA49: 7391.2653 | AB49: 7751.307225 | AC49: 10013.53597 | AD49: 11259.11454 | AE49: 12934.45414 | AF49: 8394.150136 | AG49: 8728.474781 | AH49: 10829.11576 | AI49: 11985.72443 | AJ49: 13541.39691 | AK49: 5507.56946 | AL49: 5899.979818 | AM49: 6136.779173 | AN49: 6848.426571 | AO49: 7122.9459 | AP49: 7876.452052 | AQ49: 7162.451898 | AR49: 8123.854426 | AS49: 9251.98186 | AT49: 9778.175255 | AU49: 11204.73733 | AV49: 12290.538 | AW49: 13344.1289 | AX49: 9898.919745 | AY49: 8899.877233 | AZ49: 11642.62544 | BA49: 10017.08117 | BB49: 7876.452052 | BC49: 7162.451898 | BD49: 8259.479664 | BE49: 9251.98186 | BF49: 9778.175255 | BG49: 11204.73733 | BH49: 12290.538 | BI49: 13344.1289 | BJ49: 9853.473743 | BK49: 8883.814834 | BL49: 11918.80438 | BM49: 10017.08117 | BN49: 9073.23109 | BO49: 0 | BP49: 11011.3748 | BQ49: 7876.452052 | BR49: 8252.918976 | BS49: 0 | BT49: 8875.376839 | BU49: 9404.985299 | BV49: 11262.12578 | BW49: 12128.79252 | BX49: 13646.12542 | BY49: 14894.79619 | BZ49: 16106.42572 | CA49: 13703.09021 | CB49: 16663.28381 | CC49: 17166.13721 | CD49: 19329.35561 | CE49: 8341.039354 | CF49: 8741.675675 | CG49: 5507.565007 | CH49: 0 | CJ49: Аликанте Спецэффект №2 19 мм | CK49: 0 | CL49: =IF(CK49<>0,LOOKUP(,-CODE(CK$3:CK49),CK$3:CK49),CL48) -> 2 | CT49: Ф | CU49: Ф | CV49: Ф | CW49: Ф | CX49: ф | CY49: Ф
B50: 0 | C50: =IF(B50<>0,LOOKUP(,-CODE(B$3:B50),B$3:B50),C49) -> 5 | D50: 5-140(750)-528 | E50: Тумба кухонная двухдверный с двумя метабоксами, Н - 140/180 мм, полка ЛДСП | F50: =IF(E50<>0,LOOKUP(,-CODE(E$3:E50),E$3:E50),F49) -> Тумба кухонная двухдверный с двумя метабоксами, Н - 140/180 мм, полка ЛДСП | H50: 1 | I50: 750 | J50: 720 | K50: 528 | L50: 6815.527509 | M50: 7146.368834 | N50: 9225.123285 | O50: 10369.68128 | P50: 11909.14525 | Q50: 6955.063509 | R50: 7285.904834 | S50: 9364.659285 | T50: 10509.21728 | U50: 12048.68125 | V50: 6609.895509 | W50: 6940.736834 | X50: 9205.255133 | Y50: 10397.50304 | Z50: 12001.11134 | AA50: 7653.927607 | AB50: 8039.909152 | AC50: 10465.12268 | AD50: 11800.44034 | AE50: 13596.48163 | AF50: 8686.085558 | AG50: 9044.496993 | AH50: 11296.48098 | AI50: 12536.41881 | AJ50: 14204.17144 | AK50: 5674.143999 | AL50: 6088.427844 | AM50: 6338.426717 | AN50: 7102.816382 | AO50: 7395.918703 | AP50: 8221.637899 | AQ50: 7456.196813 | AR50: 8486.864652 | AS50: 9696.269279 | AT50: 10260.37286 | AU50: 11789.71318 | AV50: 12953.74157 | AW50: 14083.23959 | AX50: 10389.81652 | AY50: 9318.796884 | AZ50: 12259.14942 | BA50: 10516.49102 | BB50: 8221.637899 | BC50: 7456.196813 | BD50: 8632.261161 | BE50: 9696.269279 | BF50: 10260.37286 | BG50: 11789.71318 | BH50: 12953.74157 | BI50: 14083.23959 | BJ50: 10341.09631 | BK50: 9301.577252 | BL50: 12555.22598 | BM50: 10516.49102 | BN50: 9504.640212 | BO50: 0 | BP50: 11482.22805 | BQ50: 8221.637899 | BR50: 8625.227801 | BS50: 0 | BT50: 9292.531332 | BU50: 9860.296021 | BV50: 11851.23625 | BW50: 12780.34296 | BX50: 14406.99378 | BY50: 15745.62643 | BZ50: 17044.54915 | CA50: 14462.35592 | CB50: 17633.99192 | CC50: 18172.76342 | CD50: 20490.49742 | CE50: 8679.897405 | CF50: 9109.567464 | CG50: 5652.130923 | CH50: 0 | CJ50: Аликанте Спецэффект №3 19 мм | CK50: 0 | CL50: =IF(CK50<>0,LOOKUP(,-CODE(CK$3:CK50),CK$3:CK50),CL49) -> 2 | CT50: Ф | CU50: Ф | CV50: Ф | CW50: Ф | CX50: ф | CY50: Ф
B51: 0 | C51: =IF(B51<>0,LOOKUP(,-CODE(B$3:B51),B$3:B51),C50) -> 5 | D51: 5-140(800)-528 | E51: Тумба кухонная двухдверный с двумя метабоксами, Н - 140/180 мм, полка ЛДСП | F51: =IF(E51<>0,LOOKUP(,-CODE(E$3:E51),E$3:E51),F50) -> Тумба кухонная двухдверный с двумя метабоксами, Н - 140/180 мм, полка ЛДСП | H51: 1 | I51: 800 | J51: 720 | K51: 528 | L51: 7041.876046 | M51: 7394.95133 | N51: 9613.407022 | O51: 10834.88424 | P51: 12477.8068 | Q51: 7185.972046 | R51: 7539.04733 | S51: 9757.503022 | T51: 10978.98024 | U51: 12621.9028 | V51: 6829.524046 | W51: 7182.59933 | X51: 9598.584612 | Y51: 10870.95671 | Z51: 12582.33439 | AA51: 7916.589913 | AB51: 8328.511079 | AC51: 10916.70939 | AD51: 12341.76613 | AE51: 14258.50913 | AF51: 8978.020979 | AG51: 9360.519205 | AH51: 11763.8462 | AI51: 13087.11318 | AJ51: 14866.94597 | AK51: 5840.718538 | AL51: 6276.875871 | AM51: 6540.074261 | AN51: 7357.206192 | AO51: 7668.891505 | AP51: 8566.823747 | AQ51: 7749.941727 | AR51: 8849.874879 | AS51: 10140.5567 | AT51: 10742.57047 | AU51: 12374.68903 | AV51: 13616.94514 | AW51: 14822.35028 | AX51: 10880.7133 | AY51: 9737.716534 | AZ51: 12875.67341 | BA51: 11015.90087 | BB51: 8566.823747 | BC51: 7749.941727 | BD51: 9005.042658 | BE51: 10140.5567 | BF51: 10742.57047 | BG51: 12374.68903 | BH51: 13616.94514 | BI51: 14822.35028 | BJ51: 10828.71888 | BK51: 9719.339669 | BL51: 13191.64759 | BM51: 11015.90087 | BN51: 9936.049333 | BO51: 0 | BP51: 11953.0813 | BQ51: 8566.823747 | BR51: 8997.536626 | BS51: 0 | BT51: 9709.685824 | BU51: 10315.60674 | BV51: 12440.34672 | BW51: 13431.89339 | BX51: 15167.86215 | BY51: 16596.45667 | BZ51: 17982.67258 | CA51: 14896.22772 | CB51: 18175.07316 | CC51: 18732.05652 | CD51: 21128.13588 | CE51: 9018.755455 | CF51: 9477.459254 | CG51: 5796.69684 | CH51: 0 | CJ51: Аликанте Спецэффект №4 19 мм | CK51: 0 | CL51: =IF(CK51<>0,LOOKUP(,-CODE(CK$3:CK51),CK$3:CK51),CL50) -> 2 | CT51: Ф | CU51: Ф | CV51: Ф | CW51: Ф | CX51: ф | CY51: Ф
B52: 0 | C52: =IF(B52<>0,LOOKUP(,-CODE(B$3:B52),B$3:B52),C51) -> 5 | D52: 5-140(850)-528 | E52: Тумба кухонная двухдверный с двумя метабоксами, Н - 140/180 мм, полка ЛДСП | F52: =IF(E52<>0,LOOKUP(,-CODE(E$3:E52),E$3:E52),F51) -> Тумба кухонная двухдверный с двумя метабоксами, Н - 140/180 мм, полка ЛДСП | H52: 1 | I52: 850 | J52: 720 | K52: 528 | L52: 7268.224582 | M52: 7643.533827 | N52: 10001.69076 | O52: 11300.08719 | P52: 13046.46836 | Q52: 7416.880582 | R52: 7792.189827 | S52: 10150.34676 | T52: 11448.74319 | U52: 13195.12436 | V52: 7049.152582 | W52: 7424.461827 | X52: 9991.914092 | Y52: 11344.41038 | Z52: 13163.55743 | AA52: 8179.25222 | AB52: 8617.113005 | AC52: 11368.29609 | AD52: 12883.09193 | AE52: 14920.53663 | AF52: 9269.956401 | AG52: 9676.541416 | AH52: 12231.21143 | AI52: 13637.80756 | AJ52: 15529.72049 | AK52: 6007.293077 | AL52: 6465.323897 | AM52: 6741.721805 | AN52: 7611.596002 | AO52: 7941.864308 | AP52: 8912.009595 | AQ52: 8043.686642 | AR52: 9212.885105 | AS52: 10584.84412 | AT52: 11224.76807 | AU52: 12959.66489 | AV52: 14280.1487 | AW52: 15561.46097 | AX52: 11371.61008 | AY52: 10156.63618 | AZ52: 13492.1974 | BA52: 11515.31072 | BB52: 8912.009595 | BC52: 8043.686642 | BD52: 9377.824155 | BE52: 10584.84412 | BF52: 11224.76807 | BG52: 12959.66489 | BH52: 14280.1487 | BI52: 15561.46097 | BJ52: 11316.34145 | BK52: 10137.10209 | BL52: 13828.06919 | BM52: 11515.31072 | BN52: 10367.45845 | BO52: 0 | BP52: 12423.93455 | BQ52: 8912.009595 | BR52: 9369.845451 | BS52: 0 | BT52: 10126.84032 | BU52: 10770.91746 | BV52: 13029.45719 | BW52: 14083.44383 | BX52: 15928.73052 | BY52: 17447.2869 | BZ52: 18920.79602 | CA52: 15635.15632 | CB52: 19118.9296 | CC52: 19710.72442 | CD52: 22256.55874 | CE52: 9357.613506 | CF52: 9845.351043 | CG52: 5941.262757 | CH52: 0 | CJ52: Аликанте Спецэффект №5 19 мм | CK52: 0 | CL52: =IF(CK52<>0,LOOKUP(,-CODE(CK$3:CK52),CK$3:CK52),CL51) -> 2 | CT52: Ф | CU52: Ф | CV52: Ф | CW52: Ф | CX52: ф | CY52: Ф
B53: 0 | C53: =IF(B53<>0,LOOKUP(,-CODE(B$3:B53),B$3:B53),C52) -> 5 | D53: 5-140(900)-528 | E53: Тумба кухонная двухдверный с двумя метабоксами, Н - 140/180 мм, полка ЛДСП | F53: =IF(E53<>0,LOOKUP(,-CODE(E$3:E53),E$3:E53),F52) -> Тумба кухонная двухдверный с двумя метабоксами, Н - 140/180 мм, полка ЛДСП | H53: 1 | I53: 900 | J53: 720 | K53: 528 | L53: 7494.573119 | M53: 7892.116324 | N53: 10389.97449 | O53: 11765.29015 | P53: 13615.12992 | Q53: 7647.789119 | R53: 8045.332324 | S53: 10543.19049 | T53: 11918.50615 | U53: 13768.34592 | V53: 7268.781119 | W53: 7666.324324 | X53: 10385.24357 | Y53: 11817.86404 | Z53: 13744.78047 | AA53: 8441.914527 | AB53: 8905.714932 | AC53: 11819.8828 | AD53: 13424.41773 | AE53: 15582.56412 | AF53: 9561.891823 | AG53: 9992.563628 | AH53: 12698.57665 | AI53: 14188.50194 | AJ53: 16192.49502 | AK53: 6173.867616 | AL53: 6653.771923 | AM53: 6943.369349 | AN53: 7865.985812 | AO53: 8214.837111 | AP53: 9257.195443 | AQ53: 8337.431556 | AR53: 9575.895332 | AS53: 11029.13154 | AT53: 11706.96568 | AU53: 13544.64074 | AV53: 14943.35227 | AW53: 16300.57167 | AX53: 11862.50685 | AY53: 10575.55584 | AZ53: 14108.72139 | BA53: 12014.72056 | BB53: 9257.195443 | BC53: 8337.431556 | BD53: 9750.605652 | BE53: 11029.13154 | BF53: 11706.96568 | BG53: 13544.64074 | BH53: 14943.35227 | BI53: 16300.57167 | BJ53: 11803.96402 | BK53: 10554.8645 | BL53: 14464.4908 | BM53: 12014.72056 | BN53: 10798.86758 | BO53: 0 | BP53: 12894.7878 | BQ53: 9257.195443 | BR53: 9742.154277 | BS53: 0 | BT53: 10543.99481 | BU53: 11226.22819 | BV53: 13618.56765 | BW53: 14734.99427 | BX53: 16689.59888 | BY53: 18298.11714 | BZ53: 19858.91945 | CA53: 16374.08491 | CB53: 20062.78603 | CC53: 20689.39231 | CD53: 23384.98159 | CE53: 9696.471556 | CF53: 10213.24283 | CG53: 6085.828673 | CH53: 0 | CJ53: Аликанте Паллацио глянцевая 19 мм | CK53: 0 | CL53: =IF(CK53<>0,LOOKUP(,-CODE(CK$3:CK53),CK$3:CK53),CL52) -> 2 | CT53: Ф | CU53: Ф | CV53: Ф | CW53: Ф | CX53: ф | CY53: Ф
B54: 0 | C54: =IF(B54<>0,LOOKUP(,-CODE(B$3:B54),B$3:B54),C53) -> 5 | D54: 5-140(950)-528 | E54: Тумба кухонная двухдверный с двумя метабоксами, Н - 140/180 мм, полка ЛДСП | F54: =IF(E54<>0,LOOKUP(,-CODE(E$3:E54),E$3:E54),F53) -> Тумба кухонная двухдверный с двумя метабоксами, Н - 140/180 мм, полка ЛДСП | H54: 1 | I54: 950 | J54: 720 | K54: 528 | L54: 7720.921656 | M54: 8140.69882 | N54: 10778.25823 | O54: 12230.49311 | P54: 14183.79147 | Q54: 7878.697656 | R54: 8298.47482 | S54: 10936.03423 | T54: 12388.26911 | U54: 14341.56747 | V54: 7488.409656 | W54: 7908.18682 | X54: 10778.57305 | Y54: 12291.31771 | Z54: 14326.00351 | AA54: 8704.576833 | AB54: 9194.316859 | AC54: 12271.46951 | AD54: 13965.74352 | AE54: 16244.59162 | AF54: 9853.827244 | AG54: 10308.58584 | AH54: 13165.94187 | AI54: 14739.19631 | AJ54: 16855.26955 | AK54: 6340.442155 | AL54: 6842.219949 | AM54: 7145.016894 | AN54: 8120.375623 | AO54: 8487.809913 | AP54: 9602.381291 | AQ54: 8631.176471 | AR54: 9938.905558 | AS54: 11473.41895 | AT54: 12189.16329 | AU54: 14129.61659 | AV54: 15606.55584 | AW54: 17039.68236 | AX54: 12353.40363 | AY54: 10994.47549 | AZ54: 14725.24538 | BA54: 12514.13041 | BB54: 9602.381291 | BC54: 8631.176471 | BD54: 10123.38715 | BE54: 11473.41895 | BF54: 12189.16329 | BG54: 14129.61659 | BH54: 15606.55584 | BI54: 17039.68236 | BJ54: 12291.58659 | BK54: 10972.62692 | BL54: 15100.91241 | BM54: 12514.13041 | BN54: 11230.2767 | BO54: 0 | BP54: 13365.64105 | BQ54: 9602.381291 | BR54: 10114.4631 | BS54: 0 | BT54: 10961.1493 | BU54: 11681.53891 | BV54: 14207.67812 | BW54: 15386.5447 | BX54: 17450.46725 | BY54: 19148.94738 | BZ54: 20797.04288 | CA54: 17113.01351 | CB54: 21006.64247 | CC54: 21668.06021 | CD54: 24513.40445 | CE54: 10035.32961 | CF54: 10581.13462 | CG54: 6230.39459 | CH54: 0 | CJ54: Аликанте Паллацио матовая 19 мм | CK54: 0 | CL54: =IF(CK54<>0,LOOKUP(,-CODE(CK$3:CK54),CK$3:CK54),CL53) -> 2 | CT54: Ф | CU54: Ф | CV54: Ф | CW54: Ф | CX54: ф | CY54: Ф
B55: 0 | C55: =IF(B55<>0,LOOKUP(,-CODE(B$3:B55),B$3:B55),C54) -> 5 | D55: 5-140(1000)-528 | E55: Тумба кухонная двухдверный с двумя метабоксами, Н - 140/180 мм, полка ЛДСП | F55: =IF(E55<>0,LOOKUP(,-CODE(E$3:E55),E$3:E55),F54) -> Тумба кухонная двухдверный с двумя метабоксами, Н - 140/180 мм, полка ЛДСП | H55: 1 | I55: 1000 | J55: 720 | K55: 528 | L55: 7947.270192 | M55: 8389.281317 | N55: 11166.54197 | O55: 12695.69606 | P55: 14752.45303 | Q55: 8109.606192 | R55: 8551.617317 | S55: 11328.87797 | T55: 12858.03206 | U55: 14914.78903 | V55: 7708.038192 | W55: 8150.049317 | X55: 11171.90253 | Y55: 12764.77138 | Z55: 14907.22655 | AA55: 8967.23914 | AB55: 9482.918785 | AC55: 12723.05621 | AD55: 14507.06932 | AE55: 16906.61912 | AF55: 10145.76267 | AG55: 10624.60805 | AH55: 13633.30709 | AI55: 15289.89069 | AJ55: 17518.04407 | AK55: 6507.016694 | AL55: 7030.667975 | AM55: 7346.664438 | AN55: 8374.765433 | AO55: 8760.782716 | AP55: 9947.567139 | AQ55: 8924.921386 | AR55: 10301.91578 | AS55: 11917.70637 | AT55: 12671.36089 | AU55: 14714.59245 | AV55: 16269.75941 | AW55: 17778.79305 | AX55: 12844.30041 | AY55: 11413.39514 | AZ55: 15341.76936 | BA55: 13013.54026 | BB55: 9947.567139 | BC55: 8924.921386 | BD55: 10496.16865 | BE55: 11917.70637 | BF55: 12671.36089 | BG55: 14714.59245 | BH55: 16269.75941 | BI55: 17778.79305 | BJ55: 12779.20916 | BK55: 11390.38934 | BL55: 15737.33401 | BM55: 13013.54026 | BN55: 11661.68582 | BO55: 0 | BP55: 13836.4943 | BQ55: 9947.567139 | BR55: 10486.77193 | BS55: 0 | BT55: 11378.30379 | BU55: 12136.84963 | BV55: 14796.78859 | BW55: 16038.09514 | BX55: 18211.33562 | BY55: 19999.77762 | BZ55: 21735.16631 | CA55: 17851.94211 | CB55: 21950.49891 | CC55: 22646.72811 | CD55: 25641.82731 | CE55: 10374.18766 | CF55: 10949.02641 | CG55: 6374.960507 | CH55: 0 | CJ55: Аликанте Спецэффект №2 + Фотопечать 19 мм | CK55: 0 | CL55: =IF(CK55<>0,LOOKUP(,-CODE(CK$3:CK55),CK$3:CK55),CL54) -> 2 | CT55: Ф | CU55: Ф | CV55: Ф | CW55: Ф | CX55: ф | CY55: Ф
A56: 8/1 | B56: 0 | C56: =IF(B56<>0,LOOKUP(,-CODE(B$3:B56),B$3:B56),C55) -> 5 | D56: 5-180(600)-528 | E56: Тумба кухонная двухдверный с двумя метабоксами, Н - 140/180 мм, полка ЛДСП | F56: =IF(E56<>0,LOOKUP(,-CODE(E$3:E56),E$3:E56),F55) -> Тумба кухонная двухдверный с двумя метабоксами, Н - 140/180 мм, полка ЛДСП | H56: 1 | I56: 600 | J56: 720 | K56: 528 | L56: 6136.481899 | M56: 6400.621344 | N56: 8060.272075 | O56: 8974.072409 | P56: 10203.16058 | Q56: 6262.337899 | R56: 6526.477344 | S56: 8186.128075 | T56: 9099.928409 | U56: 10329.01658 | V56: 5951.009899 | W56: 6215.149344 | X56: 8025.266696 | Y56: 8977.142043 | Z56: 10257.44222 | AA56: 6865.940687 | AB56: 7174.103372 | AC56: 9110.362559 | AD56: 10176.46295 | AE56: 11610.39914 | AF56: 7810.279293 | AG56: 8096.430358 | AH56: 9894.385317 | AI56: 10884.33568 | AJ56: 12215.84786 | AK56: 5174.420382 | AL56: 5523.083766 | AM56: 5733.484084 | AN56: 6339.646951 | AO56: 6577.000295 | AP56: 7186.080356 | AQ56: 6574.962069 | AR56: 7397.833973 | AS56: 8363.407022 | AT56: 8813.780043 | AU56: 10034.78562 | AV56: 10964.13087 | AW56: 11865.90751 | AX56: 8917.126191 | AY56: 8062.037932 | AZ56: 10409.57746 | BA56: 9018.261476 | BB56: 7186.080356 | BC56: 6574.962069 | BD56: 7513.916669 | BE56: 8363.407022 | BF56: 8813.780043 | BG56: 10034.78562 | BH56: 10964.13087 | BI56: 11865.90751 | BJ56: 8878.228604 | BK56: 8048.29 | BL56: 10645.96116 | BM56: 9018.261476 | BN56: 8210.412847 | BO56: 7642.226179 | BP56: 11204.9003 | BQ56: 7186.080356 | BR56: 7508.301326 | BS56: 9484.238755 | BT56: 8041.067854 | BU56: 8494.363856 | BV56: 10083.90485 | BW56: 10825.69165 | BX56: 12124.38868 | BY56: 13193.13571 | BZ56: 14230.17886 | CA56: 12197.18181 | CB56: 14738.53413 | CC56: 15170.23821 | CD56: 17027.38029 | CE56: 7872.841425 | CF56: 8216.457759 | CG56: 5218.401173 | CH56: 0 | CJ56: Аликанте Фотопечать 19 мм | CK56: 0 | CL56: =IF(CK56<>0,LOOKUP(,-CODE(CK$3:CK56),CK$3:CK56),CL55) -> 2 | CT56: =$I56*$J56/1000000 -> 0.432 | CU56: 129.6 | CV56: 1.2 | CW56: 1440 | CX56: ф | CY56: 1569.6
B57: 0 | C57: =IF(B57<>0,LOOKUP(,-CODE(B$3:B57),B$3:B57),C56) -> 5 | D57: 5-180(650)-528 | E57: Тумба кухонная двухдверный с двумя метабоксами, Н - 140/180 мм, полка ЛДСП | F57: =IF(E57<>0,LOOKUP(,-CODE(E$3:E57),E$3:E57),F56) -> Тумба кухонная двухдверный с двумя метабоксами, Н - 140/180 мм, полка ЛДСП | H57: 1 | I57: 650 | J57: 720 | K57: 528 | L57: 6362.830436 | M57: 6649.20384 | N57: 8448.555812 | O57: 9439.275365 | P57: 10771.82213 | Q57: 6493.246436 | R57: 6779.61984 | S57: 8578.971812 | T57: 9569.691365 | U57: 10902.23813 | V57: 6170.638436 | W57: 6457.01184 | X57: 8418.596175 | Y57: 9450.59571 | Z57: 10838.66526 | AA57: 7128.602993 | AB57: 7462.705299 | AC57: 9561.949265 | AD57: 10717.78874 | AE57: 12272.42664 | AF57: 8102.214714 | AG57: 8412.45257 | AH57: 10361.75054 | AI57: 11435.03005 | AJ57: 12878.62239 | AK57: 5340.994921 | AL57: 5711.531792 | AM57: 5935.131629 | AN57: 6594.036761 | AO57: 6849.973097 | AP57: 7531.266204 | AQ57: 6868.706983 | AR57: 7760.844199 | AS57: 8807.694441 | AT57: 9295.977649 | AU57: 10619.76147 | AV57: 11627.33443 | AW57: 12605.0182 | AX57: 9408.022968 | AY57: 8480.957583 | AZ57: 11026.10145 | BA57: 9517.671324 | BB57: 7531.266204 | BC57: 6868.706983 | BD57: 7886.698167 | BE57: 8807.694441 | BF57: 9295.977649 | BG57: 10619.76147 | BH57: 11627.33443 | BI57: 12605.0182 | BJ57: 9365.851174 | BK57: 8466.052417 | BL57: 11282.38277 | BM57: 9517.671324 | BN57: 8641.821969 | BO57: 8025.80814 | BP57: 11777.11355 | BQ57: 7531.266204 | BR57: 7880.610151 | BS57: 10022.87228 | BT57: 8458.222347 | BU57: 8949.674578 | BV57: 10673.01531 | BW57: 11477.24209 | BX57: 12885.25705 | BY57: 14043.96595 | BZ57: 15168.30229 | CA57: 12957.49945 | CB57: 15710.63113 | CC57: 16178.31055 | CD57: 18190.21447 | CE57: 8224.604169 | CF57: 8597.660877 | CG57: 5363.08709 | CH57: 0 | CJ57: Аликанте Асти 19 мм | CK57: 0 | CL57: =IF(CK57<>0,LOOKUP(,-CODE(CK$3:CK57),CK$3:CK57),CL56) -> 2 | CT57: 0.468 | CU57: 140.4 | CV57: 1.3 | CW57: 1560 | CX57: ф | CY57: 1700.4
B58: 0 | C58: =IF(B58<>0,LOOKUP(,-CODE(B$3:B58),B$3:B58),C57) -> 5 | D58: 5-180(700)-528 | F58: =IF(E58<>0,LOOKUP(,-CODE(E$3:E58),E$3:E58),F57) -> Тумба кухонная двухдверный с двумя метабоксами, Н - 140/180 мм, полка ЛДСП | H58: 1 | I58: 700 | J58: 720 | K58: 528 | L58: 6589.178972 | M58: 6897.786337 | N58: 8836.839548 | O58: 9904.478322 | P58: 11340.48369 | Q58: 6724.154972 | R58: 7032.762337 | S58: 8971.815548 | T58: 10039.45432 | U58: 11475.45969 | V58: 6390.266972 | W58: 6698.874337 | X58: 8811.925654 | Y58: 9924.049377 | Z58: 11419.8883 | AA58: 7391.2653 | AB58: 7751.307225 | AC58: 10013.53597 | AD58: 11259.11454 | AE58: 12934.45414 | AF58: 8394.150136 | AG58: 8728.474781 | AH58: 10829.11576 | AI58: 11985.72443 | AJ58: 13541.39691 | AK58: 5507.56946 | AL58: 5899.979818 | AM58: 6136.779173 | AN58: 6848.426571 | AO58: 7122.9459 | AP58: 7876.452052 | AQ58: 7162.451898 | AR58: 8123.854426 | AS58: 9251.98186 | AT58: 9778.175255 | AU58: 11204.73733 | AV58: 12290.538 | AW58: 13344.1289 | AX58: 9898.919745 | AY58: 8899.877233 | AZ58: 11642.62544 | BA58: 10017.08117 | BB58: 7876.452052 | BC58: 7162.451898 | BD58: 8259.479664 | BE58: 9251.98186 | BF58: 9778.175255 | BG58: 11204.73733 | BH58: 12290.538 | BI58: 13344.1289 | BJ58: 9853.473743 | BK58: 8883.814834 | BL58: 11918.80438 | BM58: 10017.08117 | BN58: 9073.23109 | BO58: 8409.390101 | BP58: 12349.3268 | BQ58: 7876.452052 | BR58: 8252.918976 | BS58: 10561.5058 | BT58: 8875.376839 | BU58: 9404.985299 | BV58: 11262.12578 | BW58: 12128.79252 | BX58: 13646.12542 | BY58: 14894.79619 | BZ58: 16106.42572 | CA58: 13717.81709 | CB58: 16682.72813 | CC58: 17186.38289 | CD58: 19353.04865 | CE58: 8576.366913 | CF58: 8978.863995 | CG58: 5507.773007 | CH58: 0 | CJ58: Аликанте Монреаль 19 мм | CK58: 0 | CL58: =IF(CK58<>0,LOOKUP(,-CODE(CK$3:CK58),CK$3:CK58),CL57) -> 2 | CT58: 0.504 | CU58: 151.2 | CV58: 1.4 | CW58: 1680 | CX58: ф | CY58: 1831.2
B59: 0 | C59: =IF(B59<>0,LOOKUP(,-CODE(B$3:B59),B$3:B59),C58) -> 5 | D59: 5-180(750)-528 | F59: =IF(E59<>0,LOOKUP(,-CODE(E$3:E59),E$3:E59),F58) -> Тумба кухонная двухдверный с двумя метабоксами, Н - 140/180 мм, полка ЛДСП | H59: 1 | I59: 750 | J59: 720 | K59: 528 | L59: 6815.527509 | M59: 7146.368834 | N59: 9225.123285 | O59: 10369.68128 | P59: 11909.14525 | Q59: 6955.063509 | R59: 7285.904834 | S59: 9364.659285 | T59: 10509.21728 | U59: 12048.68125 | V59: 6609.895509 | W59: 6940.736834 | X59: 9205.255133 | Y59: 10397.50304 | Z59: 12001.11134 | AA59: 7653.927607 | AB59: 8039.909152 | AC59: 10465.12268 | AD59: 11800.44034 | AE59: 13596.48163 | AF59: 8686.085558 | AG59: 9044.496993 | AH59: 11296.48098 | AI59: 12536.41881 | AJ59: 14204.17144 | AK59: 5674.143999 | AL59: 6088.427844 | AM59: 6338.426717 | AN59: 7102.816382 | AO59: 7395.918703 | AP59: 8221.637899 | AQ59: 7456.196813 | AR59: 8486.864652 | AS59: 9696.269279 | AT59: 10260.37286 | AU59: 11789.71318 | AV59: 12953.74157 | AW59: 14083.23959 | AX59: 10389.81652 | AY59: 9318.796884 | AZ59: 12259.14942 | BA59: 10516.49102 | BB59: 8221.637899 | BC59: 7456.196813 | BD59: 8632.261161 | BE59: 9696.269279 | BF59: 10260.37286 | BG59: 11789.71318 | BH59: 12953.74157 | BI59: 14083.23959 | BJ59: 10341.09631 | BK59: 9301.577252 | BL59: 12555.22598 | BM59: 10516.49102 | BN59: 9504.640212 | BO59: 8792.972062 | BP59: 12921.54005 | BQ59: 8221.637899 | BR59: 8625.227801 | BS59: 11100.13933 | BT59: 9292.531332 | BU59: 9860.296021 | BV59: 11851.23625 | BW59: 12780.34296 | BX59: 14406.99378 | BY59: 15745.62643 | BZ59: 17044.54915 | CA59: 14478.13472 | CB59: 17654.82512 | CC59: 18194.45522 | CD59: 20515.88282 | CE59: 8928.129657 | CF59: 9360.067113 | CG59: 5652.458923 | CH59: 0 | CJ59: Аликанте Ампир 19 мм | CK59: 0 | CL59: =IF(CK59<>0,LOOKUP(,-CODE(CK$3:CK59),CK$3:CK59),CL58) -> 2 | CT59: 0.54 | CU59: 162 | CV59: 1.5 | CW59: 1800 | CX59: ф | CY59: 1962
B60: 0 | C60: =IF(B60<>0,LOOKUP(,-CODE(B$3:B60),B$3:B60),C59) -> 5 | D60: 5-180(800)-528 | F60: =IF(E60<>0,LOOKUP(,-CODE(E$3:E60),E$3:E60),F59) -> Тумба кухонная двухдверный с двумя метабоксами, Н - 140/180 мм, полка ЛДСП | H60: 1 | I60: 800 | J60: 720 | K60: 528 | L60: 7041.876046 | M60: 7394.95133 | N60: 9613.407022 | O60: 10834.88424 | P60: 12477.8068 | Q60: 7185.972046 | R60: 7539.04733 | S60: 9757.503022 | T60: 10978.98024 | U60: 12621.9028 | V60: 6829.524046 | W60: 7182.59933 | X60: 9598.584612 | Y60: 10870.95671 | Z60: 12582.33439 | AA60: 7916.589913 | AB60: 8328.511079 | AC60: 10916.70939 | AD60: 12341.76613 | AE60: 14258.50913 | AF60: 8978.020979 | AG60: 9360.519205 | AH60: 11763.8462 | AI60: 13087.11318 | AJ60: 14866.94597 | AK60: 5840.718538 | AL60: 6276.875871 | AM60: 6540.074261 | AN60: 7357.206192 | AO60: 7668.891505 | AP60: 8566.823747 | AQ60: 7749.941727 | AR60: 8849.874879 | AS60: 10140.5567 | AT60: 10742.57047 | AU60: 12374.68903 | AV60: 13616.94514 | AW60: 14822.35028 | AX60: 10880.7133 | AY60: 9737.716534 | AZ60: 12875.67341 | BA60: 11015.90087 | BB60: 8566.823747 | BC60: 7749.941727 | BD60: 9005.042658 | BE60: 10140.5567 | BF60: 10742.57047 | BG60: 12374.68903 | BH60: 13616.94514 | BI60: 14822.35028 | BJ60: 10828.71888 | BK60: 9719.339669 | BL60: 13191.64759 | BM60: 11015.90087 | BN60: 9936.049333 | BO60: 9176.554023 | BP60: 13493.7533 | BQ60: 8566.823747 | BR60: 8997.536626 | BS60: 11638.77285 | BT60: 9709.685824 | BU60: 10315.60674 | BV60: 12440.34672 | BW60: 13431.89339 | BX60: 15167.86215 | BY60: 16596.45667 | BZ60: 17982.67258 | CA60: 14935.4994 | CB60: 18226.92468 | CC60: 18786.045 | CD60: 21191.31732 | CE60: 9279.892401 | CF60: 9741.270232 | CG60: 5797.14484 | CH60: 0 | CJ60: Аликанте Рекодо 22 мм | CK60: 0 | CL60: =IF(CK60<>0,LOOKUP(,-CODE(CK$3:CK60),CK$3:CK60),CL59) -> 2 | CT60: 0.576 | CU60: 172.8 | CV60: 1.6 | CW60: 1920 | CX60: ф | CY60: 2092.8
B61: 0 | C61: =IF(B61<>0,LOOKUP(,-CODE(B$3:B61),B$3:B61),C60) -> 5 | D61: 5-180(850)-528 | F61: =IF(E61<>0,LOOKUP(,-CODE(E$3:E61),E$3:E61),F60) -> Тумба кухонная двухдверный с двумя метабоксами, Н - 140/180 мм, полка ЛДСП | H61: 1 | I61: 850 | J61: 720 | K61: 528 | L61: 7268.224582 | M61: 7643.533827 | N61: 10001.69076 | O61: 11300.08719 | P61: 13046.46836 | Q61: 7416.880582 | R61: 7792.189827 | S61: 10150.34676 | T61: 11448.74319 | U61: 13195.12436 | V61: 7049.152582 | W61: 7424.461827 | X61: 9991.914092 | Y61: 11344.41038 | Z61: 13163.55743 | AA61: 8179.25222 | AB61: 8617.113005 | AC61: 11368.29609 | AD61: 12883.09193 | AE61: 14920.53663 | AF61: 9269.956401 | AG61: 9676.541416 | AH61: 12231.21143 | AI61: 13637.80756 | AJ61: 15529.72049 | AK61: 6007.293077 | AL61: 6465.323897 | AM61: 6741.721805 | AN61: 7611.596002 | AO61: 7941.864308 | AP61: 8912.009595 | AQ61: 8043.686642 | AR61: 9212.885105 | AS61: 10584.84412 | AT61: 11224.76807 | AU61: 12959.66489 | AV61: 14280.1487 | AW61: 15561.46097 | AX61: 11371.61008 | AY61: 10156.63618 | AZ61: 13492.1974 | BA61: 11515.31072 | BB61: 8912.009595 | BC61: 8043.686642 | BD61: 9377.824155 | BE61: 10584.84412 | BF61: 11224.76807 | BG61: 12959.66489 | BH61: 14280.1487 | BI61: 15561.46097 | BJ61: 11316.34145 | BK61: 10137.10209 | BL61: 13828.06919 | BM61: 11515.31072 | BN61: 10367.45845 | BO61: 9560.135984 | BP61: 14065.96655 | BQ61: 8912.009595 | BR61: 9369.845451 | BS61: 12177.40638 | BT61: 10126.84032 | BU61: 10770.91746 | BV61: 13029.45719 | BW61: 14083.44383 | BX61: 15928.73052 | BY61: 17447.2869 | BZ61: 18920.79602 | CA61: 15676.88248 | CB61: 19174.02184 | CC61: 19768.08718 | CD61: 22323.68902 | CE61: 9631.655146 | CF61: 10122.47335 | CG61: 5941.830757 | CH61: 0 | CJ61: Барселона (Модера) | CK61: 0 | CL61: =IF(CK61<>0,LOOKUP(,-CODE(CK$3:CK61),CK$3:CK61),CL60) -> 2 | CT61: 0.612 | CU61: 183.6 | CV61: 1.7 | CW61: 2040 | CX61: ф | CY61: 2223.6
B62: 0 | C62: =IF(B62<>0,LOOKUP(,-CODE(B$3:B62),B$3:B62),C61) -> 5 | D62: 5-180(900)-528 | F62: =IF(E62<>0,LOOKUP(,-CODE(E$3:E62),E$3:E62),F61) -> Тумба кухонная двухдверный с двумя метабоксами, Н - 140/180 мм, полка ЛДСП | H62: 1 | I62: 900 | J62: 720 | K62: 528 | L62: 7494.573119 | M62: 7892.116324 | N62: 10389.97449 | O62: 11765.29015 | P62: 13615.12992 | Q62: 7647.789119 | R62: 8045.332324 | S62: 10543.19049 | T62: 11918.50615 | U62: 13768.34592 | V62: 7268.781119 | W62: 7666.324324 | X62: 10385.24357 | Y62: 11817.86404 | Z62: 13744.78047 | AA62: 8441.914527 | AB62: 8905.714932 | AC62: 11819.8828 | AD62: 13424.41773 | AE62: 15582.56412 | AF62: 9561.891823 | AG62: 9992.563628 | AH62: 12698.57665 | AI62: 14188.50194 | AJ62: 16192.49502 | AK62: 6173.867616 | AL62: 6653.771923 | AM62: 6943.369349 | AN62: 7865.985812 | AO62: 8214.837111 | AP62: 9257.195443 | AQ62: 8337.431556 | AR62: 9575.895332 | AS62: 11029.13154 | AT62: 11706.96568 | AU62: 13544.64074 | AV62: 14943.35227 | AW62: 16300.57167 | AX62: 11862.50685 | AY62: 10575.55584 | AZ62: 14108.72139 | BA62: 12014.72056 | BB62: 9257.195443 | BC62: 8337.431556 | BD62: 9750.605652 | BE62: 11029.13154 | BF62: 11706.96568 | BG62: 13544.64074 | BH62: 14943.35227 | BI62: 16300.57167 | BJ62: 11803.96402 | BK62: 10554.8645 | BL62: 14464.4908 | BM62: 12014.72056 | BN62: 10798.86758 | BO62: 9943.717945 | BP62: 14638.1798 | BQ62: 9257.195443 | BR62: 9742.154277 | BS62: 12716.0399 | BT62: 10543.99481 | BU62: 11226.22819 | BV62: 13618.56765 | BW62: 14734.99427 | BX62: 16689.59888 | BY62: 18298.11714 | BZ62: 19858.91945 | CA62: 16418.26555 | CB62: 20121.11899 | CC62: 20750.12935 | CD62: 23456.06071 | CE62: 9983.41789 | CF62: 10503.67647 | CG62: 6086.516673 | CH62: 0 | CJ62: Барселона (Эра) | CK62: 0 | CL62: =IF(CK62<>0,LOOKUP(,-CODE(CK$3:CK62),CK$3:CK62),CL61) -> 2 | CT62: 0.648 | CU62: 194.4 | CV62: 1.8 | CW62: 2160 | CX62: ф | CY62: 2354.4
B63: 0 | C63: =IF(B63<>0,LOOKUP(,-CODE(B$3:B63),B$3:B63),C62) -> 5 | D63: 5-180(950)-528 | F63: =IF(E63<>0,LOOKUP(,-CODE(E$3:E63),E$3:E63),F62) -> Тумба кухонная двухдверный с двумя метабоксами, Н - 140/180 мм, полка ЛДСП | H63: 1 | I63: 950 | J63: 720 | K63: 528 | L63: 7720.921656 | M63: 8140.69882 | N63: 10778.25823 | O63: 12230.49311 | P63: 14183.79147 | Q63: 7878.697656 | R63: 8298.47482 | S63: 10936.03423 | T63: 12388.26911 | U63: 14341.56747 | V63: 7488.409656 | W63: 7908.18682 | X63: 10778.57305 | Y63: 12291.31771 | Z63: 14326.00351 | AA63: 8704.576833 | AB63: 9194.316859 | AC63: 12271.46951 | AD63: 13965.74352 | AE63: 16244.59162 | AF63: 9853.827244 | AG63: 10308.58584 | AH63: 13165.94187 | AI63: 14739.19631 | AJ63: 16855.26955 | AK63: 6340.442155 | AL63: 6842.219949 | AM63: 7145.016894 | AN63: 8120.375623 | AO63: 8487.809913 | AP63: 9602.381291 | AQ63: 8631.176471 | AR63: 9938.905558 | AS63: 11473.41895 | AT63: 12189.16329 | AU63: 14129.61659 | AV63: 15606.55584 | AW63: 17039.68236 | AX63: 12353.40363 | AY63: 10994.47549 | AZ63: 14725.24538 | BA63: 12514.13041 | BB63: 9602.381291 | BC63: 8631.176471 | BD63: 10123.38715 | BE63: 11473.41895 | BF63: 12189.16329 | BG63: 14129.61659 | BH63: 15606.55584 | BI63: 17039.68236 | BJ63: 12291.58659 | BK63: 10972.62692 | BL63: 15100.91241 | BM63: 12514.13041 | BN63: 11230.2767 | BO63: 10327.29991 | BP63: 15210.39305 | BQ63: 9602.381291 | BR63: 10114.4631 | BS63: 13254.67343 | BT63: 10961.1493 | BU63: 11681.53891 | BV63: 14207.67812 | BW63: 15386.5447 | BX63: 17450.46725 | BY63: 19148.94738 | BZ63: 20797.04288 | CA63: 17159.64863 | CB63: 21068.21615 | CC63: 21732.17153 | CD63: 24588.43241 | CE63: 10335.18063 | CF63: 10884.87959 | CG63: 6231.20259 | CH63: 0 | CJ63: Барселона Высокий глянец (Модера-мыло) | CK63: 0 | CL63: =IF(CK63<>0,LOOKUP(,-CODE(CK$3:CK63),CK$3:CK63),CL62) -> 2 | CT63: 0.684 | CU63: 205.2 | CV63: 1.9 | CW63: 2280 | CX63: ф | CY63: 2485.2
B64: 0 | C64: =IF(B64<>0,LOOKUP(,-CODE(B$3:B64),B$3:B64),C63) -> 5 | D64: 5-180(1000)-528 | F64: =IF(E64<>0,LOOKUP(,-CODE(E$3:E64),E$3:E64),F63) -> Тумба кухонная двухдверный с двумя метабоксами, Н - 140/180 мм, полка ЛДСП | H64: 1 | I64: 1000 | J64: 720 | K64: 528 | L64: 7947.270192 | M64: 8389.281317 | N64: 11166.54197 | O64: 12695.69606 | P64: 14752.45303 | Q64: 8109.606192 | R64: 8551.617317 | S64: 11328.87797 | T64: 12858.03206 | U64: 14914.78903 | V64: 7708.038192 | W64: 8150.049317 | X64: 11171.90253 | Y64: 12764.77138 | Z64: 14907.22655 | AA64: 8967.23914 | AB64: 9482.918785 | AC64: 12723.05621 | AD64: 14507.06932 | AE64: 16906.61912 | AF64: 10145.76267 | AG64: 10624.60805 | AH64: 13633.30709 | AI64: 15289.89069 | AJ64: 17518.04407 | AK64: 6507.016694 | AL64: 7030.667975 | AM64: 7346.664438 | AN64: 8374.765433 | AO64: 8760.782716 | AP64: 9947.567139 | AQ64: 8924.921386 | AR64: 10301.91578 | AS64: 11917.70637 | AT64: 12671.36089 | AU64: 14714.59245 | AV64: 16269.75941 | AW64: 17778.79305 | AX64: 12844.30041 | AY64: 11413.39514 | AZ64: 15341.76936 | BA64: 13013.54026 | BB64: 9947.567139 | BC64: 8924.921386 | BD64: 10496.16865 | BE64: 11917.70637 | BF64: 12671.36089 | BG64: 14714.59245 | BH64: 16269.75941 | BI64: 17778.79305 | BJ64: 12779.20916 | BK64: 11390.38934 | BL64: 15737.33401 | BM64: 13013.54026 | BN64: 11661.68582 | BO64: 10710.88187 | BP64: 15782.6063 | BQ64: 9947.567139 | BR64: 10486.77193 | BS64: 13793.30695 | BT64: 11378.30379 | BU64: 12136.84963 | BV64: 14796.78859 | BW64: 16038.09514 | BX64: 18211.33562 | BY64: 19999.77762 | BZ64: 21735.16631 | CA64: 17901.03171 | CB64: 22015.31331 | CC64: 22714.21371 | CD64: 25720.80411 | CE64: 10686.94338 | CF64: 11266.0827 | CG64: 6375.888507 | CH64: 0 | CJ64: Барселона Высокий глянец (Арче, Техно, Техно-Горизонталь, Модера-горизонталь) | CK64: 0 | CL64: =IF(CK64<>0,LOOKUP(,-CODE(CK$3:CK64),CK$3:CK64),CL63) -> 2 | CT64: 0.72 | CU64: 216 | CV64: 2 | CW64: 2400 | CX64: ф | CY64: 2616
A65: 219/2 | B65: 6 | C65: =IF(B65<>0,LOOKUP(,-CODE(B$3:B65),B$3:B65),C64) -> 6 | D65: 6-140(600)-528 | E65: Тумба кухонная двухдверный с двумя леграбоксами, Н - 140/180 мм, полка ЛДСП | F65: =IF(E65<>0,LOOKUP(,-CODE(E$3:E65),E$3:E65),F64) -> Тумба кухонная двухдверный с двумя леграбоксами, Н - 140/180 мм, полка ЛДСП | H65: 1 | I65: 600 | J65: 720 | K65: 528 | L65: 9733.381992 | M65: 9997.521437 | N65: 11657.17217 | O65: 12570.9725 | P65: 13800.06067 | Q65: 9859.237992 | R65: 10123.37744 | S65: 11783.02817 | T65: 12696.8285 | U65: 13925.91667 | V65: 9547.909992 | W65: 9812.049437 | X65: 11622.16679 | Y65: 12574.04214 | Z65: 13854.34231 | AA65: 10462.84078 | AB65: 10771.00347 | AC65: 12707.26265 | AD65: 13773.36304 | AE65: 15207.29924 | AF65: 11407.17939 | AG65: 11693.33045 | AH65: 13491.28541 | AI65: 14481.23577 | AJ65: 15812.74795 | AK65: 8771.320475 | AL65: 9119.983859 | AM65: 9330.384178 | AN65: 9936.547044 | AO65: 10173.90039 | AP65: 10782.98045 | AQ65: 10171.86216 | AR65: 10994.73407 | AS65: 11960.30711 | AT65: 12410.68014 | AU65: 13631.68571 | AV65: 14561.03096 | AW65: 15462.8076 | AX65: 12514.02628 | AY65: 11658.93803 | AZ65: 14006.47755 | BA65: 12615.16157 | BB65: 10782.98045 | BC65: 10171.86216 | BD65: 11110.81676 | BE65: 11960.30711 | BF65: 12410.68014 | BG65: 13631.68571 | BH65: 14561.03096 | BI65: 15462.8076 | BJ65: 12475.1287 | BK65: 11645.19009 | BL65: 14242.86126 | BM65: 12615.16157 | BN65: 11807.31294 | BO65: 0 | BP65: 13666.56839 | BQ65: 10782.98045 | BR65: 11105.20142 | BS65: 0 | BT65: 11637.96795 | BU65: 12091.26395 | BV65: 13680.80494 | BW65: 14422.59175 | BX65: 15721.28877 | BY65: 16790.03581 | BZ65: 17827.07895 | CA65: 15781.45887 | CB65: 18318.76767 | CC65: 18749.78487 | CD65: 20603.97207 | CE65: 11260.22335 | CF65: 11602.79219 | CG65: 8815.333267 | CH65: 0 | CJ65: Барселона спецэффект №1 (Арче, Техно, Техно-Горизонталь) | CK65: 2 | CL65: =IF(CK65<>0,LOOKUP(,-CODE(CK$3:CK65),CK$3:CK65),CL64) -> 2 | CT65: Ф | CU65: Ф | CV65: Ф | CW65: Ф | CX65: ф | CY65: Ф
B66: 0 | C66: =IF(B66<>0,LOOKUP(,-CODE(B$3:B66),B$3:B66),C65) -> 6 | D66: 6-140(650)-528 | E66: Тумба кухонная двухдверный с двумя леграбоксами, Н - 140/180 мм, полка ЛДСП | F66: =IF(E66<>0,LOOKUP(,-CODE(E$3:E66),E$3:E66),F65) -> Тумба кухонная двухдверный с двумя леграбоксами, Н - 140/180 мм, полка ЛДСП | H66: 1 | I66: 650 | J66: 720 | K66: 528 | L66: 9959.336779 | M66: 10245.71018 | N66: 12045.06215 | O66: 13035.78171 | P66: 14368.32848 | Q66: 10089.75278 | R66: 10376.12618 | S66: 12175.47815 | T66: 13166.19771 | U66: 14498.74448 | V66: 9767.144779 | W66: 10053.51818 | X66: 12015.10252 | Y66: 13047.10205 | Z66: 14435.1716 | AA66: 10725.10934 | AB66: 11059.21164 | AC66: 13158.45561 | AD66: 14314.29509 | AE66: 15868.93298 | AF66: 11698.72106 | AG66: 12008.95891 | AH66: 13958.25688 | AI66: 15031.5364 | AJ66: 16475.12873 | AK66: 8937.501264 | AL66: 9308.038136 | AM66: 9531.637972 | AN66: 10190.5431 | AO66: 10446.47944 | AP66: 11127.77255 | AQ66: 10465.21333 | AR66: 11357.35054 | AS66: 12404.20078 | AT66: 12892.48399 | AU66: 14216.26782 | AV66: 15223.84078 | AW66: 16201.52455 | AX66: 13004.52931 | AY66: 12077.46393 | AZ66: 14622.60779 | BA66: 13114.17767 | BB66: 11127.77255 | BC66: 10465.21333 | BD66: 11483.20451 | BE66: 12404.20078 | BF66: 12892.48399 | BG66: 14216.26782 | BH66: 15223.84078 | BI66: 16201.52455 | BJ66: 12962.35752 | BK66: 12062.55876 | BL66: 14878.88911 | BM66: 13114.17767 | BN66: 12238.32831 | BO66: 0 | BP66: 14137.02789 | BQ66: 11127.77255 | BR66: 11477.11649 | BS66: 0 | BT66: 12054.72869 | BU66: 12546.18092 | BV66: 14269.52166 | BW66: 15073.74843 | BX66: 16481.76339 | BY66: 17640.4723 | BZ66: 18764.80863 | CA66: 16540.33083 | CB66: 19289.08203 | CC66: 19756.01733 | CD66: 21764.72013 | CE66: 11598.68765 | CF66: 11970.29023 | CG66: 8959.505433 | CH66: 0 | CJ66: Барселона спецэффект №2 (Арче, Техно, Техно-Горизонталь) | CK66: 0 | CL66: =IF(CK66<>0,LOOKUP(,-CODE(CK$3:CK66),CK$3:CK66),CL65) -> 2 | CT66: Ф | CU66: Ф | CV66: Ф | CW66: Ф | CX66: ф | CY66: Ф
B67: 0 | C67: =IF(B67<>0,LOOKUP(,-CODE(B$3:B67),B$3:B67),C66) -> 6 | D67: 6-140(700)-528 | E67: Тумба кухонная двухдверный с двумя леграбоксами, Н - 140/180 мм, полка ЛДСП | F67: =IF(E67<>0,LOOKUP(,-CODE(E$3:E67),E$3:E67),F66) -> Тумба кухонная двухдверный с двумя леграбоксами, Н - 140/180 мм, полка ЛДСП | H67: 1 | I67: 700 | J67: 720 | K67: 528 | L67: 10185.29157 | M67: 10493.89893 | N67: 12432.95214 | O67: 13500.59092 | P67: 14936.59628 | Q67: 10320.26757 | R67: 10628.87493 | S67: 12567.92814 | T67: 13635.56692 | U67: 15071.57228 | V67: 9986.379566 | W67: 10294.98693 | X67: 12408.03825 | Y67: 13520.16197 | Z67: 15016.0009 | AA67: 10987.37789 | AB67: 11347.41982 | AC67: 13609.64857 | AD67: 14855.22713 | AE67: 16530.56673 | AF67: 11990.26273 | AG67: 12324.58737 | AH67: 14425.22835 | AI67: 15581.83702 | AJ67: 17137.50951 | AK67: 9103.682053 | AL67: 9496.092412 | AM67: 9732.891766 | AN67: 10444.53916 | AO67: 10719.05849 | AP67: 11472.56464 | AQ67: 10758.56449 | AR67: 11719.96702 | AS67: 12848.09445 | AT67: 13374.28785 | AU67: 14800.84992 | AV67: 15886.65059 | AW67: 16940.24149 | AX67: 13495.03234 | AY67: 12495.98983 | AZ67: 15238.73803 | BA67: 13613.19376 | BB67: 11472.56464 | BC67: 10758.56449 | BD67: 11855.59226 | BE67: 12848.09445 | BF67: 13374.28785 | BG67: 14800.84992 | BH67: 15886.65059 | BI67: 16940.24149 | BJ67: 13449.58634 | BK67: 12479.92743 | BL67: 15514.91697 | BM67: 13613.19376 | BN67: 12669.34368 | BO67: 0 | BP67: 14607.48739 | BQ67: 11472.56464 | BR67: 11849.03157 | BS67: 0 | BT67: 12471.48943 | BU67: 13001.09789 | BV67: 14858.23838 | BW67: 15724.90512 | BX67: 17242.23801 | BY67: 18490.90878 | BZ67: 19702.53831 | CA67: 17299.2028 | CB67: 20259.3964 | CC67: 20762.2498 | CD67: 22925.4682 | CE67: 11937.15195 | CF67: 12337.78827 | CG67: 9103.6776 | CH67: 0 | CJ67: Барселона спецэффект №3 (Арче, Техно, Техно-Горизонталь) | CK67: 0 | CL67: =IF(CK67<>0,LOOKUP(,-CODE(CK$3:CK67),CK$3:CK67),CL66) -> 2 | CT67: Ф | CU67: Ф | CV67: Ф | CW67: =IFERROR($CV67*$CW$1,"Ф") -> Ф | CX67: ф | CY67: Ф
B68: 0 | C68: =IF(B68<>0,LOOKUP(,-CODE(B$3:B68),B$3:B68),C67) -> 6 | D68: 6-140(750)-528 | E68: Тумба кухонная двухдверный с двумя леграбоксами, Н - 140/180 мм, полка ЛДСП | F68: =IF(E68<>0,LOOKUP(,-CODE(E$3:E68),E$3:E68),F67) -> Тумба кухонная двухдверный с двумя леграбоксами, Н - 140/180 мм, полка ЛДСП | H68: 1 | I68: 750 | J68: 720 | K68: 528 | L68: 10411.24635 | M68: 10742.08768 | N68: 12820.84213 | O68: 13965.40012 | P68: 15504.86409 | Q68: 10550.78235 | R68: 10881.62368 | S68: 12960.37813 | T68: 14104.93612 | U68: 15644.40009 | V68: 10205.61435 | W68: 10536.45568 | X68: 12800.97398 | Y68: 13993.22189 | Z68: 15596.83019 | AA68: 11249.64645 | AB68: 11635.628 | AC68: 14060.84152 | AD68: 15396.15918 | AE68: 17192.20048 | AF68: 12281.8044 | AG68: 12640.21584 | AH68: 14892.19983 | AI68: 16132.13765 | AJ68: 17799.89028 | AK68: 9269.862842 | AL68: 9684.146688 | AM68: 9934.14556 | AN68: 10698.53522 | AO68: 10991.63755 | AP68: 11817.35674 | AQ68: 11051.91566 | AR68: 12082.5835 | AS68: 13291.98812 | AT68: 13856.0917 | AU68: 15385.43202 | AV68: 16549.46041 | AW68: 17678.95843 | AX68: 13985.53536 | AY68: 12914.51573 | AZ68: 15854.86827 | BA68: 14112.20986 | BB68: 11817.35674 | BC68: 11051.91566 | BD68: 12227.98 | BE68: 13291.98812 | BF68: 13856.0917 | BG68: 15385.43202 | BH68: 16549.46041 | BI68: 17678.95843 | BJ68: 13936.81516 | BK68: 12897.29609 | BL68: 16150.94482 | BM68: 14112.20986 | BN68: 13100.35906 | BO68: 0 | BP68: 15077.94689 | BQ68: 11817.35674 | BR68: 12220.94664 | BS68: 0 | BT68: 12888.25018 | BU68: 13456.01486 | BV68: 15446.95509 | BW68: 16376.0618 | BX68: 18002.71263 | BY68: 19341.34527 | BZ68: 20640.26799 | CA68: 18058.07477 | CB68: 21229.71077 | CC68: 21768.48227 | CD68: 24086.21627 | CE68: 12275.61625 | CF68: 12705.28631 | CG68: 9247.849767 | CH68: 0 | CJ68: =INDIRECT(ADDRESS(2,ROW()+9)) -> Барселона спецэффект №4 (Арче, Техно, Техно-Горизонталь) | CK68: 0 | CL68: =IF(CK68<>0,LOOKUP(,-CODE(CK$3:CK68),CK$3:CK68),CL67) -> 2 | CT68: Ф | CU68: =IFERROR(CT68*300,"Ф") -> Ф | CV68: Ф | CW68: Ф | CX68: ф | CY68: =IFERROR($CU68+CW68,"Ф") -> Ф
B69: 0 | C69: =IF(B69<>0,LOOKUP(,-CODE(B$3:B69),B$3:B69),C68) -> 6 | D69: 6-140(800)-528 | E69: Тумба кухонная двухдверный с двумя леграбоксами, Н - 140/180 мм, полка ЛДСП | F69: =IF(E69<>0,LOOKUP(,-CODE(E$3:E69),E$3:E69),F68) -> Тумба кухонная двухдверный с двумя леграбоксами, Н - 140/180 мм, полка ЛДСП | H69: 1 | I69: 800 | J69: 720 | K69: 528 | L69: 10637.20114 | M69: 10990.27642 | N69: 13208.73211 | O69: 14430.20933 | P69: 16073.1319 | Q69: 10781.29714 | R69: 11134.37242 | S69: 13352.82811 | T69: 14574.30533 | U69: 16217.2279 | V69: 10424.84914 | W69: 10777.92442 | X69: 13193.90971 | Y69: 14466.2818 | Z69: 16177.65948 | AA69: 11511.91501 | AB69: 11923.83617 | AC69: 14512.03448 | AD69: 15937.09123 | AE69: 17853.83422 | AF69: 12573.34607 | AG69: 12955.8443 | AH69: 15359.1713 | AI69: 16682.43828 | AJ69: 18462.27106 | AK69: 9436.043631 | AL69: 9872.200964 | AM69: 10135.39935 | AN69: 10952.53129 | AO69: 11264.2166 | AP69: 12162.14884 | AQ69: 11345.26682 | AR69: 12445.19997 | AS69: 13735.88179 | AT69: 14337.89556 | AU69: 15970.01413 | AV69: 17212.27023 | AW69: 18417.67537 | AX69: 14476.03839 | AY69: 13333.04163 | AZ69: 16470.9985 | BA69: 14611.22596 | BB69: 12162.14884 | BC69: 11345.26682 | BD69: 12600.36775 | BE69: 13735.88179 | BF69: 14337.89556 | BG69: 15970.01413 | BH69: 17212.27023 | BI69: 18417.67537 | BJ69: 14424.04397 | BK69: 13314.66476 | BL69: 16786.97268 | BM69: 14611.22596 | BN69: 13531.37443 | BO69: 0 | BP69: 15548.40639 | BQ69: 12162.14884 | BR69: 12592.86172 | BS69: 0 | BT69: 13305.01092 | BU69: 13910.93184 | BV69: 16035.67181 | BW69: 17027.21849 | BX69: 18763.18724 | BY69: 20191.78176 | BZ69: 21577.99768 | CA69: 18491.55281 | CB69: 21770.39825 | CC69: 22327.38161 | CD69: 24723.46097 | CE69: 12614.08055 | CF69: 13072.78435 | CG69: 9392.021933 | CH69: 0 | CJ69: Барселона спецэффект №5 (Арче, Техно, Техно-Горизонталь) | CK69: 0 | CL69: =IF(CK69<>0,LOOKUP(,-CODE(CK$3:CK69),CK$3:CK69),CL68) -> 2 | CT69: Ф | CU69: Ф | CV69: Ф | CW69: Ф | CX69: ф | CY69: Ф
B70: 0 | C70: =IF(B70<>0,LOOKUP(,-CODE(B$3:B70),B$3:B70),C69) -> 6 | D70: 6-140(850)-528 | E70: Тумба кухонная двухдверный с двумя леграбоксами, Н - 140/180 мм, полка ЛДСП | F70: =IF(E70<>0,LOOKUP(,-CODE(E$3:E70),E$3:E70),F69) -> Тумба кухонная двухдверный с двумя леграбоксами, Н - 140/180 мм, полка ЛДСП | H70: 1 | I70: 850 | J70: 720 | K70: 528 | L70: 10863.15593 | M70: 11238.46517 | N70: 13596.6221 | O70: 14895.01854 | P70: 16641.3997 | Q70: 11011.81193 | R70: 11387.12117 | S70: 13745.2781 | T70: 15043.67454 | U70: 16790.0557 | V70: 10644.08393 | W70: 11019.39317 | X70: 13586.84544 | Y70: 14939.34172 | Z70: 16758.48877 | AA70: 11774.18356 | AB70: 12212.04435 | AC70: 14963.22744 | AD70: 16478.02327 | AE70: 18515.46797 | AF70: 12864.88774 | AG70: 13271.47276 | AH70: 15826.14277 | AI70: 17232.7389 | AJ70: 19124.65184 | AK70: 9602.22442 | AL70: 10060.25524 | AM70: 10336.65315 | AN70: 11206.52735 | AO70: 11536.79565 | AP70: 12506.94094 | AQ70: 11638.61799 | AR70: 12807.81645 | AS70: 14179.77546 | AT70: 14819.69942 | AU70: 16554.59623 | AV70: 17875.08005 | AW70: 19156.39232 | AX70: 14966.54142 | AY70: 13751.56753 | AZ70: 17087.12874 | BA70: 15110.24206 | BB70: 12506.94094 | BC70: 11638.61799 | BD70: 12972.7555 | BE70: 14179.77546 | BF70: 14819.69942 | BG70: 16554.59623 | BH70: 17875.08005 | BI70: 19156.39232 | BJ70: 14911.27279 | BK70: 13732.03343 | BL70: 17423.00054 | BM70: 15110.24206 | BN70: 13962.3898 | BO70: 0 | BP70: 16018.86589 | BQ70: 12506.94094 | BR70: 12964.77679 | BS70: 0 | BT70: 13721.77166 | BU70: 14365.84881 | BV70: 16624.38853 | BW70: 17678.37517 | BX70: 19523.66186 | BY70: 21042.21825 | BZ70: 22515.72736 | CA70: 19230.08766 | CB70: 22713.86094 | CC70: 23305.65576 | CD70: 25851.49008 | CE70: 12952.54485 | CF70: 13440.28239 | CG70: 9536.1941 | CH70: 0 | CJ70: Толедо БАВАРИЯ дуб тонирование | CK70: 0 | CL70: =IF(CK70<>0,LOOKUP(,-CODE(CK$3:CK70),CK$3:CK70),CL69) -> 2 | CT70: Ф | CU70: Ф | CV70: Ф | CW70: Ф | CX70: ф | CY70: Ф
B71: 0 | C71: =IF(B71<>0,LOOKUP(,-CODE(B$3:B71),B$3:B71),C70) -> 6 | D71: 6-140(900)-528 | E71: Тумба кухонная двухдверный с двумя леграбоксами, Н - 140/180 мм, полка ЛДСП | F71: =IF(E71<>0,LOOKUP(,-CODE(E$3:E71),E$3:E71),F70) -> Тумба кухонная двухдверный с двумя леграбоксами, Н - 140/180 мм, полка ЛДСП | H71: 1 | I71: 900 | J71: 720 | K71: 528 | L71: 11089.11071 | M71: 11486.65392 | N71: 13984.51209 | O71: 15359.82774 | P71: 17209.66751 | Q71: 11242.32671 | R71: 11639.86992 | S71: 14137.72809 | T71: 15513.04374 | U71: 17362.88351 | V71: 10863.31871 | W71: 11260.86192 | X71: 13979.78116 | Y71: 15412.40164 | Z71: 17339.31806 | AA71: 12036.45212 | AB71: 12500.25253 | AC71: 15414.42039 | AD71: 17018.95532 | AE71: 19177.10172 | AF71: 13156.42942 | AG71: 13587.10122 | AH71: 16293.11424 | AI71: 17783.03953 | AJ71: 19787.03261 | AK71: 9768.405209 | AL71: 10248.30952 | AM71: 10537.90694 | AN71: 11460.52341 | AO71: 11809.3747 | AP71: 12851.73304 | AQ71: 11931.96915 | AR71: 13170.43292 | AS71: 14623.66913 | AT71: 15301.50327 | AU71: 17139.17833 | AV71: 18537.88986 | AW71: 19895.10926 | AX71: 15457.04445 | AY71: 14170.09343 | AZ71: 17703.25898 | BA71: 15609.25816 | BB71: 12851.73304 | BC71: 11931.96915 | BD71: 13345.14325 | BE71: 14623.66913 | BF71: 15301.50327 | BG71: 17139.17833 | BH71: 18537.88986 | BI71: 19895.10926 | BJ71: 15398.50161 | BK71: 14149.4021 | BL71: 18059.02839 | BM71: 15609.25816 | BN71: 14393.40517 | BO71: 0 | BP71: 16489.3254 | BQ71: 12851.73304 | BR71: 13336.69187 | BS71: 0 | BT71: 14138.5324 | BU71: 14820.76578 | BV71: 17213.10525 | BW71: 18329.53186 | BX71: 20284.13648 | BY71: 21892.65474 | BZ71: 23453.45704 | CA71: 19968.62251 | CB71: 23657.32363 | CC71: 24283.92991 | CD71: 26979.51919 | CE71: 13291.00915 | CF71: 13807.78043 | CG71: 9680.366267 | CH71: 0 | CJ71: Толедо БАВАРИЯ дуб эмаль + патина | CK71: 0 | CL71: =IF(CK71<>0,LOOKUP(,-CODE(CK$3:CK71),CK$3:CK71),CL70) -> 2 | CT71: Ф | CU71: Ф | CV71: Ф | CW71: Ф | CX71: ф | CY71: Ф
B72: 0 | C72: =IF(B72<>0,LOOKUP(,-CODE(B$3:B72),B$3:B72),C71) -> 6 | D72: 6-140(950)-528 | E72: Тумба кухонная двухдверный с двумя леграбоксами, Н - 140/180 мм, полка ЛДСП | F72: =IF(E72<>0,LOOKUP(,-CODE(E$3:E72),E$3:E72),F71) -> Тумба кухонная двухдверный с двумя леграбоксами, Н - 140/180 мм, полка ЛДСП | H72: 1 | I72: 950 | J72: 720 | K72: 528 | L72: 11315.0655 | M72: 11734.84266 | N72: 14372.40207 | O72: 15824.63695 | P72: 17777.93532 | Q72: 11472.8415 | R72: 11892.61866 | S72: 14530.17807 | T72: 15982.41295 | U72: 17935.71132 | V72: 11082.5535 | W72: 11502.33066 | X72: 14372.71689 | Y72: 15885.46155 | Z72: 17920.14735 | AA72: 12298.72068 | AB72: 12788.4607 | AC72: 15865.61335 | AD72: 17559.88737 | AE72: 19838.73546 | AF72: 13447.97109 | AG72: 13902.72968 | AH72: 16760.08571 | AI72: 18333.34016 | AJ72: 20449.41339 | AK72: 9934.585998 | AL72: 10436.36379 | AM72: 10739.16074 | AN72: 11714.51947 | AO72: 12081.95376 | AP72: 13196.52513 | AQ72: 12225.32031 | AR72: 13533.0494 | AS72: 15067.5628 | AT72: 15783.30713 | AU72: 17723.76044 | AV72: 19200.69968 | AW72: 20633.8262 | AX72: 15947.54747 | AY72: 14588.61933 | AZ72: 18319.38922 | BA72: 16108.27425 | BB72: 13196.52513 | BC72: 12225.32031 | BD72: 13717.53099 | BE72: 15067.5628 | BF72: 15783.30713 | BG72: 17723.76044 | BH72: 19200.69968 | BI72: 20633.8262 | BJ72: 15885.73043 | BK72: 14566.77076 | BL72: 18695.05625 | BM72: 16108.27425 | BN72: 14824.42054 | BO72: 0 | BP72: 16959.7849 | BQ72: 13196.52513 | BR72: 13708.60695 | BS72: 0 | BT72: 14555.29315 | BU72: 15275.68275 | BV72: 17801.82197 | BW72: 18980.68854 | BX72: 21044.61109 | BY72: 22743.09122 | BZ72: 24391.18672 | CA72: 20707.15735 | CB72: 24600.78631 | CC72: 25262.20405 | CD72: 28107.54829 | CE72: 13629.47345 | CF72: 14175.27847 | CG72: 9824.538433 | CH72: 0 | CJ72: Толедо ШАЛЕ дуб тонирование | CK72: 0 | CL72: =IF(CK72<>0,LOOKUP(,-CODE(CK$3:CK72),CK$3:CK72),CL71) -> 2 | CT72: Ф | CU72: Ф | CV72: Ф | CW72: Ф | CX72: ф | CY72: Ф
B73: 0 | C73: =IF(B73<>0,LOOKUP(,-CODE(B$3:B73),B$3:B73),C72) -> 6 | D73: 6-140(1000)-528 | E73: Тумба кухонная двухдверный с двумя леграбоксами, Н - 140/180 мм, полка ЛДСП | F73: =IF(E73<>0,LOOKUP(,-CODE(E$3:E73),E$3:E73),F72) -> Тумба кухонная двухдверный с двумя леграбоксами, Н - 140/180 мм, полка ЛДСП | H73: 1 | I73: 1000 | J73: 720 | K73: 528 | L73: 11541.02029 | M73: 11983.03141 | N73: 14760.29206 | O73: 16289.44616 | P73: 18346.20312 | Q73: 11703.35629 | R73: 12145.36741 | S73: 14922.62806 | T73: 16451.78216 | U73: 18508.53912 | V73: 11301.78829 | W73: 11743.79941 | X73: 14765.65262 | Y73: 16358.52147 | Z73: 18500.97665 | AA73: 12560.98923 | AB73: 13076.66888 | AC73: 16316.80631 | AD73: 18100.81941 | AE73: 20500.36921 | AF73: 13739.51276 | AG73: 14218.35814 | AH73: 17227.05718 | AI73: 18883.64078 | AJ73: 21111.79417 | AK73: 10100.76679 | AL73: 10624.41807 | AM73: 10940.41453 | AN73: 11968.51553 | AO73: 12354.53281 | AP73: 13541.31723 | AQ73: 12518.67148 | AR73: 13895.66588 | AS73: 15511.45647 | AT73: 16265.11098 | AU73: 18308.34254 | AV73: 19863.5095 | AW73: 21372.54314 | AX73: 16438.0505 | AY73: 15007.14523 | AZ73: 18935.51946 | BA73: 16607.29035 | BB73: 13541.31723 | BC73: 12518.67148 | BD73: 14089.91874 | BE73: 15511.45647 | BF73: 16265.11098 | BG73: 18308.34254 | BH73: 19863.5095 | BI73: 21372.54314 | BJ73: 16372.95925 | BK73: 14984.13943 | BL73: 19331.0841 | BM73: 16607.29035 | BN73: 15255.43591 | BO73: 0 | BP73: 17430.2444 | BQ73: 13541.31723 | BR73: 14080.52202 | BS73: 0 | BT73: 14972.05389 | BU73: 15730.59972 | BV73: 18390.53868 | BW73: 19631.84523 | BX73: 21805.08571 | BY73: 23593.52771 | BZ73: 25328.9164 | CA73: 21445.6922 | CB73: 25544.249 | CC73: 26240.4782 | CD73: 29235.5774 | CE73: 13967.93775 | CF73: 14542.7765 | CG73: 9968.7106 | CH73: 0 | CJ73: Толедо ШАЛЕ дуб эмаль + патина | CK73: 0 | CL73: =IF(CK73<>0,LOOKUP(,-CODE(CK$3:CK73),CK$3:CK73),CL72) -> 2 | CT73: Ф | CU73: Ф | CV73: Ф | CW73: Ф | CX73: ф | CY73: Ф
A74: 219/1 | B74: 0 | C74: =IF(B74<>0,LOOKUP(,-CODE(B$3:B74),B$3:B74),C73) -> 6 | D74: 6-180(600)-528 | E74: Тумба кухонная двухдверный с двумя леграбоксами, Н - 140/180 мм, полка ЛДСП | F74: =IF(E74<>0,LOOKUP(,-CODE(E$3:E74),E$3:E74),F73) -> Тумба кухонная двухдверный с двумя леграбоксами, Н - 140/180 мм, полка ЛДСП | H74: 1 | I74: 600 | J74: 720 | K74: 528 | L74: 9733.381992 | M74: 9997.521437 | N74: 11657.17217 | O74: 12570.9725 | P74: 13800.06067 | Q74: 9859.237992 | R74: 10123.37744 | S74: 11783.02817 | T74: 12696.8285 | U74: 13925.91667 | V74: 9547.909992 | W74: 9812.049437 | X74: 11622.16679 | Y74: 12574.04214 | Z74: 13854.34231 | AA74: 10462.84078 | AB74: 10771.00347 | AC74: 12707.26265 | AD74: 13773.36304 | AE74: 15207.29924 | AF74: 11407.17939 | AG74: 11693.33045 | AH74: 13491.28541 | AI74: 14481.23577 | AJ74: 15812.74795 | AK74: 8771.320475 | AL74: 9119.983859 | AM74: 9330.384178 | AN74: 9936.547044 | AO74: 10173.90039 | AP74: 10782.98045 | AQ74: 10171.86216 | AR74: 10994.73407 | AS74: 11960.30711 | AT74: 12410.68014 | AU74: 13631.68571 | AV74: 14561.03096 | AW74: 15462.8076 | AX74: 12514.02628 | AY74: 11658.93803 | AZ74: 14006.47755 | BA74: 12615.16157 | BB74: 10782.98045 | BC74: 10171.86216 | BD74: 11110.81676 | BE74: 11960.30711 | BF74: 12410.68014 | BG74: 13631.68571 | BH74: 14561.03096 | BI74: 15462.8076 | BJ74: 12475.1287 | BK74: 11645.19009 | BL74: 14242.86126 | BM74: 12615.16157 | BN74: 11807.31294 | BO74: 11239.12627 | BP74: 14801.80039 | BQ74: 10782.98045 | BR74: 11105.20142 | BS74: 13081.13885 | BT74: 11637.96795 | BU74: 12091.26395 | BV74: 13680.80494 | BW74: 14422.59175 | BX74: 15721.28877 | BY74: 16790.03581 | BZ74: 17827.07895 | CA74: 15794.08191 | CB74: 18335.43423 | CC74: 18767.13831 | CD74: 20624.28039 | CE74: 11469.74152 | CF74: 11813.35785 | CG74: 8815.301267 | CH74: 0 | CJ74: Галисия масло | CK74: 0 | CL74: =IF(CK74<>0,LOOKUP(,-CODE(CK$3:CK74),CK$3:CK74),CL73) -> 2 | CT74: =$I74*$J74/1000000 -> 0.432 | CU74: 129.6 | CV74: 1.2 | CW74: 1440 | CX74: ф | CY74: 1569.6
B75: 0 | C75: =IF(B75<>0,LOOKUP(,-CODE(B$3:B75),B$3:B75),C74) -> 6 | D75: 6-180(650)-528 | E75: Тумба кухонная двухдверный с двумя леграбоксами, Н - 140/180 мм, полка ЛДСП | F75: =IF(E75<>0,LOOKUP(,-CODE(E$3:E75),E$3:E75),F74) -> Тумба кухонная двухдверный с двумя леграбоксами, Н - 140/180 мм, полка ЛДСП | H75: 1 | I75: 650 | J75: 720 | K75: 528 | L75: 9959.336779 | M75: 10245.71018 | N75: 12045.06215 | O75: 13035.78171 | P75: 14368.32848 | Q75: 10089.75278 | R75: 10376.12618 | S75: 12175.47815 | T75: 13166.19771 | U75: 14498.74448 | V75: 9767.144779 | W75: 10053.51818 | X75: 12015.10252 | Y75: 13047.10205 | Z75: 14435.1716 | AA75: 10725.10934 | AB75: 11059.21164 | AC75: 13158.45561 | AD75: 14314.29509 | AE75: 15868.93298 | AF75: 11698.72106 | AG75: 12008.95891 | AH75: 13958.25688 | AI75: 15031.5364 | AJ75: 16475.12873 | AK75: 8937.501264 | AL75: 9308.038136 | AM75: 9531.637972 | AN75: 10190.5431 | AO75: 10446.47944 | AP75: 11127.77255 | AQ75: 10465.21333 | AR75: 11357.35054 | AS75: 12404.20078 | AT75: 12892.48399 | AU75: 14216.26782 | AV75: 15223.84078 | AW75: 16201.52455 | AX75: 13004.52931 | AY75: 12077.46393 | AZ75: 14622.60779 | BA75: 13114.17767 | BB75: 11127.77255 | BC75: 10465.21333 | BD75: 11483.20451 | BE75: 12404.20078 | BF75: 12892.48399 | BG75: 14216.26782 | BH75: 15223.84078 | BI75: 16201.52455 | BJ75: 12962.35752 | BK75: 12062.55876 | BL75: 14878.88911 | BM75: 13114.17767 | BN75: 12238.32831 | BO75: 11622.31448 | BP75: 15373.61989 | BQ75: 11127.77255 | BR75: 11477.11649 | BS75: 13619.37862 | BT75: 12054.72869 | BU75: 12546.18092 | BV75: 14269.52166 | BW75: 15073.74843 | BX75: 16481.76339 | BY75: 17640.4723 | BZ75: 18764.80863 | CA75: 16554.00579 | CB75: 19307.13747 | CC75: 19774.81689 | CD75: 21786.72081 | CE75: 11821.11051 | CF75: 12194.16722 | CG75: 8959.593433 | CH75: 0 | CJ75: Галисия Эмаль | CK75: 0 | CL75: =IF(CK75<>0,LOOKUP(,-CODE(CK$3:CK75),CK$3:CK75),CL74) -> 2 | CT75: 0.468 | CU75: 140.4 | CV75: 1.3 | CW75: 1560 | CX75: ф | CY75: 1700.4
B76: 0 | C76: =IF(B76<>0,LOOKUP(,-CODE(B$3:B76),B$3:B76),C75) -> 6 | D76: 6-180(700)-528 | E76: Тумба кухонная двухдверный с двумя леграбоксами, Н - 140/180 мм, полка ЛДСП | F76: =IF(E76<>0,LOOKUP(,-CODE(E$3:E76),E$3:E76),F75) -> Тумба кухонная двухдверный с двумя леграбоксами, Н - 140/180 мм, полка ЛДСП | H76: 1 | I76: 700 | J76: 720 | K76: 528 | L76: 10185.29157 | M76: 10493.89893 | N76: 12432.95214 | O76: 13500.59092 | P76: 14936.59628 | Q76: 10320.26757 | R76: 10628.87493 | S76: 12567.92814 | T76: 13635.56692 | U76: 15071.57228 | V76: 9986.379566 | W76: 10294.98693 | X76: 12408.03825 | Y76: 13520.16197 | Z76: 15016.0009 | AA76: 10987.37789 | AB76: 11347.41982 | AC76: 13609.64857 | AD76: 14855.22713 | AE76: 16530.56673 | AF76: 11990.26273 | AG76: 12324.58737 | AH76: 14425.22835 | AI76: 15581.83702 | AJ76: 17137.50951 | AK76: 9103.682053 | AL76: 9496.092412 | AM76: 9732.891766 | AN76: 10444.53916 | AO76: 10719.05849 | AP76: 11472.56464 | AQ76: 10758.56449 | AR76: 11719.96702 | AS76: 12848.09445 | AT76: 13374.28785 | AU76: 14800.84992 | AV76: 15886.65059 | AW76: 16940.24149 | AX76: 13495.03234 | AY76: 12495.98983 | AZ76: 15238.73803 | BA76: 13613.19376 | BB76: 11472.56464 | BC76: 10758.56449 | BD76: 11855.59226 | BE76: 12848.09445 | BF76: 13374.28785 | BG76: 14800.84992 | BH76: 15886.65059 | BI76: 16940.24149 | BJ76: 13449.58634 | BK76: 12479.92743 | BL76: 15514.91697 | BM76: 13613.19376 | BN76: 12669.34368 | BO76: 12005.50269 | BP76: 15945.43939 | BQ76: 11472.56464 | BR76: 11849.03157 | BS76: 14157.6184 | BT76: 12471.48943 | BU76: 13001.09789 | BV76: 14858.23838 | BW76: 15724.90512 | BX76: 17242.23801 | BY76: 18490.90878 | BZ76: 19702.53831 | CA76: 17313.92968 | CB76: 20278.84072 | CC76: 20782.49548 | CD76: 22949.16124 | CE76: 12172.47951 | CF76: 12574.97659 | CG76: 9103.8856 | CH76: 0 | CJ76: ВЕРДЕ | CK76: 0 | CL76: =IF(CK76<>0,LOOKUP(,-CODE(CK$3:CK76),CK$3:CK76),CL75) -> 2 | CT76: 0.504 | CU76: 151.2 | CV76: 1.4 | CW76: 1680 | CX76: ф | CY76: 1831.2
B77: 0 | C77: =IF(B77<>0,LOOKUP(,-CODE(B$3:B77),B$3:B77),C76) -> 6 | D77: 6-180(750)-528 | E77: Тумба кухонная двухдверный с двумя леграбоксами, Н - 140/180 мм, полка ЛДСП | F77: =IF(E77<>0,LOOKUP(,-CODE(E$3:E77),E$3:E77),F76) -> Тумба кухонная двухдверный с двумя леграбоксами, Н - 140/180 мм, полка ЛДСП | H77: 1 | I77: 750 | J77: 720 | K77: 528 | L77: 10411.24635 | M77: 10742.08768 | N77: 12820.84213 | O77: 13965.40012 | P77: 15504.86409 | Q77: 10550.78235 | R77: 10881.62368 | S77: 12960.37813 | T77: 14104.93612 | U77: 15644.40009 | V77: 10205.61435 | W77: 10536.45568 | X77: 12800.97398 | Y77: 13993.22189 | Z77: 15596.83019 | AA77: 11249.64645 | AB77: 11635.628 | AC77: 14060.84152 | AD77: 15396.15918 | AE77: 17192.20048 | AF77: 12281.8044 | AG77: 12640.21584 | AH77: 14892.19983 | AI77: 16132.13765 | AJ77: 17799.89028 | AK77: 9269.862842 | AL77: 9684.146688 | AM77: 9934.14556 | AN77: 10698.53522 | AO77: 10991.63755 | AP77: 11817.35674 | AQ77: 11051.91566 | AR77: 12082.5835 | AS77: 13291.98812 | AT77: 13856.0917 | AU77: 15385.43202 | AV77: 16549.46041 | AW77: 17678.95843 | AX77: 13985.53536 | AY77: 12914.51573 | AZ77: 15854.86827 | BA77: 14112.20986 | BB77: 11817.35674 | BC77: 11051.91566 | BD77: 12227.98 | BE77: 13291.98812 | BF77: 13856.0917 | BG77: 15385.43202 | BH77: 16549.46041 | BI77: 17678.95843 | BJ77: 13936.81516 | BK77: 12897.29609 | BL77: 16150.94482 | BM77: 14112.20986 | BN77: 13100.35906 | BO77: 12388.69091 | BP77: 16517.25889 | BQ77: 11817.35674 | BR77: 12220.94664 | BS77: 14695.85817 | BT77: 12888.25018 | BU77: 13456.01486 | BV77: 15446.95509 | BW77: 16376.0618 | BX77: 18002.71263 | BY77: 19341.34527 | BZ77: 20640.26799 | CA77: 18073.85357 | CB77: 21250.54397 | CC77: 21790.17407 | CD77: 24111.60167 | CE77: 12523.8485 | CF77: 12955.78596 | CG77: 9248.177767 | CH77: 0 | CJ77: Викинг | CK77: 0 | CL77: =IF(CK77<>0,LOOKUP(,-CODE(CK$3:CK77),CK$3:CK77),CL76) -> 2 | CT77: 0.54 | CU77: 162 | CV77: 1.5 | CW77: 1800 | CX77: ф | CY77: 1962
B78: 0 | C78: =IF(B78<>0,LOOKUP(,-CODE(B$3:B78),B$3:B78),C77) -> 6 | D78: 6-180(800)-528 | E78: Тумба кухонная двухдверный с двумя леграбоксами, Н - 140/180 мм, полка ЛДСП | F78: =IF(E78<>0,LOOKUP(,-CODE(E$3:E78),E$3:E78),F77) -> Тумба кухонная двухдверный с двумя леграбоксами, Н - 140/180 мм, полка ЛДСП | H78: 1 | I78: 800 | J78: 720 | K78: 528 | L78: 10637.20114 | M78: 10990.27642 | N78: 13208.73211 | O78: 14430.20933 | P78: 16073.1319 | Q78: 10781.29714 | R78: 11134.37242 | S78: 13352.82811 | T78: 14574.30533 | U78: 16217.2279 | V78: 10424.84914 | W78: 10777.92442 | X78: 13193.90971 | Y78: 14466.2818 | Z78: 16177.65948 | AA78: 11511.91501 | AB78: 11923.83617 | AC78: 14512.03448 | AD78: 15937.09123 | AE78: 17853.83422 | AF78: 12573.34607 | AG78: 12955.8443 | AH78: 15359.1713 | AI78: 16682.43828 | AJ78: 18462.27106 | AK78: 9436.043631 | AL78: 9872.200964 | AM78: 10135.39935 | AN78: 10952.53129 | AO78: 11264.2166 | AP78: 12162.14884 | AQ78: 11345.26682 | AR78: 12445.19997 | AS78: 13735.88179 | AT78: 14337.89556 | AU78: 15970.01413 | AV78: 17212.27023 | AW78: 18417.67537 | AX78: 14476.03839 | AY78: 13333.04163 | AZ78: 16470.9985 | BA78: 14611.22596 | BB78: 12162.14884 | BC78: 11345.26682 | BD78: 12600.36775 | BE78: 13735.88179 | BF78: 14337.89556 | BG78: 15970.01413 | BH78: 17212.27023 | BI78: 18417.67537 | BJ78: 14424.04397 | BK78: 13314.66476 | BL78: 16786.97268 | BM78: 14611.22596 | BN78: 13531.37443 | BO78: 12771.87912 | BP78: 17089.07839 | BQ78: 12162.14884 | BR78: 12592.86172 | BS78: 15234.09795 | BT78: 13305.01092 | BU78: 13910.93184 | BV78: 16035.67181 | BW78: 17027.21849 | BX78: 18763.18724 | BY78: 20191.78176 | BZ78: 21577.99768 | CA78: 18530.82449 | CB78: 21822.24977 | CC78: 22381.37009 | CD78: 24786.64241 | CE78: 12875.21749 | CF78: 13336.59532 | CG78: 9392.469933 | CH78: 0 | CK78: 0 | CL78: =IF(CK78<>0,LOOKUP(,-CODE(CK$3:CK78),CK$3:CK78),CL77) -> 2 | CT78: 0.576 | CU78: 172.8 | CV78: 1.6 | CW78: 1920 | CX78: ф | CY78: 2092.8
B79: 0 | C79: =IF(B79<>0,LOOKUP(,-CODE(B$3:B79),B$3:B79),C78) -> 6 | D79: 6-180(850)-528 | E79: Тумба кухонная двухдверный с двумя леграбоксами, Н - 140/180 мм, полка ЛДСП | F79: =IF(E79<>0,LOOKUP(,-CODE(E$3:E79),E$3:E79),F78) -> Тумба кухонная двухдверный с двумя леграбоксами, Н - 140/180 мм, полка ЛДСП | H79: 1 | I79: 850 | J79: 720 | K79: 528 | L79: 10863.15593 | M79: 11238.46517 | N79: 13596.6221 | O79: 14895.01854 | P79: 16641.3997 | Q79: 11011.81193 | R79: 11387.12117 | S79: 13745.2781 | T79: 15043.67454 | U79: 16790.0557 | V79: 10644.08393 | W79: 11019.39317 | X79: 13586.84544 | Y79: 14939.34172 | Z79: 16758.48877 | AA79: 11774.18356 | AB79: 12212.04435 | AC79: 14963.22744 | AD79: 16478.02327 | AE79: 18515.46797 | AF79: 12864.88774 | AG79: 13271.47276 | AH79: 15826.14277 | AI79: 17232.7389 | AJ79: 19124.65184 | AK79: 9602.22442 | AL79: 10060.25524 | AM79: 10336.65315 | AN79: 11206.52735 | AO79: 11536.79565 | AP79: 12506.94094 | AQ79: 11638.61799 | AR79: 12807.81645 | AS79: 14179.77546 | AT79: 14819.69942 | AU79: 16554.59623 | AV79: 17875.08005 | AW79: 19156.39232 | AX79: 14966.54142 | AY79: 13751.56753 | AZ79: 17087.12874 | BA79: 15110.24206 | BB79: 12506.94094 | BC79: 11638.61799 | BD79: 12972.7555 | BE79: 14179.77546 | BF79: 14819.69942 | BG79: 16554.59623 | BH79: 17875.08005 | BI79: 19156.39232 | BJ79: 14911.27279 | BK79: 13732.03343 | BL79: 17423.00054 | BM79: 15110.24206 | BN79: 13962.3898 | BO79: 13155.06733 | BP79: 17660.89789 | BQ79: 12506.94094 | BR79: 12964.77679 | BS79: 15772.33772 | BT79: 13721.77166 | BU79: 14365.84881 | BV79: 16624.38853 | BW79: 17678.37517 | BX79: 19523.66186 | BY79: 21042.21825 | BZ79: 22515.72736 | CA79: 19271.81382 | CB79: 22768.95318 | CC79: 23363.01852 | CD79: 25918.62036 | CE79: 13226.58649 | CF79: 13717.40469 | CG79: 9536.7621 | CH79: 0 | CK79: 0 | CL79: =IF(CK79<>0,LOOKUP(,-CODE(CK$3:CK79),CK$3:CK79),CL78) -> 2 | CT79: 0.612 | CU79: 183.6 | CV79: 1.7 | CW79: 2040 | CX79: ф | CY79: 2223.6
B80: 0 | C80: =IF(B80<>0,LOOKUP(,-CODE(B$3:B80),B$3:B80),C79) -> 6 | D80: 6-180(900)-528 | E80: Тумба кухонная двухдверный с двумя леграбоксами, Н - 140/180 мм, полка ЛДСП | F80: =IF(E80<>0,LOOKUP(,-CODE(E$3:E80),E$3:E80),F79) -> Тумба кухонная двухдверный с двумя леграбоксами, Н - 140/180 мм, полка ЛДСП | H80: 1 | I80: 900 | J80: 720 | K80: 528 | L80: 11089.11071 | M80: 11486.65392 | N80: 13984.51209 | O80: 15359.82774 | P80: 17209.66751 | Q80: 11242.32671 | R80: 11639.86992 | S80: 14137.72809 | T80: 15513.04374 | U80: 17362.88351 | V80: 10863.31871 | W80: 11260.86192 | X80: 13979.78116 | Y80: 15412.40164 | Z80: 17339.31806 | AA80: 12036.45212 | AB80: 12500.25253 | AC80: 15414.42039 | AD80: 17018.95532 | AE80: 19177.10172 | AF80: 13156.42942 | AG80: 13587.10122 | AH80: 16293.11424 | AI80: 17783.03953 | AJ80: 19787.03261 | AK80: 9768.405209 | AL80: 10248.30952 | AM80: 10537.90694 | AN80: 11460.52341 | AO80: 11809.3747 | AP80: 12851.73304 | AQ80: 11931.96915 | AR80: 13170.43292 | AS80: 14623.66913 | AT80: 15301.50327 | AU80: 17139.17833 | AV80: 18537.88986 | AW80: 19895.10926 | AX80: 15457.04445 | AY80: 14170.09343 | AZ80: 17703.25898 | BA80: 15609.25816 | BB80: 12851.73304 | BC80: 11931.96915 | BD80: 13345.14325 | BE80: 14623.66913 | BF80: 15301.50327 | BG80: 17139.17833 | BH80: 18537.88986 | BI80: 19895.10926 | BJ80: 15398.50161 | BK80: 14149.4021 | BL80: 18059.02839 | BM80: 15609.25816 | BN80: 14393.40517 | BO80: 13538.25554 | BP80: 18232.7174 | BQ80: 12851.73304 | BR80: 13336.69187 | BS80: 16310.5775 | BT80: 14138.5324 | BU80: 14820.76578 | BV80: 17213.10525 | BW80: 18329.53186 | BX80: 20284.13648 | BY80: 21892.65474 | BZ80: 23453.45704 | CA80: 20012.80315 | CB80: 23715.65659 | CC80: 24344.66695 | CD80: 27050.59831 | CE80: 13577.95548 | CF80: 14098.21406 | CG80: 9681.054267 | CH80: 0 | CK80: 0 | CL80: =IF(CK80<>0,LOOKUP(,-CODE(CK$3:CK80),CK$3:CK80),CL79) -> 2 | CT80: 0.648 | CU80: 194.4 | CV80: 1.8 | CW80: 2160 | CX80: ф | CY80: 2354.4
B81: 0 | C81: =IF(B81<>0,LOOKUP(,-CODE(B$3:B81),B$3:B81),C80) -> 6 | D81: 6-180(950)-528 | E81: Тумба кухонная двухдверный с двумя леграбоксами, Н - 140/180 мм, полка ЛДСП | F81: =IF(E81<>0,LOOKUP(,-CODE(E$3:E81),E$3:E81),F80) -> Тумба кухонная двухдверный с двумя леграбоксами, Н - 140/180 мм, полка ЛДСП | H81: 1 | I81: 950 | J81: 720 | K81: 528 | L81: 11315.0655 | M81: 11734.84266 | N81: 14372.40207 | O81: 15824.63695 | P81: 17777.93532 | Q81: 11472.8415 | R81: 11892.61866 | S81: 14530.17807 | T81: 15982.41295 | U81: 17935.71132 | V81: 11082.5535 | W81: 11502.33066 | X81: 14372.71689 | Y81: 15885.46155 | Z81: 17920.14735 | AA81: 12298.72068 | AB81: 12788.4607 | AC81: 15865.61335 | AD81: 17559.88737 | AE81: 19838.73546 | AF81: 13447.97109 | AG81: 13902.72968 | AH81: 16760.08571 | AI81: 18333.34016 | AJ81: 20449.41339 | AK81: 9934.585998 | AL81: 10436.36379 | AM81: 10739.16074 | AN81: 11714.51947 | AO81: 12081.95376 | AP81: 13196.52513 | AQ81: 12225.32031 | AR81: 13533.0494 | AS81: 15067.5628 | AT81: 15783.30713 | AU81: 17723.76044 | AV81: 19200.69968 | AW81: 20633.8262 | AX81: 15947.54747 | AY81: 14588.61933 | AZ81: 18319.38922 | BA81: 16108.27425 | BB81: 13196.52513 | BC81: 12225.32031 | BD81: 13717.53099 | BE81: 15067.5628 | BF81: 15783.30713 | BG81: 17723.76044 | BH81: 19200.69968 | BI81: 20633.8262 | BJ81: 15885.73043 | BK81: 14566.77076 | BL81: 18695.05625 | BM81: 16108.27425 | BN81: 14824.42054 | BO81: 13921.44375 | BP81: 18804.5369 | BQ81: 13196.52513 | BR81: 13708.60695 | BS81: 16848.81727 | BT81: 14555.29315 | BU81: 15275.68275 | BV81: 17801.82197 | BW81: 18980.68854 | BX81: 21044.61109 | BY81: 22743.09122 | BZ81: 24391.18672 | CA81: 20753.79247 | CB81: 24662.35999 | CC81: 25326.31537 | CD81: 28182.57625 | CE81: 13929.32448 | CF81: 14479.02343 | CG81: 9825.346433 | CH81: 0 | CK81: 0 | CL81: =IF(CK81<>0,LOOKUP(,-CODE(CK$3:CK81),CK$3:CK81),CL80) -> 2 | CT81: 0.684 | CU81: 205.2 | CV81: 1.9 | CW81: 2280 | CX81: ф | CY81: 2485.2
B82: 0 | C82: =IF(B82<>0,LOOKUP(,-CODE(B$3:B82),B$3:B82),C81) -> 6 | D82: 6-180(1000)-528 | E82: Тумба кухонная двухдверный с двумя леграбоксами, Н - 140/180 мм, полка ЛДСП | F82: =IF(E82<>0,LOOKUP(,-CODE(E$3:E82),E$3:E82),F81) -> Тумба кухонная двухдверный с двумя леграбоксами, Н - 140/180 мм, полка ЛДСП | H82: 1 | I82: 1000 | J82: 720 | K82: 528 | L82: 11541.02029 | M82: 11983.03141 | N82: 14760.29206 | O82: 16289.44616 | P82: 18346.20312 | Q82: 11703.35629 | R82: 12145.36741 | S82: 14922.62806 | T82: 16451.78216 | U82: 18508.53912 | V82: 11301.78829 | W82: 11743.79941 | X82: 14765.65262 | Y82: 16358.52147 | Z82: 18500.97665 | AA82: 12560.98923 | AB82: 13076.66888 | AC82: 16316.80631 | AD82: 18100.81941 | AE82: 20500.36921 | AF82: 13739.51276 | AG82: 14218.35814 | AH82: 17227.05718 | AI82: 18883.64078 | AJ82: 21111.79417 | AK82: 10100.76679 | AL82: 10624.41807 | AM82: 10940.41453 | AN82: 11968.51553 | AO82: 12354.53281 | AP82: 13541.31723 | AQ82: 12518.67148 | AR82: 13895.66588 | AS82: 15511.45647 | AT82: 16265.11098 | AU82: 18308.34254 | AV82: 19863.5095 | AW82: 21372.54314 | AX82: 16438.0505 | AY82: 15007.14523 | AZ82: 18935.51946 | BA82: 16607.29035 | BB82: 13541.31723 | BC82: 12518.67148 | BD82: 14089.91874 | BE82: 15511.45647 | BF82: 16265.11098 | BG82: 18308.34254 | BH82: 19863.5095 | BI82: 21372.54314 | BJ82: 16372.95925 | BK82: 14984.13943 | BL82: 19331.0841 | BM82: 16607.29035 | BN82: 15255.43591 | BO82: 14304.63196 | BP82: 19376.3564 | BQ82: 13541.31723 | BR82: 14080.52202 | BS82: 17387.05704 | BT82: 14972.05389 | BU82: 15730.59972 | BV82: 18390.53868 | BW82: 19631.84523 | BX82: 21805.08571 | BY82: 23593.52771 | BZ82: 25328.9164 | CA82: 21494.7818 | CB82: 25609.0634 | CC82: 26307.9638 | CD82: 29314.5542 | CE82: 14280.69347 | CF82: 14859.8328 | CG82: 9969.6386 | CH82: 0 | CK82: 0 | CL82: =IF(CK82<>0,LOOKUP(,-CODE(CK$3:CK82),CK$3:CK82),CL81) -> 2 | CT82: 0.72 | CU82: 216 | CV82: =IFERROR(($I82+CU82-CU82)*2/1000,"Ф") -> 2 | CW82: 2400 | CX82: ф | CY82: 2616
A83: 10/2 | B83: 7 | C83: =IF(B83<>0,LOOKUP(,-CODE(B$3:B83),B$3:B83),C82) -> 7 | D83: 7-140(600)-528 | E83: Тумба кухонная двухдверный с метабоксом, Н - 140/180 мм, полка ЛДСП | F83: =IF(E83<>0,LOOKUP(,-CODE(E$3:E83),E$3:E83),F82) -> Тумба кухонная двухдверный с метабоксом, Н - 140/180 мм, полка ЛДСП | H83: 1 | I83: 600 | J83: 720 | K83: 528 | L83: 5260.454192 | M83: 5524.593637 | N83: 7184.244368 | O83: 8098.044702 | P83: 9327.13287 | Q83: 5386.310192 | R83: 5650.449637 | S83: 7310.100368 | T83: 8223.900702 | U83: 9452.98887 | V83: 5074.982192 | W83: 5339.121637 | X83: 7149.238989 | Y83: 8101.114337 | Z83: 9381.414512 | AA83: 5989.91298 | AB83: 6298.075665 | AC83: 8234.334852 | AD83: 9300.435241 | AE83: 10734.37144 | AF83: 6934.251586 | AG83: 7220.402651 | AH83: 9018.35761 | AI83: 10008.30797 | AJ83: 11339.82015 | AK83: 4306.577158 | AL83: 4661.833598 | AM83: 4876.212484 | AN83: 5480.859705 | AO83: 5719.444511 | AP83: 6310.052649 | AQ83: 5698.934362 | AR83: 6521.806266 | AS83: 7487.379315 | AT83: 7937.752336 | AU83: 9158.757914 | AV83: 10088.10316 | AW83: 10989.8798 | AX83: 8041.098485 | AY83: 7186.010225 | AZ83: 9533.549753 | BA83: 8142.233769 | BB83: 6310.052649 | BC83: 5698.934362 | BD83: 6637.888963 | BE83: 7487.379315 | BF83: 7937.752336 | BG83: 9158.757914 | BH83: 10088.10316 | BI83: 10989.8798 | BJ83: 8002.200898 | BK83: 7172.262293 | BL83: 9769.933456 | BM83: 8142.233769 | BN83: 7334.38514 | BO83: 0 | BP83: 9193.640592 | BQ83: 6310.052649 | BR83: 6632.273619 | BS83: 0 | BT83: 7165.040148 | BU83: 7618.336149 | BV83: 9207.877139 | BW83: 9949.663947 | BX83: 11248.36097 | BY83: 12317.10801 | BZ83: 13354.15115 | CA83: 11308.53107 | CB83: 13845.83987 | CC83: 14276.85707 | CD83: 16131.04427 | CE83: 6765.61242 | CF83: 7109.040076 | CG83: 4342.405467 | CH83: 0 | CK83: 2 | CL83: =IF(CK83<>0,LOOKUP(,-CODE(CK$3:CK83),CK$3:CK83),CL82) -> 2 | CT83: Ф | CU83: Ф | CV83: Ф | CW83: Ф | CX83: ф | CY83: Ф
B84: 0 | C84: =IF(B84<>0,LOOKUP(,-CODE(B$3:B84),B$3:B84),C83) -> 7 | D84: 7-140(650)-528 | E84: Тумба кухонная двухдверный с метабоксом, Н - 140/180 мм, полка ЛДСП | F84: =IF(E84<>0,LOOKUP(,-CODE(E$3:E84),E$3:E84),F83) -> Тумба кухонная двухдверный с метабоксом, Н - 140/180 мм, полка ЛДСП | H84: 1 | I84: 650 | J84: 720 | K84: 528 | L84: 5481.702062 | M84: 5768.075467 | N84: 7567.427438 | O84: 8558.146992 | P84: 9890.69376 | Q84: 5612.118062 | R84: 5898.491467 | S84: 7697.843438 | T84: 8688.562992 | U84: 10021.10976 | V84: 5289.510062 | W84: 5575.883467 | X84: 7537.467802 | Y84: 8569.467337 | Z84: 9957.536887 | AA84: 6247.47462 | AB84: 6581.576925 | AC84: 8680.820892 | AD84: 9836.660371 | AE84: 11391.29827 | AF84: 7221.086341 | AG84: 7531.324196 | AH84: 9480.622165 | AI84: 10553.90168 | AJ84: 11997.49401 | AK84: 4469.82769 | AL84: 4848.388816 | AM84: 5076.830875 | AN84: 5733.891351 | AO84: 5991.326471 | AP84: 6650.13783 | AQ84: 5987.57861 | AR84: 6879.715826 | AS84: 7926.566067 | AT84: 8414.849276 | AU84: 9738.6331 | AV84: 10746.20606 | AW84: 11723.88983 | AX84: 8526.894595 | AY84: 7599.829209 | AZ84: 10144.97307 | BA84: 8636.54295 | BB84: 6650.13783 | BC84: 5987.57861 | BD84: 7005.569793 | BE84: 7926.566067 | BF84: 8414.849276 | BG84: 9738.6331 | BH84: 10746.20606 | BI84: 11723.88983 | BJ84: 8484.7228 | BK84: 7584.924044 | BL84: 10401.2544 | BM84: 8636.54295 | BN84: 7760.693595 | BO84: 0 | BP84: 9659.393176 | BQ84: 6650.13783 | BR84: 6999.481778 | BS84: 0 | BT84: 7577.093974 | BU84: 8068.546204 | BV84: 9791.88694 | BW84: 10596.11372 | BX84: 12004.12868 | BY84: 13162.83758 | BZ84: 14287.17391 | CA84: 12062.69612 | CB84: 14811.44732 | CC84: 15278.38262 | CD84: 17287.08542 | CE84: 7099.369804 | CF84: 7471.831199 | CG84: 4481.870717 | CH84: 0 | CK84: 0 | CL84: =IF(CK84<>0,LOOKUP(,-CODE(CK$3:CK84),CK$3:CK84),CL83) -> 2 | CT84: Ф | CU84: Ф | CV84: Ф | CW84: Ф | CX84: ф | CY84: Ф
B85: 0 | C85: =IF(B85<>0,LOOKUP(,-CODE(B$3:B85),B$3:B85),C84) -> 7 | D85: 7-140(700)-528 | E85: Тумба кухонная двухдверный с метабоксом, Н - 140/180 мм, полка ЛДСП | F85: =IF(E85<>0,LOOKUP(,-CODE(E$3:E85),E$3:E85),F84) -> Тумба кухонная двухдверный с метабоксом, Н - 140/180 мм, полка ЛДСП | H85: 1 | I85: 700 | J85: 720 | K85: 528 | L85: 5702.949932 | M85: 6011.557297 | N85: 7950.610508 | O85: 9018.249282 | P85: 10454.25465 | Q85: 5837.925932 | R85: 6146.533297 | S85: 8085.586508 | T85: 9153.225282 | U85: 10589.23065 | V85: 5504.037932 | W85: 5812.645297 | X85: 7925.696614 | Y85: 9037.820337 | Z85: 10533.65926 | AA85: 6505.03626 | AB85: 6865.078185 | AC85: 9127.306932 | AD85: 10372.8855 | AE85: 12048.2251 | AF85: 7507.921096 | AG85: 7842.245741 | AH85: 9942.88672 | AI85: 11099.49539 | AJ85: 12655.16787 | AK85: 4633.078223 | AL85: 5034.944035 | AM85: 5277.449266 | AN85: 5986.922997 | AO85: 6263.208431 | AP85: 6990.223012 | AQ85: 6276.222858 | AR85: 7237.625386 | AS85: 8365.75282 | AT85: 8891.946215 | AU85: 10318.50829 | AV85: 11404.30896 | AW85: 12457.89986 | AX85: 9012.690705 | AY85: 8013.648193 | AZ85: 10756.3964 | BA85: 9130.852132 | BB85: 6990.223012 | BC85: 6276.222858 | BD85: 7373.250624 | BE85: 8365.75282 | BF85: 8891.946215 | BG85: 10318.50829 | BH85: 11404.30896 | BI85: 12457.89986 | BJ85: 8967.244703 | BK85: 7997.585794 | BL85: 11032.57534 | BM85: 9130.852132 | BN85: 8187.00205 | BO85: 0 | BP85: 10125.14576 | BQ85: 6990.223012 | BR85: 7366.689936 | BS85: 0 | BT85: 7989.147799 | BU85: 8518.756259 | BV85: 10375.89674 | BW85: 11242.56348 | BX85: 12759.89638 | BY85: 14008.56715 | BZ85: 15220.19668 | CA85: 12816.86117 | CB85: 15777.05477 | CC85: 16279.90817 | CD85: 18443.12657 | CE85: 7433.127188 | CF85: 7834.622321 | CG85: 4621.335967 | CH85: 0 | CK85: 0 | CL85: =IF(CK85<>0,LOOKUP(,-CODE(CK$3:CK85),CK$3:CK85),CL84) -> 2 | CT85: Ф | CU85: Ф | CV85: Ф | CW85: Ф | CX85: ф | CY85: Ф
B86: 0 | C86: =IF(B86<>0,LOOKUP(,-CODE(B$3:B86),B$3:B86),C85) -> 7 | D86: 7-140(750)-528 | E86: Тумба кухонная двухдверный с метабоксом, Н - 140/180 мм, полка ЛДСП | F86: =IF(E86<>0,LOOKUP(,-CODE(E$3:E86),E$3:E86),F85) -> Тумба кухонная двухдверный с метабоксом, Н - 140/180 мм, полка ЛДСП | H86: 1 | I86: 750 | J86: 720 | K86: 528 | L86: 5924.197802 | M86: 6255.039127 | N86: 8333.793578 | O86: 9478.351572 | P86: 11017.81554 | Q86: 6063.733802 | R86: 6394.575127 | S86: 8473.329578 | T86: 9617.887572 | U86: 11157.35154 | V86: 5718.565802 | W86: 6049.407127 | X86: 8313.925427 | Y86: 9506.173337 | Z86: 11109.78164 | AA86: 6762.5979 | AB86: 7148.579445 | AC86: 9573.792972 | AD86: 10909.11063 | AE86: 12705.15193 | AF86: 7794.755851 | AG86: 8153.167286 | AH86: 10405.15128 | AI86: 11645.0891 | AJ86: 13312.84173 | AK86: 4796.328756 | AL86: 5221.499253 | AM86: 5478.067657 | AN86: 6239.954643 | AO86: 6535.090391 | AP86: 7330.308193 | AQ86: 6564.867106 | AR86: 7595.534946 | AS86: 8804.939572 | AT86: 9369.043155 | AU86: 10898.38347 | AV86: 12062.41186 | AW86: 13191.90988 | AX86: 9498.486815 | AY86: 8427.467177 | AZ86: 11367.81972 | BA86: 9625.161313 | BB86: 7330.308193 | BC86: 6564.867106 | BD86: 7740.931454 | BE86: 8804.939572 | BF86: 9369.043155 | BG86: 10898.38347 | BH86: 12062.41186 | BI86: 13191.90988 | BJ86: 9449.766605 | BK86: 8410.247545 | BL86: 11663.89627 | BM86: 9625.161313 | BN86: 8613.310505 | BO86: 0 | BP86: 10590.89834 | BQ86: 7330.308193 | BR86: 7733.898095 | BS86: 0 | BT86: 8401.201625 | BU86: 8968.966314 | BV86: 10959.90654 | BW86: 11889.01325 | BX86: 13515.66408 | BY86: 14854.29672 | BZ86: 16153.21944 | CA86: 13571.02622 | CB86: 16742.66222 | CC86: 17281.43372 | CD86: 19599.16772 | CE86: 7766.884571 | CF86: 8197.413444 | CG86: 4760.801217 | CH86: 0 | CK86: 0 | CL86: =IF(CK86<>0,LOOKUP(,-CODE(CK$3:CK86),CK$3:CK86),CL85) -> 2 | CT86: Ф | CU86: Ф | CV86: Ф | CW86: Ф | CX86: ф | CY86: Ф
B87: 0 | C87: =IF(B87<>0,LOOKUP(,-CODE(B$3:B87),B$3:B87),C86) -> 7 | D87: 7-140(800)-528 | E87: Тумба кухонная двухдверный с метабоксом, Н - 140/180 мм, полка ЛДСП | F87: =IF(E87<>0,LOOKUP(,-CODE(E$3:E87),E$3:E87),F86) -> Тумба кухонная двухдверный с метабоксом, Н - 140/180 мм, полка ЛДСП | H87: 1 | I87: 800 | J87: 720 | K87: 528 | L87: 6145.445672 | M87: 6498.520957 | N87: 8716.976648 | O87: 9938.453862 | P87: 11581.37643 | Q87: 6289.541672 | R87: 6642.616957 | S87: 8861.072648 | T87: 10082.54986 | U87: 11725.47243 | V87: 5933.093672 | W87: 6286.168957 | X87: 8702.154239 | Y87: 9974.526337 | Z87: 11685.90401 | AA87: 7020.15954 | AB87: 7432.080705 | AC87: 10020.27901 | AD87: 11445.33576 | AE87: 13362.07876 | AF87: 8081.590606 | AG87: 8464.088831 | AH87: 10867.41583 | AI87: 12190.68281 | AJ87: 13970.51559 | AK87: 4959.579289 | AL87: 5408.054472 | AM87: 5678.686048 | AN87: 6492.986289 | AO87: 6806.972351 | AP87: 7670.393374 | AQ87: 6853.511354 | AR87: 7953.444505 | AS87: 9244.126324 | AT87: 9846.140094 | AU87: 11478.25866 | AV87: 12720.51476 | AW87: 13925.91991 | AX87: 9984.282925 | AY87: 8841.286161 | AZ87: 11979.24304 | BA87: 10119.47049 | BB87: 7670.393374 | BC87: 6853.511354 | BD87: 8108.612285 | BE87: 9244.126324 | BF87: 9846.140094 | BG87: 11478.25866 | BH87: 12720.51476 | BI87: 13925.91991 | BJ87: 9932.288508 | BK87: 8822.909295 | BL87: 12295.21721 | BM87: 10119.47049 | BN87: 9039.61896 | BO87: 0 | BP87: 11056.65093 | BQ87: 7670.393374 | BR87: 8101.106253 | BS87: 0 | BT87: 8813.255451 | BU87: 9419.176369 | BV87: 11543.91635 | BW87: 12535.46302 | BX87: 14271.43178 | BY87: 15700.02629 | BZ87: 17086.24221 | CA87: 13999.79735 | CB87: 17278.64279 | CC87: 17835.62615 | CD87: 20231.70551 | CE87: 8100.641955 | CF87: 8560.204567 | CG87: 4900.266467 | CH87: 0 | CK87: 0 | CL87: =IF(CK87<>0,LOOKUP(,-CODE(CK$3:CK87),CK$3:CK87),CL86) -> 2 | CT87: Ф | CU87: Ф | CV87: Ф | CW87: Ф | CX87: ф | CY87: Ф
B88: 0 | C88: =IF(B88<>0,LOOKUP(,-CODE(B$3:B88),B$3:B88),C87) -> 7 | D88: 7-140(850)-528 | E88: Тумба кухонная двухдверный с метабоксом, Н - 140/180 мм, полка ЛДСП | F88: =IF(E88<>0,LOOKUP(,-CODE(E$3:E88),E$3:E88),F87) -> Тумба кухонная двухдверный с метабоксом, Н - 140/180 мм, полка ЛДСП | H88: 1 | I88: 850 | J88: 720 | K88: 528 | L88: 6366.693542 | M88: 6742.002787 | N88: 9100.159718 | O88: 10398.55615 | P88: 12144.93732 | Q88: 6515.349542 | R88: 6890.658787 | S88: 9248.815718 | T88: 10547.21215 | U88: 12293.59332 | V88: 6147.621542 | W88: 6522.930787 | X88: 9090.383052 | Y88: 10442.87934 | Z88: 12262.02639 | AA88: 7277.72118 | AB88: 7715.581965 | AC88: 10466.76505 | AD88: 11981.56089 | AE88: 14019.00559 | AF88: 8368.425361 | AG88: 8775.010376 | AH88: 11329.68039 | AI88: 12736.27652 | AJ88: 14628.18945 | AK88: 5122.829822 | AL88: 5594.609691 | AM88: 5879.304439 | AN88: 6746.017935 | AO88: 7078.854311 | AP88: 8010.478555 | AQ88: 7142.155602 | AR88: 8311.354065 | AS88: 9683.313077 | AT88: 10323.23703 | AU88: 12058.13385 | AV88: 13378.61766 | AW88: 14659.92993 | AX88: 10470.07904 | AY88: 9255.105145 | AZ88: 12590.66636 | BA88: 10613.77968 | BB88: 8010.478555 | BC88: 7142.155602 | BD88: 8476.293115 | BE88: 9683.313077 | BF88: 10323.23703 | BG88: 12058.13385 | BH88: 13378.61766 | BI88: 14659.92993 | BJ88: 10414.81041 | BK88: 9235.571046 | BL88: 12926.53815 | BM88: 10613.77968 | BN88: 9465.927415 | BO88: 0 | BP88: 11522.40351 | BQ88: 8010.478555 | BR88: 8468.314411 | BS88: 0 | BT88: 9225.309277 | BU88: 9869.386424 | BV88: 12127.92615 | BW88: 13181.91279 | BX88: 15027.19948 | BY88: 16545.75586 | BZ88: 18019.26498 | CA88: 14733.62528 | CB88: 18217.39856 | CC88: 18809.19338 | CD88: 21355.0277 | CE88: 8434.399339 | CF88: 8922.99569 | CG88: 5039.731717 | CH88: 0 | CK88: 0 | CL88: =IF(CK88<>0,LOOKUP(,-CODE(CK$3:CK88),CK$3:CK88),CL87) -> 2 | CT88: Ф | CU88: Ф | CV88: Ф | CW88: Ф | CX88: ф | CY88: Ф
B89: 0 | C89: =IF(B89<>0,LOOKUP(,-CODE(B$3:B89),B$3:B89),C88) -> 7 | D89: 7-140(900)-528 | E89: Тумба кухонная двухдверный с метабоксом, Н - 140/180 мм, полка ЛДСП | F89: =IF(E89<>0,LOOKUP(,-CODE(E$3:E89),E$3:E89),F88) -> Тумба кухонная двухдверный с метабоксом, Н - 140/180 мм, полка ЛДСП | H89: 1 | I89: 900 | J89: 720 | K89: 528 | L89: 6587.941412 | M89: 6985.484617 | N89: 9483.342788 | O89: 10858.65844 | P89: 12708.49821 | Q89: 6741.157412 | R89: 7138.700617 | S89: 9636.558788 | T89: 11011.87444 | U89: 12861.71421 | V89: 6362.149412 | W89: 6759.692617 | X89: 9478.611864 | Y89: 10911.23234 | Z89: 12838.14876 | AA89: 7535.28282 | AB89: 7999.083225 | AC89: 10913.25109 | AD89: 12517.78602 | AE89: 14675.93242 | AF89: 8655.260116 | AG89: 9085.931921 | AH89: 11791.94494 | AI89: 13281.87023 | AJ89: 15285.86331 | AK89: 5286.080355 | AL89: 5781.164909 | AM89: 6079.92283 | AN89: 6999.049581 | AO89: 7350.736271 | AP89: 8350.563736 | AQ89: 7430.79985 | AR89: 8669.263625 | AS89: 10122.49983 | AT89: 10800.33397 | AU89: 12638.00903 | AV89: 14036.72056 | AW89: 15393.93996 | AX89: 10955.87515 | AY89: 9668.924129 | AZ89: 13202.08968 | BA89: 11108.08886 | BB89: 8350.563736 | BC89: 7430.79985 | BD89: 8843.973946 | BE89: 10122.49983 | BF89: 10800.33397 | BG89: 12638.00903 | BH89: 14036.72056 | BI89: 15393.93996 | BJ89: 10897.33231 | BK89: 9648.232797 | BL89: 13557.85909 | BM89: 11108.08886 | BN89: 9892.23587 | BO89: 0 | BP89: 11988.1561 | BQ89: 8350.563736 | BR89: 8835.52257 | BS89: 0 | BT89: 9637.363103 | BU89: 10319.59648 | BV89: 12711.93595 | BW89: 13828.36256 | BX89: 15782.96718 | BY89: 17391.48544 | BZ89: 18952.28774 | CA89: 15467.45321 | CB89: 19156.15433 | CC89: 19782.76061 | CD89: 22478.34989 | CE89: 8768.156723 | CF89: 9285.786812 | CG89: 5179.196967 | CH89: 0 | CK89: 0 | CL89: =IF(CK89<>0,LOOKUP(,-CODE(CK$3:CK89),CK$3:CK89),CL88) -> 2 | CT89: Ф | CU89: Ф | CV89: Ф | CW89: Ф | CX89: ф | CY89: Ф
B90: 0 | C90: =IF(B90<>0,LOOKUP(,-CODE(B$3:B90),B$3:B90),C89) -> 7 | D90: 7-140(950)-528 | E90: Тумба кухонная двухдверный с метабоксом, Н - 140/180 мм, полка ЛДСП | F90: =IF(E90<>0,LOOKUP(,-CODE(E$3:E90),E$3:E90),F89) -> Тумба кухонная двухдверный с метабоксом, Н - 140/180 мм, полка ЛДСП | H90: 1 | I90: 950 | J90: 720 | K90: 528 | L90: 6809.189282 | M90: 7228.966447 | N90: 9866.525858 | O90: 11318.76073 | P90: 13272.0591 | Q90: 6966.965282 | R90: 7386.742447 | S90: 10024.30186 | T90: 11476.53673 | U90: 13429.8351 | V90: 6576.677282 | W90: 6996.454447 | X90: 9866.840677 | Y90: 11379.58534 | Z90: 13414.27114 | AA90: 7792.84446 | AB90: 8282.584485 | AC90: 11359.73713 | AD90: 13054.01115 | AE90: 15332.85925 | AF90: 8942.094871 | AG90: 9396.853466 | AH90: 12254.2095 | AI90: 13827.46394 | AJ90: 15943.53717 | AK90: 5449.330887 | AL90: 5967.720128 | AM90: 6280.541221 | AN90: 7252.081227 | AO90: 7622.618231 | AP90: 8690.648917 | AQ90: 7719.444098 | AR90: 9027.173185 | AS90: 10561.68658 | AT90: 11277.43091 | AU90: 13217.88422 | AV90: 14694.82347 | AW90: 16127.94999 | AX90: 11441.67126 | AY90: 10082.74311 | AZ90: 13813.513 | BA90: 11602.39804 | BB90: 8690.648917 | BC90: 7719.444098 | BD90: 9211.654776 | BE90: 10561.68658 | BF90: 11277.43091 | BG90: 13217.88422 | BH90: 14694.82347 | BI90: 16127.94999 | BJ90: 11379.85421 | BK90: 10060.89455 | BL90: 14189.18003 | BM90: 11602.39804 | BN90: 10318.54432 | BO90: 0 | BP90: 12453.90868 | BQ90: 8690.648917 | BR90: 9202.730728 | BS90: 0 | BT90: 10049.41693 | BU90: 10769.80653 | BV90: 13295.94575 | BW90: 14474.81233 | BX90: 16538.73488 | BY90: 18237.21501 | BZ90: 19885.31051 | CA90: 16201.28114 | CB90: 20094.9101 | CC90: 20756.32784 | CD90: 23601.67208 | CE90: 9101.914106 | CF90: 9648.577935 | CG90: 5318.662217 | CH90: 0 | CK90: 0 | CL90: =IF(CK90<>0,LOOKUP(,-CODE(CK$3:CK90),CK$3:CK90),CL89) -> 2 | CT90: Ф | CU90: Ф | CV90: Ф | CW90: Ф | CX90: ф | CY90: Ф
B91: 0 | C91: =IF(B91<>0,LOOKUP(,-CODE(B$3:B91),B$3:B91),C90) -> 7 | D91: 7-140(1000)-528 | E91: Тумба кухонная двухдверный с метабоксом, Н - 140/180 мм, полка ЛДСП | F91: =IF(E91<>0,LOOKUP(,-CODE(E$3:E91),E$3:E91),F90) -> Тумба кухонная двухдверный с метабоксом, Н - 140/180 мм, полка ЛДСП | H91: 1 | I91: 1000 | J91: 720 | K91: 528 | L91: 7030.437152 | M91: 7472.448277 | N91: 10249.70893 | O91: 11778.86302 | P91: 13835.61999 | Q91: 7192.773152 | R91: 7634.784277 | S91: 10412.04493 | T91: 11941.19902 | U91: 13997.95599 | V91: 6791.205152 | W91: 7233.216277 | X91: 10255.06949 | Y91: 11847.93834 | Z91: 13990.39351 | AA91: 8050.4061 | AB91: 8566.085745 | AC91: 11806.22317 | AD91: 13590.23628 | AE91: 15989.78608 | AF91: 9228.929626 | AG91: 9707.775011 | AH91: 12716.47405 | AI91: 14373.05765 | AJ91: 16601.21103 | AK91: 5612.58142 | AL91: 6154.275347 | AM91: 6481.159613 | AN91: 7505.112873 | AO91: 7894.500191 | AP91: 9030.734099 | AQ91: 8008.088346 | AR91: 9385.082744 | AS91: 11000.87333 | AT91: 11754.52785 | AU91: 13797.75941 | AV91: 15352.92637 | AW91: 16861.96001 | AX91: 11927.46737 | AY91: 10496.5621 | AZ91: 14424.93632 | BA91: 12096.70722 | BB91: 9030.734099 | BC91: 8008.088346 | BD91: 9579.335607 | BE91: 11000.87333 | BF91: 11754.52785 | BG91: 13797.75941 | BH91: 15352.92637 | BI91: 16861.96001 | BJ91: 11862.37612 | BK91: 10473.5563 | BL91: 14820.50097 | BM91: 12096.70722 | BN91: 10744.85278 | BO91: 0 | BP91: 12919.66126 | BQ91: 9030.734099 | BR91: 9569.938887 | BS91: 0 | BT91: 10461.47075 | BU91: 11220.01659 | BV91: 13879.95555 | BW91: 15121.2621 | BX91: 17294.50258 | BY91: 19082.94458 | BZ91: 20818.33327 | CA91: 16935.10907 | CB91: 21033.66587 | CC91: 21729.89507 | CD91: 24724.99427 | CE91: 9435.67149 | CF91: 10011.36906 | CG91: 5458.127467 | CH91: 0 | CK91: 0 | CL91: =IF(CK91<>0,LOOKUP(,-CODE(CK$3:CK91),CK$3:CK91),CL90) -> 2 | CT91: Ф | CU91: Ф | CV91: Ф | CW91: Ф | CX91: ф | CY91: Ф
A92: 10/1 | B92: 0 | C92: =IF(B92<>0,LOOKUP(,-CODE(B$3:B92),B$3:B92),C91) -> 7 | D92: 7-180(600)-528 | E92: Тумба кухонная двухдверный с метабоксом, Н - 140/180 мм, полка ЛДСП | F92: =IF(E92<>0,LOOKUP(,-CODE(E$3:E92),E$3:E92),F91) -> Тумба кухонная двухдверный с метабоксом, Н - 140/180 мм, полка ЛДСП | H92: 1 | I92: 600 | J92: 720 | K92: 528 | L92: 5260.454192 | M92: 5524.593637 | N92: 7184.244368 | O92: 8098.044702 | P92: 9327.13287 | Q92: 5386.310192 | R92: 5650.449637 | S92: 7310.100368 | T92: 8223.900702 | U92: 9452.98887 | V92: 5074.982192 | W92: 5339.121637 | X92: 7149.238989 | Y92: 8101.114337 | Z92: 9381.414512 | AA92: 5989.91298 | AB92: 6298.075665 | AC92: 8234.334852 | AD92: 9300.435241 | AE92: 10734.37144 | AF92: 6934.251586 | AG92: 7220.402651 | AH92: 9018.35761 | AI92: 10008.30797 | AJ92: 11339.82015 | AK92: 4323.088256 | AL92: 4691.645302 | AM92: 4914.050417 | AN92: 5515.640027 | AO92: 5756.709142 | AP92: 6310.052649 | AQ92: 5698.934362 | AR92: 6521.806266 | AS92: 7487.379315 | AT92: 7937.752336 | AU92: 9158.757914 | AV92: 10088.10316 | AW92: 10989.8798 | AX92: 8041.098485 | AY92: 7186.010225 | AZ92: 9533.549753 | BA92: 8142.233769 | BB92: 6310.052649 | BC92: 5698.934362 | BD92: 6637.888963 | BE92: 7487.379315 | BF92: 7937.752336 | BG92: 9158.757914 | BH92: 10088.10316 | BI92: 10989.8798 | BJ92: 8002.200898 | BK92: 7172.262293 | BL92: 9769.933456 | BM92: 8142.233769 | BN92: 7334.38514 | BO92: 6766.198473 | BP92: 10288.32859 | BQ92: 6310.052649 | BR92: 6632.273619 | BS92: 8608.211048 | BT92: 7165.040148 | BU92: 7618.336149 | BV92: 9207.877139 | BW92: 9949.663947 | BX92: 11248.36097 | BY92: 12317.10801 | BZ92: 13354.15115 | CA92: 11321.15411 | CB92: 13862.50643 | CC92: 14294.21051 | CD92: 16151.35259 | CE92: 6878.663098 | CF92: 7219.702993 | CG92: 4342.373467 | CH92: 0 | CK92: 0 | CL92: =IF(CK92<>0,LOOKUP(,-CODE(CK$3:CK92),CK$3:CK92),CL91) -> 2 | CT92: =$I92*$J92/1000000 -> 0.432 | CU92: 129.6 | CV92: 1.2 | CW92: 1440 | CX92: ф | CY92: 1569.6
B93: 0 | C93: =IF(B93<>0,LOOKUP(,-CODE(B$3:B93),B$3:B93),C92) -> 7 | D93: 7-180(650)-528 | E93: Тумба кухонная двухдверный с метабоксом, Н - 140/180 мм, полка ЛДСП | F93: =IF(E93<>0,LOOKUP(,-CODE(E$3:E93),E$3:E93),F92) -> Тумба кухонная двухдверный с метабоксом, Н - 140/180 мм, полка ЛДСП | H93: 1 | I93: 650 | J93: 720 | K93: 528 | L93: 5481.702062 | M93: 5768.075467 | N93: 7567.427438 | O93: 8558.146992 | P93: 9890.69376 | Q93: 5612.118062 | R93: 5898.491467 | S93: 7697.843438 | T93: 8688.562992 | U93: 10021.10976 | V93: 5289.510062 | W93: 5575.883467 | X93: 7537.467802 | Y93: 8569.467337 | Z93: 9957.536887 | AA93: 6247.47462 | AB93: 6581.576925 | AC93: 8680.820892 | AD93: 9836.660371 | AE93: 11391.29827 | AF93: 7221.086341 | AG93: 7531.324196 | AH93: 9480.622165 | AI93: 10553.90168 | AJ93: 11997.49401 | AK93: 4487.523229 | AL93: 4880.339094 | AM93: 5117.38315 | AN93: 5771.166675 | AO93: 6031.264318 | AP93: 6650.13783 | AQ93: 5987.57861 | AR93: 6879.715826 | AS93: 7926.566067 | AT93: 8414.849276 | AU93: 9738.6331 | AV93: 10746.20606 | AW93: 11723.88983 | AX93: 8526.894595 | AY93: 7599.829209 | AZ93: 10144.97307 | BA93: 8636.54295 | BB93: 6650.13783 | BC93: 5987.57861 | BD93: 7005.569793 | BE93: 7926.566067 | BF93: 8414.849276 | BG93: 9738.6331 | BH93: 10746.20606 | BI93: 11723.88983 | BJ93: 8484.7228 | BK93: 7584.924044 | BL93: 10401.2544 | BM93: 8636.54295 | BN93: 7760.693595 | BO93: 7144.679767 | BP93: 10855.44118 | BQ93: 6650.13783 | BR93: 6999.481778 | BS93: 9141.743906 | BT93: 7577.093974 | BU93: 8068.546204 | BV93: 9791.88694 | BW93: 10596.11372 | BX93: 12004.12868 | BY93: 13162.83758 | BZ93: 14287.17391 | CA93: 12076.37108 | CB93: 14829.50276 | CC93: 15297.18218 | CD93: 17309.0861 | CE93: 7225.325176 | CF93: 7595.805445 | CG93: 4481.958717 | CH93: 0 | CK93: 0 | CL93: =IF(CK93<>0,LOOKUP(,-CODE(CK$3:CK93),CK$3:CK93),CL92) -> 2 | CT93: 0.468 | CU93: 140.4 | CV93: 1.3 | CW93: 1560 | CX93: ф | CY93: 1700.4
B94: 0 | C94: =IF(B94<>0,LOOKUP(,-CODE(B$3:B94),B$3:B94),C93) -> 7 | D94: 7-180(700)-528 | E94: Тумба кухонная двухдверный с метабоксом, Н - 140/180 мм, полка ЛДСП | F94: =IF(E94<>0,LOOKUP(,-CODE(E$3:E94),E$3:E94),F93) -> Тумба кухонная двухдверный с метабоксом, Н - 140/180 мм, полка ЛДСП | H94: 1 | I94: 700 | J94: 720 | K94: 528 | L94: 5702.949932 | M94: 6011.557297 | N94: 7950.610508 | O94: 9018.249282 | P94: 10454.25465 | Q94: 5837.925932 | R94: 6146.533297 | S94: 8085.586508 | T94: 9153.225282 | U94: 10589.23065 | V94: 5504.037932 | W94: 5812.645297 | X94: 7925.696614 | Y94: 9037.820337 | Z94: 10533.65926 | AA94: 6505.03626 | AB94: 6865.078185 | AC94: 9127.306932 | AD94: 10372.8855 | AE94: 12048.2251 | AF94: 7507.921096 | AG94: 7842.245741 | AH94: 9942.88672 | AI94: 11099.49539 | AJ94: 12655.16787 | AK94: 4651.958202 | AL94: 5069.032885 | AM94: 5320.715884 | AN94: 6026.693323 | AO94: 6305.819494 | AP94: 6990.223012 | AQ94: 6276.222858 | AR94: 7237.625386 | AS94: 8365.75282 | AT94: 8891.946215 | AU94: 10318.50829 | AV94: 11404.30896 | AW94: 12457.89986 | AX94: 9012.690705 | AY94: 8013.648193 | AZ94: 10756.3964 | BA94: 9130.852132 | BB94: 6990.223012 | BC94: 6276.222858 | BD94: 7373.250624 | BE94: 8365.75282 | BF94: 8891.946215 | BG94: 10318.50829 | BH94: 11404.30896 | BI94: 12457.89986 | BJ94: 8967.244703 | BK94: 7997.585794 | BL94: 11032.57534 | BM94: 9130.852132 | BN94: 8187.00205 | BO94: 7523.161061 | BP94: 11422.55376 | BQ94: 6990.223012 | BR94: 7366.689936 | BS94: 9675.276764 | BT94: 7989.147799 | BU94: 8518.756259 | BV94: 10375.89674 | BW94: 11242.56348 | BX94: 12759.89638 | BY94: 14008.56715 | BZ94: 15220.19668 | CA94: 12831.58805 | CB94: 15796.49909 | CC94: 16300.15385 | CD94: 18466.81961 | CE94: 7571.987253 | CF94: 7971.907896 | CG94: 4621.543967 | CH94: 0 | CK94: 0 | CL94: =IF(CK94<>0,LOOKUP(,-CODE(CK$3:CK94),CK$3:CK94),CL93) -> 2 | CT94: 0.504 | CU94: 151.2 | CV94: 1.4 | CW94: 1680 | CX94: ф | CY94: 1831.2
B95: 0 | C95: =IF(B95<>0,LOOKUP(,-CODE(B$3:B95),B$3:B95),C94) -> 7 | D95: 7-180(750)-528 | E95: Тумба кухонная двухдверный с метабоксом, Н - 140/180 мм, полка ЛДСП | F95: =IF(E95<>0,LOOKUP(,-CODE(E$3:E95),E$3:E95),F94) -> Тумба кухонная двухдверный с метабоксом, Н - 140/180 мм, полка ЛДСП | H95: 1 | I95: 750 | J95: 720 | K95: 528 | L95: 5924.197802 | M95: 6255.039127 | N95: 8333.793578 | O95: 9478.351572 | P95: 11017.81554 | Q95: 6063.733802 | R95: 6394.575127 | S95: 8473.329578 | T95: 9617.887572 | U95: 11157.35154 | V95: 5718.565802 | W95: 6049.407127 | X95: 8313.925427 | Y95: 9506.173337 | Z95: 11109.78164 | AA95: 6762.5979 | AB95: 7148.579445 | AC95: 9573.792972 | AD95: 10909.11063 | AE95: 12705.15193 | AF95: 7794.755851 | AG95: 8153.167286 | AH95: 10405.15128 | AI95: 11645.0891 | AJ95: 13312.84173 | AK95: 4816.393175 | AL95: 5257.726677 | AM95: 5524.048617 | AN95: 6282.21997 | AO95: 6580.37467 | AP95: 7330.308193 | AQ95: 6564.867106 | AR95: 7595.534946 | AS95: 8804.939572 | AT95: 9369.043155 | AU95: 10898.38347 | AV95: 12062.41186 | AW95: 13191.90988 | AX95: 9498.486815 | AY95: 8427.467177 | AZ95: 11367.81972 | BA95: 9625.161313 | BB95: 7330.308193 | BC95: 6564.867106 | BD95: 7740.931454 | BE95: 8804.939572 | BF95: 9369.043155 | BG95: 10898.38347 | BH95: 12062.41186 | BI95: 13191.90988 | BJ95: 9449.766605 | BK95: 8410.247545 | BL95: 11663.89627 | BM95: 9625.161313 | BN95: 8613.310505 | BO95: 7901.642355 | BP95: 11989.66634 | BQ95: 7330.308193 | BR95: 7733.898095 | BS95: 10208.80962 | BT95: 8401.201625 | BU95: 8968.966314 | BV95: 10959.90654 | BW95: 11889.01325 | BX95: 13515.66408 | BY95: 14854.29672 | BZ95: 16153.21944 | CA95: 13586.80502 | CB95: 16763.49542 | CC95: 17303.12552 | CD95: 19624.55312 | CE95: 7918.649331 | CF95: 8348.010348 | CG95: 4761.129217 | CH95: 0 | CK95: 0 | CL95: =IF(CK95<>0,LOOKUP(,-CODE(CK$3:CK95),CK$3:CK95),CL94) -> 2 | CT95: 0.54 | CU95: 162 | CV95: 1.5 | CW95: 1800 | CX95: ф | CY95: 1962
B96: 0 | C96: =IF(B96<>0,LOOKUP(,-CODE(B$3:B96),B$3:B96),C95) -> 7 | D96: 7-180(800)-528 | E96: Тумба кухонная двухдверный с метабоксом, Н - 140/180 мм, полка ЛДСП | F96: =IF(E96<>0,LOOKUP(,-CODE(E$3:E96),E$3:E96),F95) -> Тумба кухонная двухдверный с метабоксом, Н - 140/180 мм, полка ЛДСП | H96: 1 | I96: 800 | J96: 720 | K96: 528 | L96: 6145.445672 | M96: 6498.520957 | N96: 8716.976648 | O96: 9938.453862 | P96: 11581.37643 | Q96: 6289.541672 | R96: 6642.616957 | S96: 8861.072648 | T96: 10082.54986 | U96: 11725.47243 | V96: 5933.093672 | W96: 6286.168957 | X96: 8702.154239 | Y96: 9974.526337 | Z96: 11685.90401 | AA96: 7020.15954 | AB96: 7432.080705 | AC96: 10020.27901 | AD96: 11445.33576 | AE96: 13362.07876 | AF96: 8081.590606 | AG96: 8464.088831 | AH96: 10867.41583 | AI96: 12190.68281 | AJ96: 13970.51559 | AK96: 4980.828148 | AL96: 5446.420468 | AM96: 5727.381351 | AN96: 6537.746618 | AO96: 6854.929846 | AP96: 7670.393374 | AQ96: 6853.511354 | AR96: 7953.444505 | AS96: 9244.126324 | AT96: 9846.140094 | AU96: 11478.25866 | AV96: 12720.51476 | AW96: 13925.91991 | AX96: 9984.282925 | AY96: 8841.286161 | AZ96: 11979.24304 | BA96: 10119.47049 | BB96: 7670.393374 | BC96: 6853.511354 | BD96: 8108.612285 | BE96: 9244.126324 | BF96: 9846.140094 | BG96: 11478.25866 | BH96: 12720.51476 | BI96: 13925.91991 | BJ96: 9932.288508 | BK96: 8822.909295 | BL96: 12295.21721 | BM96: 10119.47049 | BN96: 9039.61896 | BO96: 8280.12365 | BP96: 12556.77893 | BQ96: 7670.393374 | BR96: 8101.106253 | BS96: 10742.34248 | BT96: 8813.255451 | BU96: 9419.176369 | BV96: 11543.91635 | BW96: 12535.46302 | BX96: 14271.43178 | BY96: 15700.02629 | BZ96: 17086.24221 | CA96: 14039.06903 | CB96: 17330.49431 | CC96: 17889.61463 | CD96: 20294.88695 | CE96: 8265.311408 | CF96: 8724.112799 | CG96: 4900.714467 | CH96: 0 | CK96: 0 | CL96: =IF(CK96<>0,LOOKUP(,-CODE(CK$3:CK96),CK$3:CK96),CL95) -> 2 | CT96: 0.576 | CU96: 172.8 | CV96: 1.6 | CW96: 1920 | CX96: ф | CY96: 2092.8
B97: 0 | C97: =IF(B97<>0,LOOKUP(,-CODE(B$3:B97),B$3:B97),C96) -> 7 | D97: 7-180(850)-528 | E97: Тумба кухонная двухдверный с метабоксом, Н - 140/180 мм, полка ЛДСП | F97: =IF(E97<>0,LOOKUP(,-CODE(E$3:E97),E$3:E97),F96) -> Тумба кухонная двухдверный с метабоксом, Н - 140/180 мм, полка ЛДСП | H97: 1 | I97: 850 | J97: 720 | K97: 528 | L97: 6366.693542 | M97: 6742.002787 | N97: 9100.159718 | O97: 10398.55615 | P97: 12144.93732 | Q97: 6515.349542 | R97: 6890.658787 | S97: 9248.815718 | T97: 10547.21215 | U97: 12293.59332 | V97: 6147.621542 | W97: 6522.930787 | X97: 9090.383052 | Y97: 10442.87934 | Z97: 12262.02639 | AA97: 7277.72118 | AB97: 7715.581965 | AC97: 10466.76505 | AD97: 11981.56089 | AE97: 14019.00559 | AF97: 8368.425361 | AG97: 8775.010376 | AH97: 11329.68039 | AI97: 12736.27652 | AJ97: 14628.18945 | AK97: 5145.263121 | AL97: 5635.11426 | AM97: 5930.714084 | AN97: 6793.273265 | AO97: 7129.485022 | AP97: 8010.478555 | AQ97: 7142.155602 | AR97: 8311.354065 | AS97: 9683.313077 | AT97: 10323.23703 | AU97: 12058.13385 | AV97: 13378.61766 | AW97: 14659.92993 | AX97: 10470.07904 | AY97: 9255.105145 | AZ97: 12590.66636 | BA97: 10613.77968 | BB97: 8010.478555 | BC97: 7142.155602 | BD97: 8476.293115 | BE97: 9683.313077 | BF97: 10323.23703 | BG97: 12058.13385 | BH97: 13378.61766 | BI97: 14659.92993 | BJ97: 10414.81041 | BK97: 9235.571046 | BL97: 12926.53815 | BM97: 10613.77968 | BN97: 9465.927415 | BO97: 8658.604944 | BP97: 13123.89151 | BQ97: 8010.478555 | BR97: 8468.314411 | BS97: 11275.87534 | BT97: 9225.309277 | BU97: 9869.386424 | BV97: 12127.92615 | BW97: 13181.91279 | BX97: 15027.19948 | BY97: 16545.75586 | BZ97: 18019.26498 | CA97: 14775.35144 | CB97: 18272.4908 | CC97: 18866.55614 | CD97: 21422.15798 | CE97: 8611.973486 | CF97: 9100.215251 | CG97: 5040.299717 | CH97: 0 | CK97: 0 | CL97: =IF(CK97<>0,LOOKUP(,-CODE(CK$3:CK97),CK$3:CK97),CL96) -> 2 | CT97: 0.612 | CU97: 183.6 | CV97: 1.7 | CW97: 2040 | CX97: ф | CY97: 2223.6
B98: 0 | C98: =IF(B98<>0,LOOKUP(,-CODE(B$3:B98),B$3:B98),C97) -> 7 | D98: 7-180(900)-528 | E98: Тумба кухонная двухдверный с метабоксом, Н - 140/180 мм, полка ЛДСП | F98: =IF(E98<>0,LOOKUP(,-CODE(E$3:E98),E$3:E98),F97) -> Тумба кухонная двухдверный с метабоксом, Н - 140/180 мм, полка ЛДСП | H98: 1 | I98: 900 | J98: 720 | K98: 528 | L98: 6587.941412 | M98: 6985.484617 | N98: 9483.342788 | O98: 10858.65844 | P98: 12708.49821 | Q98: 6741.157412 | R98: 7138.700617 | S98: 9636.558788 | T98: 11011.87444 | U98: 12861.71421 | V98: 6362.149412 | W98: 6759.692617 | X98: 9478.611864 | Y98: 10911.23234 | Z98: 12838.14876 | AA98: 7535.28282 | AB98: 7999.083225 | AC98: 10913.25109 | AD98: 12517.78602 | AE98: 14675.93242 | AF98: 8655.260116 | AG98: 9085.931921 | AH98: 11791.94494 | AI98: 13281.87023 | AJ98: 15285.86331 | AK98: 5309.698095 | AL98: 5823.808051 | AM98: 6134.046818 | AN98: 7048.799913 | AO98: 7404.040198 | AP98: 8350.563736 | AQ98: 7430.79985 | AR98: 8669.263625 | AS98: 10122.49983 | AT98: 10800.33397 | AU98: 12638.00903 | AV98: 14036.72056 | AW98: 15393.93996 | AX98: 10955.87515 | AY98: 9668.924129 | AZ98: 13202.08968 | BA98: 11108.08886 | BB98: 8350.563736 | BC98: 7430.79985 | BD98: 8843.973946 | BE98: 10122.49983 | BF98: 10800.33397 | BG98: 12638.00903 | BH98: 14036.72056 | BI98: 15393.93996 | BJ98: 10897.33231 | BK98: 9648.232797 | BL98: 13557.85909 | BM98: 11108.08886 | BN98: 9892.23587 | BO98: 9037.086238 | BP98: 13691.0041 | BQ98: 8350.563736 | BR98: 8835.52257 | BS98: 11809.4082 | BT98: 9637.363103 | BU98: 10319.59648 | BV98: 12711.93595 | BW98: 13828.36256 | BX98: 15782.96718 | BY98: 17391.48544 | BZ98: 18952.28774 | CA98: 15511.63385 | CB98: 19214.48729 | CC98: 19843.49765 | CD98: 22549.42901 | CE98: 8958.635563 | CF98: 9476.317702 | CG98: 5179.884967 | CH98: 0 | CK98: 0 | CL98: =IF(CK98<>0,LOOKUP(,-CODE(CK$3:CK98),CK$3:CK98),CL97) -> 2 | CT98: 0.648 | CU98: 194.4 | CV98: 1.8 | CW98: 2160 | CX98: ф | CY98: 2354.4
B99: 0 | C99: =IF(B99<>0,LOOKUP(,-CODE(B$3:B99),B$3:B99),C98) -> 7 | D99: 7-180(950)-528 | E99: Тумба кухонная двухдверный с метабоксом, Н - 140/180 мм, полка ЛДСП | F99: =IF(E99<>0,LOOKUP(,-CODE(E$3:E99),E$3:E99),F98) -> Тумба кухонная двухдверный с метабоксом, Н - 140/180 мм, полка ЛДСП | H99: 1 | I99: 950 | J99: 720 | K99: 528 | L99: 6809.189282 | M99: 7228.966447 | N99: 9866.525858 | O99: 11318.76073 | P99: 13272.0591 | Q99: 6966.965282 | R99: 7386.742447 | S99: 10024.30186 | T99: 11476.53673 | U99: 13429.8351 | V99: 6576.677282 | W99: 6996.454447 | X99: 9866.840677 | Y99: 11379.58534 | Z99: 13414.27114 | AA99: 7792.84446 | AB99: 8282.584485 | AC99: 11359.73713 | AD99: 13054.01115 | AE99: 15332.85925 | AF99: 8942.094871 | AG99: 9396.853466 | AH99: 12254.2095 | AI99: 13827.46394 | AJ99: 15943.53717 | AK99: 5474.133068 | AL99: 6012.501842 | AM99: 6337.379551 | AN99: 7304.326561 | AO99: 7678.595374 | AP99: 8690.648917 | AQ99: 7719.444098 | AR99: 9027.173185 | AS99: 10561.68658 | AT99: 11277.43091 | AU99: 13217.88422 | AV99: 14694.82347 | AW99: 16127.94999 | AX99: 11441.67126 | AY99: 10082.74311 | AZ99: 13813.513 | BA99: 11602.39804 | BB99: 8690.648917 | BC99: 7719.444098 | BD99: 9211.654776 | BE99: 10561.68658 | BF99: 11277.43091 | BG99: 13217.88422 | BH99: 14694.82347 | BI99: 16127.94999 | BJ99: 11379.85421 | BK99: 10060.89455 | BL99: 14189.18003 | BM99: 11602.39804 | BN99: 10318.54432 | BO99: 9415.567533 | BP99: 14258.11668 | BQ99: 8690.648917 | BR99: 9202.730728 | BS99: 12342.94105 | BT99: 10049.41693 | BU99: 10769.80653 | BV99: 13295.94575 | BW99: 14474.81233 | BX99: 16538.73488 | BY99: 18237.21501 | BZ99: 19885.31051 | CA99: 16247.91626 | CB99: 20156.48378 | CC99: 20820.43916 | CD99: 23676.70004 | CE99: 9305.297641 | CF99: 9852.420154 | CG99: 5319.470217 | CH99: 0 | CK99: 0 | CL99: =IF(CK99<>0,LOOKUP(,-CODE(CK$3:CK99),CK$3:CK99),CL98) -> 2 | CT99: 0.684 | CU99: 205.2 | CV99: 1.9 | CW99: 2280 | CX99: ф | CY99: 2485.2
B100: 0 | C100: =IF(B100<>0,LOOKUP(,-CODE(B$3:B100),B$3:B100),C99) -> 7 | D100: 7-180(1000)-528 | E100: Тумба кухонная двухдверный с метабоксом, Н - 140/180 мм, полка ЛДСП | F100: =IF(E100<>0,LOOKUP(,-CODE(E$3:E100),E$3:E100),F99) -> Тумба кухонная двухдверный с метабоксом, Н - 140/180 мм, полка ЛДСП | H100: 1 | I100: 1000 | J100: 720 | K100: 528 | L100: 7030.437152 | M100: 7472.448277 | N100: 10249.70893 | O100: 11778.86302 | P100: 13835.61999 | Q100: 7192.773152 | R100: 7634.784277 | S100: 10412.04493 | T100: 11941.19902 | U100: 13997.95599 | V100: 6791.205152 | W100: 7233.216277 | X100: 10255.06949 | Y100: 11847.93834 | Z100: 13990.39351 | AA100: 8050.4061 | AB100: 8566.085745 | AC100: 11806.22317 | AD100: 13590.23628 | AE100: 15989.78608 | AF100: 9228.929626 | AG100: 9707.775011 | AH100: 12716.47405 | AI100: 14373.05765 | AJ100: 16601.21103 | AK100: 5638.568041 | AL100: 6201.195634 | AM100: 6540.712285 | AN100: 7559.853208 | AO100: 7953.15055 | AP100: 9030.734099 | AQ100: 8008.088346 | AR100: 9385.082744 | AS100: 11000.87333 | AT100: 11754.52785 | AU100: 13797.75941 | AV100: 15352.92637 | AW100: 16861.96001 | AX100: 11927.46737 | AY100: 10496.5621 | AZ100: 14424.93632 | BA100: 12096.70722 | BB100: 9030.734099 | BC100: 8008.088346 | BD100: 9579.335607 | BE100: 11000.87333 | BF100: 11754.52785 | BG100: 13797.75941 | BH100: 15352.92637 | BI100: 16861.96001 | BJ100: 11862.37612 | BK100: 10473.5563 | BL100: 14820.50097 | BM100: 12096.70722 | BN100: 10744.85278 | BO100: 9794.048827 | BP100: 14825.22926 | BQ100: 9030.734099 | BR100: 9569.938887 | BS100: 12876.47391 | BT100: 10461.47075 | BU100: 11220.01659 | BV100: 13879.95555 | BW100: 15121.2621 | BX100: 17294.50258 | BY100: 19082.94458 | BZ100: 20818.33327 | CA100: 16984.19867 | CB100: 21098.48027 | CC100: 21797.38067 | CD100: 24803.97107 | CE100: 9651.959718 | CF100: 10228.52261 | CG100: 5459.055467 | CH100: 0 | CK100: 0 | CL100: =IF(CK100<>0,LOOKUP(,-CODE(CK$3:CK100),CK$3:CK100),CL99) -> 2 | CT100: 0.72 | CU100: 216 | CV100: 2 | CW100: 2400 | CX100: ф | CY100: 2616
B101: 8 | C101: =IF(B101<>0,LOOKUP(,-CODE(B$3:B101),B$3:B101),C100) -> 8 | D101: 8-140(600)-528 | E101: Тумба кухонная двухдверный с леграбоксом, Н - 140/180 мм, полка ЛДСП | F101: =IF(E101<>0,LOOKUP(,-CODE(E$3:E101),E$3:E101),F100) -> Тумба кухонная двухдверный с леграбоксом, Н - 140/180 мм, полка ЛДСП | H101: 1 | I101: 600 | J101: 720 | K101: 528 | L101: 7056.541739 | M101: 7320.681184 | N101: 8980.331915 | O101: 9894.132249 | P101: 11123.22042 | Q101: 7182.397739 | R101: 7446.537184 | S101: 9106.187915 | T101: 10019.98825 | U101: 11249.07642 | V101: 6871.069739 | W101: 7135.209184 | X101: 8945.326536 | Y101: 9897.201883 | Z101: 11177.50206 | AA101: 7786.000527 | AB101: 8094.163212 | AC101: 10030.4224 | AD101: 11096.52279 | AE101: 12530.45898 | AF101: 8730.339133 | AG101: 9016.490198 | AH101: 10814.44516 | AI101: 11804.39552 | AJ101: 13135.9077 | AK101: 6102.664704 | AL101: 6457.921144 | AM101: 6672.30003 | AN101: 7276.947252 | AO101: 7515.532057 | AP101: 8106.140196 | AQ101: 7495.021909 | AR101: 8317.893813 | AS101: 9283.466862 | AT101: 9733.839883 | AU101: 10954.84546 | AV101: 11884.19071 | AW101: 12785.96735 | AX101: 9837.186031 | AY101: 8982.097772 | AZ101: 11329.6373 | BA101: 9938.321316 | BB101: 8106.140196 | BC101: 7495.021909 | BD101: 8433.976509 | BE101: 9283.466862 | BF101: 9733.839883 | BG101: 10954.84546 | BH101: 11884.19071 | BI101: 12785.96735 | BJ101: 9798.288444 | BK101: 8968.34984 | BL101: 11566.021 | BM101: 9938.321316 | BN101: 9130.472687 | BO101: 0 | BP101: 10989.72814 | BQ101: 8106.140196 | BR101: 8428.361166 | BS101: 0 | BT101: 8961.127694 | BU101: 9414.423696 | BV101: 11003.96469 | BW101: 11745.75149 | BX101: 13044.44852 | BY101: 14113.19555 | BZ101: 15150.2387 | CA101: 13104.61861 | CB101: 15641.92741 | CC101: 16072.94461 | CD101: 17927.13181 | CE101: 8561.699967 | CF101: 8905.127622 | CG101: 6138.493013 | CH101: 0 | CK101: 2 | CL101: =IF(CK101<>0,LOOKUP(,-CODE(CK$3:CK101),CK$3:CK101),CL100) -> 2 | CT101: Ф | CU101: Ф | CV101: Ф | CW101: Ф | CX101: ф | CY101: Ф
A102: 0 | B102: 0 | C102: =IF(B102<>0,LOOKUP(,-CODE(B$3:B102),B$3:B102),C101) -> 8 | D102: 8-140(650)-528 | E102: Тумба кухонная двухдверный с леграбоксом, Н - 140/180 мм, полка ЛДСП | F102: =IF(E102<>0,LOOKUP(,-CODE(E$3:E102),E$3:E102),F101) -> Тумба кухонная двухдверный с леграбоксом, Н - 140/180 мм, полка ЛДСП | H102: 1 | I102: 650 | J102: 720 | K102: 528 | L102: 7277.395859 | M102: 7563.769264 | N102: 9363.121235 | O102: 10353.84079 | P102: 11686.38756 | Q102: 7407.811859 | R102: 7694.185264 | S102: 9493.537235 | T102: 10484.25679 | U102: 11816.80356 | V102: 7085.203859 | W102: 7371.577264 | X102: 9333.161598 | Y102: 10365.16113 | Z102: 11753.23068 | AA102: 8043.168417 | AB102: 8377.270722 | AC102: 10476.51469 | AD102: 11632.35417 | AE102: 13186.99206 | AF102: 9016.780138 | AG102: 9327.017993 | AH102: 11276.31596 | AI102: 12349.59548 | AJ102: 13793.18781 | AK102: 6265.521487 | AL102: 6644.082613 | AM102: 6872.524671 | AN102: 7529.585148 | AO102: 7787.020267 | AP102: 8445.831627 | AQ102: 7783.272407 | AR102: 8675.409623 | AS102: 9722.259864 | AT102: 10210.54307 | AU102: 11534.3269 | AV102: 12541.89986 | AW102: 13519.58363 | AX102: 10322.58839 | AY102: 9395.523006 | AZ102: 11940.66687 | BA102: 10432.23675 | BB102: 8445.831627 | BC102: 7783.272407 | BD102: 8801.26359 | BE102: 9722.259864 | BF102: 10210.54307 | BG102: 11534.3269 | BH102: 12541.89986 | BI102: 13519.58363 | BJ102: 10280.4166 | BK102: 9380.61784 | BL102: 12196.94819 | BM102: 10432.23675 | BN102: 9556.387392 | BO102: 0 | BP102: 11455.08697 | BQ102: 8445.831627 | BR102: 8795.175574 | BS102: 0 | BT102: 9372.78777 | BU102: 9864.240001 | BV102: 11587.58074 | BW102: 12391.80751 | BX102: 13799.82247 | BY102: 14958.53138 | BZ102: 16082.86771 | CA102: 13858.38991 | CB102: 16607.14111 | CC102: 17074.07641 | CD102: 19082.77921 | CE102: 8895.063601 | CF102: 9267.524995 | CG102: 6277.564513 | CH102: 0 | CK102: 0 | CL102: =IF(CK102<>0,LOOKUP(,-CODE(CK$3:CK102),CK$3:CK102),CL101) -> 2 | CT102: Ф | CU102: Ф | CV102: Ф | CW102: Ф | CX102: ф | CY102: Ф
A103: 0 | B103: 0 | C103: =IF(B103<>0,LOOKUP(,-CODE(B$3:B103),B$3:B103),C102) -> 8 | D103: 8-140(700)-528 | E103: Тумба кухонная двухдверный с леграбоксом, Н - 140/180 мм, полка ЛДСП | F103: =IF(E103<>0,LOOKUP(,-CODE(E$3:E103),E$3:E103),F102) -> Тумба кухонная двухдверный с леграбоксом, Н - 140/180 мм, полка ЛДСП | H103: 1 | I103: 700 | J103: 720 | K103: 528 | L103: 7498.249979 | M103: 7806.857344 | N103: 9745.910555 | O103: 10813.54933 | P103: 12249.5547 | Q103: 7633.225979 | R103: 7941.833344 | S103: 9880.886555 | T103: 10948.52533 | U103: 12384.5307 | V103: 7299.337979 | W103: 7607.945344 | X103: 9720.996661 | Y103: 10833.12038 | Z103: 12328.95931 | AA103: 8300.336307 | AB103: 8660.378232 | AC103: 10922.60698 | AD103: 12168.18555 | AE103: 13843.52514 | AF103: 9303.221143 | AG103: 9637.545788 | AH103: 11738.18677 | AI103: 12894.79544 | AJ103: 14450.46792 | AK103: 6428.37827 | AL103: 6830.244081 | AM103: 7072.749313 | AN103: 7782.223044 | AO103: 8058.508477 | AP103: 8785.523058 | AQ103: 8071.522905 | AR103: 9032.925433 | AS103: 10161.05287 | AT103: 10687.24626 | AU103: 12113.80833 | AV103: 13199.60901 | AW103: 14253.1999 | AX103: 10807.99075 | AY103: 9808.94824 | AZ103: 12551.69644 | BA103: 10926.15218 | BB103: 8785.523058 | BC103: 8071.522905 | BD103: 9168.55067 | BE103: 10161.05287 | BF103: 10687.24626 | BG103: 12113.80833 | BH103: 13199.60901 | BI103: 14253.1999 | BJ103: 10762.54475 | BK103: 9792.885841 | BL103: 12827.87538 | BM103: 10926.15218 | BN103: 9982.302097 | BO103: 0 | BP103: 11920.44581 | BQ103: 8785.523058 | BR103: 9161.989983 | BS103: 0 | BT103: 9784.447846 | BU103: 10314.05631 | BV103: 12171.19679 | BW103: 13037.86353 | BX103: 14555.19642 | BY103: 15803.8672 | BZ103: 17015.49673 | CA103: 14612.16121 | CB103: 17572.35481 | CC103: 18075.20821 | CD103: 20238.42661 | CE103: 9228.427234 | CF103: 9629.922368 | CG103: 6416.636013 | CH103: 0 | CK103: 0 | CL103: =IF(CK103<>0,LOOKUP(,-CODE(CK$3:CK103),CK$3:CK103),CL102) -> 2 | CT103: Ф | CU103: Ф | CV103: Ф | CW103: Ф | CX103: ф | CY103: Ф
A104: 0 | B104: 0 | C104: =IF(B104<>0,LOOKUP(,-CODE(B$3:B104),B$3:B104),C103) -> 8 | D104: 8-140(750)-528 | E104: Тумба кухонная двухдверный с леграбоксом, Н - 140/180 мм, полка ЛДСП | F104: =IF(E104<>0,LOOKUP(,-CODE(E$3:E104),E$3:E104),F103) -> Тумба кухонная двухдверный с леграбоксом, Н - 140/180 мм, полка ЛДСП | H104: 1 | I104: 750 | J104: 720 | K104: 528 | L104: 7719.104099 | M104: 8049.945424 | N104: 10128.69987 | O104: 11273.25787 | P104: 12812.72184 | Q104: 7858.640099 | R104: 8189.481424 | S104: 10268.23587 | T104: 11412.79387 | U104: 12952.25784 | V104: 7513.472099 | W104: 7844.313424 | X104: 10108.83172 | Y104: 11301.07963 | Z104: 12904.68793 | AA104: 8557.504197 | AB104: 8943.485742 | AC104: 11368.69927 | AD104: 12704.01693 | AE104: 14500.05822 | AF104: 9589.662148 | AG104: 9948.073583 | AH104: 12200.05757 | AI104: 13439.9954 | AJ104: 15107.74803 | AK104: 6591.235053 | AL104: 7016.40555 | AM104: 7272.973954 | AN104: 8034.86094 | AO104: 8329.996687 | AP104: 9125.214489 | AQ104: 8359.773403 | AR104: 9390.441242 | AS104: 10599.84587 | AT104: 11163.94945 | AU104: 12693.28977 | AV104: 13857.31816 | AW104: 14986.81618 | AX104: 11293.39311 | AY104: 10222.37347 | AZ104: 13162.72601 | BA104: 11420.06761 | BB104: 9125.214489 | BC104: 8359.773403 | BD104: 9535.837751 | BE104: 10599.84587 | BF104: 11163.94945 | BG104: 12693.28977 | BH104: 13857.31816 | BI104: 14986.81618 | BJ104: 11244.6729 | BK104: 10205.15384 | BL104: 13458.80257 | BM104: 11420.06761 | BN104: 10408.2168 | BO104: 0 | BP104: 12385.80464 | BQ104: 9125.214489 | BR104: 9528.804391 | BS104: 0 | BT104: 10196.10792 | BU104: 10763.87261 | BV104: 12754.81284 | BW104: 13683.91955 | BX104: 15310.57037 | BY104: 16649.20302 | BZ104: 17948.12574 | CA104: 15365.93251 | CB104: 18537.56851 | CC104: 19076.34001 | CD104: 21394.07401 | CE104: 9561.790868 | CF104: 9992.319741 | CG104: 6555.707513 | CH104: 0 | CK104: 0 | CL104: =IF(CK104<>0,LOOKUP(,-CODE(CK$3:CK104),CK$3:CK104),CL103) -> 2 | CT104: Ф | CU104: Ф | CV104: Ф | CW104: Ф | CX104: ф | CY104: Ф
A105: 0 | B105: 0 | C105: =IF(B105<>0,LOOKUP(,-CODE(B$3:B105),B$3:B105),C104) -> 8 | D105: 8-140(800)-528 | E105: Тумба кухонная двухдверный с леграбоксом, Н - 140/180 мм, полка ЛДСП | F105: =IF(E105<>0,LOOKUP(,-CODE(E$3:E105),E$3:E105),F104) -> Тумба кухонная двухдверный с леграбоксом, Н - 140/180 мм, полка ЛДСП | H105: 1 | I105: 800 | J105: 720 | K105: 528 | L105: 7939.958219 | M105: 8293.033504 | N105: 10511.48919 | O105: 11732.96641 | P105: 13375.88898 | Q105: 8084.054219 | R105: 8437.129504 | S105: 10655.58519 | T105: 11877.06241 | U105: 13519.98498 | V105: 7727.606219 | W105: 8080.681504 | X105: 10496.66679 | Y105: 11769.03888 | Z105: 13480.41656 | AA105: 8814.672087 | AB105: 9226.593252 | AC105: 11814.79156 | AD105: 13239.84831 | AE105: 15156.5913 | AF105: 9876.103153 | AG105: 10258.60138 | AH105: 12661.92838 | AI105: 13985.19536 | AJ105: 15765.02814 | AK105: 6754.091836 | AL105: 7202.567019 | AM105: 7473.198595 | AN105: 8287.498836 | AO105: 8601.484897 | AP105: 9464.905921 | AQ105: 8648.023901 | AR105: 9747.957052 | AS105: 11038.63887 | AT105: 11640.65264 | AU105: 13272.77121 | AV105: 14515.02731 | AW105: 15720.43245 | AX105: 11778.79547 | AY105: 10635.79871 | AZ105: 13773.75558 | BA105: 11913.98304 | BB105: 9464.905921 | BC105: 8648.023901 | BD105: 9903.124831 | BE105: 11038.63887 | BF105: 11640.65264 | BG105: 13272.77121 | BH105: 14515.02731 | BI105: 15720.43245 | BJ105: 11726.80105 | BK105: 10617.42184 | BL105: 14089.72976 | BM105: 11913.98304 | BN105: 10834.13151 | BO105: 0 | BP105: 12851.16347 | BQ105: 9464.905921 | BR105: 9895.6188 | BS105: 0 | BT105: 10607.768 | BU105: 11213.68892 | BV105: 13338.42889 | BW105: 14329.97557 | BX105: 16065.94432 | BY105: 17494.53884 | BZ105: 18880.75476 | CA105: 15794.30989 | CB105: 19073.15533 | CC105: 19630.13869 | CD105: 22026.21805 | CE105: 9895.154502 | CF105: 10354.71711 | CG105: 6694.779013 | CH105: 0 | CK105: 0 | CL105: =IF(CK105<>0,LOOKUP(,-CODE(CK$3:CK105),CK$3:CK105),CL104) -> 2 | CT105: Ф | CU105: Ф | CV105: Ф | CW105: Ф | CX105: ф | CY105: Ф
A106: 0 | B106: 0 | C106: =IF(B106<>0,LOOKUP(,-CODE(B$3:B106),B$3:B106),C105) -> 8 | D106: 8-140(850)-528 | E106: Тумба кухонная двухдверный с леграбоксом, Н - 140/180 мм, полка ЛДСП | F106: =IF(E106<>0,LOOKUP(,-CODE(E$3:E106),E$3:E106),F105) -> Тумба кухонная двухдверный с леграбоксом, Н - 140/180 мм, полка ЛДСП | H106: 1 | I106: 850 | J106: 720 | K106: 528 | L106: 8160.812339 | M106: 8536.121584 | N106: 10894.27851 | O106: 12192.67495 | P106: 13939.05612 | Q106: 8309.468339 | R106: 8684.777584 | S106: 11042.93451 | T106: 12341.33095 | U106: 14087.71212 | V106: 7941.740339 | W106: 8317.049584 | X106: 10884.50185 | Y106: 12236.99813 | Z106: 14056.14518 | AA106: 9071.839977 | AB106: 9509.700762 | AC106: 12260.88385 | AD106: 13775.67969 | AE106: 15813.12438 | AF106: 10162.54416 | AG106: 10569.12917 | AH106: 13123.79918 | AI106: 14530.39532 | AJ106: 16422.30825 | AK106: 6916.948618 | AL106: 7388.728487 | AM106: 7673.423236 | AN106: 8540.136732 | AO106: 8872.973107 | AP106: 9804.597352 | AQ106: 8936.274399 | AR106: 10105.47286 | AS106: 11477.43187 | AT106: 12117.35583 | AU106: 13852.25264 | AV106: 15172.73646 | AW106: 16454.04873 | AX106: 12264.19783 | AY106: 11049.22394 | AZ106: 14384.78516 | BA106: 12407.89847 | BB106: 9804.597352 | BC106: 8936.274399 | BD106: 10270.41191 | BE106: 11477.43187 | BF106: 12117.35583 | BG106: 13852.25264 | BH106: 15172.73646 | BI106: 16454.04873 | BJ106: 12208.92921 | BK106: 11029.68984 | BL106: 14720.65695 | BM106: 12407.89847 | BN106: 11260.04621 | BO106: 0 | BP106: 13316.52231 | BQ106: 9804.597352 | BR106: 10262.43321 | BS106: 0 | BT106: 11019.42807 | BU106: 11663.50522 | BV106: 13922.04494 | BW106: 14976.03159 | BX106: 16821.31827 | BY106: 18339.87466 | BZ106: 19813.38377 | CA106: 16527.74407 | CB106: 20011.51735 | CC106: 20603.31217 | CD106: 23149.14649 | CE106: 10228.51814 | CF106: 10717.11449 | CG106: 6833.850513 | CH106: 0 | CK106: 0 | CL106: =IF(CK106<>0,LOOKUP(,-CODE(CK$3:CK106),CK$3:CK106),CL105) -> 2 | CT106: Ф | CU106: Ф | CV106: Ф | CW106: Ф | CX106: ф | CY106: Ф
A107: 0 | B107: 0 | C107: =IF(B107<>0,LOOKUP(,-CODE(B$3:B107),B$3:B107),C106) -> 8 | D107: 8-140(900)-528 | E107: Тумба кухонная двухдверный с леграбоксом, Н - 140/180 мм, полка ЛДСП | F107: =IF(E107<>0,LOOKUP(,-CODE(E$3:E107),E$3:E107),F106) -> Тумба кухонная двухдверный с леграбоксом, Н - 140/180 мм, полка ЛДСП | H107: 1 | I107: 900 | J107: 720 | K107: 528 | L107: 8381.666459 | M107: 8779.209664 | N107: 11277.06783 | O107: 12652.38349 | P107: 14502.22326 | Q107: 8534.882459 | R107: 8932.425664 | S107: 11430.28383 | T107: 12805.59949 | U107: 14655.43926 | V107: 8155.874459 | W107: 8553.417664 | X107: 11272.33691 | Y107: 12704.95738 | Z107: 14631.87381 | AA107: 9329.007867 | AB107: 9792.808272 | AC107: 12706.97614 | AD107: 14311.51107 | AE107: 16469.65746 | AF107: 10448.98516 | AG107: 10879.65697 | AH107: 13585.66999 | AI107: 15075.59528 | AJ107: 17079.58836 | AK107: 7079.805401 | AL107: 7574.889956 | AM107: 7873.647877 | AN107: 8792.774628 | AO107: 9144.461317 | AP107: 10144.28878 | AQ107: 9224.524896 | AR107: 10462.98867 | AS107: 11916.22488 | AT107: 12594.05902 | AU107: 14431.73408 | AV107: 15830.44561 | AW107: 17187.66501 | AX107: 12749.60019 | AY107: 11462.64918 | AZ107: 14995.81473 | BA107: 12901.8139 | BB107: 10144.28878 | BC107: 9224.524896 | BD107: 10637.69899 | BE107: 11916.22488 | BF107: 12594.05902 | BG107: 14431.73408 | BH107: 15830.44561 | BI107: 17187.66501 | BJ107: 12691.05736 | BK107: 11441.95784 | BL107: 15351.58414 | BM107: 12901.8139 | BN107: 11685.96092 | BO107: 0 | BP107: 13781.88114 | BQ107: 10144.28878 | BR107: 10629.24762 | BS107: 0 | BT107: 11431.08815 | BU107: 12113.32153 | BV107: 14505.66099 | BW107: 15622.08761 | BX107: 17576.69222 | BY107: 19185.21048 | BZ107: 20746.01279 | CA107: 17261.17825 | CB107: 20949.87937 | CC107: 21576.48565 | CD107: 24272.07493 | CE107: 10561.88177 | CF107: 11079.51186 | CG107: 6972.922013 | CH107: 0 | CK107: 0 | CL107: =IF(CK107<>0,LOOKUP(,-CODE(CK$3:CK107),CK$3:CK107),CL106) -> 2 | CT107: Ф | CU107: Ф | CV107: Ф | CW107: Ф | CX107: ф | CY107: Ф
A108: 0 | B108: 0 | C108: =IF(B108<>0,LOOKUP(,-CODE(B$3:B108),B$3:B108),C107) -> 8 | D108: 8-140(950)-528 | E108: Тумба кухонная двухдверный с леграбоксом, Н - 140/180 мм, полка ЛДСП | F108: =IF(E108<>0,LOOKUP(,-CODE(E$3:E108),E$3:E108),F107) -> Тумба кухонная двухдверный с леграбоксом, Н - 140/180 мм, полка ЛДСП | H108: 1 | I108: 950 | J108: 720 | K108: 528 | L108: 8602.520579 | M108: 9022.297744 | N108: 11659.85715 | O108: 13112.09203 | P108: 15065.3904 | Q108: 8760.296579 | R108: 9180.073744 | S108: 11817.63315 | T108: 13269.86803 | U108: 15223.1664 | V108: 8370.008579 | W108: 8789.785744 | X108: 11660.17197 | Y108: 13172.91663 | Z108: 15207.60243 | AA108: 9586.175757 | AB108: 10075.91578 | AC108: 13153.06843 | AD108: 14847.34245 | AE108: 17126.19054 | AF108: 10735.42617 | AG108: 11190.18476 | AH108: 14047.54079 | AI108: 15620.79524 | AJ108: 17736.86847 | AK108: 7242.662184 | AL108: 7761.051425 | AM108: 8073.872518 | AN108: 9045.412524 | AO108: 9415.949527 | AP108: 10483.98021 | AQ108: 9512.775394 | AR108: 10820.50448 | AS108: 12355.01788 | AT108: 13070.76221 | AU108: 15011.21552 | AV108: 16488.15476 | AW108: 17921.28128 | AX108: 13235.00255 | AY108: 11876.07441 | AZ108: 15606.8443 | BA108: 13395.72933 | BB108: 10483.98021 | BC108: 9512.775394 | BD108: 11004.98607 | BE108: 12355.01788 | BF108: 13070.76221 | BG108: 15011.21552 | BH108: 16488.15476 | BI108: 17921.28128 | BJ108: 13173.18551 | BK108: 11854.22584 | BL108: 15982.51133 | BM108: 13395.72933 | BN108: 12111.87562 | BO108: 0 | BP108: 14247.23998 | BQ108: 10483.98021 | BR108: 10996.06203 | BS108: 0 | BT108: 11842.74823 | BU108: 12563.13783 | BV108: 15089.27705 | BW108: 16268.14362 | BX108: 18332.06617 | BY108: 20030.5463 | BZ108: 21678.6418 | CA108: 17994.61243 | CB108: 21888.24139 | CC108: 22549.65913 | CD108: 25395.00337 | CE108: 10895.2454 | CF108: 11441.90923 | CG108: 7111.993513 | CH108: 0 | CK108: 0 | CL108: =IF(CK108<>0,LOOKUP(,-CODE(CK$3:CK108),CK$3:CK108),CL107) -> 2 | CT108: Ф | CU108: Ф | CV108: Ф | CW108: Ф | CX108: ф | CY108: Ф
A109: 0 | B109: 0 | C109: =IF(B109<>0,LOOKUP(,-CODE(B$3:B109),B$3:B109),C108) -> 8 | D109: 8-140(1000)-528 | E109: Тумба кухонная двухдверный с леграбоксом, Н - 140/180 мм, полка ЛДСП | F109: =IF(E109<>0,LOOKUP(,-CODE(E$3:E109),E$3:E109),F108) -> Тумба кухонная двухдверный с леграбоксом, Н - 140/180 мм, полка ЛДСП | H109: 1 | I109: 1000 | J109: 720 | K109: 528 | L109: 8823.374699 | M109: 9265.385824 | N109: 12042.64647 | O109: 13571.80057 | P109: 15628.55754 | Q109: 8985.710699 | R109: 9427.721824 | S109: 12204.98247 | T109: 13734.13657 | U109: 15790.89354 | V109: 8584.142699 | W109: 9026.153824 | X109: 12048.00704 | Y109: 13640.87588 | Z109: 15783.33106 | AA109: 9843.343647 | AB109: 10359.02329 | AC109: 13599.16072 | AD109: 15383.17383 | AE109: 17782.72362 | AF109: 11021.86717 | AG109: 11500.71256 | AH109: 14509.4116 | AI109: 16165.9952 | AJ109: 18394.14858 | AK109: 7405.518967 | AL109: 7947.212893 | AM109: 8274.097159 | AN109: 9298.05042 | AO109: 9687.437737 | AP109: 10823.67165 | AQ109: 9801.025892 | AR109: 11178.02029 | AS109: 12793.81088 | AT109: 13547.4654 | AU109: 15590.69695 | AV109: 17145.86391 | AW109: 18654.89756 | AX109: 13720.40491 | AY109: 12289.49964 | AZ109: 16217.87387 | BA109: 13889.64477 | BB109: 10823.67165 | BC109: 9801.025892 | BD109: 11372.27315 | BE109: 12793.81088 | BF109: 13547.4654 | BG109: 15590.69695 | BH109: 17145.86391 | BI109: 18654.89756 | BJ109: 13655.31366 | BK109: 12266.49384 | BL109: 16613.43852 | BM109: 13889.64477 | BN109: 12537.79033 | BO109: 0 | BP109: 14712.59881 | BQ109: 10823.67165 | BR109: 11362.87643 | BS109: 0 | BT109: 12254.4083 | BU109: 13012.95414 | BV109: 15672.8931 | BW109: 16914.19964 | BX109: 19087.44012 | BY109: 20875.88213 | BZ109: 22611.27082 | CA109: 18728.04661 | CB109: 22826.60341 | CC109: 23522.83261 | CD109: 26517.93181 | CE109: 11228.60904 | CF109: 11804.3066 | CG109: 7251.065013 | CH109: 0 | CK109: 0 | CL109: =IF(CK109<>0,LOOKUP(,-CODE(CK$3:CK109),CK$3:CK109),CL108) -> 2 | CT109: Ф | CU109: Ф | CV109: Ф | CW109: Ф | CX109: ф | CY109: Ф
A110: 0 | B110: 0 | C110: =IF(B110<>0,LOOKUP(,-CODE(B$3:B110),B$3:B110),C109) -> 8 | D110: 8-180(600)-528 | E110: Тумба кухонная двухдверный с леграбоксом, Н - 140/180 мм, полка ЛДСП | F110: =IF(E110<>0,LOOKUP(,-CODE(E$3:E110),E$3:E110),F109) -> Тумба кухонная двухдверный с леграбоксом, Н - 140/180 мм, полка ЛДСП | H110: 1 | I110: 600 | J110: 720 | K110: 528 | L110: 7056.541739 | M110: 7320.681184 | N110: 8980.331915 | O110: 9894.132249 | P110: 11123.22042 | Q110: 7182.397739 | R110: 7446.537184 | S110: 9106.187915 | T110: 10019.98825 | U110: 11249.07642 | V110: 6871.069739 | W110: 7135.209184 | X110: 8945.326536 | Y110: 9897.201883 | Z110: 11177.50206 | AA110: 7786.000527 | AB110: 8094.163212 | AC110: 10030.4224 | AD110: 11096.52279 | AE110: 12530.45898 | AF110: 8730.339133 | AG110: 9016.490198 | AH110: 10814.44516 | AI110: 11804.39552 | AJ110: 13135.9077 | AK110: 6119.175802 | AL110: 6487.732849 | AM110: 6710.137963 | AN110: 7311.727574 | AO110: 7552.796688 | AP110: 8106.140196 | AQ110: 7495.021909 | AR110: 8317.893813 | AS110: 9283.466862 | AT110: 9733.839883 | AU110: 10954.84546 | AV110: 11884.19071 | AW110: 12785.96735 | AX110: 9837.186031 | AY110: 8982.097772 | AZ110: 11329.6373 | BA110: 9938.321316 | BB110: 8106.140196 | BC110: 7495.021909 | BD110: 8433.976509 | BE110: 9283.466862 | BF110: 9733.839883 | BG110: 10954.84546 | BH110: 11884.19071 | BI110: 12785.96735 | BJ110: 9798.288444 | BK110: 8968.34984 | BL110: 11566.021 | BM110: 9938.321316 | BN110: 9130.472687 | BO110: 8562.286019 | BP110: 12084.41614 | BQ110: 8106.140196 | BR110: 8428.361166 | BS110: 10404.29859 | BT110: 8961.127694 | BU110: 9414.423696 | BV110: 11003.96469 | BW110: 11745.75149 | BX110: 13044.44852 | BY110: 14113.19555 | BZ110: 15150.2387 | CA110: 13117.24165 | CB110: 15658.59397 | CC110: 16090.29805 | CD110: 17947.44013 | CE110: 8674.750645 | CF110: 9015.79054 | CG110: 6138.461013 | CH110: 0 | CK110: 0 | CL110: =IF(CK110<>0,LOOKUP(,-CODE(CK$3:CK110),CK$3:CK110),CL109) -> 2 | CT110: =$I110*$J110/1000000 -> 0.432 | CU110: 129.6 | CV110: 1.2 | CW110: 1440 | CX110: ф | CY110: 1569.6
A111: 0 | B111: 0 | C111: =IF(B111<>0,LOOKUP(,-CODE(B$3:B111),B$3:B111),C110) -> 8 | D111: 8-180(650)-528 | E111: Тумба кухонная двухдверный с леграбоксом, Н - 140/180 мм, полка ЛДСП | F111: =IF(E111<>0,LOOKUP(,-CODE(E$3:E111),E$3:E111),F110) -> Тумба кухонная двухдверный с леграбоксом, Н - 140/180 мм, полка ЛДСП | H111: 1 | I111: 650 | J111: 720 | K111: 528 | L111: 7277.395859 | M111: 7563.769264 | N111: 9363.121235 | O111: 10353.84079 | P111: 11686.38756 | Q111: 7407.811859 | R111: 7694.185264 | S111: 9493.537235 | T111: 10484.25679 | U111: 11816.80356 | V111: 7085.203859 | W111: 7371.577264 | X111: 9333.161598 | Y111: 10365.16113 | Z111: 11753.23068 | AA111: 8043.168417 | AB111: 8377.270722 | AC111: 10476.51469 | AD111: 11632.35417 | AE111: 13186.99206 | AF111: 9016.780138 | AG111: 9327.017993 | AH111: 11276.31596 | AI111: 12349.59548 | AJ111: 13793.18781 | AK111: 6283.217025 | AL111: 6676.03289 | AM111: 6913.076947 | AN111: 7566.860472 | AO111: 7826.958114 | AP111: 8445.831627 | AQ111: 7783.272407 | AR111: 8675.409623 | AS111: 9722.259864 | AT111: 10210.54307 | AU111: 11534.3269 | AV111: 12541.89986 | AW111: 13519.58363 | AX111: 10322.58839 | AY111: 9395.523006 | AZ111: 11940.66687 | BA111: 10432.23675 | BB111: 8445.831627 | BC111: 7783.272407 | BD111: 8801.26359 | BE111: 9722.259864 | BF111: 10210.54307 | BG111: 11534.3269 | BH111: 12541.89986 | BI111: 13519.58363 | BJ111: 10280.4166 | BK111: 9380.61784 | BL111: 12196.94819 | BM111: 10432.23675 | BN111: 9556.387392 | BO111: 8940.373564 | BP111: 12651.13497 | BQ111: 8445.831627 | BR111: 8795.175574 | BS111: 10937.4377 | BT111: 9372.78777 | BU111: 9864.240001 | BV111: 11587.58074 | BW111: 12391.80751 | BX111: 13799.82247 | BY111: 14958.53138 | BZ111: 16082.86771 | CA111: 13872.06487 | CB111: 16625.19655 | CC111: 17092.87597 | CD111: 19104.77989 | CE111: 9021.018973 | CF111: 9391.499242 | CG111: 6277.652513 | CH111: 0 | CK111: 0 | CL111: =IF(CK111<>0,LOOKUP(,-CODE(CK$3:CK111),CK$3:CK111),CL110) -> 2 | CT111: 0.468 | CU111: 140.4 | CV111: 1.3 | CW111: 1560 | CX111: ф | CY111: 1700.4
A112: 0 | B112: 0 | C112: =IF(B112<>0,LOOKUP(,-CODE(B$3:B112),B$3:B112),C111) -> 8 | D112: 8-180(700)-528 | E112: Тумба кухонная двухдверный с леграбоксом, Н - 140/180 мм, полка ЛДСП | F112: =IF(E112<>0,LOOKUP(,-CODE(E$3:E112),E$3:E112),F111) -> Тумба кухонная двухдверный с леграбоксом, Н - 140/180 мм, полка ЛДСП | H112: 1 | I112: 700 | J112: 720 | K112: 528 | L112: 7498.249979 | M112: 7806.857344 | N112: 9745.910555 | O112: 10813.54933 | P112: 12249.5547 | Q112: 7633.225979 | R112: 7941.833344 | S112: 9880.886555 | T112: 10948.52533 | U112: 12384.5307 | V112: 7299.337979 | W112: 7607.945344 | X112: 9720.996661 | Y112: 10833.12038 | Z112: 12328.95931 | AA112: 8300.336307 | AB112: 8660.378232 | AC112: 10922.60698 | AD112: 12168.18555 | AE112: 13843.52514 | AF112: 9303.221143 | AG112: 9637.545788 | AH112: 11738.18677 | AI112: 12894.79544 | AJ112: 14450.46792 | AK112: 6447.258249 | AL112: 6864.332932 | AM112: 7116.01593 | AN112: 7821.993369 | AO112: 8101.11954 | AP112: 8785.523058 | AQ112: 8071.522905 | AR112: 9032.925433 | AS112: 10161.05287 | AT112: 10687.24626 | AU112: 12113.80833 | AV112: 13199.60901 | AW112: 14253.1999 | AX112: 10807.99075 | AY112: 9808.94824 | AZ112: 12551.69644 | BA112: 10926.15218 | BB112: 8785.523058 | BC112: 8071.522905 | BD112: 9168.55067 | BE112: 10161.05287 | BF112: 10687.24626 | BG112: 12113.80833 | BH112: 13199.60901 | BI112: 14253.1999 | BJ112: 10762.54475 | BK112: 9792.885841 | BL112: 12827.87538 | BM112: 10926.15218 | BN112: 9982.302097 | BO112: 9318.461108 | BP112: 13217.85381 | BQ112: 8785.523058 | BR112: 9161.989983 | BS112: 11470.57681 | BT112: 9784.447846 | BU112: 10314.05631 | BV112: 12171.19679 | BW112: 13037.86353 | BX112: 14555.19642 | BY112: 15803.8672 | BZ112: 17015.49673 | CA112: 14626.88809 | CB112: 17591.79913 | CC112: 18095.45389 | CD112: 20262.11965 | CE112: 9367.2873 | CF112: 9767.207943 | CG112: 6416.844013 | CH112: 0 | CK112: 0 | CL112: =IF(CK112<>0,LOOKUP(,-CODE(CK$3:CK112),CK$3:CK112),CL111) -> 2 | CT112: 0.504 | CU112: 151.2 | CV112: 1.4 | CW112: 1680 | CX112: ф | CY112: 1831.2
A113: 0 | B113: 0 | C113: =IF(B113<>0,LOOKUP(,-CODE(B$3:B113),B$3:B113),C112) -> 8 | D113: 8-180(750)-528 | E113: Тумба кухонная двухдверный с леграбоксом, Н - 140/180 мм, полка ЛДСП | F113: =IF(E113<>0,LOOKUP(,-CODE(E$3:E113),E$3:E113),F112) -> Тумба кухонная двухдверный с леграбоксом, Н - 140/180 мм, полка ЛДСП | H113: 1 | I113: 750 | J113: 720 | K113: 528 | L113: 7719.104099 | M113: 8049.945424 | N113: 10128.69987 | O113: 11273.25787 | P113: 12812.72184 | Q113: 7858.640099 | R113: 8189.481424 | S113: 10268.23587 | T113: 11412.79387 | U113: 12952.25784 | V113: 7513.472099 | W113: 7844.313424 | X113: 10108.83172 | Y113: 11301.07963 | Z113: 12904.68793 | AA113: 8557.504197 | AB113: 8943.485742 | AC113: 11368.69927 | AD113: 12704.01693 | AE113: 14500.05822 | AF113: 9589.662148 | AG113: 9948.073583 | AH113: 12200.05757 | AI113: 13439.9954 | AJ113: 15107.74803 | AK113: 6611.299472 | AL113: 7052.632973 | AM113: 7318.954914 | AN113: 8077.126267 | AO113: 8375.280966 | AP113: 9125.214489 | AQ113: 8359.773403 | AR113: 9390.441242 | AS113: 10599.84587 | AT113: 11163.94945 | AU113: 12693.28977 | AV113: 13857.31816 | AW113: 14986.81618 | AX113: 11293.39311 | AY113: 10222.37347 | AZ113: 13162.72601 | BA113: 11420.06761 | BB113: 9125.214489 | BC113: 8359.773403 | BD113: 9535.837751 | BE113: 10599.84587 | BF113: 11163.94945 | BG113: 12693.28977 | BH113: 13857.31816 | BI113: 14986.81618 | BJ113: 11244.6729 | BK113: 10205.15384 | BL113: 13458.80257 | BM113: 11420.06761 | BN113: 10408.2168 | BO113: 9696.548652 | BP113: 13784.57264 | BQ113: 9125.214489 | BR113: 9528.804391 | BS113: 12003.71592 | BT113: 10196.10792 | BU113: 10763.87261 | BV113: 12754.81284 | BW113: 13683.91955 | BX113: 15310.57037 | BY113: 16649.20302 | BZ113: 17948.12574 | CA113: 15381.71131 | CB113: 18558.40171 | CC113: 19098.03181 | CD113: 21419.45941 | CE113: 9713.555628 | CF113: 10142.91664 | CG113: 6556.035513 | CH113: 0 | CK113: 0 | CL113: =IF(CK113<>0,LOOKUP(,-CODE(CK$3:CK113),CK$3:CK113),CL112) -> 2 | CT113: 0.54 | CU113: 162 | CV113: 1.5 | CW113: 1800 | CX113: ф | CY113: 1962
A114: 0 | B114: 0 | C114: =IF(B114<>0,LOOKUP(,-CODE(B$3:B114),B$3:B114),C113) -> 8 | D114: 8-180(800)-528 | E114: Тумба кухонная двухдверный с леграбоксом, Н - 140/180 мм, полка ЛДСП | F114: =IF(E114<>0,LOOKUP(,-CODE(E$3:E114),E$3:E114),F113) -> Тумба кухонная двухдверный с леграбоксом, Н - 140/180 мм, полка ЛДСП | H114: 1 | I114: 800 | J114: 720 | K114: 528 | L114: 7939.958219 | M114: 8293.033504 | N114: 10511.48919 | O114: 11732.96641 | P114: 13375.88898 | Q114: 8084.054219 | R114: 8437.129504 | S114: 10655.58519 | T114: 11877.06241 | U114: 13519.98498 | V114: 7727.606219 | W114: 8080.681504 | X114: 10496.66679 | Y114: 11769.03888 | Z114: 13480.41656 | AA114: 8814.672087 | AB114: 9226.593252 | AC114: 11814.79156 | AD114: 13239.84831 | AE114: 15156.5913 | AF114: 9876.103153 | AG114: 10258.60138 | AH114: 12661.92838 | AI114: 13985.19536 | AJ114: 15765.02814 | AK114: 6775.340695 | AL114: 7240.933015 | AM114: 7521.893897 | AN114: 8332.259164 | AO114: 8649.442392 | AP114: 9464.905921 | AQ114: 8648.023901 | AR114: 9747.957052 | AS114: 11038.63887 | AT114: 11640.65264 | AU114: 13272.77121 | AV114: 14515.02731 | AW114: 15720.43245 | AX114: 11778.79547 | AY114: 10635.79871 | AZ114: 13773.75558 | BA114: 11913.98304 | BB114: 9464.905921 | BC114: 8648.023901 | BD114: 9903.124831 | BE114: 11038.63887 | BF114: 11640.65264 | BG114: 13272.77121 | BH114: 14515.02731 | BI114: 15720.43245 | BJ114: 11726.80105 | BK114: 10617.42184 | BL114: 14089.72976 | BM114: 11913.98304 | BN114: 10834.13151 | BO114: 10074.6362 | BP114: 14351.29147 | BQ114: 9464.905921 | BR114: 9895.6188 | BS114: 12536.85503 | BT114: 10607.768 | BU114: 11213.68892 | BV114: 13338.42889 | BW114: 14329.97557 | BX114: 16065.94432 | BY114: 17494.53884 | BZ114: 18880.75476 | CA114: 15833.58157 | CB114: 19125.00685 | CC114: 19684.12717 | CD114: 22089.39949 | CE114: 10059.82396 | CF114: 10518.62535 | CG114: 6695.227013 | CH114: 0 | CK114: 0 | CL114: =IF(CK114<>0,LOOKUP(,-CODE(CK$3:CK114),CK$3:CK114),CL113) -> 2 | CT114: 0.576 | CU114: 172.8 | CV114: 1.6 | CW114: 1920 | CX114: ф | CY114: 2092.8
A115: 0 | B115: 0 | C115: =IF(B115<>0,LOOKUP(,-CODE(B$3:B115),B$3:B115),C114) -> 8 | D115: 8-180(850)-528 | E115: Тумба кухонная двухдверный с леграбоксом, Н - 140/180 мм, полка ЛДСП | F115: =IF(E115<>0,LOOKUP(,-CODE(E$3:E115),E$3:E115),F114) -> Тумба кухонная двухдверный с леграбоксом, Н - 140/180 мм, полка ЛДСП | H115: 1 | I115: 850 | J115: 720 | K115: 528 | L115: 8160.812339 | M115: 8536.121584 | N115: 10894.27851 | O115: 12192.67495 | P115: 13939.05612 | Q115: 8309.468339 | R115: 8684.777584 | S115: 11042.93451 | T115: 12341.33095 | U115: 14087.71212 | V115: 7941.740339 | W115: 8317.049584 | X115: 10884.50185 | Y115: 12236.99813 | Z115: 14056.14518 | AA115: 9071.839977 | AB115: 9509.700762 | AC115: 12260.88385 | AD115: 13775.67969 | AE115: 15813.12438 | AF115: 10162.54416 | AG115: 10569.12917 | AH115: 13123.79918 | AI115: 14530.39532 | AJ115: 16422.30825 | AK115: 6939.381918 | AL115: 7429.233056 | AM115: 7724.832881 | AN115: 8587.392062 | AO115: 8923.603818 | AP115: 9804.597352 | AQ115: 8936.274399 | AR115: 10105.47286 | AS115: 11477.43187 | AT115: 12117.35583 | AU115: 13852.25264 | AV115: 15172.73646 | AW115: 16454.04873 | AX115: 12264.19783 | AY115: 11049.22394 | AZ115: 14384.78516 | BA115: 12407.89847 | BB115: 9804.597352 | BC115: 8936.274399 | BD115: 10270.41191 | BE115: 11477.43187 | BF115: 12117.35583 | BG115: 13852.25264 | BH115: 15172.73646 | BI115: 16454.04873 | BJ115: 12208.92921 | BK115: 11029.68984 | BL115: 14720.65695 | BM115: 12407.89847 | BN115: 11260.04621 | BO115: 10452.72374 | BP115: 14918.01031 | BQ115: 9804.597352 | BR115: 10262.43321 | BS115: 13069.99413 | BT115: 11019.42807 | BU115: 11663.50522 | BV115: 13922.04494 | BW115: 14976.03159 | BX115: 16821.31827 | BY115: 18339.87466 | BZ115: 19813.38377 | CA115: 16569.47023 | CB115: 20066.60959 | CC115: 20660.67493 | CD115: 23216.27677 | CE115: 10406.09228 | CF115: 10894.33405 | CG115: 6834.418513 | CH115: 0 | CK115: 0 | CL115: =IF(CK115<>0,LOOKUP(,-CODE(CK$3:CK115),CK$3:CK115),CL114) -> 2 | CT115: 0.612 | CU115: 183.6 | CV115: 1.7 | CW115: 2040 | CX115: ф | CY115: 2223.6
A116: 0 | B116: 0 | C116: =IF(B116<>0,LOOKUP(,-CODE(B$3:B116),B$3:B116),C115) -> 8 | D116: 8-180(900)-528 | E116: Тумба кухонная двухдверный с леграбоксом, Н - 140/180 мм, полка ЛДСП | F116: =IF(E116<>0,LOOKUP(,-CODE(E$3:E116),E$3:E116),F115) -> Тумба кухонная двухдверный с леграбоксом, Н - 140/180 мм, полка ЛДСП | H116: 1 | I116: 900 | J116: 720 | K116: 528 | L116: 8381.666459 | M116: 8779.209664 | N116: 11277.06783 | O116: 12652.38349 | P116: 14502.22326 | Q116: 8534.882459 | R116: 8932.425664 | S116: 11430.28383 | T116: 12805.59949 | U116: 14655.43926 | V116: 8155.874459 | W116: 8553.417664 | X116: 11272.33691 | Y116: 12704.95738 | Z116: 14631.87381 | AA116: 9329.007867 | AB116: 9792.808272 | AC116: 12706.97614 | AD116: 14311.51107 | AE116: 16469.65746 | AF116: 10448.98516 | AG116: 10879.65697 | AH116: 13585.66999 | AI116: 15075.59528 | AJ116: 17079.58836 | AK116: 7103.423141 | AL116: 7617.533098 | AM116: 7927.771864 | AN116: 8842.52496 | AO116: 9197.765244 | AP116: 10144.28878 | AQ116: 9224.524896 | AR116: 10462.98867 | AS116: 11916.22488 | AT116: 12594.05902 | AU116: 14431.73408 | AV116: 15830.44561 | AW116: 17187.66501 | AX116: 12749.60019 | AY116: 11462.64918 | AZ116: 14995.81473 | BA116: 12901.8139 | BB116: 10144.28878 | BC116: 9224.524896 | BD116: 10637.69899 | BE116: 11916.22488 | BF116: 12594.05902 | BG116: 14431.73408 | BH116: 15830.44561 | BI116: 17187.66501 | BJ116: 12691.05736 | BK116: 11441.95784 | BL116: 15351.58414 | BM116: 12901.8139 | BN116: 11685.96092 | BO116: 10830.81128 | BP116: 15484.72914 | BQ116: 10144.28878 | BR116: 10629.24762 | BS116: 13603.13324 | BT116: 11431.08815 | BU116: 12113.32153 | BV116: 14505.66099 | BW116: 15622.08761 | BX116: 17576.69222 | BY116: 19185.21048 | BZ116: 20746.01279 | CA116: 17305.35889 | CB116: 21008.21233 | CC116: 21637.22269 | CD116: 24343.15405 | CE116: 10752.36061 | CF116: 11270.04275 | CG116: 6973.610013 | CH116: 0 | CK116: 0 | CL116: =IF(CK116<>0,LOOKUP(,-CODE(CK$3:CK116),CK$3:CK116),CL115) -> 2 | CT116: 0.648 | CU116: 194.4 | CV116: 1.8 | CW116: 2160 | CX116: ф | CY116: 2354.4
A117: 0 | B117: 0 | C117: =IF(B117<>0,LOOKUP(,-CODE(B$3:B117),B$3:B117),C116) -> 8 | D117: 8-180(950)-528 | E117: Тумба кухонная двухдверный с леграбоксом, Н - 140/180 мм, полка ЛДСП | F117: =IF(E117<>0,LOOKUP(,-CODE(E$3:E117),E$3:E117),F116) -> Тумба кухонная двухдверный с леграбоксом, Н - 140/180 мм, полка ЛДСП | H117: 1 | I117: 950 | J117: 720 | K117: 528 | L117: 8602.520579 | M117: 9022.297744 | N117: 11659.85715 | O117: 13112.09203 | P117: 15065.3904 | Q117: 8760.296579 | R117: 9180.073744 | S117: 11817.63315 | T117: 13269.86803 | U117: 15223.1664 | V117: 8370.008579 | W117: 8789.785744 | X117: 11660.17197 | Y117: 13172.91663 | Z117: 15207.60243 | AA117: 9586.175757 | AB117: 10075.91578 | AC117: 13153.06843 | AD117: 14847.34245 | AE117: 17126.19054 | AF117: 10735.42617 | AG117: 11190.18476 | AH117: 14047.54079 | AI117: 15620.79524 | AJ117: 17736.86847 | AK117: 7267.464364 | AL117: 7805.833139 | AM117: 8130.710848 | AN117: 9097.657857 | AO117: 9471.92667 | AP117: 10483.98021 | AQ117: 9512.775394 | AR117: 10820.50448 | AS117: 12355.01788 | AT117: 13070.76221 | AU117: 15011.21552 | AV117: 16488.15476 | AW117: 17921.28128 | AX117: 13235.00255 | AY117: 11876.07441 | AZ117: 15606.8443 | BA117: 13395.72933 | BB117: 10483.98021 | BC117: 9512.775394 | BD117: 11004.98607 | BE117: 12355.01788 | BF117: 13070.76221 | BG117: 15011.21552 | BH117: 16488.15476 | BI117: 17921.28128 | BJ117: 13173.18551 | BK117: 11854.22584 | BL117: 15982.51133 | BM117: 13395.72933 | BN117: 12111.87562 | BO117: 11208.89883 | BP117: 16051.44798 | BQ117: 10483.98021 | BR117: 10996.06203 | BS117: 14136.27235 | BT117: 11842.74823 | BU117: 12563.13783 | BV117: 15089.27705 | BW117: 16268.14362 | BX117: 18332.06617 | BY117: 20030.5463 | BZ117: 21678.6418 | CA117: 18041.24755 | CB117: 21949.81507 | CC117: 22613.77045 | CD117: 25470.03133 | CE117: 11098.62894 | CF117: 11645.75145 | CG117: 7112.801513 | CH117: 0 | CK117: 0 | CL117: =IF(CK117<>0,LOOKUP(,-CODE(CK$3:CK117),CK$3:CK117),CL116) -> 2 | CT117: 0.684 | CU117: 205.2 | CV117: 1.9 | CW117: 2280 | CX117: ф | CY117: 2485.2
A118: 0 | B118: 0 | C118: =IF(B118<>0,LOOKUP(,-CODE(B$3:B118),B$3:B118),C117) -> 8 | D118: 8-180(1000)-528 | E118: Тумба кухонная двухдверный с леграбоксом, Н - 140/180 мм, полка ЛДСП | F118: =IF(E118<>0,LOOKUP(,-CODE(E$3:E118),E$3:E118),F117) -> Тумба кухонная двухдверный с леграбоксом, Н - 140/180 мм, полка ЛДСП | H118: 1 | I118: 1000 | J118: 720 | K118: 528 | L118: 8823.374699 | M118: 9265.385824 | N118: 12042.64647 | O118: 13571.80057 | P118: 15628.55754 | Q118: 8985.710699 | R118: 9427.721824 | S118: 12204.98247 | T118: 13734.13657 | U118: 15790.89354 | V118: 8584.142699 | W118: 9026.153824 | X118: 12048.00704 | Y118: 13640.87588 | Z118: 15783.33106 | AA118: 9843.343647 | AB118: 10359.02329 | AC118: 13599.16072 | AD118: 15383.17383 | AE118: 17782.72362 | AF118: 11021.86717 | AG118: 11500.71256 | AH118: 14509.4116 | AI118: 16165.9952 | AJ118: 18394.14858 | AK118: 7431.505587 | AL118: 7994.133181 | AM118: 8333.649832 | AN118: 9352.790755 | AO118: 9746.088096 | AP118: 10823.67165 | AQ118: 9801.025892 | AR118: 11178.02029 | AS118: 12793.81088 | AT118: 13547.4654 | AU118: 15590.69695 | AV118: 17145.86391 | AW118: 18654.89756 | AX118: 13720.40491 | AY118: 12289.49964 | AZ118: 16217.87387 | BA118: 13889.64477 | BB118: 10823.67165 | BC118: 9801.025892 | BD118: 11372.27315 | BE118: 12793.81088 | BF118: 13547.4654 | BG118: 15590.69695 | BH118: 17145.86391 | BI118: 18654.89756 | BJ118: 13655.31366 | BK118: 12266.49384 | BL118: 16613.43852 | BM118: 13889.64477 | BN118: 12537.79033 | BO118: 11586.98637 | BP118: 16618.16681 | BQ118: 10823.67165 | BR118: 11362.87643 | BS118: 14669.41146 | BT118: 12254.4083 | BU118: 13012.95414 | BV118: 15672.8931 | BW118: 16914.19964 | BX118: 19087.44012 | BY118: 20875.88213 | BZ118: 22611.27082 | CA118: 18777.13621 | CB118: 22891.41781 | CC118: 23590.31821 | CD118: 26596.90861 | CE118: 11444.89727 | CF118: 12021.46015 | CG118: 7251.993013 | CH118: 0 | CK118: 0 | CL118: =IF(CK118<>0,LOOKUP(,-CODE(CK$3:CK118),CK$3:CK118),CL117) -> 2 | CT118: 0.72 | CU118: 216 | CV118: 2 | CW118: 2400 | CX118: ф | CY118: 2616
A119: 12 | B119: 9 | C119: =IF(B119<>0,LOOKUP(,-CODE(B$3:B119),B$3:B119),C118) -> 9 | D119: 9(300)-528 | E119: Тумба кухонная однодверный со стеклом, полка ЛДСП | F119: =IF(E119<>0,LOOKUP(,-CODE(E$3:E119),E$3:E119),F118) -> Тумба кухонная однодверный со стеклом, полка ЛДСП | H119: 1 | I119: 300 | J119: 720 | K119: 528 | L119: 3121.99052 | M119: 3121.99052 | N119: 3121.99052 | O119: 3121.99052 | P119: 3121.99052 | Q119: 3300.07052 | R119: 3300.07052 | S119: 3300.07052 | T119: 3300.07052 | U119: 3300.07052 | V119: 0 | W119: 0 | X119: 0 | Y119: 0 | Z119: 0 | AA119: 0 | AB119: 0 | AC119: 0 | AD119: 0 | AE119: 0 | AF119: 0 | AG119: 0 | AH119: 0 | AI119: 0 | AJ119: 0 | AK119: 2303.294578 | AL119: 2458.030536 | AM119: 2551.405683 | AN119: 2860.433721 | AO119: 2975.812097 | AP119: 3338.585773 | AQ119: 3031.742768 | AR119: 3444.907443 | AS119: 3929.722482 | AT119: 4155.855154 | AU119: 4768.923081 | AV119: 5235.548109 | AW119: 5688.33092 | AX119: 4207.745342 | AY119: 3778.404809 | AZ119: 0 | BA119: 0 | BB119: 3338.585773 | BC119: 3031.742768 | BD119: 3503.192662 | BE119: 3929.722482 | BF119: 4155.855154 | BG119: 4768.923081 | BH119: 5235.548109 | BI119: 5688.33092 | BJ119: 4188.214831 | BK119: 3771.50196 | BL119: 0 | BM119: 0 | BN119: 3852.903978 | BO119: 3567.616975 | BP119: 5064.794409 | BQ119: 3338.585773 | BR119: 0 | BS119: 0 | BT119: 3767.875715 | BU119: 0 | BV119: 0 | BW119: 0 | BX119: 0 | BY119: 0 | BZ119: 0 | CA119: 5809.595 | CB119: 7071.17324 | CC119: 7285.4798 | CD119: 8207.40236 | CE119: 0 | CF119: 0 | CG119: 2213.10668 | CH119: 3313.13598 | CK119: 1 | CL119: =IF(CK119<>0,LOOKUP(,-CODE(CK$3:CK119),CK$3:CK119),CL118) -> 1 | CT119: Ф | CU119: Ф | CV119: Ф | CW119: Ф | CX119: ф | CY119: Ф
A120: 0 | B120: 0 | C120: =IF(B120<>0,LOOKUP(,-CODE(B$3:B120),B$3:B120),C119) -> 9 | D120: 9(350)-528 | E120: Тумба кухонная однодверный со стеклом, полка ЛДСП | F120: =IF(E120<>0,LOOKUP(,-CODE(E$3:E120),E$3:E120),F119) -> Тумба кухонная однодверный со стеклом, полка ЛДСП | H120: 1 | I120: 350 | J120: 720 | K120: 528 | L120: 3310.806687 | M120: 3310.806687 | N120: 3310.806687 | O120: 3310.806687 | P120: 3310.806687 | Q120: 3497.286687 | R120: 3497.286687 | S120: 3497.286687 | T120: 3497.286687 | U120: 3497.286687 | V120: 0 | W120: 0 | X120: 0 | Y120: 0 | Z120: 0 | AA120: 0 | AB120: 0 | AC120: 0 | AD120: 0 | AE120: 0 | AF120: 0 | AG120: 0 | AH120: 0 | AI120: 0 | AJ120: 0 | AK120: 2479.451322 | AL120: 2653.675436 | AM120: 2758.810677 | AN120: 3121.372067 | AO120: 3254.948813 | AP120: 3697.179484 | AQ120: 3338.679407 | AR120: 3821.400424 | AS120: 4387.834157 | AT120: 4652.036303 | AU120: 5368.314318 | AV120: 5913.495749 | AW120: 6442.504623 | AX120: 4712.662213 | AY120: 4211.042128 | AZ120: 0 | BA120: 0 | BB120: 3697.179484 | BC120: 3338.679407 | BD120: 3889.49797 | BE120: 4387.834157 | BF120: 4652.036303 | BG120: 5368.314318 | BH120: 5913.495749 | BI120: 6442.504623 | BJ120: 4689.843737 | BK120: 4202.977184 | BL120: 0 | BM120: 0 | BN120: 4298.083245 | BO120: 3964.768127 | BP120: 5549.157654 | BQ120: 3697.179484 | BR120: 0 | BS120: 0 | BT120: 4198.74046 | BU120: 0 | BV120: 0 | BW120: 0 | BX120: 0 | BY120: 0 | BZ120: 0 | CA120: 6577.553247 | CB120: 8049.394527 | CC120: 8299.418847 | CD120: 9374.995167 | CE120: 0 | CF120: 0 | CG120: 2341.802847 | CH120: 3487.336755 | CK120: 0 | CL120: =IF(CK120<>0,LOOKUP(,-CODE(CK$3:CK120),CK$3:CK120),CL119) -> 1 | CT120: Ф | CU120: Ф | CV120: Ф | CW120: Ф | CX120: ф | CY120: Ф
A121: 0 | B121: 0 | C121: =IF(B121<>0,LOOKUP(,-CODE(B$3:B121),B$3:B121),C120) -> 9 | D121: 9(400)-528 | E121: Тумба кухонная однодверный со стеклом, полка ЛДСП | F121: =IF(E121<>0,LOOKUP(,-CODE(E$3:E121),E$3:E121),F120) -> Тумба кухонная однодверный со стеклом, полка ЛДСП | H121: 1 | I121: 400 | J121: 720 | K121: 528 | L121: 3499.622853 | M121: 3499.622853 | N121: 3499.622853 | O121: 3499.622853 | P121: 3499.622853 | Q121: 3694.502853 | R121: 3694.502853 | S121: 3694.502853 | T121: 3694.502853 | U121: 3694.502853 | V121: 0 | W121: 0 | X121: 0 | Y121: 0 | Z121: 0 | AA121: 0 | AB121: 0 | AC121: 0 | AD121: 0 | AE121: 0 | AF121: 0 | AG121: 0 | AH121: 0 | AI121: 0 | AJ121: 0 | AK121: 2655.608066 | AL121: 2849.320336 | AM121: 2966.215671 | AN121: 3382.310413 | AO121: 3534.085529 | AP121: 4055.773195 | AQ121: 3645.616047 | AR121: 4197.893406 | AS121: 4845.945832 | AT121: 5148.217452 | AU121: 5967.705556 | AV121: 6591.443388 | AW121: 7196.678325 | AX121: 5217.579083 | AY121: 4643.679448 | AZ121: 0 | BA121: 0 | BB121: 4055.773195 | BC121: 3645.616047 | BD121: 4275.803279 | BE121: 4845.945832 | BF121: 5148.217452 | BG121: 5967.705556 | BH121: 6591.443388 | BI121: 7196.678325 | BJ121: 5191.472643 | BK121: 4634.452408 | BL121: 0 | BM121: 0 | BN121: 4743.262513 | BO121: 4361.919279 | BP121: 6033.5209 | BQ121: 4055.773195 | BR121: 0 | BS121: 0 | BT121: 4629.605205 | BU121: 0 | BV121: 0 | BW121: 0 | BX121: 0 | BY121: 0 | BZ121: 0 | CA121: 7143.542853 | CB121: 8760.950853 | CC121: 9035.702853 | CD121: 10217.65485 | CE121: 0 | CF121: 0 | CG121: 2470.499013 | CH121: 3661.537529 | CK121: 0 | CL121: =IF(CK121<>0,LOOKUP(,-CODE(CK$3:CK121),CK$3:CK121),CL120) -> 1 | CT121: Ф | CU121: Ф | CV121: Ф | CW121: Ф | CX121: ф | CY121: Ф
A122: 0 | B122: 0 | C122: =IF(B122<>0,LOOKUP(,-CODE(B$3:B122),B$3:B122),C121) -> 9 | D122: 9(450)-528 | E122: Тумба кухонная однодверный со стеклом, полка ЛДСП | F122: =IF(E122<>0,LOOKUP(,-CODE(E$3:E122),E$3:E122),F121) -> Тумба кухонная однодверный со стеклом, полка ЛДСП | H122: 1 | I122: 450 | J122: 720 | K122: 528 | L122: 3688.43902 | M122: 3688.43902 | N122: 3688.43902 | O122: 3688.43902 | P122: 3688.43902 | Q122: 3891.71902 | R122: 3891.71902 | S122: 3891.71902 | T122: 3891.71902 | U122: 3891.71902 | V122: 0 | W122: 0 | X122: 0 | Y122: 0 | Z122: 0 | AA122: 0 | AB122: 0 | AC122: 0 | AD122: 0 | AE122: 0 | AF122: 0 | AG122: 0 | AH122: 0 | AI122: 0 | AJ122: 0 | AK122: 2831.76481 | AL122: 3044.965236 | AM122: 3173.620665 | AN122: 3643.24876 | AO122: 3813.222245 | AP122: 4414.366906 | AQ122: 3952.552686 | AR122: 4574.386388 | AS122: 5304.057508 | AT122: 5644.398601 | AU122: 6567.096793 | AV122: 7269.391028 | AW122: 7950.852027 | AX122: 5722.495954 | AY122: 5076.316767 | AZ122: 0 | BA122: 0 | BB122: 4414.366906 | BC122: 3952.552686 | BD122: 4662.108587 | BE122: 5304.057508 | BF122: 5644.398601 | BG122: 6567.096793 | BH122: 7269.391028 | BI122: 7950.852027 | BJ122: 5693.101549 | BK122: 5065.927632 | BL122: 0 | BM122: 0 | BN122: 5188.44178 | BO122: 4759.070432 | BP122: 6517.884145 | BQ122: 4414.366906 | BR122: 0 | BS122: 0 | BT122: 5060.46995 | BU122: 0 | BV122: 0 | BW122: 0 | BX122: 0 | BY122: 0 | BZ122: 0 | CA122: 7886.25502 | CB122: 9705.83902 | CC122: 10014.93502 | CD122: 11344.63102 | CE122: 0 | CF122: 0 | CG122: 2599.19518 | CH122: 3835.738304 | CK122: 0 | CL122: =IF(CK122<>0,LOOKUP(,-CODE(CK$3:CK122),CK$3:CK122),CL121) -> 1 | CT122: Ф | CU122: Ф | CV122: Ф | CW122: Ф | CX122: ф | CY122: Ф
A123: 0 | B123: 0 | C123: =IF(B123<>0,LOOKUP(,-CODE(B$3:B123),B$3:B123),C122) -> 9 | D123: 9(500)-528 | E123: Тумба кухонная однодверный со стеклом, полка ЛДСП | F123: =IF(E123<>0,LOOKUP(,-CODE(E$3:E123),E$3:E123),F122) -> Тумба кухонная однодверный со стеклом, полка ЛДСП | H123: 1 | I123: 500 | J123: 720 | K123: 528 | L123: 3877.255187 | M123: 3877.255187 | N123: 3877.255187 | O123: 3877.255187 | P123: 3877.255187 | Q123: 4088.935187 | R123: 4088.935187 | S123: 4088.935187 | T123: 4088.935187 | U123: 4088.935187 | V123: 0 | W123: 0 | X123: 0 | Y123: 0 | Z123: 0 | AA123: 0 | AB123: 0 | AC123: 0 | AD123: 0 | AE123: 0 | AF123: 0 | AG123: 0 | AH123: 0 | AI123: 0 | AJ123: 0 | AK123: 3007.921554 | AL123: 3240.610136 | AM123: 3381.025659 | AN123: 3904.187106 | AO123: 4092.358961 | AP123: 4772.960617 | AQ123: 4259.489325 | AR123: 4950.87937 | AS123: 5762.169183 | AT123: 6140.57975 | AU123: 7166.488031 | AV123: 7947.338668 | AW123: 8705.025729 | AX123: 6227.412825 | AY123: 5508.954087 | AZ123: 0 | BA123: 0 | BB123: 4772.960617 | BC123: 4259.489325 | BD123: 5048.413896 | BE123: 5762.169183 | BF123: 6140.57975 | BG123: 7166.488031 | BH123: 7947.338668 | BI123: 8705.025729 | BJ123: 6194.730455 | BK123: 5497.402856 | BL123: 0 | BM123: 0 | BN123: 5633.621047 | BO123: 5156.221584 | BP123: 7002.247391 | BQ123: 4772.960617 | BR123: 0 | BS123: 0 | BT123: 5491.334695 | BU123: 0 | BV123: 0 | BW123: 0 | BX123: 0 | BY123: 0 | BZ123: 0 | CA123: 8628.967187 | CB123: 10650.72719 | CC123: 10994.16719 | CD123: 12471.60719 | CE123: 0 | CF123: 0 | CG123: 2727.891347 | CH123: 4009.939079 | CK123: 0 | CL123: =IF(CK123<>0,LOOKUP(,-CODE(CK$3:CK123),CK$3:CK123),CL122) -> 1 | CT123: Ф | CU123: Ф | CV123: Ф | CW123: Ф | CX123: ф | CY123: Ф
A124: 0 | B124: 0 | C124: =IF(B124<>0,LOOKUP(,-CODE(B$3:B124),B$3:B124),C123) -> 9 | D124: 9(550)-528 | E124: Тумба кухонная однодверный со стеклом, полка ЛДСП | F124: =IF(E124<>0,LOOKUP(,-CODE(E$3:E124),E$3:E124),F123) -> Тумба кухонная однодверный со стеклом, полка ЛДСП | H124: 1 | I124: 550 | J124: 720 | K124: 528 | L124: 4066.071353 | M124: 4066.071353 | N124: 4066.071353 | O124: 4066.071353 | P124: 4066.071353 | Q124: 4286.151353 | R124: 4286.151353 | S124: 4286.151353 | T124: 4286.151353 | U124: 4286.151353 | V124: 0 | W124: 0 | X124: 0 | Y124: 0 | Z124: 0 | AA124: 0 | AB124: 0 | AC124: 0 | AD124: 0 | AE124: 0 | AF124: 0 | AG124: 0 | AH124: 0 | AI124: 0 | AJ124: 0 | AK124: 3184.078299 | AL124: 3436.255036 | AM124: 3588.430653 | AN124: 4165.125452 | AO124: 4371.495677 | AP124: 5131.554328 | AQ124: 4566.425965 | AR124: 5327.372352 | AS124: 6220.280858 | AT124: 6636.760898 | AU124: 7765.879268 | AV124: 8625.286307 | AW124: 9459.199431 | AX124: 6732.329696 | AY124: 5941.591407 | AZ124: 0 | BA124: 0 | BB124: 5131.554328 | BC124: 4566.425965 | BD124: 5434.719204 | BE124: 6220.280858 | BF124: 6636.760898 | BG124: 7765.879268 | BH124: 8625.286307 | BI124: 9459.199431 | BJ124: 6696.35936 | BK124: 5928.87808 | BL124: 0 | BM124: 0 | BN124: 6078.800315 | BO124: 5553.372736 | BP124: 7486.610636 | BQ124: 5131.554328 | BR124: 0 | BS124: 0 | BT124: 5922.19944 | BU124: 0 | BV124: 0 | BW124: 0 | BX124: 0 | BY124: 0 | BZ124: 0 | CA124: 9371.679353 | CB124: 11595.61535 | CC124: 11973.39935 | CD124: 13598.58335 | CE124: 0 | CF124: 0 | CG124: 2856.587513 | CH124: 4184.139853 | CK124: 0 | CL124: =IF(CK124<>0,LOOKUP(,-CODE(CK$3:CK124),CK$3:CK124),CL123) -> 1 | CT124: Ф | CU124: Ф | CV124: Ф | CW124: Ф | CX124: ф | CY124: Ф
A125: 0 | B125: 0 | C125: =IF(B125<>0,LOOKUP(,-CODE(B$3:B125),B$3:B125),C124) -> 9 | D125: 9(600)-528 | E125: Тумба кухонная однодверный со стеклом, полка ЛДСП | F125: =IF(E125<>0,LOOKUP(,-CODE(E$3:E125),E$3:E125),F124) -> Тумба кухонная однодверный со стеклом, полка ЛДСП | H125: 1 | I125: 600 | J125: 720 | K125: 528 | L125: 4254.88752 | M125: 4254.88752 | N125: 4254.88752 | O125: 4254.88752 | P125: 4254.88752 | Q125: 4483.36752 | R125: 4483.36752 | S125: 4483.36752 | T125: 4483.36752 | U125: 4483.36752 | V125: 0 | W125: 0 | X125: 0 | Y125: 0 | Z125: 0 | AA125: 0 | AB125: 0 | AC125: 0 | AD125: 0 | AE125: 0 | AF125: 0 | AG125: 0 | AH125: 0 | AI125: 0 | AJ125: 0 | AK125: 3360.235043 | AL125: 3631.899936 | AM125: 3795.835648 | AN125: 4426.063798 | AO125: 4650.632393 | AP125: 5490.148039 | AQ125: 4873.362604 | AR125: 5703.865334 | AS125: 6678.392534 | AT125: 7132.942047 | AU125: 8365.270506 | AV125: 9303.233947 | AW125: 10213.37313 | AX125: 7237.246566 | AY125: 6374.228726 | AZ125: 0 | BA125: 0 | BB125: 5490.148039 | BC125: 4873.362604 | BD125: 5821.024512 | BE125: 6678.392534 | BF125: 7132.942047 | BG125: 8365.270506 | BH125: 9303.233947 | BI125: 10213.37313 | BJ125: 7197.988266 | BK125: 6360.353304 | BL125: 0 | BM125: 0 | BN125: 6523.979582 | BO125: 5950.523889 | BP125: 7970.973882 | BQ125: 5490.148039 | BR125: 0 | BS125: 0 | BT125: 6353.064185 | BU125: 0 | BV125: 0 | BW125: 0 | BX125: 0 | BY125: 0 | BZ125: 0 | CA125: 10114.39152 | CB125: 12540.50352 | CC125: 12952.63152 | CD125: 14725.55952 | CE125: 0 | CF125: 0 | CG125: 2985.28368 | CH125: 4358.340628 | CK125: 0 | CL125: =IF(CK125<>0,LOOKUP(,-CODE(CK$3:CK125),CK$3:CK125),CL124) -> 1 | CT125: Ф | CU125: Ф | CV125: Ф | CW125: Ф | CX125: ф | CY125: Ф
A126: 13 | B126: 10 | C126: =IF(B126<>0,LOOKUP(,-CODE(B$3:B126),B$3:B126),C125) -> 10 | D126: 10(600)-528 | E126: Тумба кухонная двухдверный со стеклом, полка ЛДСП | F126: =IF(E126<>0,LOOKUP(,-CODE(E$3:E126),E$3:E126),F125) -> Тумба кухонная двухдверный со стеклом, полка ЛДСП | H126: 1 | I126: 600 | J126: 720 | K126: 528 | L126: 5298.12552 | M126: 5298.12552 | N126: 5298.12552 | O126: 5298.12552 | P126: 5298.12552 | Q126: 5170.92552 | R126: 5170.92552 | S126: 5170.92552 | T126: 5170.92552 | U126: 5170.92552 | V126: 0 | W126: 0 | X126: 0 | Y126: 0 | Z126: 0 | AA126: 0 | AB126: 0 | AC126: 0 | AD126: 0 | AE126: 0 | AF126: 0 | AG126: 0 | AH126: 0 | AI126: 0 | AJ126: 0 | AK126: 3678.505167 | AL126: 3989.146372 | AM126: 4176.602272 | AN126: 4794.389547 | AO126: 5025.3647 | AP126: 5747.636027 | AQ126: 5133.950016 | AR126: 5960.279365 | AS126: 6929.909443 | AT126: 7382.174788 | AU126: 8608.310641 | AV126: 9541.560698 | AW126: 10447.12632 | AX126: 7485.955164 | AY126: 6627.274097 | AZ126: 0 | BA126: 0 | BB126: 5747.636027 | BC126: 5133.950016 | BD126: 6076.849804 | BE126: 6929.909443 | BF126: 7382.174788 | BG126: 8608.310641 | BH126: 9541.560698 | BI126: 10447.12632 | BJ126: 7446.894142 | BK126: 6613.4684 | BL126: 0 | BM126: 0 | BN126: 6776.272436 | BO126: 6205.698429 | BP126: 9200.053297 | BQ126: 5747.636027 | BR126: 0 | BS126: 0 | BT126: 6606.21591 | BU126: 0 | BV126: 0 | BW126: 0 | BX126: 0 | BY126: 0 | BZ126: 0 | CA126: 10689.65448 | CB126: 13212.81096 | CC126: 13641.42408 | CD126: 15485.2692 | CE126: 0 | CF126: 0 | CG126: 3581.83368 | CH126: 5674.33644 | CK126: 2 | CL126: =IF(CK126<>0,LOOKUP(,-CODE(CK$3:CK126),CK$3:CK126),CL125) -> 2 | CT126: Ф | CU126: Ф | CV126: Ф | CW126: Ф | CX126: ф | CY126: Ф
A127: 0 | B127: 0 | C127: =IF(B127<>0,LOOKUP(,-CODE(B$3:B127),B$3:B127),C126) -> 10 | D127: 10(650)-528 | E127: Тумба кухонная двухдверный со стеклом, полка ЛДСП | F127: =IF(E127<>0,LOOKUP(,-CODE(E$3:E127),E$3:E127),F126) -> Тумба кухонная двухдверный со стеклом, полка ЛДСП | H127: 1 | I127: 650 | J127: 720 | K127: 528 | L127: 5486.941687 | M127: 5486.941687 | N127: 5486.941687 | O127: 5486.941687 | P127: 5486.941687 | Q127: 5368.141687 | R127: 5368.141687 | S127: 5368.141687 | T127: 5368.141687 | U127: 5368.141687 | V127: 0 | W127: 0 | X127: 0 | Y127: 0 | Z127: 0 | AA127: 0 | AB127: 0 | AC127: 0 | AD127: 0 | AE127: 0 | AF127: 0 | AG127: 0 | AH127: 0 | AI127: 0 | AJ127: 0 | AK127: 3854.661911 | AL127: 4184.791272 | AM127: 4384.007266 | AN127: 5055.327893 | AO127: 5304.501416 | AP127: 6106.229738 | AQ127: 5440.886655 | AR127: 6336.772347 | AS127: 7388.021119 | AT127: 7878.355937 | AU127: 9207.701879 | AV127: 10219.50834 | AW127: 11201.30002 | AX127: 7990.872035 | AY127: 7059.911417 | AZ127: 0 | BA127: 0 | BB127: 6106.229738 | BC127: 5440.886655 | BD127: 6463.155112 | BE127: 7388.021119 | BF127: 7878.355937 | BG127: 9207.701879 | BH127: 10219.50834 | BI127: 11201.30002 | BJ127: 7948.523048 | BK127: 7044.943624 | BL127: 0 | BM127: 0 | BN127: 7221.451703 | BO127: 6602.849582 | BP127: 9684.416543 | BQ127: 6106.229738 | BR127: 0 | BS127: 0 | BT127: 7037.080655 | BU127: 0 | BV127: 0 | BW127: 0 | BX127: 0 | BY127: 0 | BZ127: 0 | CA127: 11457.61273 | CB127: 14191.03225 | CC127: 14655.36313 | CD127: 16652.86201 | CE127: 0 | CF127: 0 | CG127: 3710.529847 | CH127: 5848.537214 | CK127: 0 | CL127: =IF(CK127<>0,LOOKUP(,-CODE(CK$3:CK127),CK$3:CK127),CL126) -> 2 | CT127: Ф | CU127: Ф | CV127: Ф | CW127: Ф | CX127: ф | CY127: Ф
A128: 0 | B128: 0 | C128: =IF(B128<>0,LOOKUP(,-CODE(B$3:B128),B$3:B128),C127) -> 10 | D128: 10(700)-528 | E128: Тумба кухонная двухдверный со стеклом, полка ЛДСП | F128: =IF(E128<>0,LOOKUP(,-CODE(E$3:E128),E$3:E128),F127) -> Тумба кухонная двухдверный со стеклом, полка ЛДСП | H128: 1 | I128: 700 | J128: 720 | K128: 528 | L128: 5675.757853 | M128: 5675.757853 | N128: 5675.757853 | O128: 5675.757853 | P128: 5675.757853 | Q128: 5565.357853 | R128: 5565.357853 | S128: 5565.357853 | T128: 5565.357853 | U128: 5565.357853 | V128: 0 | W128: 0 | X128: 0 | Y128: 0 | Z128: 0 | AA128: 0 | AB128: 0 | AC128: 0 | AD128: 0 | AE128: 0 | AF128: 0 | AG128: 0 | AH128: 0 | AI128: 0 | AJ128: 0 | AK128: 4030.818655 | AL128: 4380.436172 | AM128: 4591.41226 | AN128: 5316.266239 | AO128: 5583.638132 | AP128: 6464.823449 | AQ128: 5747.823295 | AR128: 6713.265329 | AS128: 7846.132794 | AT128: 8374.537086 | AU128: 9807.093116 | AV128: 10897.45598 | AW128: 11955.47373 | AX128: 8495.788906 | AY128: 7492.548736 | AZ128: 0 | BA128: 0 | BB128: 6464.823449 | BC128: 5747.823295 | BD128: 6849.460421 | BE128: 7846.132794 | BF128: 8374.537086 | BG128: 9807.093116 | BH128: 10897.45598 | BI128: 11955.47373 | BJ128: 8450.151954 | BK128: 7476.418848 | BL128: 0 | BM128: 0 | BN128: 7666.630971 | BO128: 7000.000734 | BP128: 10168.77979 | BQ128: 6464.823449 | BR128: 0 | BS128: 0 | BT128: 7467.9454 | BU128: 0 | BV128: 0 | BW128: 0 | BX128: 0 | BY128: 0 | BZ128: 0 | CA128: 12225.57097 | CB128: 15169.25353 | CC128: 15669.30217 | CD128: 17820.45481 | CE128: 0 | CF128: 0 | CG128: 3839.226013 | CH128: 6022.737989 | CK128: 0 | CL128: =IF(CK128<>0,LOOKUP(,-CODE(CK$3:CK128),CK$3:CK128),CL127) -> 2 | CT128: Ф | CU128: Ф | CV128: Ф | CW128: Ф | CX128: ф | CY128: Ф
